Workbook

Sheet INTRODUCTION
A1: PROJECT FINANCE MODELING
A3: PHILIPPE DUCHEMIN | D3: 2020-12-01 | F3: Color Codes
A5: BS CONTROL | B5: =MODELING!C259 -> TRUE | D5: MODELLING | G5: Input Cell with link to INPUT TABLE
D6: RETURN | G6: Input Cell without link to INPUT TABLE
D7: SIMULATIONS | G7: Input Cell calculated
D8: CONTROLS
G9: CASH FLOW STATEMENT
G10: INCOME STATEMENT
G11: BALANCE SHEET
G13: SCENARIO CELL
A14: OUTPUT TABLE
A15: 1 | B15: OPERATIONS CASH FLOW BEF TAXES | E15: =RETURN!B10 -> 0.1317824317
A16: 2 | B16: OPEARATIONS CASH FLOW AFTER TAXES | E16: =RETURN!B12 -> 0.1074906479
A17: 3 | B17: OPERATIONS ACCOUNTING BEF TAXES | E17: =RETURN!B18 -> 0.104639084
A18: 4 | B18: OPERATIONS ACCOUNTING AFTER TAXES | E18: =RETURN!B20 -> 0.07739478079
A19: 5 | B19: PROJECT ACCOUNTING BEFORE TAXES | E19: =RETURN!B32 -> 0.7629934553
A20: 6 | B20: PROJECT ACCOUNTING AFTER TAXES | E20: =RETURN!B34 -> 0.2048330928
A21: 7 | B21: ROE | E21: =RETURN!B42 -> 0.1452130637
A22: 8 | B22: DEBT RETURN | E22: =RETURN!B48 -> 0.04494919488
A23: 9 | B23: FINANCE - WACC | E23: =RETURN!B65 -> 0.1072348575
A24: 10 | B24: PLCR Mini | E24: =MODELING!E280 -> 1.967086764
A25: 11 | B25: PLCR Average | E25: =MODELING!E281 -> 4.840505588
A26: 12 | B26: LLCR Mini | E26: =MODELING!H280 -> 1.625876468
A27: 13 | B27: LLCR Average | E27: =MODELING!H281 -> 2.48445651
A28: 14 | B28: DSCR Mini | E28: =MODELING!K280 -> 1.780821015
A29: 15 | B29: DSCR Average | E29: =MODELING!K281 -> 2.992426151
A30: 16 | B30: Pay Back | E30: =RETURN!C106 -> 2025
A31: 17 | B31: OPERATIONS CASH FLOW BEF TAXES | E31: =RETURN!A10 -> 80397.53042
A32: 18 | B32: OPEARATIONS CASH FLOW AFTER TAXES | E32: =RETURN!A12 -> 17831.82763
A33: 19 | B33: OPERATIONS ACCOUNTING BEF TAXES | E33: =RETURN!A18 -> 10907.3241
A34: 20 | B34: OPERATIONS ACCOUNTING AFTER TAXES | E34: =RETURN!A20 -> -48855.76563
A35: 21 | B35: PROJECT ACCOUNTING BEFORE TAXES | E35: =RETURN!A32 -> 186824.5901
A36: 22 | B36: PROJECT ACCOUNTING AFTER TAXES | E36: =RETURN!A34 -> 122412.4516
A37: 23 | B37: ROE NPV | E37: =RETURN!A42 -> -55654.22058
A38: 24 | B38: DEBT NPV | E38: =RETURN!A48 -> 78055.31316
A39: 25 | B39: FINANCE NPV | E39: =RETURN!A65 -> -17284.82757

Sheet MODELING
A1: PROJECT MODELING
B2: =SIMULATIONS!AM4 -> 3
A3: Calendar Year | C3: Year | D3: 2020 | E3: =D3+1 -> 2021 | F3: =E3+1 -> 2022 | G3: 2023 | H3: 2024 | I3: 2025 | J3: 2026 | K3: 2027 | L3: 2028 | M3: 2029 | N3: 2030 | O3: 2031 | P3: 2032 | Q3: 2033 | R3: 2034 | S3: 2035 | T3: 2036 | U3: 2037 | V3: 2038 | W3: 2039 | X3: 2040 | Y3: 2041 | Z3: 2042 | AA3: 2043 | AB3: 2044 | AC3: 2045 | AD3: 2046 | AE3: 2047 | AF3: 2048 | AG3: 2049 | AH3: 2050 | AI3: 2051 | AJ3: 2052 | AK3: 2053 | AL3: 2054
A4: Durations | C4: Duration | D4: 1 | E4: =D4+1 -> 2 | F4: 3 | G4: 4 | H4: 5 | I4: 6 | J4: 7 | K4: 8 | L4: 9 | M4: 10 | N4: 11 | O4: 12 | P4: 13 | Q4: 14 | R4: 15 | S4: 16 | T4: 17 | U4: 18 | V4: 19 | W4: 20 | X4: 21 | Y4: 22 | Z4: 23 | AA4: 24 | AB4: 25 | AC4: 26 | AD4: 27 | AE4: 28 | AF4: 29 | AG4: 30 | AH4: 31 | AI4: 32 | AJ4: 33 | AK4: 34 | AL4: 35
A5: Construction | B5: year | C5: DurationConst | D5: 5 | E5: =D5 -> 5 | F5: 5 | G5: =F5 -> 5 | H5: 5 | I5: 5 | J5: 5 | K5: 5 | L5: 5 | M5: 5 | N5: 5 | O5: 5 | P5: 5 | Q5: 5 | R5: 5 | S5: 5 | T5: 5 | U5: 5 | V5: 5 | W5: 5 | X5: 5 | Y5: 5 | Z5: 5 | AA5: 5 | AB5: 5 | AC5: 5 | AD5: 5 | AE5: 5 | AF5: 5 | AG5: 5 | AH5: 5 | AI5: 5 | AJ5: 5 | AK5: 5 | AL5: 5
A6: Production | B6: year | C6: DurationProd | D6: 25 | E6: 25 | F6: 25 | G6: 25 | H6: 25 | I6: 25 | J6: 25 | K6: 25 | L6: 25 | M6: 25 | N6: 25 | O6: 25 | P6: 25 | Q6: 25 | R6: 25 | S6: 25 | T6: 25 | U6: 25 | V6: 25 | W6: 25 | X6: 25 | Y6: 25 | Z6: 25 | AA6: 25 | AB6: 25 | AC6: 25 | AD6: 25 | AE6: 25 | AF6: 25 | AG6: 25 | AH6: 25 | AI6: 25 | AJ6: 25 | AK6: 25 | AL6: 25
A7: Termination | B7: year | C7: DurationTerm | D7: 5 | E7: 5 | F7: 5 | G7: 5 | H7: 5 | I7: 5 | J7: 5 | K7: 5 | L7: 5 | M7: 5 | N7: 5 | O7: 5 | P7: 5 | Q7: 5 | R7: 5 | S7: 5 | T7: 5 | U7: 5 | V7: 5 | W7: 5 | X7: 5 | Y7: 5 | Z7: 5 | AA7: 5 | AB7: 5 | AC7: 5 | AD7: 5 | AE7: 5 | AF7: 5 | AG7: 5 | AH7: 5 | AI7: 5 | AJ7: 5 | AK7: 5 | AL7: 5
A8: Project | B8: year | C8: DurationProject | D8: =D5+D6+D7 -> 35 | E8: =D8 -> 35 | F8: 35 | G8: 35 | H8: 35 | I8: 35 | J8: 35 | K8: 35 | L8: 35 | M8: 35 | N8: 35 | O8: 35 | P8: 35 | Q8: 35 | R8: 35 | S8: 35 | T8: 35 | U8: 35 | V8: 35 | W8: 35 | X8: 35 | Y8: 35 | Z8: 35 | AA8: 35 | AB8: 35 | AC8: 35 | AD8: 35 | AE8: 35 | AF8: 35 | AG8: 35 | AH8: 35 | AI8: 35 | AJ8: 35 | AK8: 35 | AL8: 35
C9: YearConst | D9: =--(Duration<=DurationConst) -> 1 | E9: =--(Duration<=DurationConst) -> 1 | F9: 1 | G9: 1 | H9: 1 | I9: 0 | J9: 0 | K9: 0 | L9: 0 | M9: 0 | N9: 0 | O9: 0 | P9: 0 | Q9: 0 | R9: 0 | S9: 0 | T9: 0 | U9: 0 | V9: 0 | W9: 0 | X9: 0 | Y9: 0 | Z9: 0 | AA9: 0 | AB9: 0 | AC9: 0 | AD9: 0 | AE9: 0 | AF9: 0 | AG9: 0 | AH9: 0 | AI9: 0 | AJ9: 0 | AK9: 0 | AL9: 0 | AN9: =_xlfn.FORMULATEXT(K9) -> =--(Duration<=DurationConst)
C10: YearProd | D10: =--(Duration>DurationConst)*(Duration<=DurationProd+DurationConst) -> 0 | E10: 0 | F10: 0 | G10: 0 | H10: 0 | I10: 1 | J10: 1 | K10: 1 | L10: 1 | M10: 1 | N10: 1 | O10: 1 | P10: 1 | Q10: 1 | R10: 1 | S10: 1 | T10: 1 | U10: 1 | V10: 1 | W10: 1 | X10: 1 | Y10: 1 | Z10: 1 | AA10: 1 | AB10: 1 | AC10: 1 | AD10: 1 | AE10: 1 | AF10: 1 | AG10: 1 | AH10: 0 | AI10: 0 | AJ10: 0 | AK10: 0 | AL10: 0 | AN10: =--(Duration>DurationConst)*(Duration<=DurationProd+DurationConst)
C11: YearTerm | D11: =--(Duration>DurationConst+DurationProd) -> 0 | E11: 0 | F11: 0 | G11: 0 | H11: 0 | I11: 0 | J11: 0 | K11: 0 | L11: 0 | M11: 0 | N11: 0 | O11: 0 | P11: 0 | Q11: 0 | R11: 0 | S11: 0 | T11: 0 | U11: 0 | V11: 0 | W11: 0 | X11: 0 | Y11: 0 | Z11: 0 | AA11: 0 | AB11: 0 | AC11: 0 | AD11: 0 | AE11: 0 | AF11: 0 | AG11: 0 | AH11: 1 | AI11: 1 | AJ11: 1 | AK11: 1 | AL11: 1 | AN11: =--(Duration>DurationConst+DurationProd)
A12: Inflation | B12: 1 | C12: RateInflation | D12: =INDEX(TSCE,CSCE,$B12) -> 0.01 | E12: =D12 -> 0.01 | F12: =E12 -> 0.01 | G12: 0.01 | H12: 0.01 | I12: 0.01 | J12: 0.01 | K12: 0.01 | L12: 0.01 | M12: 0.01 | N12: 0.01 | O12: 0.01 | P12: 0.01 | Q12: 0.01 | R12: 0.01 | S12: 0.01 | T12: 0.01 | U12: 0.01 | V12: 0.01 | W12: 0.01 | X12: 0.01 | Y12: 0.01 | Z12: 0.01 | AA12: 0.01 | AB12: 0.01 | AC12: 0.01 | AD12: 0.01 | AE12: 0.01 | AF12: 0.01 | AG12: 0.01 | AH12: 0.01 | AI12: 0.01 | AJ12: 0.01 | AK12: 0.01 | AL12: 0.01
A13: Prices
A14: Initial Price | B14: =B12+1 -> 2 | C14: PriceMWh | D14: =INDEX(TSCE,CSCE,$B14) -> 110 | E14: =D14 -> 110 | F14: =E14 -> 110 | G14: 110 | H14: 110 | I14: 110 | J14: 110 | K14: 110 | L14: 110 | M14: 110 | N14: 110 | O14: 110 | P14: 110 | Q14: 110 | R14: 110 | S14: 110 | T14: 110 | U14: 110 | V14: 110 | W14: 110 | X14: 110 | Y14: 110 | Z14: 110 | AA14: 110 | AB14: 110 | AC14: 110 | AD14: 110 | AE14: 110 | AF14: 110 | AG14: 110 | AH14: 110 | AI14: 110 | AJ14: 110 | AK14: 110 | AL14: 110
A15: Index | B15: =B14+1 -> 3 | C15: Priceindex | D15: =INDEX(TSCE,CSCE,$B15) -> 100 | E15: =D15 -> 100 | F15: 100 | G15: 100 | H15: 100 | I15: 100 | J15: 100 | K15: 100 | L15: 100 | M15: 100 | N15: 100 | O15: 100 | P15: 100 | Q15: 100 | R15: 100 | S15: 100 | T15: 100 | U15: 100 | V15: 100 | W15: 100 | X15: 100 | Y15: 100 | Z15: 100 | AA15: 100 | AB15: 100 | AC15: 100 | AD15: 100 | AE15: 100 | AF15: 100 | AG15: 100 | AH15: 100 | AI15: 100 | AJ15: 100 | AK15: 100 | AL15: 100
A16: Production
A17: Capacity | B17: =B15+1 -> 4 | C17: ProductionYear | D17: =INDEX(TSCE,CSCE,$B17) -> 500 | E17: =D17 -> 500 | F17: =E17 -> 500 | G17: 500 | H17: 500 | I17: 500 | J17: 500 | K17: =J17 -> 500 | L17: =K17 -> 500 | M17: =L17 -> 500 | N17: =M17 -> 500 | O17: =N17 -> 500 | P17: =O17 -> 500 | Q17: =P17 -> 500 | R17: =Q17 -> 500 | S17: =R17 -> 500 | T17: =S17 -> 500 | U17: =T17 -> 500 | V17: =U17 -> 500 | W17: =V17 -> 500 | X17: =W17 -> 500 | Y17: =X17 -> 500 | Z17: =Y17 -> 500 | AA17: =Z17 -> 500 | AB17: =AA17 -> 500 | AC17: =AB17 -> 500 | AD17: =AC17 -> 500 | AE17: =AD17 -> 500 | AF17: =AE17 -> 500 | AG17: =AF17 -> 500 | AH17: =AG17 -> 500 | AI17: =AH17 -> 500 | AJ17: =AI17 -> 500 | AK17: =AJ17 -> 500 | AL17: =AK17 -> 500
A18: Availibility | B18: =B17+1 -> 5 | C18: Availibility | D18: =INDEX(TSCE,CSCE,$B18) -> 1 | E18: 1 | F18: 1 | G18: 1 | H18: 1 | I18: 1 | J18: 1 | K18: 1 | L18: 1 | M18: =$D18 -> 1 | N18: 1 | O18: 1 | P18: 1 | Q18: 1 | R18: =$D18 -> 1 | S18: 1 | T18: 1 | U18: 1 | V18: 1 | W18: =$D18 -> 1 | X18: 1 | Y18: 1 | Z18: 1 | AA18: 1 | AB18: =$D18 -> 1 | AC18: 1 | AD18: 1 | AE18: 1 | AF18: 1 | AG18: =$D18 -> 1 | AH18: 1 | AI18: 1 | AJ18: 1 | AK18: 1 | AL18: 1
A19: Costs
A20: O&M | B20: =B18+1 -> 6 | C20: CostOM | D20: =INDEX(TSCE,CSCE,$B20) -> 2 | E20: =D20 -> 2 | F20: =E20 -> 2 | G20: =F20 -> 2 | H20: =G20 -> 2 | I20: =H20 -> 2 | J20: =I20 -> 2 | K20: =J20 -> 2 | L20: =K20 -> 2 | M20: =L20 -> 2 | N20: =M20 -> 2 | O20: =N20 -> 2 | P20: =O20 -> 2 | Q20: =P20 -> 2 | R20: =Q20 -> 2 | S20: =R20 -> 2 | T20: =S20 -> 2 | U20: =T20 -> 2 | V20: =U20 -> 2 | W20: =V20 -> 2 | X20: =W20 -> 2 | Y20: =X20 -> 2 | Z20: =Y20 -> 2 | AA20: =Z20 -> 2 | AB20: =AA20 -> 2 | AC20: =AB20 -> 2 | AD20: =AC20 -> 2 | AE20: =AD20 -> 2 | AF20: =AE20 -> 2 | AG20: =AF20 -> 2 | AH20: =AG20 -> 2 | AI20: =AH20 -> 2 | AJ20: =AI20 -> 2 | AK20: =AJ20 -> 2 | AL20: =AK20 -> 2
A21: Fees | B21: =B20+1 -> 7 | C21: CostFEE | D21: =INDEX(TSCE,CSCE,$B21) -> 0.001 | E21: =D21 -> 0.001 | F21: 0.001 | G21: 0.001 | H21: 0.001 | I21: 0.001 | J21: 0.001 | K21: 0.001 | L21: 0.001 | M21: 0.001 | N21: 0.001 | O21: 0.001 | P21: 0.001 | Q21: 0.001 | R21: 0.001 | S21: 0.001 | T21: 0.001 | U21: 0.001 | V21: 0.001 | W21: 0.001 | X21: 0.001 | Y21: 0.001 | Z21: 0.001 | AA21: 0.001 | AB21: 0.001 | AC21: 0.001 | AD21: 0.001 | AE21: 0.001 | AF21: 0.001 | AG21: 0.001 | AH21: 0.001 | AI21: 0.001 | AJ21: 0.001 | AK21: 0.001 | AL21: 0.001
A22: Environment | B22: =B21+1 -> 8 | C22: CostENV | D22: =INDEX(TSCE,CSCE,$B22) -> 0.0002 | E22: =D22 -> 0.0002 | F22: =E22 -> 0.0002 | G22: =F22 -> 0.0002 | H22: =G22 -> 0.0002 | I22: =H22 -> 0.0002 | J22: =I22 -> 0.0002 | K22: =J22 -> 0.0002 | L22: =K22 -> 0.0002 | M22: =L22 -> 0.0002 | N22: =M22 -> 0.0002 | O22: =N22 -> 0.0002 | P22: =O22 -> 0.0002 | Q22: =P22 -> 0.0002 | R22: =Q22 -> 0.0002 | S22: =R22 -> 0.0002 | T22: =S22 -> 0.0002 | U22: =T22 -> 0.0002 | V22: =U22 -> 0.0002 | W22: =V22 -> 0.0002 | X22: =W22 -> 0.0002 | Y22: =X22 -> 0.0002 | Z22: =Y22 -> 0.0002 | AA22: =Z22 -> 0.0002 | AB22: =AA22 -> 0.0002 | AC22: =AB22 -> 0.0002 | AD22: =AC22 -> 0.0002 | AE22: =AD22 -> 0.0002 | AF22: =AE22 -> 0.0002 | AG22: =AF22 -> 0.0002 | AH22: =AG22 -> 0.0002 | AI22: =AH22 -> 0.0002 | AJ22: =AI22 -> 0.0002 | AK22: =AJ22 -> 0.0002 | AL22: =AK22 -> 0.0002
A23: Taxes
A24: on CA | B24: =B22+1 -> 9 | C24: TaxCA | D24: =INDEX(TSCE,CSCE,$B24) -> 0.003 | E24: =D24 -> 0.003 | F24: =E24 -> 0.003 | G24: =F24 -> 0.003 | H24: =G24 -> 0.003 | I24: =H24 -> 0.003 | J24: =I24 -> 0.003 | K24: =J24 -> 0.003 | L24: =K24 -> 0.003 | M24: =L24 -> 0.003 | N24: =M24 -> 0.003 | O24: =N24 -> 0.003 | P24: =O24 -> 0.003 | Q24: =P24 -> 0.003 | R24: =Q24 -> 0.003 | S24: =R24 -> 0.003 | T24: =S24 -> 0.003 | U24: =T24 -> 0.003 | V24: =U24 -> 0.003 | W24: =V24 -> 0.003 | X24: =W24 -> 0.003 | Y24: =X24 -> 0.003 | Z24: =Y24 -> 0.003 | AA24: =Z24 -> 0.003 | AB24: =AA24 -> 0.003 | AC24: =AB24 -> 0.003 | AD24: =AC24 -> 0.003 | AE24: =AD24 -> 0.003 | AF24: =AE24 -> 0.003 | AG24: =AF24 -> 0.003 | AH24: =AG24 -> 0.003 | AI24: =AH24 -> 0.003 | AJ24: =AI24 -> 0.003 | AK24: =AJ24 -> 0.003 | AL24: =AK24 -> 0.003
A25: on Capex | B25: =B24+1 -> 10 | C25: TaxCAP | D25: =INDEX(TSCE,CSCE,$B25) -> 0.008 | E25: =D25 -> 0.008 | F25: 0.008 | G25: 0.008 | H25: 0.008 | I25: 0.008 | J25: 0.008 | K25: 0.008 | L25: 0.008 | M25: 0.008 | N25: 0.008 | O25: 0.008 | P25: 0.008 | Q25: 0.008 | R25: 0.008 | S25: 0.008 | T25: 0.008 | U25: 0.008 | V25: 0.008 | W25: 0.008 | X25: 0.008 | Y25: 0.008 | Z25: 0.008 | AA25: 0.008 | AB25: 0.008 | AC25: 0.008 | AD25: 0.008 | AE25: 0.008 | AF25: 0.008 | AG25: 0.008 | AH25: 0.008 | AI25: 0.008 | AJ25: 0.008 | AK25: 0.008 | AL25: 0.008
A26: CompTax | B26: =B25+1 -> 11 | C26: TaxCorp | D26: =INDEX(TSCE,CSCE,$B26) -> 0.25 | E26: =D26 -> 0.25 | F26: =E26 -> 0.25 | G26: =F26 -> 0.25 | H26: =G26 -> 0.25 | I26: =H26 -> 0.25 | J26: =I26 -> 0.25 | K26: =J26 -> 0.25 | L26: =K26 -> 0.25 | M26: =L26 -> 0.25 | N26: =M26 -> 0.25 | O26: =N26 -> 0.25 | P26: =O26 -> 0.25 | Q26: =P26 -> 0.25 | R26: =Q26 -> 0.25 | S26: =R26 -> 0.25 | T26: =S26 -> 0.25 | U26: =T26 -> 0.25 | V26: =U26 -> 0.25 | W26: =V26 -> 0.25 | X26: =W26 -> 0.25 | Y26: =X26 -> 0.25 | Z26: =Y26 -> 0.25 | AA26: =Z26 -> 0.25 | AB26: =AA26 -> 0.25 | AC26: =AB26 -> 0.25 | AD26: =AC26 -> 0.25 | AE26: =AD26 -> 0.25 | AF26: =AE26 -> 0.25 | AG26: =AF26 -> 0.25 | AH26: =AG26 -> 0.25 | AI26: =AH26 -> 0.25 | AJ26: =AI26 -> 0.25 | AK26: =AJ26 -> 0.25 | AL26: =AK26 -> 0.25
A27: Working Capital
A28: Collect | B28: =B26+1 -> 12 | C28: DelaysCashIn | D28: =INDEX(TSCE,CSCE,$B28) -> 60 | E28: =D28 -> 60 | F28: =E28 -> 60 | G28: 60 | H28: 60 | I28: 60 | J28: 60 | K28: 60 | L28: 60 | M28: 60 | N28: 60 | O28: 60 | P28: 60 | Q28: 60 | R28: 60 | S28: 60 | T28: 60 | U28: 60 | V28: 60 | W28: 60 | X28: 60 | Y28: 60 | Z28: 60 | AA28: 60 | AB28: 60 | AC28: 60 | AD28: 60 | AE28: 60 | AF28: 60 | AG28: 60 | AH28: 60 | AI28: 60 | AJ28: 60 | AK28: 60 | AL28: 60
A29: Payments | B29: =B28+1 -> 13 | C29: DelaysCashOut | D29: =INDEX(TSCE,CSCE,$B29) -> 90 | E29: =D29 -> 90 | F29: =E29 -> 90 | G29: 90 | H29: 90 | I29: 90 | J29: 90 | K29: 90 | L29: 90 | M29: 90 | N29: 90 | O29: 90 | P29: 90 | Q29: 90 | R29: 90 | S29: 90 | T29: 90 | U29: 90 | V29: 90 | W29: 90 | X29: 90 | Y29: 90 | Z29: 90 | AA29: 90 | AB29: 90 | AC29: 90 | AD29: 90 | AE29: 90 | AF29: 90 | AG29: 90 | AH29: 90 | AI29: 90 | AJ29: 90 | AK29: 90 | AL29: 90
A30: Construction
A31: Construction | C31: Construction | D31: 314000 | E31: =D31 -> 314000 | F31: =E31 -> 314000 | G31: 314000 | H31: 314000 | I31: 314000 | J31: =I31 -> 314000 | K31: =J31 -> 314000 | L31: =K31 -> 314000 | M31: =L31 -> 314000 | N31: =M31 -> 314000 | O31: =N31 -> 314000 | P31: =O31 -> 314000 | Q31: =P31 -> 314000 | R31: =Q31 -> 314000 | S31: =R31 -> 314000 | T31: =S31 -> 314000 | U31: =T31 -> 314000 | V31: =U31 -> 314000 | W31: =V31 -> 314000 | X31: =W31 -> 314000 | Y31: =X31 -> 314000 | Z31: =Y31 -> 314000 | AA31: =Z31 -> 314000 | AB31: =AA31 -> 314000 | AC31: =AB31 -> 314000 | AD31: =AC31 -> 314000 | AE31: =AD31 -> 314000 | AF31: =AE31 -> 314000 | AG31: =AF31 -> 314000 | AH31: =AG31 -> 314000 | AI31: =AH31 -> 314000 | AJ31: =AI31 -> 314000 | AK31: =AJ31 -> 314000 | AL31: =AK31 -> 314000
A32: Land | C32: Land | D32: 27000 | E32: =D32 -> 27000 | F32: 27000 | G32: 27000 | H32: 27000 | I32: 27000 | J32: 27000 | K32: 27000 | L32: 27000 | M32: 27000 | N32: 27000 | O32: 27000 | P32: 27000 | Q32: 27000 | R32: 27000 | S32: 27000 | T32: 27000 | U32: 27000 | V32: 27000 | W32: 27000 | X32: 27000 | Y32: 27000 | Z32: 27000 | AA32: 27000 | AB32: 27000 | AC32: 27000 | AD32: 27000 | AE32: 27000 | AF32: 27000 | AG32: 27000 | AH32: 27000 | AI32: 27000 | AJ32: 27000 | AK32: 27000 | AL32: 27000
A33: Subventions | C33: Subvention | D33: 10000 | E33: 10000 | F33: 10000 | G33: 10000 | H33: 10000 | I33: 10000 | J33: 10000 | K33: 10000 | L33: 10000 | M33: 10000 | N33: 10000 | O33: 10000 | P33: 10000 | Q33: 10000 | R33: 10000 | S33: 10000 | T33: 10000 | U33: 10000 | V33: 10000 | W33: 10000 | X33: 10000 | Y33: 10000 | Z33: 10000 | AA33: 10000 | AB33: 10000 | AC33: 10000 | AD33: 10000 | AE33: 10000 | AF33: 10000 | AG33: 10000 | AH33: 10000 | AI33: 10000 | AJ33: 10000 | AK33: 10000 | AL33: 10000
A34: Profile | C34: RateCapex | D34: 0.1 | E34: 0.15 | F34: 0.2 | G34: 0.32 | H34: 0.17 | I34: 0.06 | J34: 0 | K34: =J34 -> 0 | L34: 0 | M34: 0 | N34: 0 | O34: 0 | P34: 0 | Q34: 0 | R34: 0 | S34: 0 | T34: 0 | U34: 0 | V34: 0 | W34: 0 | X34: 0 | Y34: 0 | Z34: 0 | AA34: 0 | AB34: 0 | AC34: 0 | AD34: 0 | AE34: 0 | AF34: 0 | AG34: 0 | AH34: 0 | AI34: 0 | AJ34: 0 | AK34: 0 | AL34: 0
A35: Funding
B36: =B29+1 -> 14 | C36: FinancingRate | D36: =INDEX(TSCE,CSCE,$B36) -> 0.16 | E36: =D36 -> 0.16 | F36: 0.16 | G36: 0.16 | H36: 0.16 | I36: 0.16 | J36: 0.16 | K36: 0.16 | L36: 0.16 | M36: 0.16 | N36: 0.16 | O36: 0.16 | P36: 0.16 | Q36: 0.16 | R36: 0.16 | S36: 0.16 | T36: 0.16 | U36: 0.16 | V36: 0.16 | W36: 0.16 | X36: 0.16 | Y36: 0.16 | Z36: 0.16 | AA36: 0.16 | AB36: 0.16 | AC36: 0.16 | AD36: 0.16 | AE36: 0.16 | AF36: 0.16 | AG36: 0.16 | AH36: 0.16 | AI36: 0.16 | AJ36: 0.16 | AK36: 0.16 | AL36: 0.16 | AN36: Tx d'augmentation du Capex, pour financement
A37: Equity | B37: =B36+1 -> 15 | C37: RpEquity | D37: =INDEX(TSCE,CSCE,$B37) -> 0.25 | E37: 0.25 | F37: 0.25 | G37: 0.25 | H37: 0.25 | I37: 0.25 | J37: 0.25 | K37: 0.25 | L37: 0.25 | M37: 0.25 | N37: 0.25 | O37: 0.25 | P37: 0.25 | Q37: 0.25 | R37: 0.25 | S37: 0.25 | T37: 0.25 | U37: 0.25 | V37: 0.25 | W37: 0.25 | X37: 0.25 | Y37: 0.25 | Z37: 0.25 | AA37: 0.25 | AB37: 0.25 | AC37: 0.25 | AD37: 0.25 | AE37: 0.25 | AF37: 0.25 | AG37: 0.25 | AH37: 0.25 | AI37: 0.25 | AJ37: 0.25 | AK37: 0.25 | AL37: 0.25 | AN37: part d'Equity dans le capex
A38: Debt | C38: RpDebt | D38: 0.75 | E38: 0.75 | F38: 0.75 | G38: 0.75 | H38: 0.75 | I38: 0.75 | J38: 0.75 | K38: 0.75 | L38: 0.75 | M38: 0.75 | N38: 0.75 | O38: 0.75 | P38: 0.75 | Q38: 0.75 | R38: 0.75 | S38: 0.75 | T38: 0.75 | U38: 0.75 | V38: 0.75 | W38: 0.75 | X38: 0.75 | Y38: 0.75 | Z38: 0.75 | AA38: 0.75 | AB38: 0.75 | AC38: 0.75 | AD38: 0.75 | AE38: 0.75 | AF38: 0.75 | AG38: 0.75 | AH38: 0.75 | AI38: 0.75 | AJ38: 0.75 | AK38: 0.75 | AL38: 0.75
B39: =B37+1 -> 16 | C39: RpBqDev | D39: =INDEX(TSCE,CSCE,$B39) -> 0.4 | E39: 0.4 | F39: 0.4 | G39: 0.4 | H39: 0.4 | I39: 0.4 | J39: 0.4 | K39: 0.4 | L39: 0.4 | M39: 0.4 | N39: 0.4 | O39: 0.4 | P39: 0.4 | Q39: 0.4 | R39: 0.4 | S39: 0.4 | T39: 0.4 | U39: 0.4 | V39: 0.4 | W39: 0.4 | X39: 0.4 | Y39: 0.4 | Z39: 0.4 | AA39: 0.4 | AB39: 0.4 | AC39: 0.4 | AD39: 0.4 | AE39: 0.4 | AF39: 0.4 | AG39: 0.4 | AH39: 0.4 | AI39: 0.4 | AJ39: 0.4 | AK39: 0.4 | AL39: 0.4
B40: =B39+1 -> 17 | C40: RpBqExp | D40: =INDEX(TSCE,CSCE,$B40) -> 0.4 | E40: 0.4 | F40: 0.4 | G40: 0.4 | H40: 0.4 | I40: 0.4 | J40: 0.4 | K40: 0.4 | L40: 0.4 | M40: 0.4 | N40: 0.4 | O40: 0.4 | P40: 0.4 | Q40: 0.4 | R40: 0.4 | S40: 0.4 | T40: 0.4 | U40: 0.4 | V40: 0.4 | W40: 0.4 | X40: 0.4 | Y40: 0.4 | Z40: 0.4 | AA40: 0.4 | AB40: 0.4 | AC40: 0.4 | AD40: 0.4 | AE40: 0.4 | AF40: 0.4 | AG40: 0.4 | AH40: 0.4 | AI40: 0.4 | AJ40: 0.4 | AK40: 0.4 | AL40: 0.4
C41: RpBqCom | D41: =1-D39-D40 -> 0.2 | E41: 0.2 | F41: 0.2 | G41: 0.2 | H41: 0.2 | I41: 0.2 | J41: 0.2 | K41: 0.2 | L41: 0.2 | M41: 0.2 | N41: 0.2 | O41: 0.2 | P41: 0.2 | Q41: 0.2 | R41: 0.2 | S41: 0.2 | T41: 0.2 | U41: 0.2 | V41: 0.2 | W41: 0.2 | X41: 0.2 | Y41: 0.2 | Z41: 0.2 | AA41: 0.2 | AB41: 0.2 | AC41: 0.2 | AD41: 0.2 | AE41: 0.2 | AF41: 0.2 | AG41: 0.2 | AH41: 0.2 | AI41: 0.2 | AJ41: 0.2 | AK41: 0.2 | AL41: 0.2
A42: Loan Duration
B43: =B40+1 -> 18 | C43: DurGrace | D43: =INDEX(TSCE,CSCE,$B43) -> 9 | E43: =D43 -> 9 | F43: 9 | G43: 9 | H43: 9 | I43: 9 | J43: 9 | K43: 9 | L43: 9 | M43: 9 | N43: 9 | O43: 9 | P43: 9 | Q43: 9 | R43: 9 | S43: 9 | T43: 9 | U43: 9 | V43: 9 | W43: 9 | X43: 9 | Y43: 9 | Z43: 9 | AA43: 9 | AB43: 9 | AC43: 9 | AD43: 9 | AE43: 9 | AF43: 9 | AG43: 9 | AH43: 9 | AI43: 9 | AJ43: 9 | AK43: 9 | AL43: 9
B44: =B43+1 -> 19 | C44: DurDev | D44: 15 | E44: 15 | F44: 15 | G44: 15 | H44: 15 | I44: 15 | J44: 15 | K44: 15 | L44: 15 | M44: 15 | N44: 15 | O44: 15 | P44: 15 | Q44: 15 | R44: 15 | S44: 15 | T44: 15 | U44: 15 | V44: 15 | W44: 15 | X44: 15 | Y44: 15 | Z44: 15 | AA44: 15 | AB44: 15 | AC44: 15 | AD44: 15 | AE44: 15 | AF44: 15 | AG44: 15 | AH44: 15 | AI44: 15 | AJ44: 15 | AK44: 15 | AL44: 15
B45: =B44+1 -> 20 | C45: DurExp | D45: 12 | E45: 12 | F45: 12 | G45: 12 | H45: 12 | I45: 12 | J45: 12 | K45: 12 | L45: 12 | M45: 12 | N45: 12 | O45: 12 | P45: 12 | Q45: 12 | R45: 12 | S45: 12 | T45: 12 | U45: 12 | V45: 12 | W45: 12 | X45: 12 | Y45: 12 | Z45: 12 | AA45: 12 | AB45: 12 | AC45: 12 | AD45: 12 | AE45: 12 | AF45: 12 | AG45: 12 | AH45: 12 | AI45: 12 | AJ45: 12 | AK45: 12 | AL45: 12
B46: =B45+1 -> 21 | C46: DurCom | D46: 7 | E46: 7 | F46: 7 | G46: 7 | H46: 7 | I46: 7 | J46: 7 | K46: 7 | L46: 7 | M46: 7 | N46: 7 | O46: 7 | P46: 7 | Q46: 7 | R46: 7 | S46: 7 | T46: 7 | U46: 7 | V46: 7 | W46: 7 | X46: 7 | Y46: 7 | Z46: 7 | AA46: 7 | AB46: 7 | AC46: 7 | AD46: 7 | AE46: 7 | AF46: 7 | AG46: 7 | AH46: 7 | AI46: 7 | AJ46: 7 | AK46: 7 | AL46: 7
A47: Amortization Method
A48: 1- linear | B48: =B46+1 -> 22 | C48: AmoDev | D48: =INDEX(TSCE,CSCE,$B48) -> 2 | E48: =D48 -> 2 | F48: =E48 -> 2 | G48: =F48 -> 2 | H48: =G48 -> 2 | I48: =H48 -> 2 | J48: =I48 -> 2 | K48: =J48 -> 2 | L48: =K48 -> 2 | M48: =L48 -> 2 | N48: =M48 -> 2 | O48: =N48 -> 2 | P48: =O48 -> 2 | Q48: =P48 -> 2 | R48: =Q48 -> 2 | S48: =R48 -> 2 | T48: =S48 -> 2 | U48: =T48 -> 2 | V48: =U48 -> 2 | W48: =V48 -> 2 | X48: =W48 -> 2 | Y48: =X48 -> 2 | Z48: =Y48 -> 2 | AA48: =Z48 -> 2 | AB48: =AA48 -> 2 | AC48: =AB48 -> 2 | AD48: =AC48 -> 2 | AE48: =AD48 -> 2 | AF48: =AE48 -> 2 | AG48: =AF48 -> 2 | AH48: =AG48 -> 2 | AI48: =AH48 -> 2 | AJ48: =AI48 -> 2 | AK48: =AJ48 -> 2 | AL48: =AK48 -> 2
A49: 2- constant annuity | B49: =B48+1 -> 23 | C49: AmoExp | D49: =INDEX(TSCE,CSCE,$B49) -> 3 | E49: 3 | F49: 3 | G49: 3 | H49: 3 | I49: 3 | J49: 3 | K49: 3 | L49: 3 | M49: 3 | N49: 3 | O49: 3 | P49: 3 | Q49: 3 | R49: 3 | S49: 3 | T49: 3 | U49: 3 | V49: 3 | W49: 3 | X49: 3 | Y49: 3 | Z49: 3 | AA49: 3 | AB49: 3 | AC49: 3 | AD49: 3 | AE49: 3 | AF49: 3 | AG49: 3 | AH49: 3 | AI49: 3 | AJ49: 3 | AK49: 3 | AL49: 3
A50: 3- constant DSCR | B50: =B49+1 -> 24 | C50: AmoCom | D50: =INDEX(TSCE,CSCE,$B50) -> 3 | E50: 3 | F50: 3 | G50: 3 | H50: 3 | I50: 3 | J50: 3 | K50: 3 | L50: 3 | M50: 3 | N50: 3 | O50: 3 | P50: 3 | Q50: 3 | R50: 3 | S50: 3 | T50: 3 | U50: 3 | V50: 3 | W50: 3 | X50: 3 | Y50: 3 | Z50: 3 | AA50: 3 | AB50: 3 | AC50: 3 | AD50: 3 | AE50: 3 | AF50: 3 | AG50: 3 | AH50: 3 | AI50: 3 | AJ50: 3 | AK50: 3 | AL50: 3
A51: Loan Interest Rate
A52: LT BqDev | B52: =B50+1 -> 25 | C52: RateBqDev | D52: =INDEX(TSCE,CSCE,$B52) -> 0.02 | E52: =D52 -> 0.02 | F52: 0.02 | G52: 0.02 | H52: 0.02 | I52: 0.02 | J52: 0.02 | K52: 0.02 | L52: 0.02 | M52: 0.02 | N52: 0.02 | O52: 0.02 | P52: 0.02 | Q52: 0.02 | R52: 0.02 | S52: 0.02 | T52: 0.02 | U52: 0.02 | V52: 0.02 | W52: 0.02 | X52: 0.02 | Y52: 0.02 | Z52: 0.02 | AA52: 0.02 | AB52: 0.02 | AC52: 0.02 | AD52: 0.02 | AE52: 0.02 | AF52: 0.02 | AG52: 0.02 | AH52: 0.02 | AI52: 0.02 | AJ52: 0.02 | AK52: 0.02 | AL52: 0.02
A53: LT CredEp | B53: =B52+1 -> 26 | C53: RateBqExp | D53: =INDEX(TSCE,CSCE,$B53) -> 0.06 | E53: 0.06 | F53: 0.06 | G53: 0.06 | H53: 0.06 | I53: 0.06 | J53: 0.06 | K53: 0.06 | L53: 0.06 | M53: 0.06 | N53: 0.06 | O53: 0.06 | P53: 0.06 | Q53: 0.06 | R53: 0.06 | S53: 0.06 | T53: 0.06 | U53: 0.06 | V53: 0.06 | W53: 0.06 | X53: 0.06 | Y53: 0.06 | Z53: 0.06 | AA53: 0.06 | AB53: 0.06 | AC53: 0.06 | AD53: 0.06 | AE53: 0.06 | AF53: 0.06 | AG53: 0.06 | AH53: 0.06 | AI53: 0.06 | AJ53: 0.06 | AK53: 0.06 | AL53: 0.06
A54: LT BaCom | B54: =B53+1 -> 27 | C54: RateBqCom | D54: =INDEX(TSCE,CSCE,$B54) -> 0.07 | E54: 0.07 | F54: 0.07 | G54: 0.07 | H54: 0.07 | I54: 0.07 | J54: 0.07 | K54: 0.07 | L54: 0.07 | M54: 0.07 | N54: 0.07 | O54: 0.07 | P54: 0.07 | Q54: 0.07 | R54: 0.07 | S54: 0.07 | T54: 0.07 | U54: 0.07 | V54: 0.07 | W54: 0.07 | X54: 0.07 | Y54: 0.07 | Z54: 0.07 | AA54: 0.07 | AB54: 0.07 | AC54: 0.07 | AD54: 0.07 | AE54: 0.07 | AF54: 0.07 | AG54: 0.07 | AH54: 0.07 | AI54: 0.07 | AJ54: 0.07 | AK54: 0.07 | AL54: 0.07
A55: Bank Interest Rate
A56: Short Term | B56: =B54+1 -> 28 | C56: RateDeposit | D56: =INDEX(TSCE,CSCE,$B56) -> 0.005 | E56: 0.005 | F56: 0.005 | G56: 0.005 | H56: 0.005 | I56: 0.005 | J56: 0.005 | K56: 0.005 | L56: 0.005 | M56: 0.005 | N56: 0.005 | O56: 0.005 | P56: 0.005 | Q56: 0.005 | R56: 0.005 | S56: 0.005 | T56: 0.005 | U56: 0.005 | V56: 0.005 | W56: 0.005 | X56: 0.005 | Y56: 0.005 | Z56: 0.005 | AA56: 0.005 | AB56: 0.005 | AC56: 0.005 | AD56: 0.005 | AE56: 0.005 | AF56: 0.005 | AG56: 0.005 | AH56: 0.005 | AI56: 0.005 | AJ56: 0.005 | AK56: 0.005 | AL56: 0.005
A57: Short Term | B57: =B56+1 -> 29 | C57: RateFunding | D57: =INDEX(TSCE,CSCE,$B57) -> 0.1 | E57: 0.1 | F57: 0.1 | G57: 0.1 | H57: 0.1 | I57: 0.1 | J57: 0.1 | K57: 0.1 | L57: 0.1 | M57: 0.1 | N57: 0.1 | O57: 0.1 | P57: 0.1 | Q57: 0.1 | R57: 0.1 | S57: 0.1 | T57: 0.1 | U57: 0.1 | V57: 0.1 | W57: 0.1 | X57: 0.1 | Y57: 0.1 | Z57: 0.1 | AA57: 0.1 | AB57: 0.1 | AC57: 0.1 | AD57: 0.1 | AE57: 0.1 | AF57: 0.1 | AG57: 0.1 | AH57: 0.1 | AI57: 0.1 | AJ57: 0.1 | AK57: 0.1 | AL57: 0.1
A58: Fees | B58: 0.2 | C58: FeeBkRate | D58: 0.002 | E58: 0.002 | F58: =E58 -> 0.002 | G58: 0.002 | H58: 0.002 | I58: 0.002 | J58: 0.002 | K58: 0.002 | L58: 0.002 | M58: 0.002 | N58: 0.002 | O58: 0.002 | P58: 0.002 | Q58: 0.002 | R58: 0.002 | S58: 0.002 | T58: 0.002 | U58: 0.002 | V58: 0.002 | W58: 0.002 | X58: 0.002 | Y58: 0.002 | Z58: 0.002 | AA58: 0.002 | AB58: 0.002 | AC58: 0.002 | AD58: 0.002 | AE58: 0.002 | AF58: 0.002 | AG58: 0.002 | AH58: 0.002 | AI58: 0.002 | AJ58: 0.002 | AK58: 0.002 | AL58: 0.002
A59: Dividend
A60: Dividend | B60: =B57+1 -> 30 | C60: RateDividend | D60: =INDEX(TSCE,CSCE,$B60) -> 1 | E60: =D60 -> 1 | F60: =E60 -> 1 | G60: =F60 -> 1 | H60: =G60 -> 1 | I60: =H60 -> 1 | J60: =I60 -> 1 | K60: =J60 -> 1 | L60: =K60 -> 1 | M60: =L60 -> 1 | N60: =M60 -> 1 | O60: =N60 -> 1 | P60: =O60 -> 1 | Q60: =P60 -> 1 | R60: =Q60 -> 1 | S60: =R60 -> 1 | T60: =S60 -> 1 | U60: =T60 -> 1 | V60: =U60 -> 1 | W60: =V60 -> 1 | X60: =W60 -> 1 | Y60: =X60 -> 1 | Z60: =Y60 -> 1 | AA60: =Z60 -> 1 | AB60: =AA60 -> 1 | AC60: =AB60 -> 1 | AD60: =AC60 -> 1 | AE60: =AD60 -> 1 | AF60: =AE60 -> 1 | AG60: =AF60 -> 1 | AH60: =AG60 -> 1 | AI60: =AH60 -> 1 | AJ60: =AI60 -> 1 | AK60: =AJ60 -> 1 | AL60: =AK60 -> 1
A61: Reserve
A62: Reserve | B62: =B60+1 -> 31 | C62: RateReserve | D62: =INDEX(TSCE,CSCE,$B62) -> 0.9 | E62: =D62 -> 0.9 | F62: =E62 -> 0.9 | G62: =F62 -> 0.9 | H62: =G62 -> 0.9 | I62: =H62 -> 0.9 | J62: =I62 -> 0.9 | K62: =J62 -> 0.9 | L62: =K62 -> 0.9 | M62: =L62 -> 0.9 | N62: =M62 -> 0.9 | O62: =N62 -> 0.9 | P62: =O62 -> 0.9 | Q62: =P62 -> 0.9 | R62: =Q62 -> 0.9 | S62: =R62 -> 0.9 | T62: =S62 -> 0.9 | U62: =T62 -> 0.9 | V62: =U62 -> 0.9 | W62: =V62 -> 0.9 | X62: =W62 -> 0.9 | Y62: =X62 -> 0.9 | Z62: =Y62 -> 0.9 | AA62: =Z62 -> 0.9 | AB62: =AA62 -> 0.9 | AC62: =AB62 -> 0.9 | AD62: =AC62 -> 0.9 | AE62: =AD62 -> 0.9 | AF62: =AE62 -> 0.9 | AG62: =AF62 -> 0.9 | AH62: =AG62 -> 0.9 | AI62: =AH62 -> 0.9 | AJ62: =AI62 -> 0.9 | AK62: =AJ62 -> 0.9 | AL62: =AK62 -> 0.9
B63: =B62+1 -> 32 | C63: YearReserve | D63: =INDEX(TSCE,CSCE,$B63) -> 3 | E63: =D63 -> 3 | F63: =E63 -> 3 | G63: =F63 -> 3 | H63: =G63 -> 3 | I63: =H63 -> 3 | J63: =I63 -> 3 | K63: =J63 -> 3 | L63: =K63 -> 3 | M63: =L63 -> 3 | N63: =M63 -> 3 | O63: =N63 -> 3 | P63: =O63 -> 3 | Q63: =P63 -> 3 | R63: =Q63 -> 3 | S63: =R63 -> 3 | T63: =S63 -> 3 | U63: =T63 -> 3 | V63: =U63 -> 3 | W63: =V63 -> 3 | X63: =W63 -> 3 | Y63: =X63 -> 3 | Z63: =Y63 -> 3 | AA63: =Z63 -> 3 | AB63: =AA63 -> 3 | AC63: =AB63 -> 3 | AD63: =AC63 -> 3 | AE63: =AD63 -> 3 | AF63: =AE63 -> 3 | AG63: =AF63 -> 3 | AH63: =AG63 -> 3 | AI63: =AH63 -> 3 | AJ63: =AI63 -> 3 | AK63: =AJ63 -> 3 | AL63: =AK63 -> 3
A64: DF
A65: Discount Factor | B65: =B63+1 -> 33 | C65: DF | D65: =INDEX(TSCE,CSCE,$B65) -> 0.1 | E65: =D65 -> 0.1 | F65: =E65 -> 0.1 | G65: =F65 -> 0.1 | H65: =G65 -> 0.1 | I65: =H65 -> 0.1 | J65: =I65 -> 0.1 | K65: =J65 -> 0.1 | L65: =K65 -> 0.1 | M65: =L65 -> 0.1 | N65: =M65 -> 0.1 | O65: =N65 -> 0.1 | P65: =O65 -> 0.1 | Q65: =P65 -> 0.1 | R65: =Q65 -> 0.1 | S65: =R65 -> 0.1 | T65: =S65 -> 0.1 | U65: =T65 -> 0.1 | V65: =U65 -> 0.1 | W65: =V65 -> 0.1 | X65: =W65 -> 0.1 | Y65: =X65 -> 0.1 | Z65: =Y65 -> 0.1 | AA65: =Z65 -> 0.1 | AB65: =AA65 -> 0.1 | AC65: =AB65 -> 0.1 | AD65: =AC65 -> 0.1 | AE65: =AD65 -> 0.1 | AF65: =AE65 -> 0.1 | AG65: =AF65 -> 0.1 | AH65: =AG65 -> 0.1 | AI65: =AH65 -> 0.1 | AJ65: =AI65 -> 0.1 | AK65: =AJ65 -> 0.1 | AL65: =AK65 -> 0.1
A66: DSCRTarget | B66: =B65+1 -> 34 | C66: DSCRTarget | D66: =INDEX(TSCE,CSCE,$B66) -> 1.5 | E66: 1.5 | F66: 1.5 | G66: 1.5 | H66: 1.5 | I66: 1.5 | J66: 1.5 | K66: 1.5 | L66: 1.5 | M66: 1.5 | N66: 1.5 | O66: 1.5 | P66: 1.5 | Q66: 1.5 | R66: 1.5 | S66: 1.5 | T66: 1.5 | U66: 1.5 | V66: 1.5 | W66: 1.5 | X66: 1.5 | Y66: 1.5 | Z66: 1.5 | AA66: 1.5 | AB66: 1.5 | AC66: 1.5 | AD66: 1.5 | AE66: 1.5 | AF66: 1.5 | AG66: 1.5 | AH66: 1.5 | AI66: 1.5 | AJ66: 1.5 | AK66: 1.5 | AL66: 1.5
A68: PROJECT
A70: YEARS | C70: Year | D70: =INDIRECT($C70) -> 2020 | E70: =INDIRECT($C70) -> 2021 | F70: 2022 | G70: 2023 | H70: 2024 | I70: 2025 | J70: 2026 | K70: 2027 | L70: 2028 | M70: 2029 | N70: 2030 | O70: 2031 | P70: 2032 | Q70: 2033 | R70: 2034 | S70: 2035 | T70: 2036 | U70: 2037 | V70: 2038 | W70: 2039 | X70: 2040 | Y70: 2041 | Z70: 2042 | AA70: 2043 | AB70: 2044 | AC70: 2045 | AD70: 2046 | AE70: 2047 | AF70: 2048 | AG70: 2049 | AH70: 2050 | AI70: 2051 | AJ70: 2052 | AK70: 2053 | AL70: 2054
D71: =Year -> 2020 | E71: 2021 | F71: 2022 | G71: 2023 | H71: 2024 | I71: 2025 | J71: 2026 | K71: 2027 | L71: 2028 | M71: 2029 | N71: 2030 | O71: 2031 | P71: 2032 | Q71: =RateInflation -> 0.01 | R71: 0.01 | S71: 0.01 | T71: 0.01 | U71: 0.01 | V71: 0.01 | W71: 0.01 | X71: 0.01 | Y71: 0.01 | Z71: 0.01 | AA71: 0.01 | AB71: 0.01 | AC71: 0.01 | AD71: 0.01 | AE71: 0.01 | AF71: 0.01 | AG71: 0.01 | AH71: 0.01 | AI71: 0.01 | AJ71: 0.01 | AK71: 0.01 | AL71: 0.01
C72: RateInflation | D72: =INDIRECT($C72) -> 0.01 | E72: =INDIRECT($C72) -> 0.01 | F72: 0.01 | G72: 0.01 | H72: 0.01 | I72: 0.01 | J72: 0.01 | K72: 0.01 | L72: 0.01 | M72: 0.01 | N72: 0.01 | O72: 0.01 | P72: 0.01 | Q72: 0.01 | R72: 0.01 | S72: 0.01 | T72: 0.01 | U72: 0.01 | V72: 0.01 | W72: 0.01 | X72: 0.01 | Y72: 0.01 | Z72: 0.01 | AA72: 0.01 | AB72: 0.01 | AC72: 0.01 | AD72: 0.01 | AE72: 0.01 | AF72: 0.01 | AG72: 0.01 | AH72: 0.01 | AI72: 0.01 | AJ72: 0.01 | AK72: 0.01 | AL72: 0.01
D73: 1 | E73: =D73*(1+E72) -> 1.01 | F73: =E73*(1+F72) -> 1.0201 | G73: 1.030301 | H73: 1.04060401 | I73: 1.05101005 | J73: 1.061520151 | K73: 1.072135352 | L73: 1.082856706 | M73: 1.093685273 | N73: 1.104622125 | O73: 1.115668347 | P73: 1.12682503 | Q73: 1.13809328 | R73: 1.149474213 | S73: 1.160968955 | T73: 1.172578645 | U73: 1.184304431 | V73: 1.196147476 | W73: 1.20810895 | X73: 1.22019004 | Y73: 1.23239194 | Z73: 1.24471586 | AA73: 1.257163018 | AB73: 1.269734649 | AC73: 1.282431995 | AD73: 1.295256315 | AE73: 1.308208878 | AF73: 1.321290967 | AG73: 1.334503877 | AH73: 1.347848915 | AI73: 1.361327404 | AJ73: 1.374940679 | AK73: 1.388690085 | AL73: 1.402576986 | AM73: Infla | AN73: =_xlfn.FORMULATEXT(K73) -> =J73*(1+K72)
C74: PriceMWh | D74: =INDIRECT($C74) -> 110 | E74: =INDIRECT($C74) -> 110 | F74: 110 | G74: 110 | H74: 110 | I74: 110 | J74: 110 | K74: 110 | L74: 110 | M74: 110 | N74: 110 | O74: 110 | P74: 110 | Q74: 110 | R74: 110 | S74: 110 | T74: 110 | U74: 110 | V74: 110 | W74: 110 | X74: 110 | Y74: 110 | Z74: 110 | AA74: 110 | AB74: 110 | AC74: 110 | AD74: 110 | AE74: 110 | AF74: 110 | AG74: 110 | AH74: 110 | AI74: 110 | AJ74: 110 | AK74: 110 | AL74: 110
D75: =PriceMWh*Infla*Priceindex/100 -> 110 | E75: =PriceMWh*Infla*Priceindex/100 -> 111.1 | F75: 112.211 | G75: 113.33311 | H75: 114.4664411 | I75: 115.6111055 | J75: 116.7672166 | K75: 117.9348887 | L75: 119.1142376 | M75: 120.30538 | N75: 121.5084338 | O75: 122.7235181 | P75: 123.9507533 | Q75: 125.1902608 | R75: 126.4421635 | S75: 127.7065851 | T75: 128.9836509 | U75: 130.2734875 | V75: 131.5762223 | W75: 132.8919845 | X75: 134.2209044 | Y75: 135.5631134 | Z75: 136.9187446 | AA75: 138.287932 | AB75: 139.6708113 | AC75: 141.0675195 | AD75: 142.4781946 | AE75: 143.9029766 | AF75: 145.3420064 | AG75: 146.7954264 | AH75: 148.2633807 | AI75: 149.7460145 | AJ75: 151.2434746 | AK75: 152.7559094 | AL75: 154.2834685 | AM75: Price | AN75: =_xlfn.FORMULATEXT(K75) -> =PriceMWh*Infla*Priceindex/100
A77: REVENUE | D77: =YearProd*ProductionYear*Availibility -> 0 | E77: 0 | F77: 0 | G77: 0 | H77: 0 | I77: 500 | J77: 500 | K77: 500 | L77: 500 | M77: 500 | N77: 500 | O77: 500 | P77: 500 | Q77: 500 | R77: 500 | S77: 500 | T77: 500 | U77: 500 | V77: 500 | W77: 500 | X77: 500 | Y77: 500 | Z77: 500 | AA77: 500 | AB77: 500 | AC77: 500 | AD77: 500 | AE77: 500 | AF77: 500 | AG77: 500 | AH77: 0 | AI77: 0 | AJ77: 0 | AK77: 0 | AL77: 0 | AM77: ProductionNet | AN77: =_xlfn.FORMULATEXT(K77) -> =YearProd*ProductionYear*Availibility
D78: =ProductionNet*Price -> 0 | E78: =ProductionNet*Price -> 0 | F78: 0 | G78: 0 | H78: 0 | I78: =ProductionNet*Price -> 57805.55276 | J78: 58383.60828 | K78: 58967.44437 | L78: 59557.11881 | M78: 60152.69 | N78: 60754.2169 | O78: 61361.75907 | P78: 61975.37666 | Q78: 62595.13042 | R78: 63221.08173 | S78: 63853.29255 | T78: 64491.82547 | U78: 65136.74373 | V78: 65788.11116 | W78: 66445.99227 | X78: 67110.4522 | Y78: 67781.55672 | Z78: 68459.37229 | AA78: 69143.96601 | AB78: 69835.40567 | AC78: 70533.75973 | AD78: 71239.09732 | AE78: 71951.4883 | AF78: 72671.00318 | AG78: 73397.71321 | AH78: 0 | AI78: 0 | AJ78: 0 | AK78: 0 | AL78: 0 | AM78: Revenues | AN78: =_xlfn.FORMULATEXT(K78) -> =ProductionNet*Price
A80: INVESTMENT | D80: =(Construction+Land-Subvention) -> 331000 | E80: 331000 | F80: 331000 | G80: 331000 | H80: 331000 | I80: 331000 | J80: 331000 | K80: 331000 | L80: 331000 | M80: 331000 | N80: 331000 | O80: 331000 | P80: 331000 | Q80: 331000 | R80: 331000 | S80: 331000 | T80: 331000 | U80: 331000 | V80: 331000 | W80: 331000 | X80: 331000 | Y80: 331000 | Z80: 331000 | AA80: 331000 | AB80: 331000 | AC80: 331000 | AD80: 331000 | AE80: 331000 | AF80: 331000 | AG80: 331000 | AH80: 331000 | AI80: 331000 | AJ80: 331000 | AK80: 331000 | AL80: 331000 | AM80: Cap | AN80: =_xlfn.FORMULATEXT(K80) -> =(Construction+Land-Subvention)
D81: =-Cap*RateCapex -> -33100 | E81: -49650 | F81: -66200 | G81: -105920 | H81: -56270 | I81: -19860 | J81: 0 | K81: 0 | L81: 0 | M81: 0 | N81: 0 | O81: 0 | P81: 0 | Q81: 0 | R81: 0 | S81: 0 | T81: 0 | U81: 0 | V81: 0 | W81: 0 | X81: 0 | Y81: 0 | Z81: 0 | AA81: 0 | AB81: 0 | AC81: 0 | AD81: 0 | AE81: 0 | AF81: 0 | AG81: 0 | AH81: 0 | AI81: 0 | AJ81: 0 | AK81: 0 | AL81: 0 | AM81: Capex | AN81: =_xlfn.FORMULATEXT(K81) -> =-Cap*RateCapex
D82: =-YearProd*Cap/DurationProd -> 0 | E82: 0 | F82: 0 | G82: 0 | H82: 0 | I82: -13240 | J82: -13240 | K82: -13240 | L82: -13240 | M82: -13240 | N82: -13240 | O82: -13240 | P82: -13240 | Q82: -13240 | R82: -13240 | S82: -13240 | T82: -13240 | U82: -13240 | V82: -13240 | W82: -13240 | X82: -13240 | Y82: -13240 | Z82: -13240 | AA82: -13240 | AB82: -13240 | AC82: -13240 | AD82: -13240 | AE82: -13240 | AF82: -13240 | AG82: -13240 | AH82: 0 | AI82: 0 | AJ82: 0 | AK82: 0 | AL82: 0 | AM82: Amort | AN82: =_xlfn.FORMULATEXT(K82) -> =-YearProd*Cap/DurationProd
D83: =-Capex+Amort -> 33100 | E83: 49650 | F83: =-Capex+Amort -> 66200 | G83: 105920 | H83: 56270 | I83: 6620 | J83: -13240 | K83: -13240 | L83: -13240 | M83: -13240 | N83: -13240 | O83: -13240 | P83: -13240 | Q83: -13240 | R83: -13240 | S83: -13240 | T83: -13240 | U83: -13240 | V83: -13240 | W83: -13240 | X83: -13240 | Y83: -13240 | Z83: -13240 | AA83: -13240 | AB83: -13240 | AC83: -13240 | AD83: -13240 | AE83: -13240 | AF83: -13240 | AG83: -13240 | AH83: 0 | AI83: 0 | AJ83: 0 | AK83: 0 | AL83: 0 | AM83: CFCap | AN83: =_xlfn.FORMULATEXT(K83) -> =-Capex+Amort
C84: 0 | D84: =D83 -> 33100 | E84: =D84+E83 -> 82750 | F84: =E84+F83 -> 148950 | G84: 254870 | H84: 311140 | I84: 317760 | J84: 304520 | K84: 291280 | L84: 278040 | M84: 264800 | N84: 251560 | O84: 238320 | P84: 225080 | Q84: 211840 | R84: 198600 | S84: 185360 | T84: 172120 | U84: 158880 | V84: 145640 | W84: 132400 | X84: 119160 | Y84: 105920 | Z84: 92680 | AA84: 79440 | AB84: 66200 | AC84: 52960 | AD84: 39720 | AE84: 26480 | AF84: 13240 | AG84: 0 | AH84: 0 | AI84: 0 | AJ84: 0 | AK84: 0 | AL84: 0 | AM84: CapNet | AN84: =_xlfn.FORMULATEXT(K84) -> =J84+K83
A86: COSTS | C86: O&M | D86: =-ProductionNet*CostOM*Infla*YearProd -> 0 | E86: 0 | F86: 0 | G86: 0 | H86: 0 | I86: -1051.01005 | J86: -1061.520151 | K86: -1072.135352 | L86: -1082.856706 | M86: -1093.685273 | N86: -1104.622125 | O86: -1115.668347 | P86: -1126.82503 | Q86: -1138.09328 | R86: -1149.474213 | S86: -1160.968955 | T86: -1172.578645 | U86: -1184.304431 | V86: -1196.147476 | W86: -1208.10895 | X86: -1220.19004 | Y86: -1232.39194 | Z86: -1244.71586 | AA86: -1257.163018 | AB86: -1269.734649 | AC86: -1282.431995 | AD86: -1295.256315 | AE86: -1308.208878 | AF86: -1321.290967 | AG86: -1334.503877 | AH86: 0 | AI86: 0 | AJ86: 0 | AK86: 0 | AL86: 0 | AM86: CoOM | AN86: =_xlfn.FORMULATEXT(K86) -> =-ProductionNet*CostOM*Infla*YearProd
C87: FEE | D87: =-Cap*CostFEE*Infla*YearProd -> 0 | E87: 0 | F87: 0 | G87: 0 | H87: 0 | I87: -347.8843266 | J87: -351.3631698 | K87: -354.8768015 | L87: -358.4255696 | M87: -362.0098253 | N87: -365.6299235 | O87: -369.2862227 | P87: -372.979085 | Q87: -376.7088758 | R87: -380.4759646 | S87: -384.2807242 | T87: -388.1235315 | U87: -392.0047668 | V87: -395.9248145 | W87: -399.8840626 | X87: -403.8829032 | Y87: -407.9217323 | Z87: -412.0009496 | AA87: -416.1209591 | AB87: -420.2821687 | AC87: -424.4849904 | AD87: -428.7298403 | AE87: -433.0171387 | AF87: -437.34731 | AG87: -441.7207831 | AH87: 0 | AI87: 0 | AJ87: 0 | AK87: 0 | AL87: 0 | AM87: CoFE | AN87: =-Cap*CostFEE*Infla*YearProd
C88: ENV | D88: =-Revenues*CostENV*Infla*YearProd -> 0 | E88: 0 | F88: 0 | G88: 0 | H88: 0 | I88: -12.15084338 | J88: -12.39507533 | K88: -12.64421635 | L88: -12.89836509 | M88: -13.15762223 | N88: -13.42209044 | O88: -13.69187446 | P88: -13.96708113 | Q88: -14.24781946 | R88: -14.53420064 | S88: -14.82633807 | T88: -15.12434746 | U88: -15.42834685 | V88: -15.73845662 | W88: -16.0547996 | X88: -16.37750107 | Y88: -16.70668884 | Z88: -17.04249329 | AA88: -17.3850474 | AB88: -17.73448685 | AC88: -18.09095004 | AD88: -18.45457814 | AE88: -18.82551516 | AF88: -19.20390801 | AG88: -19.58990656 | AH88: 0 | AI88: 0 | AJ88: 0 | AK88: 0 | AL88: 0 | AM88: CoEN | AN88: =-Revenues*CostENV*Infla*YearProd
D89: =CoOM+CoFE+CoEN -> 0 | E89: 0 | F89: 0 | G89: 0 | H89: 0 | I89: -1411.04522 | J89: -1425.278396 | K89: -1439.65637 | L89: -1454.18064 | M89: -1468.85272 | N89: -1483.674139 | O89: -1498.646444 | P89: -1513.771196 | Q89: -1529.049976 | R89: -1544.484378 | S89: -1560.076018 | T89: -1575.826524 | U89: -1591.737545 | V89: -1607.810747 | W89: -1624.047813 | X89: -1640.450444 | Y89: -1657.020361 | Z89: -1673.759303 | AA89: -1690.669025 | AB89: -1707.751304 | AC89: -1725.007935 | AD89: -1742.440733 | AE89: -1760.051532 | AF89: -1777.842185 | AG89: -1795.814566 | AH89: 0 | AI89: 0 | AJ89: 0 | AK89: 0 | AL89: 0 | AM89: Cost | AN89: =CoOM+CoFE+CoEN
A90: TAXES | C90: on CA | D90: =-Revenues*TaxCA*Infla -> 0 | E90: 0 | F90: 0 | G90: 0 | H90: 0 | I90: -182.2626507 | J90: -185.92613 | K90: -189.6632452 | L90: -193.4754764 | M90: -197.3643335 | N90: -201.3313566 | O90: -205.3781169 | P90: -209.506217 | Q90: -213.717292 | R90: -218.0130095 | S90: -222.395071 | T90: -226.865212 | U90: -231.4252027 | V90: -236.0768493 | W90: -240.821994 | X90: -245.662516 | Y90: -250.6003326 | Z90: -255.6373993 | AA90: -260.775711 | AB90: -266.0173028 | AC90: -271.3642506 | AD90: -276.818672 | AE90: -282.3827273 | AF90: -288.0586202 | AG90: -293.8485984 | AH90: 0 | AI90: 0 | AJ90: 0 | AK90: 0 | AL90: 0 | AM90: TxCA | AN90: =-Revenues*TaxCA*Infla
C91: on CAPEX | D91: =-Cap*TaxCAP*Infla*YearProd -> 0 | E91: 0 | F91: 0 | G91: 0 | H91: 0 | I91: =-Cap*TaxCAP*Infla*YearProd -> -2783.074613 | J91: -2810.905359 | K91: -2839.014412 | L91: -2867.404557 | M91: -2896.078602 | N91: -2925.039388 | O91: -2954.289782 | P91: -2983.83268 | Q91: -3013.671007 | R91: -3043.807717 | S91: -3074.245794 | T91: -3104.988252 | U91: -3136.038134 | V91: -3167.398516 | W91: -3199.072501 | X91: -3231.063226 | Y91: -3263.373858 | Z91: -3296.007597 | AA91: -3328.967673 | AB91: -3362.257349 | AC91: -3395.879923 | AD91: -3429.838722 | AE91: -3464.137109 | AF91: -3498.77848 | AG91: -3533.766265 | AH91: 0 | AI91: 0 | AJ91: 0 | AK91: 0 | AL91: 0 | AM91: TxCAP | AN91: =-Cap*TaxCAP*Infla*YearProd
D92: =TxCA+TxCAP -> 0 | E92: 0 | F92: 0 | G92: 0 | H92: 0 | I92: -2965.337263 | J92: -2996.831489 | K92: -3028.677658 | L92: -3060.880033 | M92: -3093.442936 | N92: -3126.370745 | O92: -3159.667899 | P92: -3193.338897 | Q92: -3227.388299 | R92: -3261.820726 | S92: -3296.640865 | T92: -3331.853464 | U92: -3367.463337 | V92: -3403.475365 | W92: -3439.894495 | X92: -3476.725742 | Y92: -3513.974191 | Z92: -3551.644996 | AA92: -3589.743384 | AB92: -3628.274652 | AC92: -3667.244173 | AD92: -3706.657394 | AE92: -3746.519837 | AF92: -3786.837101 | AG92: -3827.614864 | AH92: 0 | AI92: 0 | AJ92: 0 | AK92: 0 | AL92: 0 | AM92: TAX | AN92: =TxCA+TxCAP
A94: FINANCING
A95: CapitalNeed | D95: =-Capex*(1+FinancingRate) -> 38396 | E95: =-Capex*(1+FinancingRate) -> 57594 | F95: 76792 | G95: 122867.2 | H95: 65273.2 | I95: 23037.6 | J95: 0 | K95: 0 | L95: 0 | M95: 0 | N95: 0 | O95: 0 | P95: 0 | Q95: 0 | R95: 0 | S95: 0 | T95: 0 | U95: 0 | V95: 0 | W95: 0 | X95: 0 | Y95: 0 | Z95: 0 | AA95: 0 | AB95: 0 | AC95: 0 | AD95: 0 | AE95: 0 | AF95: 0 | AG95: 0 | AH95: 0 | AI95: 0 | AJ95: 0 | AK95: 0 | AL95: 0 | AM95: CapFi | AN95: =_xlfn.FORMULATEXT(K95) -> =-Capex*(1+FinancingRate)
A96: Equity | D96: =CapFi*RpEquity -> 9599 | E96: 14398.5 | F96: 19198 | G96: 30716.8 | H96: 16318.3 | I96: 5759.4 | J96: 0 | K96: 0 | L96: 0 | M96: 0 | N96: 0 | O96: 0 | P96: 0 | Q96: 0 | R96: 0 | S96: 0 | T96: 0 | U96: 0 | V96: 0 | W96: 0 | X96: 0 | Y96: 0 | Z96: 0 | AA96: 0 | AB96: 0 | AC96: 0 | AD96: 0 | AE96: 0 | AF96: 0 | AG96: 0 | AH96: =-AG97 -> -95990 | AI96: 0 | AJ96: 0 | AK96: 0 | AL96: 0 | AM96: Eq | AN96: =CapFi*RpEquity
C97: CumEq | D97: =D96 -> 9599 | E97: =D97+E96 -> 23997.5 | F97: =E97+F96 -> 43195.5 | G97: 73912.3 | H97: 90230.6 | I97: 95990 | J97: =I97+J96 -> 95990 | K97: 95990 | L97: 95990 | M97: 95990 | N97: 95990 | O97: 95990 | P97: 95990 | Q97: 95990 | R97: 95990 | S97: 95990 | T97: 95990 | U97: 95990 | V97: 95990 | W97: 95990 | X97: 95990 | Y97: 95990 | Z97: 95990 | AA97: 95990 | AB97: 95990 | AC97: 95990 | AD97: 95990 | AE97: 95990 | AF97: 95990 | AG97: 95990 | AH97: =AG97+AH96 -> 0 | AI97: 0 | AJ97: 0 | AK97: 0 | AL97: 0 | AM97: CumEq | AN97: =J97+K96
A98: Debt | D98: =CapFi*RpDebt -> 28797 | E98: 43195.5 | F98: 57594 | G98: 92150.4 | H98: 48954.9 | I98: 17278.2 | J98: 0 | K98: 0 | L98: 0 | M98: 0 | N98: 0 | O98: 0 | P98: 0 | Q98: 0 | R98: 0 | S98: 0 | T98: 0 | U98: 0 | V98: 0 | W98: 0 | X98: 0 | Y98: 0 | Z98: 0 | AA98: 0 | AB98: 0 | AC98: 0 | AD98: 0 | AE98: 0 | AF98: 0 | AG98: 0 | AH98: 0 | AI98: 0 | AJ98: 0 | AK98: 0 | AL98: 0 | AM98: Dt | AN98: =CapFi*RpDebt
A99: BqDev | D99: =RpBqDev*Dt -> 11518.8 | E99: 17278.2 | F99: 23037.6 | G99: 36860.16 | H99: 19581.96 | I99: 6911.28 | J99: 0 | K99: 0 | L99: 0 | M99: 0 | N99: 0 | O99: 0 | P99: 0 | Q99: 0 | R99: 0 | S99: 0 | T99: 0 | U99: 0 | V99: 0 | W99: 0 | X99: 0 | Y99: 0 | Z99: 0 | AA99: 0 | AB99: 0 | AC99: 0 | AD99: 0 | AE99: 0 | AF99: 0 | AG99: 0 | AH99: 0 | AI99: 0 | AJ99: 0 | AK99: 0 | AL99: 0 | AM99: UsBqDev | AN99: =RpBqDev*Dt
A100: BqExp | D100: =RpBqExp*Dt -> 11518.8 | E100: 17278.2 | F100: 23037.6 | G100: 36860.16 | H100: 19581.96 | I100: 6911.28 | J100: 0 | K100: 0 | L100: 0 | M100: 0 | N100: 0 | O100: 0 | P100: 0 | Q100: 0 | R100: 0 | S100: 0 | T100: 0 | U100: 0 | V100: 0 | W100: 0 | X100: 0 | Y100: 0 | Z100: 0 | AA100: 0 | AB100: 0 | AC100: 0 | AD100: 0 | AE100: 0 | AF100: 0 | AG100: 0 | AH100: 0 | AI100: 0 | AJ100: 0 | AK100: 0 | AL100: 0 | AM100: UsBqExp | AN100: =RpBqExp*Dt
A101: BqCom | D101: =RpBqCom*Dt -> 5759.4 | E101: 8639.1 | F101: 11518.8 | G101: 18430.08 | H101: 9790.98 | I101: 3455.64 | J101: 0 | K101: 0 | L101: 0 | M101: 0 | N101: 0 | O101: 0 | P101: 0 | Q101: 0 | R101: 0 | S101: 0 | T101: 0 | U101: 0 | V101: 0 | W101: 0 | X101: 0 | Y101: 0 | Z101: 0 | AA101: 0 | AB101: 0 | AC101: 0 | AD101: 0 | AE101: 0 | AF101: 0 | AG101: 0 | AH101: 0 | AI101: 0 | AJ101: 0 | AK101: 0 | AL101: 0 | AM101: UsBqCom | AN101: =RpBqCom*Dt
A102: DEBT
C103: UsBqDev | D103: =INDIRECT($C103) -> 11518.8 | E103: =INDIRECT($C103) -> 17278.2 | F103: 23037.6 | G103: 36860.16 | H103: 19581.96 | I103: 6911.28 | J103: 0 | K103: 0 | L103: 0 | M103: 0 | N103: 0 | O103: 0 | P103: 0 | Q103: 0 | R103: 0 | S103: 0 | T103: 0 | U103: 0 | V103: 0 | W103: 0 | X103: 0 | Y103: 0 | Z103: 0 | AA103: 0 | AB103: 0 | AC103: 0 | AD103: 0 | AE103: 0 | AF103: =INDIRECT($C103) -> 0 | AG103: =INDIRECT($C103) -> 0 | AH103: 0 | AI103: 0 | AJ103: 0 | AK103: 0 | AL103: 0
D104: =(Duration>DurGrace)+(Duration>DurGrace+DurDev) -> 0 | E104: 0 | F104: 0 | G104: 0 | H104: 0 | I104: 0 | J104: 0 | K104: 0 | L104: 0 | M104: 1 | N104: 1 | O104: 1 | P104: 1 | Q104: 1 | R104: 1 | S104: 1 | T104: 1 | U104: 1 | V104: 1 | W104: 1 | X104: 1 | Y104: 1 | Z104: 1 | AA104: 1 | AB104: 2 | AC104: 2 | AD104: 2 | AE104: 2 | AF104: 2 | AG104: 2 | AH104: 2 | AI104: 2 | AJ104: 2 | AK104: 2 | AL104: 2 | AM104: PeriodDev | AN104: =_xlfn.FORMULATEXT(K104) -> =(Duration>DurGrace)+(Duration>DurGrace+DurDev)
A105: DEBTDEV | D105: =D103 -> 11518.8 | E105: =D105+E103*(PeriodDev=0) -> 28797 | F105: =E105+F103*(PeriodDev=0) -> 51834.6 | G105: 88694.76 | H105: 108276.72 | I105: 115188 | J105: 115188 | K105: 115188 | L105: 115188 | M105: 115188 | N105: 115188 | O105: 115188 | P105: 115188 | Q105: 115188 | R105: 115188 | S105: 115188 | T105: 115188 | U105: 115188 | V105: 115188 | W105: 115188 | X105: 115188 | Y105: 115188 | Z105: 115188 | AA105: 115188 | AB105: 115188 | AC105: 115188 | AD105: 115188 | AE105: 115188 | AF105: 115188 | AG105: 115188 | AH105: 115188 | AI105: 115188 | AJ105: 115188 | AK105: 115188 | AL105: 115188 | AM105: EncBqDev | AN105: =_xlfn.FORMULATEXT(K105) -> =J105+K103*(PeriodDev=0)
A106: Linear | C106: Repayment | D106: =D105/DurDev*(PeriodDev=1) -> 0 | E106: 0 | F106: 0 | G106: 0 | H106: 0 | I106: 0 | J106: 0 | K106: =K105/DurDev*(PeriodDev=1) -> 0 | L106: 0 | M106: 7679.2 | N106: 7679.2 | O106: 7679.2 | P106: 7679.2 | Q106: 7679.2 | R106: 7679.2 | S106: 7679.2 | T106: 7679.2 | U106: 7679.2 | V106: 7679.2 | W106: 7679.2 | X106: 7679.2 | Y106: 7679.2 | Z106: 7679.2 | AA106: 7679.2 | AB106: 0 | AC106: 0 | AD106: 0 | AE106: 0 | AF106: 0 | AG106: 0 | AH106: 0 | AI106: 0 | AJ106: 0 | AK106: 0 | AL106: 0 | AM106: AmoLinDev | AN106: =_xlfn.FORMULATEXT(K106) -> =K105/DurDev*(PeriodDev=1)
C107: OutstandingC | D107: =D105-D106 -> 11518.8 | E107: =D107+E103-E106 -> 28797 | F107: =E107+F103-F106 -> 51834.6 | G107: =F107+G103-G106 -> 88694.76 | H107: =G107+H103-H106 -> 108276.72 | I107: =H107+I103-I106 -> 115188 | J107: =I107+J103-J106 -> 115188 | K107: =J107+K103-K106 -> 115188 | L107: =K107+L103-L106 -> 115188 | M107: =L107+M103-M106 -> 107508.8 | N107: =M107+N103-N106 -> 99829.6 | O107: =N107+O103-O106 -> 92150.4 | P107: =O107+P103-P106 -> 84471.2 | Q107: =P107+Q103-Q106 -> 76792 | R107: =Q107+R103-R106 -> 69112.8 | S107: =R107+S103-S106 -> 61433.6 | T107: =S107+T103-T106 -> 53754.4 | U107: =T107+U103-U106 -> 46075.2 | V107: =U107+V103-V106 -> 38396 | W107: 30716.8 | X107: =W107+X103-X106 -> 23037.6 | Y107: =X107+Y103-Y106 -> 15358.4 | Z107: =Y107+Z103-Z106 -> 7679.2 | AA107: =Z107+AA103-AA106 -> 4.001776688e-11 | AB107: =AA107+AB103-AB106 -> 4.001776688e-11 | AC107: 4.001776688e-11 | AD107: =AC107+AD103-AD106 -> 4.001776688e-11 | AE107: =AD107+AE103-AE106 -> 4.001776688e-11 | AF107: =AE107+AF103-AF106 -> 4.001776688e-11 | AG107: =AF107+AG103-AG106 -> 4.001776688e-11 | AH107: =AG107+AH103-AH106 -> 4.001776688e-11 | AI107: 4.001776688e-11 | AJ107: =AI107+AJ103-AJ106 -> 4.001776688e-11 | AK107: =AJ107+AK103-AK106 -> 4.001776688e-11 | AL107: =AK107+AL103-AL106 -> 4.001776688e-11 | AM107: CrdLinDev | AN107: =J107+K103-K106
C108: Interest | D108: 0 | E108: =D107*RateBqDev -> 230.376 | F108: 575.94 | G108: 1036.692 | H108: 1773.8952 | I108: 2165.5344 | J108: 2303.76 | K108: 2303.76 | L108: 2303.76 | M108: 2303.76 | N108: 2150.176 | O108: 1996.592 | P108: 1843.008 | Q108: 1689.424 | R108: 1535.84 | S108: 1382.256 | T108: 1228.672 | U108: 1075.088 | V108: 921.504 | W108: 767.92 | X108: 614.336 | Y108: 460.752 | Z108: 307.168 | AA108: 153.584 | AB108: 8.003553376e-13 | AC108: 8.003553376e-13 | AD108: 8.003553376e-13 | AE108: 8.003553376e-13 | AF108: 8.003553376e-13 | AG108: 8.003553376e-13 | AH108: 8.003553376e-13 | AI108: 8.003553376e-13 | AJ108: 8.003553376e-13 | AK108: 8.003553376e-13 | AL108: 8.003553376e-13 | AM108: IntLinDev | AN108: =J107*RateBqDev
C109: Installment | D109: =D108+D106 -> 0 | E109: 230.376 | F109: 575.94 | G109: 1036.692 | H109: 1773.8952 | I109: 2165.5344 | J109: 2303.76 | K109: 2303.76 | L109: 2303.76 | M109: 9982.96 | N109: 9829.376 | O109: 9675.792 | P109: 9522.208 | Q109: 9368.624 | R109: 9215.04 | S109: 9061.456 | T109: 8907.872 | U109: 8754.288 | V109: 8600.704 | W109: 8447.12 | X109: 8293.536 | Y109: 8139.952 | Z109: 7986.368 | AA109: 7832.784 | AB109: 8.003553376e-13 | AC109: 8.003553376e-13 | AD109: 8.003553376e-13 | AE109: 8.003553376e-13 | AF109: 8.003553376e-13 | AG109: 8.003553376e-13 | AH109: 8.003553376e-13 | AI109: 8.003553376e-13 | AJ109: 8.003553376e-13 | AK109: 8.003553376e-13 | AL109: 8.003553376e-13 | AM109: EchLinDev | AN109: =K108+K106
C110: =IRR(FluxLinDev) -> 0.02 | D110: =D103-D109 -> 11518.8 | E110: =E103-E109 -> 17047.824 | F110: 22461.66 | G110: 35823.468 | H110: 17808.0648 | I110: 4745.7456 | J110: -2303.76 | K110: -2303.76 | L110: =L103-L109 -> -2303.76 | M110: -9982.96 | N110: -9829.376 | O110: -9675.792 | P110: -9522.208 | Q110: -9368.624 | R110: -9215.04 | S110: -9061.456 | T110: -8907.872 | U110: -8754.288 | V110: -8600.704 | W110: -8447.12 | X110: -8293.536 | Y110: -8139.952 | Z110: -7986.368 | AA110: -7832.784 | AB110: -8.003553376e-13 | AC110: -8.003553376e-13 | AD110: -8.003553376e-13 | AE110: -8.003553376e-13 | AF110: -8.003553376e-13 | AG110: -8.003553376e-13 | AH110: -8.003553376e-13 | AI110: -8.003553376e-13 | AJ110: -8.003553376e-13 | AK110: -8.003553376e-13 | AL110: -8.003553376e-13 | AM110: FluxLinDev | AN110: =K103-K109
D111: =D104 -> 0 | E111: =D111+E104*(PeriodDev=1) -> 0 | F111: 0 | G111: 0 | H111: 0 | I111: 0 | J111: 0 | K111: 0 | L111: 0 | M111: 1 | N111: 2 | O111: 3 | P111: 4 | Q111: 5 | R111: 6 | S111: 7 | T111: 8 | U111: 9 | V111: 10 | W111: 11 | X111: 12 | Y111: 13 | Z111: 14 | AA111: 15 | AB111: 15 | AC111: 15 | AD111: 15 | AE111: 15 | AF111: 15 | AG111: 15 | AH111: 15 | AI111: 15 | AJ111: 15 | AK111: 15 | AL111: 15 | AM111: PeriodDevCum
A112: Constant | C112: Repayment | D112: =(PeriodDev=1)*IntVarDev/((1+RateBqDev)^(DurDev-PeriodDevCum+1)-1) -> 0 | E112: 0 | F112: 0 | G112: 0 | H112: 0 | I112: 0 | J112: 0 | K112: 0 | L112: 0 | M112: 6660.800498 | N112: 6794.016508 | O112: 6929.896838 | P112: 7068.494774 | Q112: 7209.86467 | R112: 7354.061963 | S112: 7501.143203 | T112: 7651.166067 | U112: 7804.189388 | V112: 7960.273176 | W112: 8119.478639 | X112: 8281.868212 | Y112: 8447.505576 | Z112: 8616.455688 | AA112: 8788.784802 | AB112: 0 | AC112: 0 | AD112: 0 | AE112: 0 | AF112: 0 | AG112: 0 | AH112: 0 | AI112: 0 | AJ112: 0 | AK112: 0 | AL112: 0 | AM112: AmoVarDev | AN112: =(PeriodDev=1)*IntVarDev/((1+RateBqDev)^(DurDev-PeriodDevCum+1)-1)
C113: OutstandingC | D113: =D103 -> 11518.8 | E113: =D113+E103-E112 -> 28797 | F113: 51834.6 | G113: 88694.76 | H113: 108276.72 | I113: 115188 | J113: 115188 | K113: 115188 | L113: 115188 | M113: 108527.1995 | N113: 101733.183 | O113: 94803.28616 | P113: 87734.79138 | Q113: 80524.92671 | R113: 73170.86475 | S113: 65669.72155 | T113: 58018.55548 | U113: 50214.36609 | V113: 42254.09292 | W113: 34134.61428 | X113: 25852.74607 | Y113: 17405.24049 | Z113: 8788.784802 | AA113: 0 | AB113: 0 | AC113: 0 | AD113: 0 | AE113: 0 | AF113: 0 | AG113: 0 | AH113: 0 | AI113: 0 | AJ113: 0 | AK113: 0 | AL113: 0 | AM113: CrdVarDev | AN113: =J113+K103-K112
C114: Interest | D114: 0 | E114: =D113*RateBqDev -> 230.376 | F114: 575.94 | G114: 1036.692 | H114: 1773.8952 | I114: 2165.5344 | J114: 2303.76 | K114: 2303.76 | L114: 2303.76 | M114: 2303.76 | N114: 2170.54399 | O114: 2034.66366 | P114: 1896.065723 | Q114: 1754.695828 | R114: 1610.498534 | S114: 1463.417295 | T114: 1313.394431 | U114: 1160.37111 | V114: 1004.287322 | W114: 845.0818583 | X114: 682.6922856 | Y114: 517.0549213 | Z114: 348.1048098 | AA114: 175.775696 | AB114: 0 | AC114: 0 | AD114: 0 | AE114: 0 | AF114: 0 | AG114: 0 | AH114: 0 | AI114: 0 | AJ114: 0 | AK114: 0 | AL114: 0 | AM114: IntVarDev | AN114: =J113*RateBqDev
C115: Installment | D115: =D112+D114 -> 0 | E115: =E112+E114 -> 230.376 | F115: =F112+F114 -> 575.94 | G115: =G112+G114 -> 1036.692 | H115: =H112+H114 -> 1773.8952 | I115: =I112+I114 -> 2165.5344 | J115: =J112+J114 -> 2303.76 | K115: =K112+K114 -> 2303.76 | L115: =L112+L114 -> 2303.76 | M115: =M112+M114 -> 8964.560498 | N115: =N112+N114 -> 8964.560498 | O115: =O112+O114 -> 8964.560498 | P115: =P112+P114 -> 8964.560498 | Q115: =Q112+Q114 -> 8964.560498 | R115: =R112+R114 -> 8964.560498 | S115: =S112+S114 -> 8964.560498 | T115: =T112+T114 -> 8964.560498 | U115: =U112+U114 -> 8964.560498 | V115: =V112+V114 -> 8964.560498 | W115: =W112+W114 -> 8964.560498 | X115: =X112+X114 -> 8964.560498 | Y115: =Y112+Y114 -> 8964.560498 | Z115: =Z112+Z114 -> 8964.560498 | AA115: =AA112+AA114 -> 8964.560498 | AB115: =AB112+AB114 -> 0 | AC115: =AC112+AC114 -> 0 | AD115: =AD112+AD114 -> 0 | AE115: =AE112+AE114 -> 0 | AF115: =AF112+AF114 -> 0 | AG115: =AG112+AG114 -> 0 | AH115: =AH112+AH114 -> 0 | AI115: =AI112+AI114 -> 0 | AJ115: =AJ112+AJ114 -> 0 | AK115: =AK112+AK114 -> 0 | AL115: =AL112+AL114 -> 0 | AM115: EchVarDev | AN115: =K112+K114
C116: =IRR(FluxVarDev) -> 0.02 | D116: =D103-D115 -> 11518.8 | E116: =E103-E115 -> 17047.824 | F116: =F103-F115 -> 22461.66 | G116: =G103-G115 -> 35823.468 | H116: =H103-H115 -> 17808.0648 | I116: =I103-I115 -> 4745.7456 | J116: =J103-J115 -> -2303.76 | K116: =K103-K115 -> -2303.76 | L116: =L103-L115 -> -2303.76 | M116: =M103-M115 -> -8964.560498 | N116: =N103-N115 -> -8964.560498 | O116: =O103-O115 -> -8964.560498 | P116: =P103-P115 -> -8964.560498 | Q116: =Q103-Q115 -> -8964.560498 | R116: =R103-R115 -> -8964.560498 | S116: =S103-S115 -> -8964.560498 | T116: =T103-T115 -> -8964.560498 | U116: =U103-U115 -> -8964.560498 | V116: =V103-V115 -> -8964.560498 | W116: =W103-W115 -> -8964.560498 | X116: =X103-X115 -> -8964.560498 | Y116: =Y103-Y115 -> -8964.560498 | Z116: =Z103-Z115 -> -8964.560498 | AA116: =AA103-AA115 -> -8964.560498 | AB116: =AB103-AB115 -> 0 | AC116: =AC103-AC115 -> 0 | AD116: =AD103-AD115 -> 0 | AE116: =AE103-AE115 -> 0 | AF116: =AF103-AF115 -> 0 | AG116: =AG103-AG115 -> 0 | AH116: =AH103-AH115 -> 0 | AI116: =AI103-AI115 -> 0 | AJ116: =AJ103-AJ115 -> 0 | AK116: =AK103-AK115 -> 0 | AL116: =AL103-AL115 -> 0 | AM116: FluxVarDev | AN116: =K103-K115
A117: DSCR | C117: CFADS adjusted | D117: =CFADS*RpBqDev -> 0 | E117: 0 | F117: 0 | G117: 0 | H117: 0 | I117: 17659.06911 | J117: 21547.48564 | K117: 21762.15953 | L117: 21978.96405 | M117: 22197.9202 | N117: 22419.04915 | O117: 22642.37231 | P117: 22867.91126 | Q117: 23095.68782 | R117: 23325.724 | S117: 23558.04204 | T117: 23792.66438 | U117: 24029.61369 | V117: 24268.91284 | W117: 24510.58495 | X117: 24754.65334 | Y117: 25001.14156 | Z117: 25250.07338 | AA117: 25501.47283 | AB117: 25755.36414 | AC117: 26011.77177 | AD117: 26270.72045 | AE117: 26532.23512 | AF117: 26796.34096 | AG117: 27063.06342 | AH117: 4713.599424 | AI117: 0 | AJ117: 0 | AK117: 0 | AL117: 0 | AM117: DscrDev | AN117: =CFADS*RpBqDev
C118: Repayment | D118: =PeriodDev*DscrDev/DSCRTarget -> 0 | E118: =(PeriodDev>0)*(DscrDev/DSCRTarget-E121) -> 0 | F118: 0 | G118: 0 | H118: 0 | I118: 0 | J118: 0 | K118: 0 | L118: 0 | M118: 12494.85347 | N118: 12892.16984 | O118: 13298.89534 | P118: 13715.23255 | Q118: 14141.38824 | R118: 14577.57346 | S118: 15024.00362 | T118: 15480.89858 | U118: 15948.48276 | V118: 16179.27523 | W118: 16340.38997 | X118: 16503.10223 | Y118: 16667.4277 | Z118: 16833.38226 | AA118: 17000.98189 | AB118: 17170.24276 | AC118: 17341.18118 | AD118: 17513.81363 | AE118: 17688.15675 | AF118: 17864.22731 | AG118: 18042.04228 | AH118: 3142.399616 | AI118: 0 | AJ118: 0 | AK118: 0 | AL118: 0 | AN118: =(PeriodDev>0)*(DscrDev/DSCRTarget-K121)
C119: OutstandingC | D119: =D103 -> 11518.8 | E119: =MAX(D119+E103-E118,0) -> 28797 | F119: =MAX(E119+F103-F118,0) -> 51834.6 | G119: 88694.76 | H119: 108276.72 | I119: 115188 | J119: 115188 | K119: 115188 | L119: 115188 | M119: 102693.1465 | N119: 89800.9767 | O119: 76502.08136 | P119: 62786.84881 | Q119: 48645.46057 | R119: 34067.88712 | S119: 19043.8835 | T119: 3562.984912 | U119: 0 | V119: 0 | W119: 0 | X119: 0 | Y119: 0 | Z119: 0 | AA119: 0 | AB119: 0 | AC119: 0 | AD119: 0 | AE119: 0 | AF119: 0 | AG119: 0 | AH119: 0 | AI119: 0 | AJ119: 0 | AK119: 0 | AL119: 0 | AM119: CrdDSDev | AN119: =MAX(J119+K103-K118;0)
C120: Amortization | D120: =PeriodDev*D119 -> 0 | E120: =PeriodDev*(D119-E119) -> 0 | F120: 0 | G120: 0 | H120: 0 | I120: 0 | J120: 0 | K120: 0 | L120: 0 | M120: 12494.85347 | N120: 12892.16984 | O120: 13298.89534 | P120: 13715.23255 | Q120: 14141.38824 | R120: 14577.57346 | S120: 15024.00362 | T120: 15480.89858 | U120: 3562.984912 | V120: 0 | W120: 0 | X120: 0 | Y120: 0 | Z120: 0 | AA120: 0 | AB120: 0 | AC120: 0 | AD120: 0 | AE120: 0 | AF120: 0 | AG120: 0 | AH120: 0 | AI120: 0 | AJ120: 0 | AK120: 0 | AL120: 0 | AM120: AmoDSDev | AN120: =PeriodDev*(J119-K119)
C121: Interest | D121: 0 | E121: =D119*RateBqDev -> 230.376 | F121: =E119*RateBqDev -> 575.94 | G121: =F119*RateBqDev -> 1036.692 | H121: =G119*RateBqDev -> 1773.8952 | I121: =H119*RateBqDev -> 2165.5344 | J121: =I119*RateBqDev -> 2303.76 | K121: =J119*RateBqDev -> 2303.76 | L121: =K119*RateBqDev -> 2303.76 | M121: =L119*RateBqDev -> 2303.76 | N121: =M119*RateBqDev -> 2053.862931 | O121: =N119*RateBqDev -> 1796.019534 | P121: =O119*RateBqDev -> 1530.041627 | Q121: =P119*RateBqDev -> 1255.736976 | R121: =Q119*RateBqDev -> 972.9092114 | S121: =R119*RateBqDev -> 681.3577423 | T121: =S119*RateBqDev -> 380.8776699 | U121: =T119*RateBqDev -> 71.25969824 | V121: =U119*RateBqDev -> 0 | W121: =V119*RateBqDev -> 0 | X121: =W119*RateBqDev -> 0 | Y121: =X119*RateBqDev -> 0 | Z121: =Y119*RateBqDev -> 0 | AA121: =Z119*RateBqDev -> 0 | AB121: =AA119*RateBqDev -> 0 | AC121: =AB119*RateBqDev -> 0 | AD121: =AC119*RateBqDev -> 0 | AE121: =AD119*RateBqDev -> 0 | AF121: =AE119*RateBqDev -> 0 | AG121: =AF119*RateBqDev -> 0 | AH121: =AG119*RateBqDev -> 0 | AI121: =AH119*RateBqDev -> 0 | AJ121: =AI119*RateBqDev -> 0 | AK121: =AJ119*RateBqDev -> 0 | AL121: =AK119*RateBqDev -> 0 | AM121: IntDSDev | AN121: =J119*RateBqDev
C122: Installment | D122: =D118+D121 -> 0 | E122: =(D119-E119)+E121+E103 -> 230.376 | F122: =(E119-F119)+F121+F103 -> 575.94 | G122: =(F119-G119)+G121+G103 -> 1036.692 | H122: =(G119-H119)+H121+H103 -> 1773.8952 | I122: =(H119-I119)+I121+I103 -> 2165.5344 | J122: =(I119-J119)+J121+J103 -> 2303.76 | K122: =(J119-K119)+K121+K103 -> 2303.76 | L122: =(K119-L119)+L121+L103 -> 2303.76 | M122: =(L119-M119)+M121+M103 -> 14798.61347 | N122: =(M119-N119)+N121+N103 -> 14946.03277 | O122: =(N119-O119)+O121+O103 -> 15094.91487 | P122: =(O119-P119)+P121+P103 -> 15245.27417 | Q122: =(P119-Q119)+Q121+Q103 -> 15397.12521 | R122: =(Q119-R119)+R121+R103 -> 15550.48267 | S122: =(R119-S119)+S121+S103 -> 15705.36136 | T122: =(S119-T119)+T121+T103 -> 15861.77625 | U122: =(T119-U119)+U121+U103 -> 3634.24461 | V122: =(U119-V119)+V121+V103 -> 0 | W122: =(V119-W119)+W121+W103 -> 0 | X122: =(W119-X119)+X121+X103 -> 0 | Y122: =(X119-Y119)+Y121+Y103 -> 0 | Z122: =(Y119-Z119)+Z121+Z103 -> 0 | AA122: =(Z119-AA119)+AA121+AA103 -> 0 | AB122: =(AA119-AB119)+AB121+AB103 -> 0 | AC122: =(AB119-AC119)+AC121+AC103 -> 0 | AD122: =(AC119-AD119)+AD121+AD103 -> 0 | AE122: =(AD119-AE119)+AE121+AE103 -> 0 | AF122: =(AE119-AF119)+AF121+AF103 -> 0 | AG122: =(AF119-AG119)+AG121+AG103 -> 0 | AH122: =(AG119-AH119)+AH121+AH103 -> 0 | AI122: =(AH119-AI119)+AI121+AI103 -> 0 | AJ122: =(AI119-AJ119)+AJ121+AJ103 -> 0 | AK122: =(AJ119-AK119)+AK121+AK103 -> 0 | AL122: =(AK119-AL119)+AL121+AL103 -> 0 | AM122: EchDSDev | AN122: =(J119-K119)+K121+K103
C123: =IRR(FluxDSDev) -> 0.02 | D123: =D103-D122 -> 11518.8 | E123: =E103-E122 -> 17047.824 | F123: 22461.66 | G123: 35823.468 | H123: 17808.0648 | I123: 4745.7456 | J123: -2303.76 | K123: -2303.76 | L123: -2303.76 | M123: -14798.61347 | N123: -14946.03277 | O123: -15094.91487 | P123: -15245.27417 | Q123: -15397.12521 | R123: -15550.48267 | S123: -15705.36136 | T123: -15861.77625 | U123: -3634.24461 | V123: 0 | W123: 0 | X123: 0 | Y123: 0 | Z123: 0 | AA123: 0 | AB123: 0 | AC123: 0 | AD123: 0 | AE123: 0 | AF123: 0 | AG123: 0 | AH123: 0 | AI123: 0 | AJ123: 0 | AK123: 0 | AL123: 0 | AM123: FluxDSDev | AN123: =K103-K122
C125: UsBqExp | D125: =INDIRECT($C125) -> 11518.8 | E125: =INDIRECT($C125) -> 17278.2 | F125: 23037.6 | G125: 36860.16 | H125: 19581.96 | I125: 6911.28 | J125: 0 | K125: 0 | L125: 0 | M125: 0 | N125: 0 | O125: 0 | P125: 0 | Q125: 0 | R125: 0 | S125: 0 | T125: 0 | U125: 0 | V125: 0 | W125: 0 | X125: 0 | Y125: 0 | Z125: 0 | AA125: 0 | AB125: 0 | AC125: 0 | AD125: 0 | AE125: 0 | AF125: =INDIRECT($C125) -> 0 | AG125: =INDIRECT($C125) -> 0 | AH125: 0 | AI125: 0 | AJ125: 0 | AK125: 0 | AL125: 0
D126: =(Duration>DurGrace)+(Duration>DurGrace+DurExp) -> 0 | E126: 0 | F126: 0 | G126: 0 | H126: 0 | I126: 0 | J126: 0 | K126: 0 | L126: 0 | M126: 1 | N126: 1 | O126: 1 | P126: 1 | Q126: 1 | R126: 1 | S126: 1 | T126: 1 | U126: 1 | V126: 1 | W126: 1 | X126: 1 | Y126: 2 | Z126: 2 | AA126: 2 | AB126: 2 | AC126: 2 | AD126: 2 | AE126: 2 | AF126: 2 | AG126: 2 | AH126: 2 | AI126: 2 | AJ126: 2 | AK126: 2 | AL126: 2 | AM126: PeriodExp | AN126: =_xlfn.FORMULATEXT(K126) -> =(Duration>DurGrace)+(Duration>DurGrace+DurExp)
A127: DEBTEXP | D127: =D125 -> 11518.8 | E127: =D127+E125*(PeriodExp=0) -> 28797 | F127: 51834.6 | G127: 88694.76 | H127: 108276.72 | I127: 115188 | J127: 115188 | K127: 115188 | L127: 115188 | M127: 115188 | N127: 115188 | O127: 115188 | P127: 115188 | Q127: 115188 | R127: 115188 | S127: 115188 | T127: 115188 | U127: 115188 | V127: 115188 | W127: 115188 | X127: 115188 | Y127: 115188 | Z127: 115188 | AA127: 115188 | AB127: 115188 | AC127: 115188 | AD127: 115188 | AE127: 115188 | AF127: 115188 | AG127: 115188 | AH127: 115188 | AI127: 115188 | AJ127: 115188 | AK127: 115188 | AL127: 115188 | AM127: EncBqExp | AN127: =_xlfn.FORMULATEXT(K127) -> =J127+K125*(PeriodExp=0)
A128: Linear | C128: Repayment | D128: =D127/DurExp*(PeriodExp=1) -> 0 | E128: 0 | F128: 0 | G128: 0 | H128: 0 | I128: 0 | J128: 0 | K128: 0 | L128: 0 | M128: 9599 | N128: 9599 | O128: 9599 | P128: 9599 | Q128: 9599 | R128: 9599 | S128: 9599 | T128: 9599 | U128: 9599 | V128: 9599 | W128: 9599 | X128: 9599 | Y128: 0 | Z128: 0 | AA128: 0 | AB128: 0 | AC128: 0 | AD128: 0 | AE128: 0 | AF128: 0 | AG128: 0 | AH128: 0 | AI128: 0 | AJ128: 0 | AK128: 0 | AL128: 0 | AM128: AmoLinExp | AN128: =_xlfn.FORMULATEXT(K128) -> =K127/DurExp*(PeriodExp=1)
C129: OutstandingC | D129: =D127-D128 -> 11518.8 | E129: =D129+E125-E128 -> 28797 | F129: =E129+F125-F128 -> 51834.6 | G129: =F129+G125-G128 -> 88694.76 | H129: =G129+H125-H128 -> 108276.72 | I129: =H129+I125-I128 -> 115188 | J129: =I129+J125-J128 -> 115188 | K129: =J129+K125-K128 -> 115188 | L129: =K129+L125-L128 -> 115188 | M129: =L129+M125-M128 -> 105589 | N129: =M129+N125-N128 -> 95990 | O129: =N129+O125-O128 -> 86391 | P129: =O129+P125-P128 -> 76792 | Q129: =P129+Q125-Q128 -> 67193 | R129: =Q129+R125-R128 -> 57594 | S129: =R129+S125-S128 -> 47995 | T129: =S129+T125-T128 -> 38396 | U129: =T129+U125-U128 -> 28797 | V129: =U129+V125-V128 -> 19198 | W129: =V129+W125-W128 -> 9599 | X129: =W129+X125-X128 -> 0 | Y129: =X129+Y125-Y128 -> 0 | Z129: =Y129+Z125-Z128 -> 0 | AA129: =Z129+AA125-AA128 -> 0 | AB129: =AA129+AB125-AB128 -> 0 | AC129: =AB129+AC125-AC128 -> 0 | AD129: =AC129+AD125-AD128 -> 0 | AE129: =AD129+AE125-AE128 -> 0 | AF129: =AE129+AF125-AF128 -> 0 | AG129: =AF129+AG125-AG128 -> 0 | AH129: =AG129+AH125-AH128 -> 0 | AI129: =AH129+AI125-AI128 -> 0 | AJ129: =AI129+AJ125-AJ128 -> 0 | AK129: =AJ129+AK125-AK128 -> 0 | AL129: =AK129+AL125-AL128 -> 0 | AM129: CrdLinExp | AN129: =J129+K125-K128
C130: Interest | D130: 0 | E130: =D129*RateBqExp -> 691.128 | F130: 1727.82 | G130: 3110.076 | H130: 5321.6856 | I130: 6496.6032 | J130: 6911.28 | K130: 6911.28 | L130: 6911.28 | M130: 6911.28 | N130: 6335.34 | O130: 5759.4 | P130: 5183.46 | Q130: 4607.52 | R130: 4031.58 | S130: 3455.64 | T130: 2879.7 | U130: 2303.76 | V130: 1727.82 | W130: 1151.88 | X130: 575.94 | Y130: 0 | Z130: 0 | AA130: 0 | AB130: 0 | AC130: 0 | AD130: 0 | AE130: 0 | AF130: 0 | AG130: 0 | AH130: 0 | AI130: 0 | AJ130: 0 | AK130: 0 | AL130: 0 | AM130: IntLinExp | AN130: =J129*RateBqExp
C131: Installment | D131: =D130+D128 -> 0 | E131: 691.128 | F131: 1727.82 | G131: 3110.076 | H131: 5321.6856 | I131: 6496.6032 | J131: 6911.28 | K131: 6911.28 | L131: 6911.28 | M131: 16510.28 | N131: 15934.34 | O131: 15358.4 | P131: 14782.46 | Q131: 14206.52 | R131: 13630.58 | S131: 13054.64 | T131: 12478.7 | U131: 11902.76 | V131: 11326.82 | W131: 10750.88 | X131: 10174.94 | Y131: 0 | Z131: 0 | AA131: 0 | AB131: 0 | AC131: 0 | AD131: 0 | AE131: 0 | AF131: 0 | AG131: 0 | AH131: 0 | AI131: 0 | AJ131: 0 | AK131: 0 | AL131: 0 | AM131: EchLinExp | AN131: =K130+K128
C132: =IRR(FluxLinExp) -> 0.06 | D132: =D125-D131 -> 11518.8 | E132: =E125-E131 -> 16587.072 | F132: 21309.78 | G132: 33750.084 | H132: 14260.2744 | I132: 414.6768 | J132: -6911.28 | K132: -6911.28 | L132: =L125-L131 -> -6911.28 | M132: =M125-M131 -> -16510.28 | N132: -15934.34 | O132: -15358.4 | P132: -14782.46 | Q132: -14206.52 | R132: -13630.58 | S132: -13054.64 | T132: -12478.7 | U132: -11902.76 | V132: -11326.82 | W132: -10750.88 | X132: -10174.94 | Y132: 0 | Z132: 0 | AA132: 0 | AB132: 0 | AC132: 0 | AD132: 0 | AE132: 0 | AF132: 0 | AG132: 0 | AH132: 0 | AI132: 0 | AJ132: 0 | AK132: 0 | AL132: 0 | AM132: FluxLinExp | AN132: =K125-K131
D133: =D126 -> 0 | E133: =D133+E126*(PeriodExp=1) -> 0 | F133: 0 | G133: 0 | H133: 0 | I133: 0 | J133: 0 | K133: 0 | L133: 0 | M133: 1 | N133: 2 | O133: 3 | P133: 4 | Q133: 5 | R133: 6 | S133: 7 | T133: 8 | U133: 9 | V133: 10 | W133: 11 | X133: 12 | Y133: 12 | Z133: 12 | AA133: 12 | AB133: 12 | AC133: 12 | AD133: 12 | AE133: 12 | AF133: 12 | AG133: 12 | AH133: 12 | AI133: 12 | AJ133: 12 | AK133: 12 | AL133: 12 | AM133: PeriodExpCum
A134: Constant | C134: Repayment | D134: =(PeriodDev=1)*IntVarExp/((1+RateBqExp)^(DurExp-PeriodExpCum+1)-1) -> 0 | E134: 0 | F134: 0 | G134: 0 | H134: 0 | I134: 0 | J134: 0 | K134: 0 | L134: 0 | M134: 6828.00246 | N134: 7237.682608 | O134: 7671.943564 | P134: 8132.260178 | Q134: 8620.195789 | R134: 9137.407536 | S134: 9685.651988 | T134: 10266.79111 | U134: 10882.79857 | V134: 11535.76649 | W134: 12227.91248 | X134: 12961.58723 | Y134: 0 | Z134: 0 | AA134: 0 | AB134: 0 | AC134: 0 | AD134: 0 | AE134: 0 | AF134: 0 | AG134: 0 | AH134: 0 | AI134: 0 | AJ134: 0 | AK134: 0 | AL134: 0 | AM134: AmoVarExp | AN134: =_xlfn.FORMULATEXT(K134) -> =(PeriodDev=1)*IntVarExp/((1+RateBqExp)^(DurExp-PeriodExpCum+1)-1)
C135: OutstandingC | D135: =D125 -> 11518.8 | E135: =D135+E125-E134 -> 28797 | F135: =E135+F125-F134 -> 51834.6 | G135: =F135+G125-G134 -> 88694.76 | H135: =G135+H125-H134 -> 108276.72 | I135: =H135+I125-I134 -> 115188 | J135: =I135+J125-J134 -> 115188 | K135: =J135+K125-K134 -> 115188 | L135: =K135+L125-L134 -> 115188 | M135: =L135+M125-M134 -> 108359.9975 | N135: =M135+N125-N134 -> 101122.3149 | O135: =N135+O125-O134 -> 93450.37137 | P135: =O135+P125-P134 -> 85318.11119 | Q135: =P135+Q125-Q134 -> 76697.9154 | R135: =Q135+R125-R134 -> 67560.50786 | S135: =R135+S125-S134 -> 57874.85588 | T135: =S135+T125-T134 -> 47608.06477 | U135: =T135+U125-U134 -> 36725.26619 | V135: =U135+V125-V134 -> 25189.4997 | W135: =V135+W125-W134 -> 12961.58723 | X135: =W135+X125-X134 -> 0 | Y135: =X135+Y125-Y134 -> 0 | Z135: =Y135+Z125-Z134 -> 0 | AA135: =Z135+AA125-AA134 -> 0 | AB135: =AA135+AB125-AB134 -> 0 | AC135: =AB135+AC125-AC134 -> 0 | AD135: =AC135+AD125-AD134 -> 0 | AE135: =AD135+AE125-AE134 -> 0 | AF135: =AE135+AF125-AF134 -> 0 | AG135: =AF135+AG125-AG134 -> 0 | AH135: =AG135+AH125-AH134 -> 0 | AI135: =AH135+AI125-AI134 -> 0 | AJ135: =AI135+AJ125-AJ134 -> 0 | AK135: =AJ135+AK125-AK134 -> 0 | AL135: =AK135+AL125-AL134 -> 0 | AM135: CrdVarExp | AN135: =J135+K125-K134
C136: Interest | D136: 0 | E136: =D135*RateBqExp -> 691.128 | F136: 1727.82 | G136: 3110.076 | H136: 5321.6856 | I136: 6496.6032 | J136: 6911.28 | K136: 6911.28 | L136: 6911.28 | M136: 6911.28 | N136: 6501.599852 | O136: 6067.338896 | P136: 5607.022282 | Q136: 5119.086671 | R136: 4601.874924 | S136: 4053.630472 | T136: 3472.491353 | U136: 2856.483886 | V136: 2203.515972 | W136: 1511.369982 | X136: 777.6952336 | Y136: 0 | Z136: 0 | AA136: 0 | AB136: 0 | AC136: 0 | AD136: 0 | AE136: 0 | AF136: 0 | AG136: 0 | AH136: 0 | AI136: 0 | AJ136: 0 | AK136: 0 | AL136: 0 | AM136: IntVarExp | AN136: =J135*RateBqExp
C137: Installment | D137: =D134+D136 -> 0 | E137: =E134+E136 -> 691.128 | F137: 1727.82 | G137: 3110.076 | H137: 5321.6856 | I137: 6496.6032 | J137: 6911.28 | K137: =K134+K136 -> 6911.28 | L137: =L134+L136 -> 6911.28 | M137: 13739.28246 | N137: 13739.28246 | O137: 13739.28246 | P137: 13739.28246 | Q137: 13739.28246 | R137: 13739.28246 | S137: 13739.28246 | T137: 13739.28246 | U137: 13739.28246 | V137: 13739.28246 | W137: 13739.28246 | X137: 13739.28246 | Y137: 0 | Z137: 0 | AA137: 0 | AB137: 0 | AC137: 0 | AD137: 0 | AE137: 0 | AF137: 0 | AG137: 0 | AH137: 0 | AI137: 0 | AJ137: 0 | AK137: 0 | AL137: 0 | AM137: EchVarExp | AN137: =K134+K136
C138: =IRR(FluxVarExp) -> 0.06 | D138: =D125-D137 -> 11518.8 | E138: =E125-E137 -> 16587.072 | F138: 21309.78 | G138: 33750.084 | H138: 14260.2744 | I138: 414.6768 | J138: -6911.28 | K138: -6911.28 | L138: -6911.28 | M138: -13739.28246 | N138: -13739.28246 | O138: -13739.28246 | P138: -13739.28246 | Q138: -13739.28246 | R138: -13739.28246 | S138: -13739.28246 | T138: -13739.28246 | U138: -13739.28246 | V138: -13739.28246 | W138: -13739.28246 | X138: -13739.28246 | Y138: 0 | Z138: 0 | AA138: 0 | AB138: 0 | AC138: 0 | AD138: 0 | AE138: 0 | AF138: 0 | AG138: 0 | AH138: 0 | AI138: 0 | AJ138: 0 | AK138: 0 | AL138: 0 | AM138: FluxVarExp | AN138: =K125-K137
A139: DSCR | C139: CFADS adjusted | D139: =CFADS*RpBqExp -> 0 | E139: 0 | F139: 0 | G139: 0 | H139: 0 | I139: 17659.06911 | J139: 21547.48564 | K139: 21762.15953 | L139: 21978.96405 | M139: 22197.9202 | N139: 22419.04915 | O139: 22642.37231 | P139: 22867.91126 | Q139: 23095.68782 | R139: 23325.724 | S139: 23558.04204 | T139: 23792.66438 | U139: 24029.61369 | V139: 24268.91284 | W139: 24510.58495 | X139: 24754.65334 | Y139: 25001.14156 | Z139: 25250.07338 | AA139: 25501.47283 | AB139: 25755.36414 | AC139: 26011.77177 | AD139: 26270.72045 | AE139: 26532.23512 | AF139: 26796.34096 | AG139: 27063.06342 | AH139: 4713.599424 | AI139: 0 | AJ139: 0 | AK139: 0 | AL139: 0 | AM139: DscrExp | AN139: =CFADS*RpBqExp
C140: Repayment | D140: =PeriodDev*DscrDev/DSCRTarget -> 0 | E140: =(PeriodExp>0)*(DscrExp/DSCRTarget-E143) -> 0 | F140: 0 | G140: 0 | H140: 0 | I140: 0 | J140: 0 | K140: 0 | L140: 0 | M140: 7887.333466 | N140: 8507.992777 | O140: 9167.354447 | P140: 9867.755016 | Q140: 10611.67136 | R140: 11401.72909 | S140: 12240.71153 | T140: 13131.56912 | U140: 14077.42947 | V140: 15081.60801 | W140: 16147.61922 | X140: 16503.10223 | Y140: 16667.4277 | Z140: 16833.38226 | AA140: 17000.98189 | AB140: 17170.24276 | AC140: 17341.18118 | AD140: 17513.81363 | AE140: 17688.15675 | AF140: 17864.22731 | AG140: 18042.04228 | AH140: 3142.399616 | AI140: 0 | AJ140: 0 | AK140: 0 | AL140: 0 | AN140: =(PeriodExp>0)*(DscrExp/DSCRTarget-K143)
C141: OutstandingC | D141: =D125 -> 11518.8 | E141: =MAX(D141+E125-E140,0) -> 28797 | F141: =MAX(E141+F125-F140,0) -> 51834.6 | G141: =MAX(F141+G125-G140,0) -> 88694.76 | H141: =MAX(G141+H125-H140,0) -> 108276.72 | I141: =MAX(H141+I125-I140,0) -> 115188 | J141: =MAX(I141+J125-J140,0) -> 115188 | K141: =MAX(J141+K125-K140,0) -> 115188 | L141: =MAX(K141+L125-L140,0) -> 115188 | M141: =MAX(L141+M125-M140,0) -> 107300.6665 | N141: =MAX(M141+N125-N140,0) -> 98792.67376 | O141: =MAX(N141+O125-O140,0) -> 89625.31931 | P141: =MAX(O141+P125-P140,0) -> 79757.56429 | Q141: =MAX(P141+Q125-Q140,0) -> 69145.89294 | R141: =MAX(Q141+R125-R140,0) -> 57744.16385 | S141: =MAX(R141+S125-S140,0) -> 45503.45232 | T141: =MAX(S141+T125-T140,0) -> 32371.8832 | U141: =MAX(T141+U125-U140,0) -> 18294.45373 | V141: =MAX(U141+V125-V140,0) -> 3212.845727 | W141: =MAX(V141+W125-W140,0) -> 0 | X141: =MAX(W141+X125-X140,0) -> 0 | Y141: =MAX(X141+Y125-Y140,0) -> 0 | Z141: =MAX(Y141+Z125-Z140,0) -> 0 | AA141: =MAX(Z141+AA125-AA140,0) -> 0 | AB141: =MAX(AA141+AB125-AB140,0) -> 0 | AC141: =MAX(AB141+AC125-AC140,0) -> 0 | AD141: =MAX(AC141+AD125-AD140,0) -> 0 | AE141: =MAX(AD141+AE125-AE140,0) -> 0 | AF141: =MAX(AE141+AF125-AF140,0) -> 0 | AG141: =MAX(AF141+AG125-AG140,0) -> 0 | AH141: =MAX(AG141+AH125-AH140,0) -> 0 | AI141: =MAX(AH141+AI125-AI140,0) -> 0 | AJ141: =MAX(AI141+AJ125-AJ140,0) -> 0 | AK141: =MAX(AJ141+AK125-AK140,0) -> 0 | AL141: =MAX(AK141+AL125-AL140,0) -> 0 | AM141: CrdDSExp | AN141: =MAX(J141+K125-K140;0)
C142: Amortization | D142: =PeriodExp*D141 -> 0 | E142: =PeriodExp*(D141-E141) -> 0 | F142: 0 | G142: 0 | H142: 0 | I142: 0 | J142: 0 | K142: 0 | L142: 0 | M142: 7887.333466 | N142: 8507.992777 | O142: 9167.354447 | P142: 9867.755016 | Q142: 10611.67136 | R142: 11401.72909 | S142: 12240.71153 | T142: 13131.56912 | U142: 14077.42947 | V142: 15081.60801 | W142: 3212.845727 | X142: 0 | Y142: 0 | Z142: 0 | AA142: 0 | AB142: 0 | AC142: 0 | AD142: 0 | AE142: 0 | AF142: 0 | AG142: 0 | AH142: 0 | AI142: 0 | AJ142: 0 | AK142: 0 | AL142: 0 | AM142: AmoDSExp | AN142: =PeriodExp*(J141-K141)
C143: Interest | D143: 0 | E143: =D141*RateBqExp -> 691.128 | F143: 1727.82 | G143: 3110.076 | H143: 5321.6856 | I143: 6496.6032 | J143: 6911.28 | K143: 6911.28 | L143: 6911.28 | M143: 6911.28 | N143: 6438.039992 | O143: 5927.560425 | P143: 5377.519159 | Q143: 4785.453858 | R143: 4148.753576 | S143: 3464.649831 | T143: 2730.207139 | U143: 1942.312992 | V143: 1097.667224 | W143: 192.7707436 | X143: 0 | Y143: 0 | Z143: 0 | AA143: 0 | AB143: 0 | AC143: 0 | AD143: 0 | AE143: 0 | AF143: 0 | AG143: 0 | AH143: 0 | AI143: 0 | AJ143: 0 | AK143: 0 | AL143: 0 | AM143: IntDSExp | AN143: =J141*RateBqExp
C144: Installment | D144: =D140+D143 -> 0 | E144: =(D141-E141)+E143+E125 -> 691.128 | F144: =(E141-F141)+F143+F125 -> 1727.82 | G144: =(F141-G141)+G143+G125 -> 3110.076 | H144: =(G141-H141)+H143+H125 -> 5321.6856 | I144: =(H141-I141)+I143+I125 -> 6496.6032 | J144: =(I141-J141)+J143+J125 -> 6911.28 | K144: =(J141-K141)+K143+K125 -> 6911.28 | L144: =(K141-L141)+L143+L125 -> 6911.28 | M144: =(L141-M141)+M143+M125 -> 14798.61347 | N144: =(M141-N141)+N143+N125 -> 14946.03277 | O144: =(N141-O141)+O143+O125 -> 15094.91487 | P144: =(O141-P141)+P143+P125 -> 15245.27417 | Q144: =(P141-Q141)+Q143+Q125 -> 15397.12521 | R144: =(Q141-R141)+R143+R125 -> 15550.48267 | S144: =(R141-S141)+S143+S125 -> 15705.36136 | T144: =(S141-T141)+T143+T125 -> 15861.77625 | U144: =(T141-U141)+U143+U125 -> 16019.74246 | V144: =(U141-V141)+V143+V125 -> 16179.27523 | W144: =(V141-W141)+W143+W125 -> 3405.61647 | X144: =(W141-X141)+X143+X125 -> 0 | Y144: =(X141-Y141)+Y143+Y125 -> 0 | Z144: =(Y141-Z141)+Z143+Z125 -> 0 | AA144: =(Z141-AA141)+AA143+AA125 -> 0 | AB144: =(AA141-AB141)+AB143+AB125 -> 0 | AC144: =(AB141-AC141)+AC143+AC125 -> 0 | AD144: =(AC141-AD141)+AD143+AD125 -> 0 | AE144: =(AD141-AE141)+AE143+AE125 -> 0 | AF144: =(AE141-AF141)+AF143+AF125 -> 0 | AG144: =(AF141-AG141)+AG143+AG125 -> 0 | AH144: =(AG141-AH141)+AH143+AH125 -> 0 | AI144: =(AH141-AI141)+AI143+AI125 -> 0 | AJ144: =(AI141-AJ141)+AJ143+AJ125 -> 0 | AK144: =(AJ141-AK141)+AK143+AK125 -> 0 | AL144: =(AK141-AL141)+AL143+AL125 -> 0 | AM144: EchDSExp | AN144: =(J141-K141)+K143+K125
C145: =IRR(FluxDSExp) -> 0.06 | D145: =D125-D144 -> 11518.8 | E145: =E125-E144 -> 16587.072 | F145: =F125-F144 -> 21309.78 | G145: =G125-G144 -> 33750.084 | H145: =H125-H144 -> 14260.2744 | I145: =I125-I144 -> 414.6768 | J145: =J125-J144 -> -6911.28 | K145: =K125-K144 -> -6911.28 | L145: =L125-L144 -> -6911.28 | M145: =M125-M144 -> -14798.61347 | N145: =N125-N144 -> -14946.03277 | O145: =O125-O144 -> -15094.91487 | P145: =P125-P144 -> -15245.27417 | Q145: =Q125-Q144 -> -15397.12521 | R145: =R125-R144 -> -15550.48267 | S145: =S125-S144 -> -15705.36136 | T145: =T125-T144 -> -15861.77625 | U145: =U125-U144 -> -16019.74246 | V145: =V125-V144 -> -16179.27523 | W145: =W125-W144 -> -3405.61647 | X145: =X125-X144 -> 0 | Y145: =Y125-Y144 -> 0 | Z145: =Z125-Z144 -> 0 | AA145: =AA125-AA144 -> 0 | AB145: =AB125-AB144 -> 0 | AC145: =AC125-AC144 -> 0 | AD145: =AD125-AD144 -> 0 | AE145: =AE125-AE144 -> 0 | AF145: =AF125-AF144 -> 0 | AG145: =AG125-AG144 -> 0 | AH145: =AH125-AH144 -> 0 | AI145: =AI125-AI144 -> 0 | AJ145: =AJ125-AJ144 -> 0 | AK145: =AK125-AK144 -> 0 | AL145: =AL125-AL144 -> 0 | AM145: FluxDSExp | AN145: =K125-K144
C147: UsBqCom | D147: =INDIRECT($C147) -> 5759.4 | E147: =INDIRECT($C147) -> 8639.1 | F147: 11518.8 | G147: 18430.08 | H147: 9790.98 | I147: 3455.64 | J147: 0 | K147: 0 | L147: 0 | M147: 0 | N147: 0 | O147: 0 | P147: 0 | Q147: 0 | R147: 0 | S147: 0 | T147: 0 | U147: 0 | V147: 0 | W147: 0 | X147: 0 | Y147: 0 | Z147: 0 | AA147: 0 | AB147: 0 | AC147: 0 | AD147: 0 | AE147: 0 | AF147: =INDIRECT($C147) -> 0 | AG147: =INDIRECT($C147) -> 0 | AH147: 0 | AI147: 0 | AJ147: 0 | AK147: 0 | AL147: 0
D148: =(Duration>DurGrace)+(Duration>DurGrace+DurDev) -> 0 | E148: =(Duration>DurGrace)+(Duration>DurGrace+DurCom) -> 0 | F148: 0 | G148: 0 | H148: 0 | I148: 0 | J148: 0 | K148: 0 | L148: 0 | M148: 1 | N148: 1 | O148: 1 | P148: 1 | Q148: 1 | R148: 1 | S148: 1 | T148: 2 | U148: 2 | V148: 2 | W148: 2 | X148: 2 | Y148: 2 | Z148: 2 | AA148: 2 | AB148: 2 | AC148: 2 | AD148: 2 | AE148: 2 | AF148: 2 | AG148: 2 | AH148: 2 | AI148: 2 | AJ148: 2 | AK148: 2 | AL148: 2 | AM148: PeriodCom | AN148: =_xlfn.FORMULATEXT(K148) -> =(Duration>DurGrace)+(Duration>DurGrace+DurCom)
A149: DEBTCOM | D149: =D147 -> 5759.4 | E149: =D149+E147*(PeriodCom=0) -> 14398.5 | F149: 25917.3 | G149: 44347.38 | H149: 54138.36 | I149: 57594 | J149: 57594 | K149: 57594 | L149: 57594 | M149: 57594 | N149: 57594 | O149: 57594 | P149: 57594 | Q149: 57594 | R149: 57594 | S149: 57594 | T149: 57594 | U149: 57594 | V149: 57594 | W149: 57594 | X149: 57594 | Y149: 57594 | Z149: 57594 | AA149: 57594 | AB149: 57594 | AC149: 57594 | AD149: 57594 | AE149: 57594 | AF149: 57594 | AG149: 57594 | AH149: 57594 | AI149: 57594 | AJ149: 57594 | AK149: 57594 | AL149: 57594 | AM149: EncBqCom | AN149: =_xlfn.FORMULATEXT(K149) -> =J149+K147*(PeriodCom=0)
A150: Linear | C150: Repayment | D150: =D149/DurDev*(PeriodDev=1) -> 0 | E150: =E149/DurCom*(PeriodCom=1) -> 0 | F150: 0 | G150: 0 | H150: 0 | I150: 0 | J150: 0 | K150: 0 | L150: 0 | M150: 8227.714286 | N150: 8227.714286 | O150: 8227.714286 | P150: 8227.714286 | Q150: 8227.714286 | R150: 8227.714286 | S150: 8227.714286 | T150: 0 | U150: 0 | V150: 0 | W150: 0 | X150: 0 | Y150: 0 | Z150: 0 | AA150: 0 | AB150: 0 | AC150: 0 | AD150: 0 | AE150: 0 | AF150: 0 | AG150: 0 | AH150: 0 | AI150: 0 | AJ150: 0 | AK150: 0 | AL150: 0 | AM150: AmoLinCom | AN150: =_xlfn.FORMULATEXT(K150) -> =K149/DurCom*(PeriodCom=1)
C151: OutstandingC | D151: =D149-D150 -> 5759.4 | E151: =D151+E147-E150 -> 14398.5 | F151: =E151+F147-F150 -> 25917.3 | G151: 44347.38 | H151: 54138.36 | I151: 57594 | J151: 57594 | K151: 57594 | L151: 57594 | M151: 49366.28571 | N151: 41138.57143 | O151: 32910.85714 | P151: 24683.14286 | Q151: 16455.42857 | R151: 8227.714286 | S151: 0 | T151: 0 | U151: 0 | V151: 0 | W151: 0 | X151: 0 | Y151: 0 | Z151: 0 | AA151: 0 | AB151: 0 | AC151: 0 | AD151: 0 | AE151: 0 | AF151: 0 | AG151: 0 | AH151: 0 | AI151: 0 | AJ151: 0 | AK151: 0 | AL151: 0 | AM151: CrdLinCom | AN151: =J151+K147-K150
C152: Interest | D152: 0 | E152: =D151*RateBqCom -> 403.158 | F152: 1007.895 | G152: 1814.211 | H152: 3104.3166 | I152: 3789.6852 | J152: 4031.58 | K152: 4031.58 | L152: 4031.58 | M152: 4031.58 | N152: 3455.64 | O152: 2879.7 | P152: 2303.76 | Q152: 1727.82 | R152: 1151.88 | S152: 575.94 | T152: 0 | U152: 0 | V152: 0 | W152: 0 | X152: 0 | Y152: 0 | Z152: 0 | AA152: 0 | AB152: 0 | AC152: 0 | AD152: 0 | AE152: 0 | AF152: 0 | AG152: 0 | AH152: 0 | AI152: 0 | AJ152: 0 | AK152: 0 | AL152: 0 | AM152: IntLinCom | AN152: =J151*RateBqCom
C153: Installment | D153: =D152+D150 -> 0 | E153: 403.158 | F153: =F152+F150 -> 1007.895 | G153: 1814.211 | H153: 3104.3166 | I153: 3789.6852 | J153: 4031.58 | K153: 4031.58 | L153: 4031.58 | M153: 12259.29429 | N153: 11683.35429 | O153: 11107.41429 | P153: 10531.47429 | Q153: 9955.534286 | R153: 9379.594286 | S153: 8803.654286 | T153: 0 | U153: 0 | V153: 0 | W153: 0 | X153: 0 | Y153: 0 | Z153: 0 | AA153: 0 | AB153: 0 | AC153: 0 | AD153: 0 | AE153: 0 | AF153: 0 | AG153: 0 | AH153: 0 | AI153: 0 | AJ153: 0 | AK153: 0 | AL153: 0 | AM153: EchLinCom | AN153: =K152+K150
C154: =IRR(FluxLinCom) -> 0.07 | D154: =D147-D153 -> 5759.4 | E154: =E147-E153 -> 8235.942 | F154: =F147-F153 -> 10510.905 | G154: 16615.869 | H154: 6686.6634 | I154: -334.0452 | J154: -4031.58 | K154: -4031.58 | L154: -4031.58 | M154: -12259.29429 | N154: -11683.35429 | O154: -11107.41429 | P154: -10531.47429 | Q154: -9955.534286 | R154: -9379.594286 | S154: -8803.654286 | T154: 0 | U154: 0 | V154: 0 | W154: 0 | X154: 0 | Y154: 0 | Z154: 0 | AA154: 0 | AB154: 0 | AC154: 0 | AD154: 0 | AE154: 0 | AF154: 0 | AG154: 0 | AH154: 0 | AI154: 0 | AJ154: 0 | AK154: 0 | AL154: 0 | AM154: FluxLinCom | AN154: =K147-K153
D155: =D148 -> 0 | E155: =D155+E148*(PeriodCom=1) -> 0 | F155: 0 | G155: 0 | H155: 0 | I155: 0 | J155: 0 | K155: 0 | L155: 0 | M155: 1 | N155: 2 | O155: 3 | P155: 4 | Q155: 5 | R155: 6 | S155: 7 | T155: 7 | U155: 7 | V155: 7 | W155: 7 | X155: 7 | Y155: 7 | Z155: 7 | AA155: 7 | AB155: 7 | AC155: 7 | AD155: 7 | AE155: 7 | AF155: 7 | AG155: 7 | AH155: 7 | AI155: 7 | AJ155: 7 | AK155: 7 | AL155: 7 | AM155: PeriodComCum
A156: Constant | C156: Repayment | D156: =(PeriodCom=1)*IntVarCom/((1+RateBqCom)^(DurCom-PeriodComCum+1)-1) -> 0 | E156: 0 | F156: 0 | G156: 0 | H156: 0 | I156: 0 | J156: 0 | K156: 0 | L156: 0 | M156: 6655.172131 | N156: 7121.034181 | O156: 7619.506573 | P156: 8152.872033 | Q156: 8723.573076 | R156: 9334.223191 | S156: 9987.618814 | T156: 0 | U156: 0 | V156: 0 | W156: 0 | X156: 0 | Y156: 0 | Z156: 0 | AA156: 0 | AB156: 0 | AC156: 0 | AD156: 0 | AE156: 0 | AF156: 0 | AG156: 0 | AH156: 0 | AI156: 0 | AJ156: 0 | AK156: 0 | AL156: 0 | AM156: AmoVarCom | AN156: =_xlfn.FORMULATEXT(K156) -> =(PeriodCom=1)*IntVarCom/((1+RateBqCom)^(DurCom-PeriodComCum+1)-1)
C157: OutstandingC | D157: =D147 -> 5759.4 | E157: =D157+E147-E156 -> 14398.5 | F157: =E157+F147-F156 -> 25917.3 | G157: =F157+G147-G156 -> 44347.38 | H157: =G157+H147-H156 -> 54138.36 | I157: =H157+I147-I156 -> 57594 | J157: =I157+J147-J156 -> 57594 | K157: =J157+K147-K156 -> 57594 | L157: =K157+L147-L156 -> 57594 | M157: =L157+M147-M156 -> 50938.82787 | N157: =M157+N147-N156 -> 43817.79369 | O157: =N157+O147-O156 -> 36198.28711 | P157: =O157+P147-P156 -> 28045.41508 | Q157: =P157+Q147-Q156 -> 19321.84201 | R157: =Q157+R147-R156 -> 9987.618814 | S157: =R157+S147-S156 -> 0 | T157: =S157+T147-T156 -> 0 | U157: =T157+U147-U156 -> 0 | V157: =U157+V147-V156 -> 0 | W157: =V157+W147-W156 -> 0 | X157: =W157+X147-X156 -> 0 | Y157: =X157+Y147-Y156 -> 0 | Z157: =Y157+Z147-Z156 -> 0 | AA157: =Z157+AA147-AA156 -> 0 | AB157: =AA157+AB147-AB156 -> 0 | AC157: =AB157+AC147-AC156 -> 0 | AD157: =AC157+AD147-AD156 -> 0 | AE157: =AD157+AE147-AE156 -> 0 | AF157: =AE157+AF147-AF156 -> 0 | AG157: =AF157+AG147-AG156 -> 0 | AH157: =AG157+AH147-AH156 -> 0 | AI157: =AH157+AI147-AI156 -> 0 | AJ157: =AI157+AJ147-AJ156 -> 0 | AK157: =AJ157+AK147-AK156 -> 0 | AL157: =AK157+AL147-AL156 -> 0 | AM157: CrdVarCom | AN157: =J157+K147-K156
C158: Interest | D158: 0 | E158: =D157*RateBqCom -> 403.158 | F158: 1007.895 | G158: 1814.211 | H158: 3104.3166 | I158: 3789.6852 | J158: 4031.58 | K158: 4031.58 | L158: 4031.58 | M158: 4031.58 | N158: 3565.717951 | O158: 3067.245558 | P158: 2533.880098 | Q158: 1963.179056 | R158: 1352.52894 | S158: 699.133317 | T158: 0 | U158: 0 | V158: 0 | W158: 0 | X158: 0 | Y158: 0 | Z158: 0 | AA158: 0 | AB158: 0 | AC158: 0 | AD158: 0 | AE158: 0 | AF158: 0 | AG158: 0 | AH158: 0 | AI158: 0 | AJ158: 0 | AK158: 0 | AL158: 0 | AM158: IntVarCom | AN158: =J157*RateBqCom
C159: Installment | D159: =D156+D158 -> 0 | E159: =E156+E158 -> 403.158 | F159: =F156+F158 -> 1007.895 | G159: 1814.211 | H159: 3104.3166 | I159: 3789.6852 | J159: 4031.58 | K159: 4031.58 | L159: 4031.58 | M159: 10686.75213 | N159: 10686.75213 | O159: 10686.75213 | P159: 10686.75213 | Q159: 10686.75213 | R159: 10686.75213 | S159: 10686.75213 | T159: 0 | U159: 0 | V159: 0 | W159: 0 | X159: 0 | Y159: 0 | Z159: 0 | AA159: 0 | AB159: 0 | AC159: 0 | AD159: 0 | AE159: 0 | AF159: 0 | AG159: 0 | AH159: 0 | AI159: 0 | AJ159: 0 | AK159: 0 | AL159: 0 | AM159: EchVarCom | AN159: =K156+K158
C160: =IRR(FluxVarCom) -> 0.07 | D160: =D147-D159 -> 5759.4 | E160: =E147-E159 -> 8235.942 | F160: =F147-F159 -> 10510.905 | G160: 16615.869 | H160: 6686.6634 | I160: -334.0452 | J160: -4031.58 | K160: -4031.58 | L160: -4031.58 | M160: -10686.75213 | N160: -10686.75213 | O160: -10686.75213 | P160: -10686.75213 | Q160: -10686.75213 | R160: -10686.75213 | S160: -10686.75213 | T160: 0 | U160: 0 | V160: 0 | W160: 0 | X160: 0 | Y160: 0 | Z160: 0 | AA160: 0 | AB160: 0 | AC160: 0 | AD160: 0 | AE160: 0 | AF160: 0 | AG160: 0 | AH160: 0 | AI160: 0 | AJ160: 0 | AK160: 0 | AL160: 0 | AM160: FluxVarCom | AN160: =K147-K159
A161: DSCR | C161: CFADS adjusted | D161: =CFADS*RpBqCom -> 0 | E161: 0 | F161: 0 | G161: 0 | H161: 0 | I161: 8829.534557 | J161: 10773.74282 | K161: 10881.07976 | L161: 10989.48203 | M161: 11098.9601 | N161: 11209.52458 | O161: 11321.18615 | P161: 11433.95563 | Q161: 11547.84391 | R161: 11662.862 | S161: 11779.02102 | T161: 11896.33219 | U161: 12014.80684 | V161: 12134.45642 | W161: 12255.29248 | X161: 12377.32667 | Y161: 12500.57078 | Z161: 12625.03669 | AA161: 12750.73642 | AB161: 12877.68207 | AC161: 13005.88589 | AD161: 13135.36023 | AE161: 13266.11756 | AF161: 13398.17048 | AG161: 13531.53171 | AH161: 2356.799712 | AI161: 0 | AJ161: 0 | AK161: 0 | AL161: 0 | AM161: DscrCom | AN161: =CFADS*RpBqCom
C162: Repayment | D162: =PeriodDev*DscrDev/DSCRTarget -> 0 | E162: =MAX((PeriodCom>0)*(DscrCom/DSCRTarget-E165),0) -> 0 | F162: 0 | G162: 0 | H162: 0 | I162: 0 | J162: 0 | K162: 0 | L162: 0 | M162: 3367.726733 | N162: 3677.177256 | O162: 4009.020715 | P162: 4364.831816 | Q162: 4746.295563 | R162: 5155.21498 | S162: 5593.519375 | T162: 6063.273178 | U162: 6566.685403 | V162: 7106.119766 | W162: 7684.105519 | X162: 8251.551113 | Y162: 8333.713852 | Z162: 8416.691128 | AA162: 8500.490944 | AB162: 8585.121379 | AC162: 8670.590591 | AD162: 8756.906817 | AE162: 8844.078373 | AF162: 8932.113655 | AG162: 9021.021138 | AH162: 1571.199808 | AI162: 0 | AJ162: 0 | AK162: 0 | AL162: 0 | AN162: =MAX((PeriodCom>0)*(DscrCom/DSCRTarget-K165);0)
C163: OutstandingC | D163: =D147 -> 5759.4 | E163: =MAX(D163+E147-E162,0) -> 14398.5 | F163: =MAX(E163+F147-F162,0) -> 25917.3 | G163: =MAX(F163+G147-G162,0) -> 44347.38 | H163: =MAX(G163+H147-H162,0) -> 54138.36 | I163: =MAX(H163+I147-I162,0) -> 57594 | J163: =MAX(I163+J147-J162,0) -> 57594 | K163: =MAX(J163+K147-K162,0) -> 57594 | L163: =MAX(K163+L147-L162,0) -> 57594 | M163: =MAX(L163+M147-M162,0) -> 54226.27327 | N163: =MAX(M163+N147-N162,0) -> 50549.09601 | O163: =MAX(N163+O147-O162,0) -> 46540.0753 | P163: =MAX(O163+P147-P162,0) -> 42175.24348 | Q163: =MAX(P163+Q147-Q162,0) -> 37428.94792 | R163: =MAX(Q163+R147-R162,0) -> 32273.73294 | S163: =MAX(R163+S147-S162,0) -> 26680.21356 | T163: =MAX(S163+T147-T162,0) -> 20616.94038 | U163: =MAX(T163+U147-U162,0) -> 14050.25498 | V163: =MAX(U163+V147-V162,0) -> 6944.135214 | W163: =MAX(V163+W147-W162,0) -> 0 | X163: =MAX(W163+X147-X162,0) -> 0 | Y163: =MAX(X163+Y147-Y162,0) -> 0 | Z163: =MAX(Y163+Z147-Z162,0) -> 0 | AA163: =MAX(Z163+AA147-AA162,0) -> 0 | AB163: =MAX(AA163+AB147-AB162,0) -> 0 | AC163: =MAX(AB163+AC147-AC162,0) -> 0 | AD163: =MAX(AC163+AD147-AD162,0) -> 0 | AE163: =MAX(AD163+AE147-AE162,0) -> 0 | AF163: =MAX(AE163+AF147-AF162,0) -> 0 | AG163: =MAX(AF163+AG147-AG162,0) -> 0 | AH163: =MAX(AG163+AH147-AH162,0) -> 0 | AI163: =MAX(AH163+AI147-AI162,0) -> 0 | AJ163: =MAX(AI163+AJ147-AJ162,0) -> 0 | AK163: =MAX(AJ163+AK147-AK162,0) -> 0 | AL163: =MAX(AK163+AL147-AL162,0) -> 0 | AM163: CrdDSCom | AN163: =MAX(J163+K147-K162;0)
C164: Amortization | D164: =(PeriodCom>0)*D163 -> 0 | E164: =PeriodExp*(D163-E163) -> 0 | F164: 0 | G164: 0 | H164: 0 | I164: 0 | J164: 0 | K164: 0 | L164: 0 | M164: 3367.726733 | N164: 3677.177256 | O164: 4009.020715 | P164: 4364.831816 | Q164: 4746.295563 | R164: 5155.21498 | S164: 5593.519375 | T164: 6063.273178 | U164: 6566.685403 | V164: 7106.119766 | W164: 6944.135214 | X164: 0 | Y164: 0 | Z164: 0 | AA164: 0 | AB164: 0 | AC164: 0 | AD164: 0 | AE164: 0 | AF164: 0 | AG164: 0 | AH164: 0 | AI164: 0 | AJ164: 0 | AK164: 0 | AL164: 0 | AM164: AmoDSCom | AN164: =PeriodExp*(J163-K163)
A165: =SUM(IntDSCom) -> 49449.52971 | C165: Interest | D165: 0 | E165: =D163*RateBqCom -> 403.158 | F165: 1007.895 | G165: 1814.211 | H165: 3104.3166 | I165: 3789.6852 | J165: =I163*RateBqCom -> 4031.58 | K165: 4031.58 | L165: 4031.58 | M165: 4031.58 | N165: 3795.839129 | O165: 3538.436721 | P165: 3257.805271 | Q165: 2952.267044 | R165: 2620.026354 | S165: 2259.161306 | T165: 1867.614949 | U165: 1443.185827 | V165: 983.5178486 | W165: 486.0894649 | X165: 0 | Y165: 0 | Z165: 0 | AA165: 0 | AB165: 0 | AC165: 0 | AD165: 0 | AE165: 0 | AF165: 0 | AG165: 0 | AH165: 0 | AI165: 0 | AJ165: 0 | AK165: 0 | AL165: 0 | AM165: IntDSCom | AN165: =J163*RateBqCom
A166: =SUM(EchDSCom) -> 107043.5297 | C166: Installment | D166: =D162+D165 -> 0 | E166: =(D163-E163)+E165+E147 -> 403.158 | F166: =(E163-F163)+F165+F147 -> 1007.895 | G166: =(F163-G163)+G165+G147 -> 1814.211 | H166: 3104.3166 | I166: 3789.6852 | J166: =(I163-J163)+J165+J147 -> 4031.58 | K166: =(J163-K163)+K165+K147 -> 4031.58 | L166: 4031.58 | M166: 7399.306733 | N166: 7473.016385 | O166: 7547.457436 | P166: 7622.637087 | Q166: 7698.562607 | R166: 7775.241334 | S166: 7852.68068 | T166: 7930.888127 | U166: 8009.87123 | V166: 8089.637615 | W166: 7430.224678 | X166: 0 | Y166: 0 | Z166: 0 | AA166: 0 | AB166: 0 | AC166: 0 | AD166: 0 | AE166: 0 | AF166: 0 | AG166: 0 | AH166: 0 | AI166: 0 | AJ166: 0 | AK166: 0 | AL166: 0 | AM166: EchDSCom | AN166: =(J163-K163)+K165+K147
A167: =SUM(FluxDSCom) -> -49449.52971 | C167: =IRR(FluxDSCom) -> 0.07 | D167: =D147-D166 -> 5759.4 | E167: =E147-E166 -> 8235.942 | F167: =F147-F166 -> 10510.905 | G167: =G147-G166 -> 16615.869 | H167: =H147-H166 -> 6686.6634 | I167: =I147-I166 -> -334.0452 | J167: =J147-J166 -> -4031.58 | K167: -4031.58 | L167: -4031.58 | M167: -7399.306733 | N167: -7473.016385 | O167: -7547.457436 | P167: -7622.637087 | Q167: -7698.562607 | R167: -7775.241334 | S167: -7852.68068 | T167: -7930.888127 | U167: -8009.87123 | V167: -8089.637615 | W167: -7430.224678 | X167: 0 | Y167: 0 | Z167: 0 | AA167: 0 | AB167: 0 | AC167: 0 | AD167: 0 | AE167: 0 | AF167: 0 | AG167: 0 | AH167: 0 | AI167: 0 | AJ167: 0 | AK167: 0 | AL167: 0 | AM167: FluxDSCom | AN167: =K147-K166
A168: Interest | D168: =-IF(AmoDev=1,IntLinDev,0)-IF(AmoDev=2,IntVarDev,0)-IF(AmoDev=3,IntDSDev,0)-IF(AmoExp=1,IntLinExp,0)-IF(AmoExp=2,IntVarExp,0)-IF(AmoExp=3,IntDSExp,0)-IF(AmoCom=1,IntLinCom,0)-IF(AmoCom=2,IntVarCom,0)-IF(AmoCom=3,IntDSCom,0) -> 0 | E168: -1324.662 | F168: =-IF(AmoDev=1,IntLinDev,0)-IF(AmoDev=2,IntVarDev,0)-IF(AmoDev=3,IntDSDev,0)-IF(AmoExp=1,IntLinExp,0)-IF(AmoExp=2,IntVarExp,0)-IF(AmoExp=3,IntDSExp,0)-IF(AmoCom=1,IntLinCom,0)-IF(AmoCom=2,IntVarCom,0)-IF(AmoCom=3,IntDSCom,0) -> -3311.655 | G168: -5960.979 | H168: -10199.8974 | I168: =-IF(AmoDev=1,IntLinDev,0)-IF(AmoDev=2,IntVarDev,0)-IF(AmoDev=3,IntDSDev,0)-IF(AmoExp=1,IntLinExp,0)-IF(AmoExp=2,IntVarExp,0)-IF(AmoExp=3,IntDSExp,0)-IF(AmoCom=1,IntLinCom,0)-IF(AmoCom=2,IntVarCom,0)-IF(AmoCom=3,IntDSCom,0) -> -12451.8228 | J168: -13246.62 | K168: -13246.62 | L168: -13246.62 | M168: -13246.62 | N168: -12404.42311 | O168: -11500.66081 | P168: -10531.39015 | Q168: -9492.416729 | R168: -8379.278465 | S168: -7187.228431 | T168: -5911.216519 | U168: -4545.869928 | V168: -3085.472394 | W168: -1523.942067 | X168: -682.6922856 | Y168: -517.0549213 | Z168: -348.1048098 | AA168: -175.775696 | AB168: 0 | AC168: 0 | AD168: 0 | AE168: 0 | AF168: 0 | AG168: 0 | AH168: 0 | AI168: 0 | AJ168: 0 | AK168: 0 | AL168: 0 | AM168: IntLT | AN168: =-SI(AmoDev=1;IntLinDev;0)-SI(AmoDev=2;IntVarDev;0)-SI(AmoDev=3;IntDSDev;0)-SI(AmoExp=1;IntLinExp;0)-SI(AmoExp=2;IntVarExp;0)-SI(AmoExp=3;IntDSExp;0)-SI(AmoCom=1;IntLinCom;0)-SI(AmoCom=2;IntVarCom;0)-SI(AmoCom=3;IntDSCom;0) | AO168: =SUM(IntLT) -> -162521.0225
A169: Amortization | D169: =-IF(AmoDev=1,AmoLinDev,0)-IF(AmoDev=2,AmoVarDev,0)-IF(AmoDev=3,AmoDSDev,0)-IF(AmoExp=1,AmoLinExp,0)-IF(AmoExp=2,AmoVarExp,0)-IF(AmoExp=3,AmoDSExp,0)-IF(AmoCom=1,AmoLinCom,0)-IF(AmoCom=2,AmoVarCom,0)-IF(AmoCom=3,AmoDSCom,0) -> 0 | E169: 0 | F169: 0 | G169: 0 | H169: 0 | I169: 0 | J169: 0 | K169: 0 | L169: 0 | M169: -17915.8607 | N169: -18979.18654 | O169: -20106.272 | P169: -21301.08161 | Q169: -22567.83159 | R169: -23911.00604 | S169: -25335.37411 | T169: =-IF(AmoDev=1,AmoLinDev,0)-IF(AmoDev=2,AmoVarDev,0)-IF(AmoDev=3,AmoDSDev,0)-IF(AmoExp=1,AmoLinExp,0)-IF(AmoExp=2,AmoVarExp,0)-IF(AmoExp=3,AmoDSExp,0)-IF(AmoCom=1,AmoLinCom,0)-IF(AmoCom=2,AmoVarCom,0)-IF(AmoCom=3,AmoDSCom,0) -> -26846.00836 | U169: -28448.30426 | V169: -30148.00095 | W169: -18276.45958 | X169: -8281.868212 | Y169: -8447.505576 | Z169: -8616.455688 | AA169: -8788.784802 | AB169: 0 | AC169: 0 | AD169: 0 | AE169: 0 | AF169: 0 | AG169: 0 | AH169: 0 | AI169: 0 | AJ169: 0 | AK169: 0 | AL169: 0 | AM169: AmoLT | AN169: =-SI(AmoDev=1;AmoLinDev;0)-SI(AmoDev=2;AmoVarDev;0)-SI(AmoDev=3;AmoDSDev;0)-SI(AmoExp=1;AmoLinExp;0)-SI(AmoExp=2;AmoVarExp;0)-SI(AmoExp=3;AmoDSExp;0)-SI(AmoCom=1;AmoLinCom;0)-SI(AmoCom=2;AmoVarCom;0)-SI(AmoCom=3;AmoDSCom;0) | AO169: =SUM(AmoLT) -> -287970
A170: Outstanding | D170: =IF(AmoDev=1,CrdLinDev)+IF(AmoDev=2,CrdVarDev,0)+IF(AmoDev=3,CrdDSDev,0)+IF(AmoExp=1,CrdLinExp,0)+IF(AmoExp=2,CrdVarExp,0)+IF(AmoExp=3,CrdDSExp,0)+IF(AmoCom=1,CrdLinCom,0)+IF(AmoCom=2,CrdVarCom,0)+IF(AmoCom=3,CrdDSCom,0) -> 28797 | E170: 71992.5 | F170: 129586.5 | G170: 221736.9 | H170: 270691.8 | I170: 287970 | J170: 287970 | K170: 287970 | L170: 287970 | M170: 270054.1393 | N170: 251074.9528 | O170: 230968.6808 | P170: 209667.5992 | Q170: 187099.7676 | R170: 163188.7615 | S170: 137853.3874 | T170: 111007.3791 | U170: 82559.07481 | V170: 52411.07386 | W170: 34134.61428 | X170: 25852.74607 | Y170: 17405.24049 | Z170: 8788.784802 | AA170: 0 | AB170: 0 | AC170: 0 | AD170: 0 | AE170: 0 | AF170: 0 | AG170: 0 | AH170: 0 | AI170: 0 | AJ170: 0 | AK170: 0 | AL170: 0 | AM170: OutLT | AN170: =SI(AmoDev=1;CrdLinDev)+SI(AmoDev=2;CrdVarDev;0)+SI(AmoDev=3;CrdDSDev;0)+SI(AmoExp=1;CrdLinExp;0)+SI(AmoExp=2;CrdVarExp;0)+SI(AmoExp=3;CrdDSExp;0)+SI(AmoCom=1;CrdLinCom;0)+SI(AmoCom=2;CrdVarCom;0)+SI(AmoCom=3;CrdDSCom;0) | AO170: =SUM(CrdLT) -> 1017406.052
D171: =D170 -> 28797 | E171: =E170-D170 -> 43195.5 | F171: =F170-E170 -> 57594 | G171: 92150.4 | H171: 48954.9 | I171: 17278.2 | J171: 0 | K171: =K170-J170 -> 0 | L171: 0 | M171: -17915.8607 | N171: -18979.18654 | O171: -20106.272 | P171: -21301.08161 | Q171: -22567.83159 | R171: -23911.00604 | S171: -25335.37411 | T171: -26846.00836 | U171: -28448.30426 | V171: -30148.00095 | W171: =W170-V170 -> -18276.45958 | X171: =X170-W170 -> -8281.868212 | Y171: -8447.505576 | Z171: -8616.455688 | AA171: -8788.784802 | AB171: 0 | AC171: 0 | AD171: 0 | AE171: 0 | AF171: 0 | AG171: 0 | AH171: 0 | AI171: 0 | AJ171: 0 | AK171: 0 | AL171: 0 | AM171: CFDT | AN171: =K170-J170
C172: =IRR(CFDBT) -> 0.04494919488 | D172: =D171+D168 -> 28797 | E172: =E171+E168 -> 41870.838 | F172: 54282.345 | G172: 86189.421 | H172: 38755.0026 | I172: 4826.3772 | J172: -13246.62 | K172: -13246.62 | L172: -13246.62 | M172: -31162.4807 | N172: -31383.60965 | O172: -31606.93281 | P172: -31832.47176 | Q172: -32060.24832 | R172: -32290.2845 | S172: -32522.60254 | T172: -32757.22488 | U172: -32994.17419 | V172: -33233.47334 | W172: -19800.40165 | X172: -8964.560498 | Y172: -8964.560498 | Z172: -8964.560498 | AA172: -8964.560498 | AB172: 0 | AC172: 0 | AD172: 0 | AE172: 0 | AF172: 0 | AG172: 0 | AH172: 0 | AI172: 0 | AJ172: 0 | AK172: 0 | AL172: 0 | AM172: CFDBT
A174: WORKING CAPITAL | C174: on CA | D174: =DelaysCashIn*Revenues/360 -> 0 | E174: 0 | F174: 0 | G174: 0 | H174: 0 | I174: 9634.258793 | J174: 9730.601381 | K174: 9827.907394 | L174: 9926.186468 | M174: 10025.44833 | N174: 10125.70282 | O174: 10226.95984 | P174: 10329.22944 | Q174: 10432.52174 | R174: 10536.84695 | S174: 10642.21542 | T174: 10748.63758 | U174: 10856.12395 | V174: 10964.68519 | W174: 11074.33205 | X174: 11185.07537 | Y174: 11296.92612 | Z174: 11409.89538 | AA174: 11523.99433 | AB174: 11639.23428 | AC174: 11755.62662 | AD174: 11873.18289 | AE174: 11991.91472 | AF174: 12111.83386 | AG174: 12232.9522 | AH174: 0 | AI174: 0 | AJ174: 0 | AK174: 0 | AL174: 0 | AM174: WcPay | AN174: =_xlfn.FORMULATEXT(K174) -> =DelaysCashIn*Revenues/360
C175: on CAPEX | D175: =-DelaysCashOut*Cost/360 -> 0 | E175: 0 | F175: 0 | G175: 0 | H175: 0 | I175: 352.761305 | J175: 356.3195989 | K175: 359.9140925 | L175: 363.5451601 | M175: 367.21318 | N175: 370.9185348 | O175: 374.661611 | P175: 378.4427991 | Q175: 382.2624939 | R175: 386.1210946 | S175: 390.0190044 | T175: 393.956631 | U175: 397.9343863 | V175: 401.9526867 | W175: 406.0119532 | X175: 410.1126111 | Y175: 414.2550904 | Z175: 418.4398257 | AA175: 422.6672562 | AB175: 426.937826 | AC175: 431.2519839 | AD175: 435.6101833 | AE175: 440.012883 | AF175: 444.4605462 | AG175: 448.9536416 | AH175: 0 | AI175: 0 | AJ175: 0 | AK175: 0 | AL175: 0 | AM175: WcRec | AN175: =-DelaysCashOut*Cost/360
D176: =WcPay-WcRec -> 0 | E176: 0 | F176: 0 | G176: 0 | H176: 0 | I176: 9281.497488 | J176: 9374.281782 | K176: 9467.993302 | L176: 9562.641308 | M176: 9658.235153 | N176: 9754.784281 | O176: 9852.298233 | P176: 9950.786644 | Q176: 10050.25924 | R176: 10150.72586 | S176: 10252.19642 | T176: 10354.68095 | U176: 10458.18957 | V176: 10562.73251 | W176: 10668.32009 | X176: 10774.96276 | Y176: 10882.67103 | Z176: 10991.45556 | AA176: 11101.32708 | AB176: 11212.29645 | AC176: 11324.37464 | AD176: 11437.5727 | AE176: 11551.90183 | AF176: 11667.37332 | AG176: 11783.99856 | AH176: 0 | AI176: 0 | AJ176: 0 | AK176: 0 | AL176: 0 | AM176: WcNeed | AN176: =WcPay-WcRec
D177: =-D176 -> 0 | E177: =-E176+D176 -> 0 | F177: =-F176+E176 -> 0 | G177: 0 | H177: 0 | I177: -9281.497488 | J177: -92.784294 | K177: -93.71152025 | L177: -94.64800637 | M177: -95.59384471 | N177: -96.54912853 | O177: -97.51395204 | P177: -98.48841035 | Q177: -99.47259956 | R177: -100.4666167 | S177: -101.4705597 | T177: -102.4845277 | U177: -103.5086205 | V177: -104.5429391 | W177: -105.5875855 | X177: -106.6426626 | Y177: -107.7082744 | Z177: -108.7845259 | AA177: -109.8715233 | AB177: -110.9693735 | AC177: -112.0781849 | AD177: -113.1980667 | AE177: -114.3291292 | AF177: -115.4714839 | AG177: -116.6252433 | AH177: 11783.99856 | AI177: 0 | AJ177: 0 | AK177: 0 | AL177: 0 | AM177: WcVar
A179: RESERVE DSRA | D179: =-IntLT-AmoLT -> 0 | E179: 1324.662 | F179: 3311.655 | G179: 5960.979 | H179: 10199.8974 | I179: 12451.8228 | J179: 13246.62 | K179: 13246.62 | L179: 13246.62 | M179: 31162.4807 | N179: 31383.60965 | O179: 31606.93281 | P179: 31832.47176 | Q179: 32060.24832 | R179: 32290.2845 | S179: 32522.60254 | T179: 32757.22488 | U179: 32994.17419 | V179: 33233.47334 | W179: 19800.40165 | X179: 8964.560498 | Y179: 8964.560498 | Z179: 8964.560498 | AA179: 8964.560498 | AB179: 0 | AC179: 0 | AD179: 0 | AE179: 0 | AF179: 0 | AG179: 0 | AH179: 0 | AI179: 0 | AJ179: 0 | AK179: 0 | AL179: 0 | AM179: CFLT | AN179: =_xlfn.FORMULATEXT(K179) -> =-IntLT-AmoLT
D180: =SUM(OFFSET(CFLT,0,D4,1,YearReserve)) -> 10597.296 | E180: =SUM(OFFSET(CFLT,0,E4,1,YearReserve)) -> 19472.5314 | F180: =SUM(OFFSET(CFLT,0,F4,1,YearReserve)) -> 28612.6992 | G180: =SUM(OFFSET(CFLT,0,G4,1,YearReserve)) -> 35898.3402 | H180: =SUM(OFFSET(CFLT,0,H4,1,YearReserve)) -> 38945.0628 | I180: =SUM(OFFSET(CFLT,0,I4,1,YearReserve)) -> 39739.86 | J180: =SUM(OFFSET(CFLT,0,J4,1,YearReserve)) -> 57655.7207 | K180: =SUM(OFFSET(CFLT,0,K4,1,YearReserve)) -> 75792.71035 | L180: =SUM(OFFSET(CFLT,0,L4,1,YearReserve)) -> 94153.02315 | M180: =SUM(OFFSET(CFLT,0,M4,1,YearReserve)) -> 94823.01422 | N180: =SUM(OFFSET(CFLT,0,N4,1,YearReserve)) -> 95499.65288 | O180: =SUM(OFFSET(CFLT,0,O4,1,YearReserve)) -> 96183.00458 | P180: =SUM(OFFSET(CFLT,0,P4,1,YearReserve)) -> 96873.13536 | Q180: =SUM(OFFSET(CFLT,0,Q4,1,YearReserve)) -> 97570.11192 | R180: =SUM(OFFSET(CFLT,0,R4,1,YearReserve)) -> 98274.00161 | S180: =SUM(OFFSET(CFLT,0,S4,1,YearReserve)) -> 98984.87241 | T180: =SUM(OFFSET(CFLT,0,T4,1,YearReserve)) -> 86028.04918 | U180: =SUM(OFFSET(CFLT,0,U4,1,YearReserve)) -> 61998.43549 | V180: =SUM(OFFSET(CFLT,0,V4,1,YearReserve)) -> 37729.52264 | W180: =SUM(OFFSET(CFLT,0,W4,1,YearReserve)) -> 26893.68149 | X180: =SUM(OFFSET(CFLT,0,X4,1,YearReserve)) -> 26893.68149 | Y180: =SUM(OFFSET(CFLT,0,Y4,1,YearReserve)) -> 17929.121 | Z180: =SUM(OFFSET(CFLT,0,Z4,1,YearReserve)) -> 8964.560498 | AA180: =SUM(OFFSET(CFLT,0,AA4,1,YearReserve)) -> 0 | AB180: =SUM(OFFSET(CFLT,0,AB4,1,YearReserve)) -> 0 | AC180: =SUM(OFFSET(CFLT,0,AC4,1,YearReserve)) -> 0 | AD180: =SUM(OFFSET(CFLT,0,AD4,1,YearReserve)) -> 0 | AE180: =SUM(OFFSET(CFLT,0,AE4,1,YearReserve)) -> 0 | AF180: =SUM(OFFSET(CFLT,0,AF4,1,YearReserve)) -> 0 | AG180: =SUM(OFFSET(CFLT,0,AG4,1,YearReserve)) -> 0 | AH180: =SUM(OFFSET(CFLT,0,AH4,1,YearReserve)) -> 0 | AI180: =SUM(OFFSET(CFLT,0,AI4,1,YearReserve)) -> 0 | AJ180: =SUM(OFFSET(CFLT,0,AJ4,1,YearReserve)) -> 0 | AK180: =SUM(OFFSET(CFLT,0,AK4,1,YearReserve)) -> 0 | AL180: =SUM(OFFSET(CFLT,0,AL4,1,YearReserve)) -> 0 | AM180: BKRes | AN180: {=SOMME(DECALER(CFLT;0;K4;1;YearReserve))}
A181: DSRA | D181: =YearProd*BKRes*RateReserve -> 0 | E181: 0 | F181: 0 | G181: 0 | H181: 0 | I181: 35765.874 | J181: 51890.14863 | K181: 68213.43931 | L181: 84737.72084 | M181: 85340.7128 | N181: 85949.68759 | O181: 86564.70412 | P181: 87185.82182 | Q181: 87813.10073 | R181: 88446.60144 | S181: 89086.38517 | T181: 77425.24426 | U181: 55798.59194 | V181: 33956.57038 | W181: 24204.31334 | X181: 24204.31334 | Y181: 16136.2089 | Z181: 8068.104448 | AA181: 0 | AB181: 0 | AC181: 0 | AD181: 0 | AE181: 0 | AF181: 0 | AG181: 0 | AH181: 0 | AI181: 0 | AJ181: 0 | AK181: 0 | AL181: 0 | AM181: BKRes2 | AN181: =YearProd*BKRes*RateReserve
D182: =MAX(MIN(D170,D181,C221),0) -> 0 | E182: 0 | F182: 0 | G182: 0 | H182: 0 | I182: 29441.50679 | J182: 33148.64383 | K182: 63432.75412 | L182: 67557.64122 | M182: 85340.7128 | N182: 85949.68759 | O182: 85750.16848 | P182: 78786.38253 | Q182: 70626.81251 | R182: 61199.50832 | S182: 50428.03567 | T182: 38231.191 | U182: 24522.69812 | V182: 9210.885237 | W182: 0 | X182: 0 | Y182: 0 | Z182: 0 | AA182: 0 | AB182: 0 | AC182: 0 | AD182: 0 | AE182: 0 | AF182: 0 | AG182: 0 | AH182: 0 | AI182: 0 | AJ182: 0 | AK182: 0 | AL182: 0 | AM182: DSRA | AN182: =MAX(MIN(K170;K181;J221);0)
D183: =-D182+C182 -> 0 | E183: 0 | F183: 0 | G183: 0 | H183: 0 | I183: =-I182+H182 -> -29441.50679 | J183: =-J182+I182 -> -3707.137042 | K183: -30284.11029 | L183: -4124.887097 | M183: -17783.07157 | N183: -608.9747994 | O183: 199.5191133 | P183: 6963.785952 | Q183: 8159.570017 | R183: 9427.304188 | S183: 10771.47265 | T183: 12196.84467 | U183: 13708.49289 | V183: 15311.81288 | W183: 9210.885237 | X183: 0 | Y183: 0 | Z183: 0 | AA183: 0 | AB183: 0 | AC183: 0 | AD183: 0 | AE183: 0 | AF183: 0 | AG183: 0 | AH183: 0 | AI183: 0 | AJ183: 0 | AK183: 0 | AL183: 0 | AM183: CFDSRA
A185: TAX CORP | C185: PLBEFTAX | D185: =INDIRECT($C185) -> 0 | E185: -1264.78593 | F185: -3214.893397 | G185: -5808.524017 | H185: -10052.68987 | I185: 27903.09069 | J185: 27792.04217 | K185: 28350.27854 | L185: 29037.22493 | M185: 29561.70386 | N185: 30928.49975 | O185: 32356.71583 | P185: 33850.01047 | Q185: 35412.27296 | R185: 37047.63834 | S185: 38760.50319 | T185: 40555.54245 | U185: 42437.72734 | V185: 43671.18679 | W185: 45323.73732 | X185: 47261.36206 | Y185: 48512.76419 | Z185: 49651.39982 | AA185: 50475.02127 | AB185: 51352.26823 | AC185: 52060.03574 | AD185: 52774.16133 | AE185: 53494.70742 | AF185: 54221.73703 | AG185: 54955.31379 | AH185: -9.022187442e-10 | AI185: -1.276374964e-09 | AJ185: -1.547051998e-09 | AK185: -1.703386234e-09 | AL185: -1.742393364e-09
D186: =C186+D185+C187/TaxCorp -> 0 | E186: -1264.78593 | F186: -4479.679326 | G186: =F186+G185+F187/TaxCorp -> -10288.20334 | H186: -20340.89321 | I186: =H186+I185+H187/TaxCorp -> 7562.197482 | J186: 27792.04217 | K186: 28350.27854 | L186: 29037.22493 | M186: 29561.70386 | N186: 30928.49975 | O186: 32356.71583 | P186: 33850.01047 | Q186: 35412.27296 | R186: 37047.63834 | S186: 38760.50319 | T186: 40555.54245 | U186: 42437.72734 | V186: 43671.18679 | W186: 45323.73732 | X186: 47261.36206 | Y186: 48512.76419 | Z186: 49651.39982 | AA186: 50475.02127 | AB186: 51352.26823 | AC186: 52060.03574 | AD186: 52774.16133 | AE186: 53494.70742 | AF186: 54221.73703 | AG186: 54955.31379 | AH186: -2.313754521e-09 | AI186: -4.048514815e-09 | AJ186: -5.963504912e-09 | AK186: -8.048321417e-09 | AL186: -1.017989136e-08 | AM186: PLBEFTAXCUM
D187: =-(PLBEFTAXCUM>0)*TaxCorp*PLBEFTAXCUM -> 0 | E187: 0 | F187: 0 | G187: 0 | H187: 0 | I187: -1890.549371 | J187: -6948.010542 | K187: -7087.569636 | L187: -7259.306232 | M187: -7390.425966 | N187: -7732.124936 | O187: -8089.178958 | P187: -8462.502619 | Q187: -8853.068241 | R187: -9261.909584 | S187: -9690.125797 | T187: -10138.88561 | U187: -10609.43184 | V187: -10917.7967 | W187: -11330.93433 | X187: -11815.34051 | Y187: -12128.19105 | Z187: -12412.84996 | AA187: -12618.75532 | AB187: -12838.06706 | AC187: -13015.00894 | AD187: -13193.54033 | AE187: -13373.67685 | AF187: -13555.43426 | AG187: -13738.82845 | AH187: 0 | AI187: 0 | AJ187: 0 | AK187: 0 | AL187: 0 | AM187: TAXCO
A189: DIVIDEND | C189: RATEDIVIDEND | D189: =INDIRECT($C189) -> 1 | E189: =INDIRECT($C189) -> 1 | F189: 1 | G189: 1 | H189: 1 | I189: 1 | J189: 1 | K189: 1 | L189: 1 | M189: 1 | N189: 1 | O189: 1 | P189: 1 | Q189: 1 | R189: 1 | S189: 1 | T189: 1 | U189: 1 | V189: 1 | W189: 1 | X189: 1 | Y189: 1 | Z189: 1 | AA189: 1 | AB189: 1 | AC189: 1 | AD189: 1 | AE189: 1 | AF189: 1 | AG189: 1 | AH189: 1 | AI189: 1 | AJ189: 1 | AK189: 1 | AL189: 1
C190: PLAFTERTAX | D190: =INDIRECT($C190) -> 0 | E190: -1264.78593 | F190: -3214.893397 | G190: -5808.524017 | H190: -10052.68987 | I190: 26012.54132 | J190: 20844.03163 | K190: 21262.70891 | L190: 21777.9187 | M190: 22171.2779 | N190: 23196.37481 | O190: 24267.53687 | P190: 25387.50786 | Q190: 26559.20472 | R190: 27785.72875 | S190: 29070.37739 | T190: 30416.65684 | U190: 31828.29551 | V190: 32753.39009 | W190: 33992.80299 | X190: 35446.02154 | Y190: 36384.57314 | Z190: 37238.54987 | AA190: 37856.26595 | AB190: 38514.20117 | AC190: 39045.02681 | AD190: 39580.621 | AE190: 40121.03056 | AF190: 40666.30277 | AG190: 41216.48534 | AH190: -1.016815077e-09 | AI190: -1.368359489e-09 | AJ190: -1.642409566e-09 | AK190: -1.800680378e-09 | AL190: -1.840150125e-09
D191: =C191+D190+C195 -> 0 | E191: -1264.78593 | F191: -4479.679326 | G191: -10288.20334 | H191: -20340.89321 | I191: 5671.648112 | J191: 26515.67974 | K191: 47778.38865 | L191: 69556.30734 | M191: 89728.91912 | N191: 108537.0876 | O191: 110217.2245 | P191: 111137.6763 | Q191: 105345.5873 | R191: 98412.54126 | S191: 90269.88571 | T191: 80844.69251 | U191: 70059.48651 | V191: 57276.08821 | W191: 43203.68823 | X191: 35446.02154 | Y191: 36384.57314 | Z191: 37238.54987 | AA191: 37856.26595 | AB191: 38514.20117 | AC191: 39045.02681 | AD191: 39580.621 | AE191: 40121.03056 | AF191: 40666.30277 | AG191: 41216.48534 | AH191: 3.055902198e-10 | AI191: -1.062769269e-09 | AJ191: -2.705178835e-09 | AK191: -4.505859213e-09 | AL191: -6.346009338e-09 | AM191: CUMPL
D192: =MAX(D191-D182,0) -> 0 | E192: =MAX(E191-E182,0) -> 0 | F192: 0 | G192: 0 | H192: 0 | I192: 0 | J192: 0 | K192: 0 | L192: 1998.666123 | M192: 4388.206323 | N192: 22587.40001 | O192: 24467.05599 | P192: 32351.29381 | Q192: 34718.77474 | R192: 37213.03294 | S192: 39841.85004 | T192: 42613.50151 | U192: 45536.78839 | V192: 48065.20297 | W192: 43203.68823 | X192: 35446.02154 | Y192: 36384.57314 | Z192: 37238.54987 | AA192: 37856.26595 | AB192: 38514.20117 | AC192: 39045.02681 | AD192: 39580.621 | AE192: 40121.03056 | AF192: 40666.30277 | AG192: 41216.48534 | AH192: 3.055902198e-10 | AI192: 0 | AJ192: 0 | AK192: 0 | AL192: 0
C193: CFBEFDIV | D193: =INDIRECT($C193) -> 5296 | E193: =INDIRECT($C193) -> 6679.21407 | F193: 7377.106603 | G193: 11138.67598 | H193: -1049.489866 | I193: 33148.64383 | J193: 33991.24733 | K193: 34408.99739 | L193: 34923.27069 | M193: 17399.82336 | N193: 17360.63914 | O193: 17303.75092 | P193: 17227.93784 | Q193: 17131.90053 | R193: 17014.2561 | S193: 16873.53272 | T193: 16708.16395 | U193: 16516.48263 | V193: 15740.84621 | W193: 28850.75582 | X193: 40297.51067 | Y193: 41069.35929 | Z193: 41753.30965 | AA193: 42197.60963 | AB193: 51643.2318 | AC193: 52172.94862 | AD193: 52707.42293 | AE193: 53246.70143 | AF193: 53790.83129 | AG193: 54339.8601 | AH193: -84206.00144 | AI193: -1.368359489e-09 | AJ193: -1.642409566e-09 | AK193: -1.800680378e-09 | AL193: -1.840150125e-09
D194: =D193 -> 5296 | E194: =D194+E193-D195 -> 11975.21407 | F194: =E194+F193-E195 -> 19352.32067 | G194: 30490.99666 | H194: 29441.50679 | I194: 62590.15062 | J194: =I194+J193-I195 -> 96581.39796 | K194: 130990.3953 | L194: 165913.666 | M194: 185312.1555 | N194: 207061.001 | O194: 246952.1519 | P194: 288647.1457 | Q194: 338130.3401 | R194: 389863.3709 | S194: 443949.9366 | T194: 500499.9506 | U194: 559629.9347 | V194: 620907.5693 | W194: 697823.5281 | X194: 781324.727 | Y194: 857840.1078 | Z194: 935977.9906 | AA194: 1015414.15 | AB194: 1104913.648 | AC194: 1195600.798 | AD194: 1287353.247 | AE194: 1380180.57 | AF194: 1474092.432 | AG194: 1569098.595 | AH194: 1526109.078 | AI194: 1526109.078 | AJ194: 1526109.078 | AK194: 1526109.078 | AL194: 1526109.078
D195: =-MAX(0,MIN(D192*D189,D194)) -> 0 | E195: 0 | F195: 0 | G195: 0 | H195: 0 | I195: 0 | J195: 0 | K195: 0 | L195: -1998.666123 | M195: -4388.206323 | N195: -22587.40001 | O195: -24467.05599 | P195: -32351.29381 | Q195: -34718.77474 | R195: -37213.03294 | S195: -39841.85004 | T195: -42613.50151 | U195: -45536.78839 | V195: -48065.20297 | W195: -43203.68823 | X195: -35446.02154 | Y195: -36384.57314 | Z195: -37238.54987 | AA195: -37856.26595 | AB195: -38514.20117 | AC195: -39045.02681 | AD195: -39580.621 | AE195: -40121.03056 | AF195: -40666.30277 | AG195: -41216.48534 | AH195: -3.055902198e-10 | AI195: 0 | AJ195: 0 | AK195: 0 | AL195: 0 | AM195: DIVIDEND
A197: CASH ACCOUNTS | D197: 0 | E197: =(POSBAL+DSRA)*RateDeposit -> 59.87607035 | F197: =POSBAL*RateDeposit -> 96.76160337 | G197: 152.4549833 | H197: 147.207534 | I197: 165.7432192 | J197: 317.1637706 | K197: 337.7882061 | L197: 481.7867935 | M197: 457.9295208 | N197: 428.7508424 | O197: 393.9319126 | P197: 353.1340626 | Q197: 305.9975416 | R197: 252.1401784 | S197: 191.155955 | T197: 122.6134906 | U197: 46.05442619 | V197: 0 | W197: 0 | X197: 0 | Y197: 0 | Z197: 5.536646231 | AA197: 27.24336461 | AB197: 92.88851774 | AC197: 158.5281268 | AD197: 224.1621365 | AE197: 289.7904908 | AF197: 355.4131334 | AG197: 421.0300072 | AH197: 1.455191523e-12 | AI197: 0 | AJ197: 0 | AK197: 0 | AL197: 0 | AM197: POSINT
D198: 0 | E198: =NEGBAL*RateFunding -> 0 | F198: 0 | G198: 0 | H198: 0 | I198: 0 | J198: 0 | K198: 0 | L198: 0 | M198: 0 | N198: 0 | O198: 0 | P198: 0 | Q198: 0 | R198: 0 | S198: 0 | T198: 0 | U198: 0 | V198: 780.165865 | W198: 1294.370582 | X198: 809.221669 | Y198: 340.743054 | Z198: 0 | AA198: 0 | AB198: 0 | AC198: 0 | AD198: 0 | AE198: 0 | AF198: 0 | AG198: 0 | AH198: 0 | AI198: 1.077321184e-10 | AJ198: 2.71973075e-10 | AK198: 4.520411128e-10 | AL198: 6.360561253e-10 | AM198: NEGINT
D199: =POSINT-NEGINT -> 0 | E199: 59.87607035 | F199: 96.76160337 | G199: 152.4549833 | H199: 147.207534 | I199: 165.7432192 | J199: 317.1637706 | K199: 337.7882061 | L199: 481.7867935 | M199: 457.9295208 | N199: 428.7508424 | O199: 393.9319126 | P199: 353.1340626 | Q199: 305.9975416 | R199: 252.1401784 | S199: 191.155955 | T199: 122.6134906 | U199: 46.05442619 | V199: -780.165865 | W199: -1294.370582 | X199: -809.221669 | Y199: -340.743054 | Z199: 5.536646231 | AA199: 27.24336461 | AB199: 92.88851774 | AC199: 158.5281268 | AD199: 224.1621365 | AE199: 289.7904908 | AF199: 355.4131334 | AG199: 421.0300072 | AH199: 1.455191523e-12 | AI199: -1.077321184e-10 | AJ199: -2.71973075e-10 | AK199: -4.520411128e-10 | AL199: -6.360561253e-10 | AM199: INTST
A201: CASH FLOW STATEMENT
B203: REVENUES | D203: =INDIRECT($B203) -> 0 | E203: =INDIRECT($B203) -> 0 | F203: =INDIRECT($B203) -> 0 | G203: 0 | H203: 0 | I203: 57805.55276 | J203: 58383.60828 | K203: 58967.44437 | L203: 59557.11881 | M203: 60152.69 | N203: 60754.2169 | O203: 61361.75907 | P203: 61975.37666 | Q203: 62595.13042 | R203: 63221.08173 | S203: 63853.29255 | T203: 64491.82547 | U203: 65136.74373 | V203: 65788.11116 | W203: 66445.99227 | X203: 67110.4522 | Y203: 67781.55672 | Z203: 68459.37229 | AA203: 69143.96601 | AB203: 69835.40567 | AC203: 70533.75973 | AD203: 71239.09732 | AE203: 71951.4883 | AF203: 72671.00318 | AG203: 73397.71321 | AH203: 0 | AI203: 0 | AJ203: 0 | AK203: 0 | AL203: 0
B204: COST | D204: =INDIRECT($B204) -> 0 | E204: 0 | F204: =INDIRECT($B204) -> 0 | G204: 0 | H204: 0 | I204: -1411.04522 | J204: -1425.278396 | K204: -1439.65637 | L204: -1454.18064 | M204: -1468.85272 | N204: -1483.674139 | O204: -1498.646444 | P204: -1513.771196 | Q204: -1529.049976 | R204: -1544.484378 | S204: -1560.076018 | T204: -1575.826524 | U204: -1591.737545 | V204: -1607.810747 | W204: -1624.047813 | X204: -1640.450444 | Y204: -1657.020361 | Z204: -1673.759303 | AA204: -1690.669025 | AB204: -1707.751304 | AC204: -1725.007935 | AD204: -1742.440733 | AE204: -1760.051532 | AF204: -1777.842185 | AG204: -1795.814566 | AH204: 0 | AI204: 0 | AJ204: 0 | AK204: 0 | AL204: 0
B205: TAX | D205: =INDIRECT($B205) -> 0 | E205: 0 | F205: =INDIRECT($B205) -> 0 | G205: 0 | H205: 0 | I205: -2965.337263 | J205: -2996.831489 | K205: -3028.677658 | L205: -3060.880033 | M205: -3093.442936 | N205: -3126.370745 | O205: -3159.667899 | P205: -3193.338897 | Q205: -3227.388299 | R205: -3261.820726 | S205: -3296.640865 | T205: -3331.853464 | U205: -3367.463337 | V205: -3403.475365 | W205: -3439.894495 | X205: -3476.725742 | Y205: -3513.974191 | Z205: -3551.644996 | AA205: -3589.743384 | AB205: -3628.274652 | AC205: -3667.244173 | AD205: -3706.657394 | AE205: -3746.519837 | AF205: -3786.837101 | AG205: -3827.614864 | AH205: 0 | AI205: 0 | AJ205: 0 | AK205: 0 | AL205: 0
B206: WCVAR | D206: =INDIRECT($B206) -> 0 | E206: 0 | F206: =INDIRECT($B206) -> 0 | G206: 0 | H206: 0 | I206: -9281.497488 | J206: -92.784294 | K206: -93.71152025 | L206: -94.64800637 | M206: -95.59384471 | N206: -96.54912853 | O206: -97.51395204 | P206: -98.48841035 | Q206: -99.47259956 | R206: -100.4666167 | S206: -101.4705597 | T206: -102.4845277 | U206: -103.5086205 | V206: -104.5429391 | W206: -105.5875855 | X206: -106.6426626 | Y206: -107.7082744 | Z206: -108.7845259 | AA206: -109.8715233 | AB206: -110.9693735 | AC206: -112.0781849 | AD206: -113.1980667 | AE206: -114.3291292 | AF206: -115.4714839 | AG206: -116.6252433 | AH206: 11783.99856 | AI206: 0 | AJ206: 0 | AK206: 0 | AL206: 0
B207: CAPEX | D207: =INDIRECT($B207) -> -33100 | E207: =INDIRECT($B207) -> -49650 | F207: =INDIRECT($B207) -> -66200 | G207: -105920 | H207: -56270 | I207: -19860 | J207: 0 | K207: 0 | L207: 0 | M207: 0 | N207: 0 | O207: 0 | P207: 0 | Q207: 0 | R207: 0 | S207: 0 | T207: 0 | U207: 0 | V207: 0 | W207: 0 | X207: 0 | Y207: 0 | Z207: 0 | AA207: 0 | AB207: 0 | AC207: 0 | AD207: 0 | AE207: 0 | AF207: 0 | AG207: 0 | AH207: 0 | AI207: 0 | AJ207: 0 | AK207: 0 | AL207: 0
D208: =SUM(D203:D207) -> -33100 | E208: -49650 | F208: -66200 | G208: -105920 | H208: -56270 | I208: 24287.67278 | J208: 53868.7141 | K208: 54405.39882 | L208: 54947.41013 | M208: 55494.8005 | N208: 56047.62289 | O208: 56605.93077 | P208: 57169.77815 | Q208: 57739.21955 | R208: 58314.31001 | S208: 58895.1051 | T208: 59481.66096 | U208: 60074.03422 | V208: 60672.28211 | W208: 61276.46238 | X208: 61886.63335 | Y208: 62502.85389 | Z208: 63125.18346 | AA208: 63753.68208 | AB208: 64388.41034 | AC208: 65029.42943 | AD208: 65676.80113 | AE208: 66330.5878 | AF208: 66990.85241 | AG208: 67657.65854 | AH208: 11783.99856 | AI208: 0 | AJ208: 0 | AK208: 0 | AL208: 0 | AM208: CFOP
B209: EQ | D209: =INDIRECT($B209) -> 9599 | E209: =INDIRECT($B209) -> 14398.5 | F209: =INDIRECT($B209) -> 19198 | G209: 30716.8 | H209: 16318.3 | I209: 5759.4 | J209: 0 | K209: 0 | L209: 0 | M209: 0 | N209: 0 | O209: 0 | P209: 0 | Q209: 0 | R209: 0 | S209: 0 | T209: 0 | U209: 0 | V209: 0 | W209: 0 | X209: 0 | Y209: 0 | Z209: 0 | AA209: 0 | AB209: 0 | AC209: 0 | AD209: 0 | AE209: 0 | AF209: 0 | AG209: 0 | AH209: -95990 | AI209: 0 | AJ209: 0 | AK209: 0 | AL209: 0
B210: DT | D210: =INDIRECT($B210) -> 28797 | E210: 43195.5 | F210: =INDIRECT($B210) -> 57594 | G210: 92150.4 | H210: 48954.9 | I210: 17278.2 | J210: 0 | K210: 0 | L210: 0 | M210: 0 | N210: 0 | O210: 0 | P210: 0 | Q210: 0 | R210: 0 | S210: 0 | T210: 0 | U210: 0 | V210: 0 | W210: 0 | X210: 0 | Y210: 0 | Z210: 0 | AA210: 0 | AB210: 0 | AC210: 0 | AD210: 0 | AE210: 0 | AF210: 0 | AG210: 0 | AH210: 0 | AI210: 0 | AJ210: 0 | AK210: 0 | AL210: 0
B211: AMOLT | D211: =INDIRECT($B211) -> 0 | E211: 0 | F211: =INDIRECT($B211) -> 0 | G211: 0 | H211: 0 | I211: 0 | J211: 0 | K211: 0 | L211: 0 | M211: -17915.8607 | N211: -18979.18654 | O211: -20106.272 | P211: -21301.08161 | Q211: -22567.83159 | R211: -23911.00604 | S211: -25335.37411 | T211: -26846.00836 | U211: -28448.30426 | V211: -30148.00095 | W211: -18276.45958 | X211: -8281.868212 | Y211: -8447.505576 | Z211: -8616.455688 | AA211: -8788.784802 | AB211: 0 | AC211: 0 | AD211: 0 | AE211: 0 | AF211: 0 | AG211: 0 | AH211: 0 | AI211: 0 | AJ211: 0 | AK211: 0 | AL211: 0
B212: INTST | D212: =INDIRECT($B212) -> 0 | E212: 59.87607035 | F212: =INDIRECT($B212) -> 96.76160337 | G212: 152.4549833 | H212: 147.207534 | I212: 165.7432192 | J212: 317.1637706 | K212: 337.7882061 | L212: 481.7867935 | M212: 457.9295208 | N212: 428.7508424 | O212: 393.9319126 | P212: 353.1340626 | Q212: 305.9975416 | R212: 252.1401784 | S212: 191.155955 | T212: 122.6134906 | U212: 46.05442619 | V212: -780.165865 | W212: -1294.370582 | X212: -809.221669 | Y212: -340.743054 | Z212: 5.536646231 | AA212: 27.24336461 | AB212: 92.88851774 | AC212: 158.5281268 | AD212: 224.1621365 | AE212: 289.7904908 | AF212: 355.4131334 | AG212: 421.0300072 | AH212: 1.455191523e-12 | AI212: -1.077321184e-10 | AJ212: -2.71973075e-10 | AK212: -4.520411128e-10 | AL212: -6.360561253e-10
B213: INTLT | D213: =INDIRECT($B213) -> 0 | E213: -1324.662 | F213: =INDIRECT($B213) -> -3311.655 | G213: -5960.979 | H213: -10199.8974 | I213: -12451.8228 | J213: -13246.62 | K213: -13246.62 | L213: -13246.62 | M213: -13246.62 | N213: -12404.42311 | O213: -11500.66081 | P213: -10531.39015 | Q213: -9492.416729 | R213: -8379.278465 | S213: -7187.228431 | T213: -5911.216519 | U213: -4545.869928 | V213: -3085.472394 | W213: -1523.942067 | X213: -682.6922856 | Y213: -517.0549213 | Z213: -348.1048098 | AA213: -175.775696 | AB213: 0 | AC213: 0 | AD213: 0 | AE213: 0 | AF213: 0 | AG213: 0 | AH213: 0 | AI213: 0 | AJ213: 0 | AK213: 0 | AL213: 0
D214: =SUM(D208:D213) -> 5296 | E214: 6679.21407 | F214: 7377.106603 | G214: 11138.67598 | H214: -1049.489866 | I214: 35039.1932 | J214: 40939.25788 | K214: 41496.56702 | L214: 42182.57692 | M214: 24790.24932 | N214: 25092.76408 | O214: 25392.92988 | P214: 25690.44046 | Q214: 25984.96877 | R214: 26276.16568 | S214: 26563.65852 | T214: 26847.04957 | U214: 27125.91446 | V214: 26658.6429 | W214: 40181.69015 | X214: 52112.85118 | Y214: 53197.55034 | Z214: 54166.15961 | AA214: 54816.36494 | AB214: 64481.29886 | AC214: 65187.95756 | AD214: 65900.96327 | AE214: 66620.37829 | AF214: 67346.26554 | AG214: 68078.68855 | AH214: -84206.00144 | AI214: -1.077321184e-10 | AJ214: -2.71973075e-10 | AK214: -4.520411128e-10 | AL214: -6.360561253e-10 | AM214: CFBEFTAX
B215: TAXCO | D215: =INDIRECT($B215) -> 0 | E215: =INDIRECT($B215) -> 0 | F215: =INDIRECT($B215) -> 0 | G215: 0 | H215: 0 | I215: -1890.549371 | J215: -6948.010542 | K215: -7087.569636 | L215: -7259.306232 | M215: -7390.425966 | N215: -7732.124936 | O215: -8089.178958 | P215: -8462.502619 | Q215: -8853.068241 | R215: -9261.909584 | S215: -9690.125797 | T215: -10138.88561 | U215: -10609.43184 | V215: -10917.7967 | W215: -11330.93433 | X215: -11815.34051 | Y215: -12128.19105 | Z215: -12412.84996 | AA215: -12618.75532 | AB215: -12838.06706 | AC215: -13015.00894 | AD215: -13193.54033 | AE215: -13373.67685 | AF215: -13555.43426 | AG215: -13738.82845 | AH215: 0 | AI215: 0 | AJ215: 0 | AK215: 0 | AL215: 0
... 62 more rows

Sheet RETURN
A1: RETURN ANALYSIS
AF2: c
A3: WACC | B3: =+D6 -> 0.1
C4: year | D4: =INDIRECT($C4) -> 2020 | E4: 2021 | F4: 2022 | G4: 2023 | H4: 2024 | I4: 2025 | J4: 2026 | K4: 2027 | L4: 2028 | M4: 2029 | N4: 2030 | O4: 2031 | P4: 2032 | Q4: 2033 | R4: 2034 | S4: 2035 | T4: =INDIRECT($C4) -> 2036 | U4: 2037 | V4: 2038 | W4: 2039 | X4: 2040 | Y4: 2041 | Z4: 2042 | AA4: 2043 | AB4: 2044 | AC4: 2045 | AD4: 2046 | AE4: 2047 | AF4: 2048 | AG4: 2049 | AH4: 2050 | AI4: 2051 | AJ4: =INDIRECT($C4) -> 2052 | AK4: 2053 | AL4: =INDIRECT($C4) -> 2054
C5: duration | D5: 1 | E5: 2 | F5: 3 | G5: 4 | H5: 5 | I5: 6 | J5: 7 | K5: 8 | L5: 9 | M5: 10 | N5: 11 | O5: 12 | P5: 13 | Q5: 14 | R5: 15 | S5: 16 | T5: 17 | U5: 18 | V5: 19 | W5: 20 | X5: 21 | Y5: 22 | Z5: 23 | AA5: 24 | AB5: 25 | AC5: 26 | AD5: 27 | AE5: 28 | AF5: 29 | AG5: 30 | AH5: 31 | AI5: 32 | AJ5: 33 | AK5: 34 | AL5: =INDIRECT($C5) -> 35
C6: DF | D6: 0.1 | E6: 0.1 | F6: 0.1 | G6: 0.1 | H6: 0.1 | I6: 0.1 | J6: 0.1 | K6: 0.1 | L6: 0.1 | M6: 0.1 | N6: 0.1 | O6: 0.1 | P6: 0.1 | Q6: 0.1 | R6: 0.1 | S6: 0.1 | T6: 0.1 | U6: 0.1 | V6: 0.1 | W6: 0.1 | X6: 0.1 | Y6: 0.1 | Z6: 0.1 | AA6: 0.1 | AB6: 0.1 | AC6: 0.1 | AD6: 0.1 | AE6: 0.1 | AF6: 0.1 | AG6: 0.1 | AH6: 0.1 | AI6: 0.1 | AJ6: 0.1 | AK6: 0.1 | AL6: =INDIRECT($C6) -> 0.1
A8: OPERATIONS CASH FLOW | AN8: SOMME
A9: NPV | B9: IRR | C9: SUM
A10: =NPV(wacc,D10:AL10) -> 80397.53042 | B10: =IRR(D10:AL10) -> 0.1317824317 | C10: CFOP | D10: =INDIRECT($C10) -> -33100 | E10: -49650 | F10: -66200 | G10: -105920 | H10: -56270 | I10: 24287.67278 | J10: 53868.7141 | K10: 54405.39882 | L10: 54947.41013 | M10: 55494.8005 | N10: 56047.62289 | O10: 56605.93077 | P10: 57169.77815 | Q10: 57739.21955 | R10: 58314.31001 | S10: 58895.1051 | T10: 59481.66096 | U10: 60074.03422 | V10: 60672.28211 | W10: 61276.46238 | X10: 61886.63335 | Y10: 62502.85389 | Z10: 63125.18346 | AA10: 63753.68208 | AB10: 64388.41034 | AC10: 65029.42943 | AD10: 65676.80113 | AE10: 66330.5878 | AF10: 66990.85241 | AG10: 67657.65854 | AH10: 11783.99856 | AI10: 0 | AJ10: 0 | AK10: 0 | AL10: 0
A11: =NPV(wacc,D11:AL11) -> -100762.69 | C11: TaxCorp | I11: =-PLPROD*TaxCorp -> -10047.29257 | J11: -10180.3746 | K11: -10314.77758 | L11: -10450.51453 | M11: -10587.59859 | N11: -10726.043 | O11: -10865.86118 | P11: -11007.06664 | Q11: -11149.67304 | R11: -11293.69416 | S11: -11439.14392 | T11: -11586.03637 | U11: -11734.38571 | V11: -11884.20626 | W11: -12035.51249 | X11: -12188.319 | Y11: -12342.64054 | Z11: -12498.492 | AA11: -12655.8884 | AB11: -12814.84493 | AC11: -12975.3769 | AD11: -13137.4998 | AE11: -13301.22923 | AF11: -13466.58097 | AG11: -13633.57095 | AH11: 0 | AI11: 0 | AJ11: 0 | AK11: 0 | AL11: 0
A12: =NPV(wacc,D12:AL12) -> 17831.82763 | B12: =IRR(D12:AL12) -> 0.1074906479 | D12: =D10+D11 -> -33100 | E12: =E10+E11 -> -49650 | F12: -66200 | G12: -105920 | H12: -56270 | I12: 14240.38022 | J12: 43688.3395 | K12: 44090.62123 | L12: 44496.8956 | M12: 44907.20191 | N12: 45321.57988 | O12: 45740.06959 | P12: 46162.71151 | Q12: 46589.54651 | R12: 47020.61585 | S12: 47455.96119 | T12: 47895.62458 | U12: 48339.64851 | V12: 48788.07585 | W12: 49240.94989 | X12: 49698.31435 | Y12: 50160.21335 | Z12: 50626.69146 | AA12: 51097.79368 | AB12: 51573.56541 | AC12: 52054.05253 | AD12: 52539.30133 | AE12: 53029.35857 | AF12: 53524.27144 | AG12: 54024.08759 | AH12: 11783.99856 | AI12: 0 | AJ12: 0 | AK12: 0 | AL12: 0
A14: OPERATIONS ACCOUNTING | AN14: SOMME
A15: NPV | B15: IRR | C15: SUM
A16: =NPV(wacc,D16:AL16) -> 403050.76 | C16: PLPROD | I16: =INDIRECT($C16) -> 40189.17027 | J16: 40721.4984 | K16: 41259.11034 | L16: 41802.05814 | M16: 42350.39434 | N16: 42904.17201 | O16: 43463.44472 | P16: 44028.26656 | Q16: 44598.69215 | R16: 45174.77662 | S16: 45756.57566 | T16: 46344.14548 | U16: 46937.54284 | V16: 47536.82505 | W16: 48142.04997 | X16: 48753.27601 | Y16: 49370.56217 | Z16: 49993.96799 | AA16: 50623.5536 | AB16: 51259.37971 | AC16: 51901.50762 | AD16: 52549.9992 | AE16: 53204.91693 | AF16: 53866.32389 | AG16: 54534.28378 | AH16: 0 | AI16: 0 | AJ16: 0 | AK16: 0 | AL16: 0
A17: =NPV(wacc,D17:AL17) -> -239355.4871 | C17: CAPEX | D17: =INDIRECT($C17) -> -33100 | E17: -49650 | F17: -66200 | G17: -105920 | H17: -56270 | I17: -19860 | J17: 0 | K17: 0 | L17: 0 | M17: 0 | N17: 0 | O17: 0 | P17: 0 | Q17: 0 | R17: 0 | S17: 0 | T17: 0 | U17: 0 | V17: 0 | W17: 0 | X17: 0 | Y17: 0 | Z17: 0 | AA17: 0 | AB17: 0 | AC17: 0 | AD17: 0 | AE17: 0 | AF17: 0 | AG17: 0 | AH17: 0 | AI17: 0 | AJ17: 0 | AK17: 0 | AL17: 0
A18: =NPV(wacc,D18:AL18) -> 10907.3241 | B18: =IRR(D18:AL18) -> 0.104639084 | D18: =D16+D17 -> -33100 | E18: =E16+E17 -> -49650 | F18: -66200 | G18: -105920 | H18: -56270 | I18: 20329.17027 | J18: 40721.4984 | K18: 41259.11034 | L18: 41802.05814 | M18: 42350.39434 | N18: 42904.17201 | O18: 43463.44472 | P18: 44028.26656 | Q18: 44598.69215 | R18: 45174.77662 | S18: 45756.57566 | T18: 46344.14548 | U18: 46937.54284 | V18: 47536.82505 | W18: 48142.04997 | X18: 48753.27601 | Y18: 49370.56217 | Z18: 49993.96799 | AA18: 50623.5536 | AB18: 51259.37971 | AC18: 51901.50762 | AD18: 52549.9992 | AE18: 53204.91693 | AF18: 53866.32389 | AG18: 54534.28378 | AH18: 0 | AI18: 0 | AJ18: 0 | AK18: 0 | AL18: 0
A19: =NPV(wacc,D19:AL19) -> -96249.05363 | C19: TaxCorp | I19: =-I18*TaxCorp -> -5082.292568 | J19: -10180.3746 | K19: -10314.77758 | L19: -10450.51453 | M19: -10587.59859 | N19: -10726.043 | O19: -10865.86118 | P19: -11007.06664 | Q19: -11149.67304 | R19: -11293.69416 | S19: -11439.14392 | T19: -11586.03637 | U19: -11734.38571 | V19: -11884.20626 | W19: -12035.51249 | X19: -12188.319 | Y19: -12342.64054 | Z19: -12498.492 | AA19: -12655.8884 | AB19: -12814.84493 | AC19: -12975.3769 | AD19: -13137.4998 | AE19: -13301.22923 | AF19: -13466.58097 | AG19: -13633.57095 | AH19: 0 | AI19: 0 | AJ19: 0 | AK19: 0 | AL19: 0
A20: =NPV(wacc,D20:AL20) -> -48855.76563 | B20: =IRR(D20:AL20) -> 0.07739478079 | D20: =D18+D19 -> -33100 | E20: =E18+E19 -> -49650 | F20: -66200 | G20: -105920 | H20: -56270 | I20: 15246.8777 | J20: 30541.1238 | K20: 30944.33275 | L20: 31351.5436 | M20: 31762.79576 | N20: 32178.12901 | O20: 32597.58354 | P20: 33021.19992 | Q20: 33449.01911 | R20: 33881.08247 | S20: 34317.43175 | T20: 34758.10911 | U20: 35203.15713 | V20: 35652.61879 | W20: 36106.53748 | X20: 36564.95701 | Y20: 37027.92163 | Z20: 37495.47599 | AA20: 37967.6652 | AB20: 38444.53478 | AC20: 38926.13071 | AD20: 39412.4994 | AE20: 39903.6877 | AF20: 40399.74292 | AG20: 40900.71284 | AH20: 0 | AI20: 0 | AJ20: 0 | AK20: 0 | AL20: 0
A22: PROJECT CASH FLOW (EQUITY POINT OF VIEW) | AN22: SOMME
A23: NPV | B23: IRR | C23: SUM
A24: =NPV(wacc,D24:AL24) -> 224208.4468 | C24: CFBEFTAX | D24: =INDIRECT($C24) -> 5296 | E24: 6679.21407 | F24: 7377.106603 | G24: 11138.67598 | H24: -1049.489866 | I24: 35039.1932 | J24: 40939.25788 | K24: 41496.56702 | L24: 42182.57692 | M24: 24790.24932 | N24: 25092.76408 | O24: 25392.92988 | P24: 25690.44046 | Q24: 25984.96877 | R24: 26276.16568 | S24: 26563.65852 | T24: =INDIRECT($C24) -> 26847.04957 | U24: 27125.91446 | V24: 26658.6429 | W24: 40181.69015 | X24: 52112.85118 | Y24: 53197.55034 | Z24: 54166.15961 | AA24: 54816.36494 | AB24: 64481.29886 | AC24: 65187.95756 | AD24: 65900.96327 | AE24: 66620.37829 | AF24: 67346.26554 | AG24: 68078.68855 | AH24: -84206.00144 | AI24: -1.077321184e-10 | AJ24: =INDIRECT($C24) -> -2.71973075e-10 | AK24: -4.520411128e-10 | AL24: 0
A25: =NPV(wacc,D25:AL25) -> 64412.13849 | C25: EQ | D25: 9599 | E25: 14398.5 | F25: 19198 | G25: 30716.8 | H25: 16318.3 | I25: 5759.4 | J25: 0 | K25: 0 | L25: 0 | M25: 0 | N25: 0 | O25: 0 | P25: 0 | Q25: 0 | R25: 0 | S25: 0 | T25: 0 | U25: 0 | V25: 0 | W25: 0 | X25: 0 | Y25: 0 | Z25: 0 | AA25: 0 | AB25: 0 | AC25: 0 | AD25: 0 | AE25: 0 | AF25: 0 | AG25: 0 | AH25: -95990 | AI25: 0 | AJ25: 0 | AK25: 0 | AL25: =INDIRECT($C25) -> 0
A26: =NPV(wacc,D26:AL26) -> 159796.3083 | B26: =IRR(D26:AL26) -> 0.3452337513 | D26: =D24-D25 -> -4303 | E26: =E24-E25 -> -7719.28593 | F26: -11820.8934 | G26: -19578.12402 | H26: -17367.78987 | I26: 29279.7932 | J26: 40939.25788 | K26: 41496.56702 | L26: 42182.57692 | M26: 24790.24932 | N26: 25092.76408 | O26: 25392.92988 | P26: 25690.44046 | Q26: 25984.96877 | R26: 26276.16568 | S26: 26563.65852 | T26: 26847.04957 | U26: 27125.91446 | V26: 26658.6429 | W26: 40181.69015 | X26: 52112.85118 | Y26: 53197.55034 | Z26: 54166.15961 | AA26: 54816.36494 | AB26: 64481.29886 | AC26: 65187.95756 | AD26: 65900.96327 | AE26: 66620.37829 | AF26: 67346.26554 | AG26: 68078.68855 | AH26: 11783.99856 | AI26: -1.077321184e-10 | AJ26: -2.71973075e-10 | AK26: -4.520411128e-10 | AL26: 0
A27: =NPV(wacc,D27:AL27) -> -81783.73791 | C27: TaxCorp | I27: =-I26*TaxCorp -> -7319.948301 | J27: -10234.81447 | K27: -10374.14176 | L27: -10545.64423 | M27: -6197.56233 | N27: -6273.191019 | O27: -6348.23247 | P27: -6422.610114 | Q27: -6496.242194 | R27: -6569.041421 | S27: -6640.91463 | T27: -6711.762392 | U27: -6781.478616 | V27: -6664.660726 | W27: -10045.42254 | X27: -13028.2128 | Y27: -13299.38759 | Z27: -13541.5399 | AA27: -13704.09124 | AB27: -16120.32471 | AC27: -16296.98939 | AD27: -16475.24082 | AE27: -16655.09457 | AF27: -16836.56639 | AG27: -17019.67214 | AH27: -2945.99964 | AI27: 2.69330296e-11 | AJ27: 6.799326876e-11 | AK27: 1.130102782e-10 | AL27: 0
A28: =NPV(wacc,D28:AL28) -> 109015.0415 | B28: =IRR(D28:AL28) -> 0.2812459455 | D28: =D26+D27 -> -4303 | E28: =E26+E27 -> -7719.28593 | F28: -11820.8934 | G28: -19578.12402 | H28: -17367.78987 | I28: 21959.8449 | J28: 30704.44341 | K28: 31122.42527 | L28: 31636.93269 | M28: 18592.68699 | N28: 18819.57306 | O28: 19044.69741 | P28: 19267.83034 | Q28: 19488.72658 | R28: 19707.12426 | S28: 19922.74389 | T28: 20135.28717 | U28: 20344.43585 | V28: 19993.98218 | W28: 30136.26762 | X28: 39084.63839 | Y28: 39898.16276 | Z28: 40624.61971 | AA28: 41112.27371 | AB28: 48360.97414 | AC28: 48890.96817 | AD28: 49425.72245 | AE28: 49965.28372 | AF28: 50509.69916 | AG28: 51059.01641 | AH28: 8837.99892 | AI28: -8.079908881e-11 | AJ28: -2.039798063e-10 | AK28: -3.390308346e-10 | AL28: 0
A30: PROJECT ACCOUNTING | AN30: SOMME
A31: NPV | B31: IRR | C31: SUM
A32: =NPV(wacc,D32:AL32) -> 186824.5901 | B32: =IRR(D32:AL32) -> 0.7629934553 | C32: PLBEFTAX | D32: =INDIRECT($C32) -> 0 | E32: -1264.78593 | F32: -3214.893397 | G32: -5808.524017 | H32: -10052.68987 | I32: 27903.09069 | J32: 27792.04217 | K32: 28350.27854 | L32: 29037.22493 | M32: 29561.70386 | N32: =INDIRECT($C32) -> 30928.49975 | O32: 32356.71583 | P32: 33850.01047 | Q32: 35412.27296 | R32: 37047.63834 | S32: 38760.50319 | T32: 40555.54245 | U32: 42437.72734 | V32: 43671.18679 | W32: 45323.73732 | X32: =INDIRECT($C32) -> 47261.36206 | Y32: 48512.76419 | Z32: 49651.39982 | AA32: 50475.02127 | AB32: 51352.26823 | AC32: 52060.03574 | AD32: 52774.16133 | AE32: 53494.70742 | AF32: 54221.73703 | AG32: 54955.31379 | AH32: 1.455191523e-12 | AI32: -1.077321184e-10 | AJ32: -2.71973075e-10 | AK32: -4.520411128e-10 | AL32: 0
A33: =NPV(wacc,D33:AL33) -> 64412.13849 | C33: EQ | D33: 9599 | E33: 14398.5 | F33: 19198 | G33: 30716.8 | H33: 16318.3 | I33: 5759.4 | J33: 0 | K33: 0 | L33: 0 | M33: 0 | N33: 0 | O33: 0 | P33: 0 | Q33: 0 | R33: 0 | S33: 0 | T33: 0 | U33: 0 | V33: 0 | W33: 0 | X33: 0 | Y33: 0 | Z33: 0 | AA33: 0 | AB33: 0 | AC33: 0 | AD33: 0 | AE33: 0 | AF33: 0 | AG33: 0 | AH33: -95990 | AI33: 0 | AJ33: 0 | AK33: 0 | AL33: =INDIRECT($C33) -> 0
A34: =NPV(wacc,D34:AL34) -> 122412.4516 | B34: =IRR(D34:AL34) -> 0.2048330928 | D34: =D32-D33 -> -9599 | E34: =E32-E33 -> -15663.28593 | F34: =F32-F33 -> -22412.8934 | G34: =G32-G33 -> -36525.32402 | H34: =H32-H33 -> -26370.98987 | I34: =I32-I33 -> 22143.69069 | J34: =J32-J33 -> 27792.04217 | K34: =K32-K33 -> 28350.27854 | L34: =L32-L33 -> 29037.22493 | M34: =M32-M33 -> 29561.70386 | N34: =N32-N33 -> 30928.49975 | O34: =O32-O33 -> 32356.71583 | P34: =P32-P33 -> 33850.01047 | Q34: =Q32-Q33 -> 35412.27296 | R34: =R32-R33 -> 37047.63834 | S34: =S32-S33 -> 38760.50319 | T34: =T32-T33 -> 40555.54245 | U34: =U32-U33 -> 42437.72734 | V34: =V32-V33 -> 43671.18679 | W34: =W32-W33 -> 45323.73732 | X34: =X32-X33 -> 47261.36206 | Y34: =Y32-Y33 -> 48512.76419 | Z34: =Z32-Z33 -> 49651.39982 | AA34: =AA32-AA33 -> 50475.02127 | AB34: =AB32-AB33 -> 51352.26823 | AC34: =AC32-AC33 -> 52060.03574 | AD34: =AD32-AD33 -> 52774.16133 | AE34: =AE32-AE33 -> 53494.70742 | AF34: =AF32-AF33 -> 54221.73703 | AG34: =AG32-AG33 -> 54955.31379 | AH34: =AH32-AH33 -> 95990 | AI34: =AI32-AI33 -> -1.077321184e-10 | AJ34: =AJ32-AJ33 -> -2.71973075e-10 | AK34: =AK32-AK33 -> -4.520411128e-10 | AL34: =AL32-AL33 -> 0
A35: =NPV(wacc,D35:AL35) -> -81429.16357 | C35: TaxCorp | I35: =-I34*TaxCorp -> -5535.922673 | J35: -6948.010542 | K35: -7087.569636 | L35: -7259.306232 | M35: -7390.425966 | N35: -7732.124936 | O35: -8089.178958 | P35: -8462.502619 | Q35: -8853.068241 | R35: -9261.909584 | S35: -9690.125797 | T35: -10138.88561 | U35: -10609.43184 | V35: -10917.7967 | W35: -11330.93433 | X35: -11815.34051 | Y35: -12128.19105 | Z35: -12412.84996 | AA35: -12618.75532 | AB35: -12838.06706 | AC35: -13015.00894 | AD35: -13193.54033 | AE35: -13373.67685 | AF35: -13555.43426 | AG35: -13738.82845 | AH35: -23997.5 | AI35: 2.69330296e-11 | AJ35: 6.799326876e-11 | AK35: 1.130102782e-10 | AL35: 0
A36: =NPV(wacc,D36:AL36) -> 71851.34767 | B36: =IRR(D36:AL36) -> 0.1673202672 | D36: =D34+D35 -> -9599 | E36: =E34+E35 -> -15663.28593 | F36: -22412.8934 | G36: -36525.32402 | H36: -26370.98987 | I36: 16607.76802 | J36: 20844.03163 | K36: 21262.70891 | L36: 21777.9187 | M36: 22171.2779 | N36: 23196.37481 | O36: 24267.53687 | P36: 25387.50786 | Q36: 26559.20472 | R36: 27785.72875 | S36: 29070.37739 | T36: 30416.65684 | U36: 31828.29551 | V36: 32753.39009 | W36: 33992.80299 | X36: 35446.02154 | Y36: 36384.57314 | Z36: 37238.54987 | AA36: 37856.26595 | AB36: 38514.20117 | AC36: 39045.02681 | AD36: 39580.621 | AE36: 40121.03056 | AF36: 40666.30277 | AG36: 41216.48534 | AH36: 71992.5 | AI36: -8.079908881e-11 | AJ36: -2.039798063e-10 | AK36: -3.390308346e-10 | AL36: 0
A38: ROE
A39: Equity
A40: =NPV(wacc,D40:AL40) -> 64412.13849 | C40: EQ | D40: =INDIRECT($C40) -> 9599 | E40: 14398.5 | F40: 19198 | G40: 30716.8 | H40: 16318.3 | I40: 5759.4 | J40: 0 | K40: 0 | L40: 0 | M40: 0 | N40: =INDIRECT($C40) -> 0 | O40: 0 | P40: 0 | Q40: 0 | R40: 0 | S40: 0 | T40: 0 | U40: 0 | V40: 0 | W40: 0 | X40: =INDIRECT($C40) -> 0 | Y40: 0 | Z40: 0 | AA40: 0 | AB40: 0 | AC40: 0 | AD40: 0 | AE40: 0 | AF40: 0 | AG40: 0 | AH40: -95990 | AI40: 0 | AJ40: 0 | AK40: 0 | AL40: 0 | AN40: =SUM(D40:AL40) -> 0
A41: =NPV(wacc,D41:AL41) -> -120066.3591 | C41: DIVIDEND | D41: 0 | E41: 0 | F41: 0 | G41: 0 | H41: 0 | I41: 0 | J41: 0 | K41: 0 | L41: -1998.666123 | M41: -4388.206323 | N41: -22587.40001 | O41: -24467.05599 | P41: -32351.29381 | Q41: -34718.77474 | R41: -37213.03294 | S41: -39841.85004 | T41: -42613.50151 | U41: -45536.78839 | V41: -48065.20297 | W41: -43203.68823 | X41: -35446.02154 | Y41: -36384.57314 | Z41: -37238.54987 | AA41: -37856.26595 | AB41: -38514.20117 | AC41: -39045.02681 | AD41: -39580.621 | AE41: -40121.03056 | AF41: -40666.30277 | AG41: -41216.48534 | AH41: -3.055902198e-10 | AI41: 0 | AJ41: 0 | AK41: 0 | AL41: 0 | AN41: -763054.5392
A42: =A40+A41 -> -55654.22058 | B42: =IRR(D42:AL42) -> 0.1452130637 | C42: =SUM(D42:AL42) -> -763054.5392 | D42: =SUM(D40:D41) -> 9599 | E42: 14398.5 | F42: 19198 | G42: 30716.8 | H42: 16318.3 | I42: 5759.4 | J42: 0 | K42: 0 | L42: -1998.666123 | M42: -4388.206323 | N42: -22587.40001 | O42: -24467.05599 | P42: -32351.29381 | Q42: -34718.77474 | R42: -37213.03294 | S42: -39841.85004 | T42: -42613.50151 | U42: -45536.78839 | V42: -48065.20297 | W42: -43203.68823 | X42: -35446.02154 | Y42: -36384.57314 | Z42: -37238.54987 | AA42: -37856.26595 | AB42: -38514.20117 | AC42: -39045.02681 | AD42: -39580.621 | AE42: -40121.03056 | AF42: -40666.30277 | AG42: -41216.48534 | AH42: -95990 | AI42: 0 | AJ42: 0 | AK42: 0 | AL42: 0 | AN42: -763054.5392
A44: DEBT RETURN
A45: DEBT
A46: =NPV(wacc,D46:AL46) -> 142836.9989 | C46: CFDT | D46: =INDIRECT($C46) -> 28797 | E46: 43195.5 | F46: 57594 | G46: 92150.4 | H46: 48954.9 | I46: 17278.2 | J46: 0 | K46: 0 | L46: 0 | M46: -17915.8607 | N46: =INDIRECT($C46) -> -18979.18654 | O46: -20106.272 | P46: -21301.08161 | Q46: -22567.83159 | R46: -23911.00604 | S46: -25335.37411 | T46: -26846.00836 | U46: -28448.30426 | V46: -30148.00095 | W46: -18276.45958 | X46: =INDIRECT($C46) -> -8281.868212 | Y46: -8447.505576 | Z46: -8616.455688 | AA46: -8788.784802 | AB46: 0 | AC46: 0 | AD46: 0 | AE46: 0 | AF46: 0 | AG46: 0 | AH46: 0 | AI46: 0 | AJ46: 0 | AK46: 0 | AL46: 0 | AN46: =SUM(D46:AL46) -> 0
A47: =NPV(wacc,D47:AL47) -> -64781.68573 | C47: INTLT | D47: 0 | E47: -1324.662 | F47: -3311.655 | G47: -5960.979 | H47: -10199.8974 | I47: -12451.8228 | J47: -13246.62 | K47: -13246.62 | L47: -13246.62 | M47: -13246.62 | N47: -12404.42311 | O47: -11500.66081 | P47: -10531.39015 | Q47: -9492.416729 | R47: -8379.278465 | S47: -7187.228431 | T47: -5911.216519 | U47: -4545.869928 | V47: -3085.472394 | W47: -1523.942067 | X47: -682.6922856 | Y47: -517.0549213 | Z47: -348.1048098 | AA47: -175.775696 | AB47: 0 | AC47: 0 | AD47: 0 | AE47: 0 | AF47: 0 | AG47: 0 | AH47: 0 | AI47: 0 | AJ47: 0 | AK47: 0 | AL47: 0 | AN47: -162521.0225
A48: =A46+A47 -> 78055.31316 | B48: =IRR(D48:AL48) -> 0.04494919488 | C48: =SUM(D48:AL48) -> -162521.0225 | D48: =SUM(D46:D47) -> 28797 | E48: 41870.838 | F48: 54282.345 | G48: 86189.421 | H48: 38755.0026 | I48: 4826.3772 | J48: -13246.62 | K48: -13246.62 | L48: -13246.62 | M48: -31162.4807 | N48: -31383.60965 | O48: -31606.93281 | P48: -31832.47176 | Q48: -32060.24832 | R48: -32290.2845 | S48: -32522.60254 | T48: -32757.22488 | U48: -32994.17419 | V48: -33233.47334 | W48: -19800.40165 | X48: -8964.560498 | Y48: -8964.560498 | Z48: -8964.560498 | AA48: -8964.560498 | AB48: 0 | AC48: 0 | AD48: 0 | AE48: 0 | AF48: 0 | AG48: 0 | AH48: 0 | AI48: 0 | AJ48: 0 | AK48: 0 | AL48: 0 | AN48: -162521.0225
A49: BANK ACCOUNTS
A50: =NPV(wacc,D50:AL50) -> -33002.75623 | C50: CF | D50: =-INDIRECT($C50) -> -5296 | E50: -6679.21407 | F50: -7377.106603 | G50: -11138.67598 | H50: 1049.489866 | I50: -3707.137042 | J50: -30284.11029 | K50: -4124.887097 | L50: -28799.71747 | M50: 4771.454541 | N50: 5835.735669 | O50: 6963.785952 | P50: 8159.570017 | Q50: 9427.304188 | R50: 10771.47265 | S50: 12196.84467 | T50: 13708.49289 | U50: 15311.81288 | V50: 17012.54389 | W50: 5142.047165 | X50: -4851.489125 | Y50: -4684.786149 | Z50: -4514.759786 | AA50: -4341.343675 | AB50: -13129.03063 | AC50: -13127.92182 | AD50: -13126.80193 | AE50: -13125.67087 | AF50: -13124.52852 | AG50: -13123.37476 | AH50: 84206.00144 | AI50: 1.077321184e-10 | AJ50: 2.71973075e-10 | AK50: 4.520411128e-10 | AL50: 6.360561253e-10 | AN50: =SUM(D50:AL50) -> -1.620120739e-10
A51: =NPV(wacc,D51:AL51) -> -23886.18389 | C51: CFDSRA | D51: =INDIRECT($C51) -> 0 | E51: 0 | F51: 0 | G51: 0 | H51: 0 | I51: -29441.50679 | J51: -3707.137042 | K51: -30284.11029 | L51: -4124.887097 | M51: -17783.07157 | N51: =INDIRECT($C51) -> -608.9747994 | O51: 199.5191133 | P51: 6963.785952 | Q51: 8159.570017 | R51: 9427.304188 | S51: 10771.47265 | T51: 12196.84467 | U51: 13708.49289 | V51: 15311.81288 | W51: 9210.885237 | X51: =INDIRECT($C51) -> 0 | Y51: 0 | Z51: 0 | AA51: 0 | AB51: 0 | AC51: 0 | AD51: 0 | AE51: 0 | AF51: 0 | AG51: 0 | AH51: 0 | AI51: 0 | AJ51: 0 | AK51: 0 | AL51: 0
A52: =NPV(wacc,D52:AL52) -> 1343.464714 | C52: INTST | D52: 0 | E52: 59.87607035 | F52: 96.76160337 | G52: 152.4549833 | H52: 147.207534 | I52: 165.7432192 | J52: 317.1637706 | K52: 337.7882061 | L52: 481.7867935 | M52: 457.9295208 | N52: 428.7508424 | O52: 393.9319126 | P52: 353.1340626 | Q52: 305.9975416 | R52: 252.1401784 | S52: 191.155955 | T52: 122.6134906 | U52: 46.05442619 | V52: -780.165865 | W52: -1294.370582 | X52: -809.221669 | Y52: -340.743054 | Z52: 5.536646231 | AA52: 27.24336461 | AB52: 92.88851774 | AC52: 158.5281268 | AD52: 224.1621365 | AE52: 289.7904908 | AF52: 355.4131334 | AG52: 421.0300072 | AH52: 1.455191523e-12 | AI52: -1.077321184e-10 | AJ52: -2.71973075e-10 | AK52: -4.520411128e-10 | AL52: -6.360561253e-10 | AN52: 2660.581364
A53: =A50+A52 -> -31659.29152 | B53: =IF(ISERR(IRR(D53:AL53)),"",IRR(D53:AL53)) -> 0.001386998358 | C53: =SUM(D53:AL53) -> 2660.581364 | D53: =SUM(D50:D52) -> -5296 | E53: -6619.338 | F53: -7280.345 | G53: -10986.221 | H53: 1196.6974 | I53: -32982.90061 | J53: -33674.08356 | K53: -34071.20918 | L53: -32442.81777 | M53: -12553.68751 | N53: 5655.511712 | O53: 7557.236978 | P53: 15476.49003 | Q53: 17892.87175 | R53: 20450.91702 | S53: 23159.47327 | T53: 26027.95105 | U53: 29066.36019 | V53: 31544.1909 | W53: 13058.56182 | X53: -5660.710794 | Y53: -5025.529203 | Z53: -4509.22314 | AA53: -4314.100311 | AB53: -13036.14211 | AC53: -12969.39369 | AD53: -12902.6398 | AE53: -12835.88038 | AF53: -12769.11538 | AG53: -12702.34475 | AH53: 84206.00144 | AI53: 0 | AJ53: 0 | AK53: 0 | AL53: 0 | AN53: =SUM(D53:AL53) -> 2660.581364
A54: DEBT
A55: =NPV(wacc,D55:AL55) -> 85948.05877 | C55: DT CF CFDSCR | D55: =D46+D50+D51 -> 23501 | E55: =E46+E50+E51 -> 36516.28593 | F55: 50216.8934 | G55: 81011.72402 | H55: 50004.38987 | I55: -15870.44383 | J55: -33991.24733 | K55: -34408.99739 | L55: -32924.60457 | M55: -30927.47773 | N55: -13752.42567 | O55: -12942.96693 | P55: -6177.725637 | Q55: -4980.957383 | R55: -3712.229195 | S55: -2367.056788 | T55: -940.670805 | U55: 572.0015088 | V55: 2176.355818 | W55: -3923.527177 | X55: -13133.35734 | Y55: -13132.29173 | Z55: -13131.21547 | AA55: -13130.12848 | AB55: -13129.03063 | AC55: -13127.92182 | AD55: -13126.80193 | AE55: -13125.67087 | AF55: -13124.52852 | AG55: -13123.37476 | AH55: 84206.00144 | AI55: 1.077321184e-10 | AJ55: 2.71973075e-10 | AK55: 4.520411128e-10 | AL55: 6.360561253e-10 | AN55: =SUM(D55:AL55) -> -1.911159044e-10
A56: =NPV(wacc,D56:AL56) -> -63438.22102 | C56: INTST INTLT | D56: =D47+D52 -> 0 | E56: -1264.78593 | F56: -3214.893397 | G56: -5808.524017 | H56: -10052.68987 | I56: -12286.07958 | J56: -12929.45623 | K56: -12908.83179 | L56: -12764.83321 | M56: -12788.69048 | N56: -11975.67227 | O56: -11106.72889 | P56: -10178.25609 | Q56: -9186.419187 | R56: -8127.138286 | S56: -6996.072476 | T56: -5788.603029 | U56: -4499.815502 | V56: -3865.638259 | W56: -2818.312648 | X56: -1491.913955 | Y56: -857.7979753 | Z56: -342.5681636 | AA56: -148.5323314 | AB56: 92.88851774 | AC56: 158.5281268 | AD56: 224.1621365 | AE56: 289.7904908 | AF56: 355.4131334 | AG56: 421.0300072 | AH56: 1.455191523e-12 | AI56: -1.077321184e-10 | AJ56: -2.71973075e-10 | AK56: -4.520411128e-10 | AL56: -6.360561253e-10 | AN56: -159860.4412
A57: =A55+A56 -> 22509.83775 | B57: =IRR(D57:AL57) -> 0.07644437239 | C57: =SUM(D57:AL57) -> -159860.4412 | D57: =SUM(D55:D56) -> 23501 | E57: 35251.5 | F57: 47002 | G57: 75203.2 | H57: 39951.7 | I57: -28156.52341 | J57: -46920.70356 | K57: -47317.82918 | L57: -45689.43777 | M57: -43716.16821 | N57: -25728.09794 | O57: -24049.69583 | P57: -16355.98173 | Q57: -14167.37657 | R57: -11839.36748 | S57: -9363.129264 | T57: -6729.273834 | U57: -3927.813993 | V57: -1689.282441 | W57: -6741.839826 | X57: -14625.27129 | Y57: -13990.0897 | Z57: -13473.78364 | AA57: -13278.66081 | AB57: -13036.14211 | AC57: -12969.39369 | AD57: -12902.6398 | AE57: -12835.88038 | AF57: -12769.11538 | AG57: -12702.34475 | AH57: 84206.00144 | AI57: 0 | AJ57: 0 | AK57: 0 | AL57: 0 | AN57: -159860.4412
C58: TaxCorp | D58: =-D56*TaxCorp -> 0 | E58: 316.1964824 | F58: 803.7233492 | G58: 1452.131004 | H58: 2513.172467 | I58: 3071.519895 | J58: 3232.364057 | K58: 3227.207948 | L58: 3191.208302 | M58: 3197.17262 | N58: 2993.918067 | O58: 2776.682223 | P58: 2544.564022 | Q58: 2296.604797 | R58: 2031.784572 | S58: 1749.018119 | T58: 1447.150757 | U58: 1124.953876 | V58: 966.4095649 | W58: 704.5781621 | X58: 372.9784886 | Y58: 214.4494938 | Z58: 85.64204089 | AA58: 37.13308286 | AB58: -23.22212943 | AC58: -39.6320317 | AD58: -56.04053412 | AE58: -72.44762271 | AF58: -88.85328335 | AG58: -105.2575018 | AH58: -3.637978807e-13 | AI58: 2.69330296e-11 | AJ58: 6.799326876e-11 | AK58: 1.130102782e-10 | AL58: 1.590140313e-10 | AN58: 39965.11029
A59: =A57+A58 -> 22509.83775 | B59: =IRR(D59:AL59) -> 0.05910576069 | C59: =SUM(D59:AL59) -> -119895.3309 | D59: =D57+D58 -> 23501 | E59: =E57+E58 -> 35567.69648 | F59: 47805.72335 | G59: 76655.331 | H59: 42464.87247 | I59: -25085.00352 | J59: -43688.3395 | K59: -44090.62123 | L59: -42498.22947 | M59: -40518.99559 | N59: -22734.17987 | O59: -21273.0136 | P59: -13811.4177 | Q59: -11870.77177 | R59: -9807.58291 | S59: -7614.111145 | T59: -5282.123076 | U59: -2802.860118 | V59: -722.8728766 | W59: -6037.261664 | X59: -14252.2928 | Y59: -13775.64021 | Z59: -13388.1416 | AA59: -13241.52773 | AB59: -13059.36424 | AC59: -13009.02572 | AD59: -12958.68033 | AE59: -12908.328 | AF59: -12857.96867 | AG59: -12807.60225 | AH59: 84206.00144 | AI59: 2.69330296e-11 | AJ59: 6.799326876e-11 | AK59: 1.130102782e-10 | AL59: 1.590140313e-10 | AN59: -119895.3309
A61: FINANCE - WACC
A62: NPV | B62: IRR | C62: SUM
A63: =NPV(wacc,D63:AL63) -> 38369.39301 | C63: FINANCE | D63: =D59 -> 23501 | E63: =E59 -> 35567.69648 | F63: 47805.72335 | G63: 76655.331 | H63: 42464.87247 | I63: -25085.00352 | J63: -43688.3395 | K63: -44090.62123 | L63: -42498.22947 | M63: -40518.99559 | N63: -22734.17987 | O63: -21273.0136 | P63: -13811.4177 | Q63: -11870.77177 | R63: -9807.58291 | S63: -7614.111145 | T63: -5282.123076 | U63: -2802.860118 | V63: -722.8728766 | W63: -6037.261664 | X63: -14252.2928 | Y63: -13775.64021 | Z63: -13388.1416 | AA63: -13241.52773 | AB63: -13059.36424 | AC63: -13009.02572 | AD63: -12958.68033 | AE63: -12908.328 | AF63: -12857.96867 | AG63: -12807.60225 | AH63: 84206.00144 | AI63: 2.69330296e-11 | AJ63: 6.799326876e-11 | AK63: 1.130102782e-10 | AL63: 1.590140313e-10 | AN63: =SUM(D63:AL63) -> -119895.3309
A64: =NPV(wacc,D64:AL64) -> -55654.22058 | C64: EQUITY | D64: =D42 -> 9599 | E64: 14398.5 | F64: 19198 | G64: 30716.8 | H64: 16318.3 | I64: 5759.4 | J64: 0 | K64: 0 | L64: -1998.666123 | M64: -4388.206323 | N64: -22587.40001 | O64: -24467.05599 | P64: -32351.29381 | Q64: -34718.77474 | R64: -37213.03294 | S64: -39841.85004 | T64: -42613.50151 | U64: -45536.78839 | V64: -48065.20297 | W64: -43203.68823 | X64: -35446.02154 | Y64: -36384.57314 | Z64: -37238.54987 | AA64: -37856.26595 | AB64: -38514.20117 | AC64: -39045.02681 | AD64: -39580.621 | AE64: -40121.03056 | AF64: -40666.30277 | AG64: -41216.48534 | AH64: -95990 | AI64: 0 | AJ64: 0 | AK64: 0 | AL64: 0 | AN64: =SUM(D64:AL64) -> -763054.5392
A65: =A63+A64 -> -17284.82757 | B65: =IRR(D65:AL65) -> 0.1072348575 | C65: =SUM(D65:AL65) -> -882949.8701 | D65: =D63+D64 -> 33100 | E65: =E63+E64 -> 49966.19648 | F65: 67003.72335 | G65: 107372.131 | H65: 58783.17247 | I65: -19325.60352 | J65: -43688.3395 | K65: -44090.62123 | L65: -44496.8956 | M65: -44907.20191 | N65: -45321.57988 | O65: -45740.06959 | P65: -46162.71151 | Q65: -46589.54651 | R65: -47020.61585 | S65: -47455.96119 | T65: -47895.62458 | U65: -48339.64851 | V65: -48788.07585 | W65: -49240.94989 | X65: -49698.31435 | Y65: -50160.21335 | Z65: -50626.69146 | AA65: -51097.79368 | AB65: -51573.56541 | AC65: -52054.05253 | AD65: -52539.30133 | AE65: -53029.35857 | AF65: -53524.27144 | AG65: -54024.08759 | AH65: -11783.99856 | AI65: 2.69330296e-11 | AJ65: 6.799326876e-11 | AK65: 1.130102782e-10 | AL65: 1.590140313e-10 | AN65: =SUM(D65:AL65) -> -882949.8701
A67: ECONOMIC COSTS | AN67: SOMME
A68: NPV
A69: =-NPV(wacc,D69:AL69) -> 2818.063849 | C69: PRODUCTIONNET | D69: =-INDIRECT($C69) -> 0 | E69: 0 | F69: 0 | G69: 0 | H69: 0 | I69: -500 | J69: -500 | K69: -500 | L69: -500 | M69: -500 | N69: -500 | O69: -500 | P69: -500 | Q69: -500 | R69: -500 | S69: -500 | T69: -500 | U69: -500 | V69: -500 | W69: -500 | X69: -500 | Y69: -500 | Z69: -500 | AA69: -500 | AB69: -500 | AC69: -500 | AD69: -500 | AE69: -500 | AF69: -500 | AG69: -500 | AH69: 0 | AI69: 0 | AJ69: 0 | AK69: 0 | AL69: 0
A71: COSTS BEFORE TAXES
A72: NPV | B72: UNIT COST | C72: SUM
A73: =NPV(wacc,D73:AL73) -> 351603.5597 | B73: =A73/$A$69 -> 124.7677762 | C73: REVENUES | D73: 0 | E73: 0 | F73: 0 | G73: 0 | H73: 0 | I73: 57805.55276 | J73: 58383.60828 | K73: 58967.44437 | L73: 59557.11881 | M73: 60152.69 | N73: 60754.2169 | O73: 61361.75907 | P73: 61975.37666 | Q73: 62595.13042 | R73: 63221.08173 | S73: 63853.29255 | T73: =INDIRECT($C73) -> 64491.82547 | U73: 65136.74373 | V73: 65788.11116 | W73: 66445.99227 | X73: 67110.4522 | Y73: 67781.55672 | Z73: 68459.37229 | AA73: 69143.96601 | AB73: 69835.40567 | AC73: 70533.75973 | AD73: 71239.09732 | AE73: 71951.4883 | AF73: 72671.00318 | AG73: 73397.71321 | AH73: 0 | AI73: 0 | AJ73: 0 | AK73: 0 | AL73: =INDIRECT($C73) -> 0 | AN73: =SUM(D73:AL73) -> 1632613.759
A74: =NPV(wacc,D74:AL74) -> -8588.899797 | B74: =A74/$A$69 -> -3.047801703 | C74: COST | D74: 0 | E74: 0 | F74: 0 | G74: 0 | H74: 0 | I74: -1411.04522 | J74: -1425.278396 | K74: -1439.65637 | L74: -1454.18064 | M74: -1468.85272 | N74: -1483.674139 | O74: -1498.646444 | P74: -1513.771196 | Q74: -1529.049976 | R74: -1544.484378 | S74: -1560.076018 | T74: -1575.826524 | U74: -1591.737545 | V74: -1607.810747 | W74: -1624.047813 | X74: -1640.450444 | Y74: -1657.020361 | Z74: -1673.759303 | AA74: -1690.669025 | AB74: -1707.751304 | AC74: -1725.007935 | AD74: -1742.440733 | AE74: -1760.051532 | AF74: -1777.842185 | AG74: -1795.814566 | AH74: 0 | AI74: 0 | AJ74: 0 | AK74: 0 | AL74: =INDIRECT($C74) -> 0 | AN74: =SUM(D74:AL74) -> -39898.94551
A75: -18129.518 | B75: =A75/$A$69 -> -6.433324073 | C75: TAX | D75: 0 | E75: 0 | F75: 0 | G75: 0 | H75: 0 | I75: -2965.337263 | J75: -2996.831489 | K75: -3028.677658 | L75: -3060.880033 | M75: -3093.442936 | N75: -3126.370745 | O75: -3159.667899 | P75: -3193.338897 | Q75: -3227.388299 | R75: -3261.820726 | S75: -3296.640865 | T75: -3331.853464 | U75: -3367.463337 | V75: -3403.475365 | W75: -3439.894495 | X75: -3476.725742 | Y75: -3513.974191 | Z75: -3551.644996 | AA75: -3589.743384 | AB75: -3628.274652 | AC75: -3667.244173 | AD75: -3706.657394 | AE75: -3746.519837 | AF75: -3786.837101 | AG75: -3827.614864 | AH75: 0 | AI75: 0 | AJ75: 0 | AK75: 0 | AL75: =INDIRECT($C75) -> 0 | AN75: -84448.3198
A76: =NPV(wacc,D76:AL76) -> -239355.4871 | B76: =A76/$A$69 -> -84.93614762 | C76: CAPEX | D76: =INDIRECT($C76) -> -33100 | E76: -49650 | F76: -66200 | G76: -105920 | H76: -56270 | I76: -19860 | J76: 0 | K76: 0 | L76: 0 | M76: 0 | N76: 0 | O76: 0 | P76: 0 | Q76: 0 | R76: 0 | S76: 0 | T76: 0 | U76: 0 | V76: 0 | W76: 0 | X76: 0 | Y76: 0 | Z76: 0 | AA76: 0 | AB76: 0 | AC76: 0 | AD76: 0 | AE76: 0 | AF76: 0 | AG76: 0 | AH76: 0 | AI76: 0 | AJ76: 0 | AK76: 0 | AL76: =INDIRECT($C76) -> 0 | AN76: =SUM(D76:AL76) -> -331000
A77: =SUM(A73:A76) -> 85529.65482 | B77: =IRR(D77:AL77) -> 0.1342315037 | C77: =SUM(D77:AL77) -> 1177266.493 | D77: =SUM(D73:D76) -> -33100 | E77: =SUM(E73:E76) -> -49650 | F77: -66200 | G77: -105920 | H77: -56270 | I77: 33569.17027 | J77: 53961.4984 | K77: 54499.11034 | L77: 55042.05814 | M77: 55590.39434 | N77: 56144.17201 | O77: 56703.44472 | P77: 57268.26656 | Q77: 57838.69215 | R77: 58414.77662 | S77: 58996.57566 | T77: 59584.14548 | U77: 60177.54284 | V77: 60776.82505 | W77: 61382.04997 | X77: 61993.27601 | Y77: 62610.56217 | Z77: 63233.96799 | AA77: 63863.5536 | AB77: 64499.37971 | AC77: 65141.50762 | AD77: 65789.9992 | AE77: 66444.91693 | AF77: 67106.32389 | AG77: 67774.28378 | AH77: 0 | AI77: 0 | AJ77: 0 | AK77: 0 | AL77: 0
A78: =NPV(wacc,D78:AL78) -> -5132.124393 | B78: =A78/$A$69 -> -1.821152631 | C78: WCVAR | D78: 0 | E78: 0 | F78: 0 | G78: 0 | H78: 0 | I78: =INDIRECT($C78) -> -9281.497488 | J78: -92.784294 | K78: -93.71152025 | L78: -94.64800637 | M78: -95.59384471 | N78: -96.54912853 | O78: -97.51395204 | P78: -98.48841035 | Q78: -99.47259956 | R78: -100.4666167 | S78: -101.4705597 | T78: -102.4845277 | U78: -103.5086205 | V78: -104.5429391 | W78: -105.5875855 | X78: -106.6426626 | Y78: -107.7082744 | Z78: -108.7845259 | AA78: -109.8715233 | AB78: -110.9693735 | AC78: -112.0781849 | AD78: -113.1980667 | AE78: -114.3291292 | AF78: -115.4714839 | AG78: -116.6252433 | AH78: 11783.99856 | AI78: 0 | AJ78: 0 | AK78: 0 | AL78: 0 | AN78: =SUM(D78:AL78) -> 0
A79: =A77+A78 -> 80397.53042 | B79: =IRR(D79:AL79) -> 0.1317824317 | C79: =SUM(D79:AL79) -> 1177266.493 | D79: =D77+D78 -> -33100 | E79: =E77+E78 -> -49650 | F79: -66200 | G79: -105920 | H79: -56270 | I79: 24287.67278 | J79: 53868.7141 | K79: 54405.39882 | L79: 54947.41013 | M79: 55494.8005 | N79: 56047.62289 | O79: 56605.93077 | P79: 57169.77815 | Q79: 57739.21955 | R79: 58314.31001 | S79: 58895.1051 | T79: 59481.66096 | U79: 60074.03422 | V79: 60672.28211 | W79: 61276.46238 | X79: 61886.63335 | Y79: 62502.85389 | Z79: 63125.18346 | AA79: 63753.68208 | AB79: 64388.41034 | AC79: 65029.42943 | AD79: 65676.80113 | AE79: 66330.5878 | AF79: 66990.85241 | AG79: 67657.65854 | AH79: 11783.99856 | AI79: 0 | AJ79: 0 | AK79: 0 | AL79: 0
A80: =NPV(wacc,D80:AL80) -> -47253.14759 | B80: =A80/$A$69 -> -16.76794783 | C80: TAXCO | D80: =INDIRECT($C80) -> 0 | E80: =INDIRECT($C80) -> 0 | F80: 0 | G80: 0 | H80: 0 | I80: -1890.549371 | J80: -6948.010542 | K80: -7087.569636 | L80: -7259.306232 | M80: -7390.425966 | N80: -7732.124936 | O80: -8089.178958 | P80: -8462.502619 | Q80: -8853.068241 | R80: -9261.909584 | S80: -9690.125797 | T80: -10138.88561 | U80: -10609.43184 | V80: -10917.7967 | W80: -11330.93433 | X80: -11815.34051 | Y80: -12128.19105 | Z80: -12412.84996 | AA80: -12618.75532 | AB80: -12838.06706 | AC80: -13015.00894 | AD80: -13193.54033 | AE80: -13373.67685 | AF80: -13555.43426 | AG80: -13738.82845 | AH80: 0 | AI80: 0 | AJ80: 0 | AK80: 0 | AL80: 0 | AN80: =SUM(D80:AL80) -> -254351.5131
A81: =A79+A80 -> 33144.38283 | B81: =IRR(D81:AL81) -> 0.1140514632 | C81: =SUM(D81:AL81) -> 922914.9804 | D81: =D79+D80 -> -33100 | E81: =E79+E80 -> -49650 | F81: -66200 | G81: -105920 | H81: -56270 | I81: 22397.12341 | J81: 46920.70356 | K81: 47317.82918 | L81: 47688.1039 | M81: 48104.37453 | N81: 48315.49795 | O81: 48516.75181 | P81: 48707.27554 | Q81: 48886.15131 | R81: 49052.40042 | S81: 49204.97931 | T81: 49342.77534 | U81: 49464.60239 | V81: 49754.48541 | W81: 49945.52805 | X81: 50071.29283 | Y81: 50374.66284 | Z81: 50712.33351 | AA81: 51134.92676 | AB81: 51550.34328 | AC81: 52014.4205 | AD81: 52483.2608 | AE81: 52956.91094 | AF81: 53435.41815 | AG81: 53918.83009 | AH81: 11783.99856 | AI81: 0 | AJ81: 0 | AK81: 0 | AL81: 0
A82: =NPV(wacc,D82:AL82) -> 22509.83775 | B82: =A82/$A$69 -> 7.987696149 | C82: DEBT | D82: =D57 -> 23501 | E82: =E57 -> 35251.5 | F82: 47002 | G82: 75203.2 | H82: 39951.7 | I82: -28156.52341 | J82: -46920.70356 | K82: -47317.82918 | L82: -45689.43777 | M82: -43716.16821 | N82: -25728.09794 | O82: -24049.69583 | P82: -16355.98173 | Q82: -14167.37657 | R82: -11839.36748 | S82: -9363.129264 | T82: -6729.273834 | U82: -3927.813993 | V82: -1689.282441 | W82: -6741.839826 | X82: -14625.27129 | Y82: -13990.0897 | Z82: -13473.78364 | AA82: -13278.66081 | AB82: -13036.14211 | AC82: -12969.39369 | AD82: -12902.6398 | AE82: -12835.88038 | AF82: -12769.11538 | AG82: -12702.34475 | AH82: 84206.00144 | AI82: 0 | AJ82: 0 | AK82: 0 | AL82: 0
A83: =NPV(wacc,D83:AL83) -> -55654.22058 | B83: =A83/$A$69 -> -19.74909852 | C83: EQUITY | D83: =D42 -> 9599 | E83: =E42 -> 14398.5 | F83: 19198 | G83: 30716.8 | H83: 16318.3 | I83: 5759.4 | J83: 0 | K83: 0 | L83: -1998.666123 | M83: -4388.206323 | N83: -22587.40001 | O83: -24467.05599 | P83: -32351.29381 | Q83: -34718.77474 | R83: -37213.03294 | S83: -39841.85004 | T83: -42613.50151 | U83: -45536.78839 | V83: -48065.20297 | W83: -43203.68823 | X83: -35446.02154 | Y83: -36384.57314 | Z83: -37238.54987 | AA83: -37856.26595 | AB83: -38514.20117 | AC83: -39045.02681 | AD83: -39580.621 | AE83: -40121.03056 | AF83: -40666.30277 | AG83: -41216.48534 | AH83: -95990 | AI83: 0 | AJ83: 0 | AK83: 0 | AL83: 0
A84: =SUM(A81:A83) -> 0 | C84: =SUM(D84:AL84) -> 1.455191523e-11 | D84: =SUM(D81:D83) -> 0 | E84: =SUM(E81:E83) -> 0 | F84: 0 | G84: 0 | H84: 2.000888344e-11 | I84: -4.183675628e-11 | J84: 7.275957614e-12 | K84: 0 | L84: 0 | M84: 2.910383046e-11 | N84: 0 | O84: 0 | P84: 0 | Q84: 0 | R84: 0 | S84: 0 | T84: 0 | U84: 0 | V84: 0 | W84: 0 | X84: 0 | Y84: 0 | Z84: 0 | AA84: 0 | AB84: 0 | AC84: 0 | AD84: 0 | AE84: 0 | AF84: 0 | AG84: 0 | AH84: 0 | AI84: 0 | AJ84: 0 | AK84: 0 | AL84: 0
A86: COSTS AFTER TAXES
A87: NPV | B87: UNIT COST | C87: SUM
A88: FLOWS AFTER TAXES
A89: =NPV(wacc,D89:AL89) -> 263702.6697 | B89: =A89/$A$69 -> 93.57583217 | C89: REVENUES | D89: =INDIRECT($C89)*(1-TaxCorp) -> 0 | E89: 0 | F89: 0 | G89: 0 | H89: 0 | I89: 43354.16457 | J89: 43787.70621 | K89: 44225.58327 | L89: 44667.83911 | M89: 45114.5175 | N89: =INDIRECT($C89)*(1-TaxCorp) -> 45565.66267 | O89: 46021.3193 | P89: 46481.53249 | Q89: 46946.34782 | R89: 47415.8113 | S89: 47889.96941 | T89: 48368.8691 | U89: 48852.55779 | V89: 49341.08337 | W89: 49834.49421 | X89: =INDIRECT($C89)*(1-TaxCorp) -> 50332.83915 | Y89: 50836.16754 | Z89: 51344.52921 | AA89: 51857.97451 | AB89: 52376.55425 | AC89: 52900.31979 | AD89: 53429.32299 | AE89: 53963.61622 | AF89: 54503.25238 | AG89: 55048.28491 | AH89: 0 | AI89: 0 | AJ89: 0 | AK89: 0 | AL89: 0
A90: -6441.674848 | B90: =A90/$A$69 -> -2.285851277 | C90: COST | D90: 0 | E90: 0 | F90: 0 | G90: 0 | H90: 0 | I90: -1058.283915 | J90: -1068.958797 | K90: -1079.742278 | L90: -1090.63548 | M90: -1101.63954 | N90: -1112.755605 | O90: -1123.984833 | P90: -1135.328397 | Q90: -1146.787482 | R90: -1158.363284 | S90: -1170.057013 | T90: -1181.869893 | U90: -1193.803159 | V90: -1205.85806 | W90: -1218.035859 | X90: -1230.337833 | Y90: -1242.765271 | Z90: -1255.319477 | AA90: -1268.001769 | AB90: -1280.813478 | AC90: -1293.755952 | AD90: -1306.83055 | AE90: -1320.038649 | AF90: -1333.381639 | AG90: -1346.860925 | AH90: 0 | AI90: 0 | AJ90: 0 | AK90: 0 | AL90: 0
A91: -13597.1385 | B91: =A91/$A$69 -> -4.824993055 | C91: TAX | D91: 0 | E91: 0 | F91: 0 | G91: 0 | H91: 0 | I91: -2224.002948 | J91: -2247.623617 | K91: -2271.508243 | L91: -2295.660025 | M91: -2320.082202 | N91: -2344.778059 | O91: -2369.750924 | P91: -2395.004173 | Q91: -2420.541224 | R91: -2446.365545 | S91: -2472.480649 | T91: -2498.890098 | U91: -2525.597503 | V91: -2552.606524 | W91: -2579.920871 | X91: -2607.544306 | Y91: -2635.480643 | Z91: -2663.733747 | AA91: -2692.307538 | AB91: -2721.205989 | AC91: -2750.43313 | AD91: -2779.993046 | AE91: -2809.889877 | AF91: -2840.127825 | AG91: -2870.711148 | AH91: 0 | AI91: 0 | AJ91: 0 | AK91: 0 | AL91: 0
A92: 18655.58268 | B92: =A92/$A$69 -> 6.62 | C92: AMORT | D92: =INDIRECT($C92)*(-TaxCorp) -> 0 | E92: 0 | F92: 0 | G92: 0 | H92: 0 | I92: 3310 | J92: 3310 | K92: 3310 | L92: 3310 | M92: 3310 | N92: 3310 | O92: 3310 | P92: 3310 | Q92: 3310 | R92: 3310 | S92: 3310 | T92: 3310 | U92: 3310 | V92: 3310 | W92: 3310 | X92: 3310 | Y92: 3310 | Z92: 3310 | AA92: 3310 | AB92: 3310 | AC92: 3310 | AD92: 3310 | AE92: 3310 | AF92: 3310 | AG92: 3310 | AH92: 0 | AI92: 0 | AJ92: 0 | AK92: 0 | AL92: 0
A93: -239355.4871 | B93: -84.93614762 | C93: CAPEX | D93: =INDIRECT($C93) -> -33100 | E93: -49650 | F93: -66200 | G93: -105920 | H93: -56270 | I93: -19860 | J93: 0 | K93: 0 | L93: 0 | M93: 0 | N93: =INDIRECT($C93) -> 0 | O93: 0 | P93: 0 | Q93: 0 | R93: 0 | S93: 0 | T93: 0 | U93: 0 | V93: 0 | W93: 0 | X93: =INDIRECT($C93) -> 0 | Y93: 0 | Z93: 0 | AA93: 0 | AB93: 0 | AC93: 0 | AD93: 0 | AE93: 0 | AF93: 0 | AG93: 0 | AH93: 0 | AI93: 0 | AJ93: 0 | AK93: 0 | AL93: 0
A94: -5132.124393 | B94: -1.821152631 | C94: WCVAR | D94: 0 | E94: 0 | F94: 0 | G94: 0 | H94: 0 | I94: -9281.497488 | J94: -92.784294 | K94: -93.71152025 | L94: -94.64800637 | M94: -95.59384471 | N94: -96.54912853 | O94: -97.51395204 | P94: -98.48841035 | Q94: -99.47259956 | R94: -100.4666167 | S94: -101.4705597 | T94: -102.4845277 | U94: -103.5086205 | V94: -104.5429391 | W94: -105.5875855 | X94: -106.6426626 | Y94: -107.7082744 | Z94: -108.7845259 | AA94: -109.8715233 | AB94: -110.9693735 | AC94: -112.0781849 | AD94: -113.1980667 | AE94: -114.3291292 | AF94: -115.4714839 | AG94: -116.6252433 | AH94: 11783.99856 | AI94: 0 | AJ94: 0 | AK94: 0 | AL94: 0
B95: =IRR(D95:AL95) -> 0.1074906479 | C95: =SUM(D95:AL95) -> 882949.8701 | D95: =SUM(D89:D94) -> -33100 | E95: -49650 | F95: -66200 | G95: -105920 | H95: -56270 | I95: 14240.38022 | J95: 43688.3395 | K95: 44090.62123 | L95: 44496.8956 | M95: 44907.20191 | N95: 45321.57988 | O95: 45740.06959 | P95: 46162.71151 | Q95: 46589.54651 | R95: 47020.61585 | S95: 47455.96119 | T95: 47895.62458 | U95: 48339.64851 | V95: 48788.07585 | W95: 49240.94989 | X95: 49698.31435 | Y95: 50160.21335 | Z95: 50626.69146 | AA95: 51097.79368 | AB95: 51573.56541 | AC95: 52054.05253 | AD95: 52539.30133 | AE95: 53029.35857 | AF95: 53524.27144 | AG95: 54024.08759 | AH95: 11783.99856 | AI95: 0 | AJ95: 0 | AK95: 0 | AL95: 0
A96: =NPV(wacc,D96:AL96) -> 38369.39301 | B96: =A96/$A$69 -> 13.61551585 | C96: DEBT | D96: =D59 -> 23501 | E96: =E59 -> 35567.69648 | F96: 47805.72335 | G96: 76655.331 | H96: 42464.87247 | I96: -25085.00352 | J96: -43688.3395 | K96: -44090.62123 | L96: -42498.22947 | M96: -40518.99559 | N96: -22734.17987 | O96: -21273.0136 | P96: -13811.4177 | Q96: -11870.77177 | R96: -9807.58291 | S96: -7614.111145 | T96: -5282.123076 | U96: -2802.860118 | V96: -722.8728766 | W96: -6037.261664 | X96: -14252.2928 | Y96: -13775.64021 | Z96: -13388.1416 | AA96: -13241.52773 | AB96: -13059.36424 | AC96: -13009.02572 | AD96: -12958.68033 | AE96: -12908.328 | AF96: -12857.96867 | AG96: -12807.60225 | AH96: 84206.00144 | AI96: 2.69330296e-11 | AJ96: 6.799326876e-11 | AK96: 1.130102782e-10 | AL96: 1.590140313e-10
A97: =NPV(wacc,D97:AL97) -> -55654.22058 | B97: =A97/$A$69 -> -19.74909852 | C97: EQUITY | D97: =D42 -> 9599 | E97: =E42 -> 14398.5 | F97: 19198 | G97: 30716.8 | H97: 16318.3 | I97: 5759.4 | J97: 0 | K97: 0 | L97: -1998.666123 | M97: -4388.206323 | N97: -22587.40001 | O97: -24467.05599 | P97: -32351.29381 | Q97: -34718.77474 | R97: -37213.03294 | S97: -39841.85004 | T97: -42613.50151 | U97: -45536.78839 | V97: -48065.20297 | W97: -43203.68823 | X97: -35446.02154 | Y97: -36384.57314 | Z97: -37238.54987 | AA97: -37856.26595 | AB97: -38514.20117 | AC97: -39045.02681 | AD97: -39580.621 | AE97: -40121.03056 | AF97: -40666.30277 | AG97: -41216.48534 | AH97: -95990 | AI97: 0 | AJ97: 0 | AK97: 0 | AL97: 0
A98: =-NPV(wacc,D98:AL98) -> -547.0000602 | B98: =A98/$A$69 -> -0.1941049208 | C98: =SUM(D98:AL98) -> 2.589978907e-09 | D98: =SUM(D95:D97) -> 0 | E98: =SUM(E95:E97) -> 316.1964824 | F98: =SUM(F95:F97) -> 803.7233492 | G98: =SUM(G95:G97) -> 1452.131004 | H98: =SUM(H95:H97) -> 2513.172467 | I98: =SUM(I95:I97) -> -5085.223302 | J98: =SUM(J95:J97) -> 7.275957614e-12 | K98: =SUM(K95:K97) -> 0 | L98: =SUM(L95:L97) -> 0 | M98: =SUM(M95:M97) -> 3.637978807e-11 | N98: =SUM(N95:N97) -> 0 | O98: =SUM(O95:O97) -> 0 | P98: =SUM(P95:P97) -> 0 | Q98: =SUM(Q95:Q97) -> 0 | R98: =SUM(R95:R97) -> 0 | S98: =SUM(S95:S97) -> 0 | T98: =SUM(T95:T97) -> 0 | U98: =SUM(U95:U97) -> 0 | V98: =SUM(V95:V97) -> 0 | W98: =SUM(W95:W97) -> 0 | X98: =SUM(X95:X97) -> 0 | Y98: =SUM(Y95:Y97) -> 0 | Z98: =SUM(Z95:Z97) -> 0 | AA98: =SUM(AA95:AA97) -> 0 | AB98: =SUM(AB95:AB97) -> 0 | AC98: =SUM(AC95:AC97) -> 0 | AD98: =SUM(AD95:AD97) -> 0 | AE98: =SUM(AE95:AE97) -> -5.820766091e-11 | AF98: =SUM(AF95:AF97) -> -8.731149137e-11 | AG98: =SUM(AG95:AG97) -> -2.182787284e-10 | AH98: =SUM(AH95:AH97) -> 0 | AI98: =SUM(AI95:AI97) -> 2.69330296e-11 | AJ98: =SUM(AJ95:AJ97) -> 6.799326876e-11 | AK98: =SUM(AK95:AK97) -> 1.130102782e-10 | AL98: =SUM(AL95:AL97) -> 1.590140313e-10
A99: =SUM(A89:A98) -> -5.218225851e-11 | B99: (last, wc due to shifts in corporate taxes)
A102: CAPITALISED FLOWS BEFORE TAXES | D102: =D79 -> -33100 | E102: =E79 -> -49650 | F102: -66200 | G102: -105920 | H102: -56270 | I102: 24287.67278 | J102: 53868.7141 | K102: 54405.39882 | L102: 54947.41013 | M102: 55494.8005 | N102: 56047.62289 | O102: 56605.93077 | P102: 57169.77815 | Q102: 57739.21955 | R102: 58314.31001 | S102: 58895.1051 | T102: 59481.66096 | U102: 60074.03422 | V102: 60672.28211 | W102: 61276.46238 | X102: 61886.63335 | Y102: 62502.85389 | Z102: 63125.18346 | AA102: 63753.68208 | AB102: 64388.41034 | AC102: 65029.42943 | AD102: 65676.80113 | AE102: 66330.5878 | AF102: 66990.85241 | AG102: 67657.65854 | AH102: 11783.99856 | AI102: 0 | AJ102: 0 | AK102: 0 | AL102: 0
B103: pay back | C103: =SUM(D103:AL103) -> 2025 | E103: =IF(D102*E102<0,E4,"") ->  | I103: 2025 | M103: =IF(L102*M102<0,M4,"") -> 
A105: CAPITALISED FLOWS AFTER TAXES | D105: =D81 -> -33100 | E105: =E81 -> -49650 | F105: -66200 | G105: -105920 | H105: -56270 | I105: 22397.12341 | J105: 46920.70356 | K105: 47317.82918 | L105: 47688.1039 | M105: 48104.37453 | N105: 48315.49795 | O105: 48516.75181 | P105: 48707.27554 | Q105: 48886.15131 | R105: 49052.40042 | S105: 49204.97931 | T105: 49342.77534 | U105: 49464.60239 | V105: 49754.48541 | W105: 49945.52805 | X105: 50071.29283 | Y105: 50374.66284 | Z105: 50712.33351 | AA105: 51134.92676 | AB105: 51550.34328 | AC105: 52014.4205 | AD105: 52483.2608 | AE105: 52956.91094 | AF105: 53435.41815 | AG105: 53918.83009 | AH105: 11783.99856 | AI105: 0 | AJ105: 0 | AK105: 0 | AL105: 0
B106: pay back | C106: =SUM(D106:AL106) -> 4076 | E106: =IF(D105*E105<0,E4,"") ->  | I106: 2025
A108: PERMANENT PROJECT AFTER 30 YEARS
A110: REVENUES | B110: =MODELING!AG228 -> 73397.71321
A111: COSTS | B111: =MODELING!AG229 -> -1795.814566
A112: TAXES | B112: =MODELING!AG230 -> -3827.614864
B113: =SUM(B110:B112) -> 67774.28378
A114: TAXES CORP | B114: =-B113*INDEX(TaxCorp,1) -> -16943.57095
A115: NET PROFIT | B115: =B113+B114 -> 50830.71284
A117: inflation | B117: =INDEX(RateInflation,1) -> 0.01
A118: DF | B118: =INDEX(DF,1) -> 0.1
A119: NPV | B119: =B115/(B118-B117)/(1.08)^(30) -> 56126.89615

Sheet SIMULATIONS
D1: SCENARII TABLE | AN1: OUTPUT TABLE
E2: 1 | F2: 2 | G2: 3 | H2: 4 | I2: 5 | J2: 6 | K2: 7 | L2: 8 | M2: 9 | N2: 10 | O2: 11 | P2: 12 | Q2: 13 | R2: 14 | S2: 15 | T2: 16 | U2: 17 | V2: 18 | W2: 19 | X2: 20 | Y2: 21 | Z2: 22 | AA2: 23 | AB2: 24 | AC2: 25 | AD2: 26 | AE2: 27 | AF2: 28 | AG2: 29 | AH2: 30 | AI2: 31 | AJ2: 32 | AK2: 33 | AL2: 34 | AN2: 1 | AO2: 2 | AP2: 3 | AQ2: 4 | AR2: 5 | AS2: 6 | AT2: 7 | AU2: 8 | AV2: 9 | AW2: 10 | AX2: 11 | AY2: 12 | AZ2: 13 | BA2: 14 | BB2: 15 | BC2: 16 | BD2: 17 | BE2: 18 | BF2: 19 | BG2: 20 | BH2: 21 | BI2: 22 | BJ2: 23 | BK2: 24 | BL2: 25
E3: INFLATION RATE | F3: INITIAL PRICE | G3: PRICE INDEX | H3: CAPACITY | I3: AVAILABILITY | J3: COSTOM | K3: COSTFEE | L3: COSTENV | M3: TAXCA | N3: TAXCAP | O3: TAXCORP | P3: DELAYSCASHIN | Q3: DELAYSCASHOUT | R3: FINANCINGRATE | S3: RPEQUITY | T3: RPBQDEV | U3: RPBQEXP | V3: DURGRACE | W3: DURDEV | X3: DUREXP | Y3: DURCOM | Z3: AMODEV | AA3: AMOEXP | AB3: AMOCOM | AC3: RATEBQDEV | AD3: RATEBQEXP | AE3: RATEBQCOM | AF3: RATEDEPOSIT | AG3: RATEFUNDING | AH3: RATEDIVIDEND | AI3: RATERESERVE | AJ3: YEARRESERVE | AK3: DF | AL3: DSCRTARGET | AN3: =INDEX(INTRODUCTION!$B$15:$B$39,SIMULATIONS!AN2) -> OPERATIONS CASH FLOW BEF TAXES | AO3: =INDEX(INTRODUCTION!$B$15:$B$39,SIMULATIONS!AO2) -> OPEARATIONS CASH FLOW AFTER TAXES | AP3: =INDEX(INTRODUCTION!$B$15:$B$39,SIMULATIONS!AP2) -> OPERATIONS ACCOUNTING BEF TAXES | AQ3: =INDEX(INTRODUCTION!$B$15:$B$39,SIMULATIONS!AQ2) -> OPERATIONS ACCOUNTING AFTER TAXES | AR3: =INDEX(INTRODUCTION!$B$15:$B$39,SIMULATIONS!AR2) -> PROJECT ACCOUNTING BEFORE TAXES | AS3: =INDEX(INTRODUCTION!$B$15:$B$39,SIMULATIONS!AS2) -> PROJECT ACCOUNTING AFTER TAXES | AT3: =INDEX(INTRODUCTION!$B$15:$B$39,SIMULATIONS!AT2) -> ROE | AU3: =INDEX(INTRODUCTION!$B$15:$B$39,SIMULATIONS!AU2) -> DEBT RETURN | AV3: =INDEX(INTRODUCTION!$B$15:$B$39,SIMULATIONS!AV2) -> FINANCE - WACC | AW3: =INDEX(INTRODUCTION!$B$15:$B$39,SIMULATIONS!AW2) -> PLCR Mini | AX3: =INDEX(INTRODUCTION!$B$15:$B$39,SIMULATIONS!AX2) -> PLCR Average | AY3: =INDEX(INTRODUCTION!$B$15:$B$39,SIMULATIONS!AY2) -> LLCR Mini | AZ3: =INDEX(INTRODUCTION!$B$15:$B$39,SIMULATIONS!AZ2) -> LLCR Average | BA3: =INDEX(INTRODUCTION!$B$15:$B$39,SIMULATIONS!BA2) -> DSCR Mini | BB3: =INDEX(INTRODUCTION!$B$15:$B$39,SIMULATIONS!BB2) -> DSCR Average | BC3: =INDEX(INTRODUCTION!$B$15:$B$39,SIMULATIONS!BC2) -> Pay Back | BD3: =INDEX(INTRODUCTION!$B$15:$B$39,SIMULATIONS!BD2) -> OPERATIONS CASH FLOW BEF TAXES | BE3: =INDEX(INTRODUCTION!$B$15:$B$39,SIMULATIONS!BE2) -> OPEARATIONS CASH FLOW AFTER TAXES | BF3: =INDEX(INTRODUCTION!$B$15:$B$39,SIMULATIONS!BF2) -> OPERATIONS ACCOUNTING BEF TAXES | BG3: =INDEX(INTRODUCTION!$B$15:$B$39,SIMULATIONS!BG2) -> OPERATIONS ACCOUNTING AFTER TAXES | BH3: =INDEX(INTRODUCTION!$B$15:$B$39,SIMULATIONS!BH2) -> PROJECT ACCOUNTING BEFORE TAXES | BI3: =INDEX(INTRODUCTION!$B$15:$B$39,SIMULATIONS!BI2) -> PROJECT ACCOUNTING AFTER TAXES | BJ3: =INDEX(INTRODUCTION!$B$15:$B$39,SIMULATIONS!BJ2) -> ROE NPV | BK3: =INDEX(INTRODUCTION!$B$15:$B$39,SIMULATIONS!BK2) -> DEBT NPV | BL3: =INDEX(INTRODUCTION!$B$15:$B$39,SIMULATIONS!BL2) -> FINANCE NPV
AM4: 3 | AN4: =INDEX(INTRODUCTION!$E$15:$E$39,SIMULATIONS!AN2) -> 0.1317824317 | AO4: =INDEX(INTRODUCTION!$E$15:$E$39,SIMULATIONS!AO2) -> 0.1074906479 | AP4: =INDEX(INTRODUCTION!$E$15:$E$39,SIMULATIONS!AP2) -> 0.104639084 | AQ4: =INDEX(INTRODUCTION!$E$15:$E$39,SIMULATIONS!AQ2) -> 0.07739478079 | AR4: =INDEX(INTRODUCTION!$E$15:$E$39,SIMULATIONS!AR2) -> 0.7629934553 | AS4: =INDEX(INTRODUCTION!$E$15:$E$39,SIMULATIONS!AS2) -> 0.2048330928 | AT4: =INDEX(INTRODUCTION!$E$15:$E$39,SIMULATIONS!AT2) -> 0.1452130637 | AU4: =INDEX(INTRODUCTION!$E$15:$E$39,SIMULATIONS!AU2) -> 0.04494919488 | AV4: =INDEX(INTRODUCTION!$E$15:$E$39,SIMULATIONS!AV2) -> 0.1072348575 | AW4: =INDEX(INTRODUCTION!$E$15:$E$39,SIMULATIONS!AW2) -> 1.967086764 | AX4: =INDEX(INTRODUCTION!$E$15:$E$39,SIMULATIONS!AX2) -> 4.840505588 | AY4: =INDEX(INTRODUCTION!$E$15:$E$39,SIMULATIONS!AY2) -> 1.625876468 | AZ4: =INDEX(INTRODUCTION!$E$15:$E$39,SIMULATIONS!AZ2) -> 2.48445651 | BA4: =INDEX(INTRODUCTION!$E$15:$E$39,SIMULATIONS!BA2) -> 1.780821015 | BB4: =INDEX(INTRODUCTION!$E$15:$E$39,SIMULATIONS!BB2) -> 2.992426151 | BC4: =INDEX(INTRODUCTION!$E$15:$E$39,SIMULATIONS!BC2) -> 2025 | BD4: =INDEX(INTRODUCTION!$E$15:$E$39,SIMULATIONS!BD2) -> 80397.53042 | BE4: =INDEX(INTRODUCTION!$E$15:$E$39,SIMULATIONS!BE2) -> 17831.82763 | BF4: =INDEX(INTRODUCTION!$E$15:$E$39,SIMULATIONS!BF2) -> 10907.3241 | BG4: =INDEX(INTRODUCTION!$E$15:$E$39,SIMULATIONS!BG2) -> -48855.76563 | BH4: =INDEX(INTRODUCTION!$E$15:$E$39,SIMULATIONS!BH2) -> 186824.5901 | BI4: =INDEX(INTRODUCTION!$E$15:$E$39,SIMULATIONS!BI2) -> 122412.4516 | BJ4: =INDEX(INTRODUCTION!$E$15:$E$39,SIMULATIONS!BJ2) -> -55654.22058 | BK4: =INDEX(INTRODUCTION!$E$15:$E$39,SIMULATIONS!BK2) -> 78055.31316 | BL4: =INDEX(INTRODUCTION!$E$15:$E$39,SIMULATIONS!BL2) -> -17284.82757
D5: 1 | E5: 0.01 | F5: 98 | G5: 100 | H5: 500 | I5: 0.5 | J5: 10 | K5: 0.02 | L5: 0.01 | M5: 0.005 | N5: 0.0125 | O5: 0.3 | P5: 60 | Q5: 90 | R5: 0.11 | S5: 0.25 | T5: 0.5 | U5: 0.3 | V5: 7 | W5: 15 | X5: 12 | Y5: 7 | Z5: 1 | AA5: 2 | AB5: 2 | AC5: 0.02 | AD5: 0.06 | AE5: 0.07 | AF5: 0.01 | AG5: 0.05 | AH5: 1 | AI5: 0.9 | AJ5: 3 | AK5: 0.08 | AL5: 1.5 | AM5: 1 | AN5: 0.07249008143 | AO5: 0.05462948635 | AP5: 0.02955579358 | AQ5: 0.004920196063 | AR5: 0.3978179926 | AS5: 0.0976558393 | AT5: 0.07573173609 | AU5: 0.04014202191 | AV5: 0.05443666232 | AW5: 1.349537792 | AX5: 5.486118598 | AY5: 1.115491055 | AZ5: 2.457684068 | BA5: 0.4899314043 | BB5: 1.80740901 | BC5: 2025 | BD5: -19341.2658 | BE5: -61848.09693 | BF5: -112743.2251 | BG5: -151495.5056 | BH5: 83146.43662 | BI5: 20993.27696 | BJ5: 4587.640782 | BK5: 56096.75363 | BL5: 62612.62542
D6: 2 | E6: =E5 -> 0.01 | F6: =F5 -> 98 | G6: =G5 -> 100 | H6: 500 | I6: 1 | J6: 10 | K6: 0.02 | L6: 0.01 | M6: 0.005 | N6: 0.0125 | O6: 0.3 | P6: 60 | Q6: 90 | R6: 0.11 | S6: 0.25 | T6: 0.5 | U6: 0.3 | V6: 7 | W6: 15 | X6: 12 | Y6: 7 | Z6: 1 | AA6: 2 | AB6: 2 | AC6: 0.02 | AD6: 0.06 | AE6: 0.07 | AF6: 0.01 | AG6: 0.05 | AH6: 1 | AI6: 0.9 | AJ6: 3 | AK6: 0.08 | AL6: 1.5 | AM6: 2 | AN6: 0.08420162 | AO6: 0.06424889683 | AP6: 0.04652484403 | AQ6: 0.02078563497 | AR6: 0.4555673385 | AS6: 0.1208727609 | AT6: 0.09344096747 | AU6: 0.04014202191 | AV6: 0.0640764046 | AW6: 1.531380253 | AX6: 6.412409631 | AY6: 1.265158535 | AZ6: 2.839521702 | BA6: 1.084780051 | BB6: 2.08036747 | BC6: 2025 | BD6: 11488.40535 | BE6: -40376.15946 | BF6: -81550.77953 | BG6: -129660.7937 | BH6: 114415.0526 | BI6: 52261.89293 | BJ6: -15633.00765 | BK6: 56096.75363 | BL6: 40979.12106
D7: 3 | E7: 0.01 | F7: 110 | G7: =G6 -> 100 | H7: =H6 -> 500 | I7: =I6 -> 1 | J7: 2 | K7: 0.001 | L7: 0.0002 | M7: 0.003 | N7: 0.008 | O7: 0.25 | P7: =P6 -> 60 | Q7: =Q6 -> 90 | R7: 0.16 | S7: 0.25 | T7: 0.4 | U7: 0.4 | V7: 9 | W7: 20 | X7: 15 | Y7: 10 | Z7: 2 | AA7: 3 | AB7: 3 | AC7: =AC6 -> 0.02 | AD7: =AD6 -> 0.06 | AE7: =AE6 -> 0.07 | AF7: 0.005 | AG7: 0.1 | AH7: =AH6 -> 1 | AI7: =AI6 -> 0.9 | AJ7: =AJ6 -> 3 | AK7: 0.1 | AL7: =AL6 -> 1.5 | AM7: 3 | AN7: 0.1317824317 | AO7: 0.1074906479 | AP7: 0.104639084 | AQ7: 0.07739478079 | AR7: 0.7629934553 | AS7: 0.2048330928 | AT7: 0.1452130637 | AU7: 0.04494919488 | AV7: 0.1072348575 | AW7: 1.967086764 | AX7: 4.840505588 | AY7: 1.625876468 | AZ7: 2.48445651 | BA7: 1.780821015 | BB7: 2.992426151 | BC7: 2025 | BD7: 80397.53042 | BE7: 17831.82763 | BF7: 10907.3241 | BG7: -48855.76563 | BH7: 186824.5901 | BI7: 122412.4516 | BJ7: -55654.22058 | BK7: 78055.31316 | BL7: -17284.82757
D8: 4 | E8: 0.01 | F8: 98 | G8: 100 | H8: 500 | I8: 1 | J8: =J7 -> 2 | K8: =K7 -> 0.001 | L8: =L7 -> 0.0002 | M8: =M7 -> 0.003 | N8: =N7 -> 0.008 | O8: 0.25 | P8: 60 | Q8: 90 | R8: =R7 -> 0.16 | S8: 0.25 | T8: 0.4 | U8: 0.4 | V8: =V7 -> 9 | W8: =W7 -> 20 | X8: =X7 -> 15 | Y8: =Y7 -> 10 | Z8: =Z7 -> 2 | AA8: =AA7 -> 3 | AB8: =AB7 -> 3 | AC8: 0.02 | AD8: 0.06 | AE8: 0.07 | AF8: =AF7 -> 0.005 | AG8: =AG7 -> 0.1 | AH8: 1 | AI8: 1 | AJ8: 3 | AK8: =AK7 -> 0.1 | AL8: 1.5 | AM8: 4 | AN8: 0.1175165234 | AO8: 0.09555115264 | AP8: 0.0878694295 | AQ8: 0.06257246165 | AR8: 0.6496163562 | AS8: 0.1728346243 | AT8: 0.1210160381 | AU8: 0.04572165515 | AV8: 0.09486346571 | AW8: 1.735554145 | AX8: 3.294111598 | AY8: 1.434608566 | AZ8: 1.791071464 | BA8: 1.715043863 | BB8: 2.187302613 | BC8: 2025 | BD8: 42761.54262 | BE8: -10249.92214 | BF8: -27309.62803 | BG8: -77518.47973 | BH8: 146227.141 | BI8: 81815.00252 | BJ8: -24884.15265 | BK8: 79528.79861 | BL8: 11819.18411
D9: 5 | E9: 0.01 | F9: =F8 -> 98 | G9: 100 | H9: 500 | I9: 1 | J9: 2 | K9: 0.001 | L9: 0.0002 | M9: 0.003 | N9: 0.008 | O9: 0.3 | P9: 60 | Q9: 90 | R9: 0.16 | S9: 0.3 | T9: =T8 -> 0.4 | U9: =U8 -> 0.4 | V9: 9 | W9: 20 | X9: 15 | Y9: 10 | Z9: 2 | AA9: 3 | AB9: 3 | AC9: 0.02 | AD9: 0.06 | AE9: 0.07 | AF9: 0.005 | AG9: 0.1 | AH9: 1 | AI9: 1 | AJ9: 3 | AK9: 0.1 | AL9: 1.5 | AM9: 5 | AN9: 0.1175165234 | AO9: 0.09083067397 | AP9: 0.0878694295 | AQ9: 0.05688924507 | AR9: 0.656008166 | AS9: 0.1550167592 | AT9: 0.1021450444 | AU9: 0.04572165515 | AV9: 0.09008165485 | AW9: 1.735554145 | AX9: 3.294111598 | AY9: 1.434608566 | AZ9: 1.791071464 | BA9: 1.715043863 | BB9: 2.187302613 | BC9: 2025 | BD9: 42761.54262 | BE9: -20852.21509 | BF9: -27309.62803 | BG9: -87560.25006 | BH9: 146981.6522 | BI9: 69687.08605 | BJ9: -2828.850586 | BK9: 79528.79861 | BL9: 22533.98692
D10: 6 | E10: 0.01 | F10: 98 | G10: 100 | H10: 500 | I10: 1 | J10: 2 | K10: 0.001 | L10: 0.0002 | M10: 0.003 | N10: 0.008 | O10: =O9 -> 0.3 | P10: 60 | Q10: 90 | R10: 0.16 | S10: =S9 -> 0.3 | T10: 0.4 | U10: 0.4 | V10: 8 | W10: 20 | X10: 15 | Y10: 10 | Z10: 2 | AA10: 3 | AB10: 3 | AC10: 0.02 | AD10: 0.06 | AE10: 0.07 | AF10: 0.005 | AG10: 0.1 | AH10: 1 | AI10: 1 | AJ10: 3 | AK10: 0.1 | AL10: 1.5 | AM10: 6 | AN10: 0.1175165234 | AO10: 0.09083067397 | AP10: 0.0878694295 | AQ10: 0.05688924507 | AR10: 0.6573448586 | AS10: 0.1564630091 | AT10: 0.1055117528 | AU10: 0.04576784538 | AV10: 0.08980260198 | AW10: 1.735554145 | AX10: 4.419232216 | AY10: 1.470891919 | AZ10: 2.21199076 | BA10: 1.709696271 | BB10: 2.202253078 | BC10: 2025 | BD10: 42761.54262 | BE10: -20852.21509 | BF10: -27309.62803 | BG10: -87560.25006 | BH10: 149075.8434 | BI10: 71781.27725 | BJ10: -7211.377962 | BK10: 76382.28945 | BL10: 23115.74047
D11: 7 | E11: 0.01 | F11: 98 | G11: 100 | H11: 500 | I11: 1 | J11: 2 | K11: 0.001 | L11: 0.0002 | M11: 0.003 | N11: 0.008 | O11: 0.3 | P11: 60 | Q11: 90 | R11: 0.16 | S11: 0.3 | T11: 0.4 | U11: 0.4 | V11: 7 | W11: 20 | X11: 15 | Y11: 10 | Z11: 2 | AA11: 3 | AB11: 3 | AC11: 0.02 | AD11: 0.06 | AE11: 0.07 | AF11: 0.005 | AG11: 0.1 | AH11: 1 | AI11: 1 | AJ11: 4 | AK11: 0.1 | AL11: 1.5 | AM11: 7 | AN11: 0.1175165234 | AO11: 0.09083067397 | AP11: 0.0878694295 | AQ11: 0.05688924507 | AR11: 0.6597856994 | AS11: 0.1578594323 | AT11: 0.1101415719 | AU11: 0.04582485876 | AV11: 0.08948128404 | AW11: 1.735554145 | AX11: 7.008415874 | AY11: 1.500796213 | AZ11: 3.112105498 | BA11: 1.623564004 | BB11: 2.283310599 | BC11: 2025 | BD11: 42761.54262 | BE11: -20852.21509 | BF11: -27309.62803 | BG11: -87560.25006 | BH11: 150848.427 | BI11: 73553.8608 | BJ11: -12945.45143 | BK11: 72934.10995 | BL11: 23792.81152
D12: 8 | E12: 0.01 | F12: 98 | G12: 100 | H12: 500 | I12: 1 | J12: 2 | K12: 0.001 | L12: 0.0002 | M12: 0.003 | N12: 0.008 | O12: 0.3 | P12: 60 | Q12: 90 | R12: 0.16 | S12: 0.3 | T12: 0.4 | U12: 0.4 | V12: 7 | W12: 20 | X12: 15 | Y12: 10 | Z12: 2 | AA12: 1 | AB12: 1 | AC12: 0.02 | AD12: 0.06 | AE12: 0.07 | AF12: 0.005 | AG12: 0.1 | AH12: 1 | AI12: 1 | AJ12: 3 | AK12: 0.1 | AL12: 1.5 | AM12: 8 | AN12: 0.1175165234 | AO12: 0.09083067397 | AP12: 0.0878694295 | AQ12: 0.05688924507 | AR12: 0.6646205376 | AS12: 0.1620959162 | AT12: 0.1202749589 | AU12: 0.04364466715 | AV12: 0.0905851624 | AW12: 1.735554145 | AX12: 8.433551136 | AY12: 1.500796213 | AZ12: 3.874718991 | BA12: 1.272197317 | BB12: 2.830035607 | BC12: 2025 | BD12: 42761.54262 | BE12: -20852.21509 | BF12: -27309.62803 | BG12: -87560.25006 | BH12: 157280.8799 | BI12: 79986.31367 | BJ12: -24862.03166 | BK12: 69689.69248 | BL12: 21500.07799
C13: 0.01 | D13: 9 | E13: 0.01 | F13: 110 | G13: 100 | H13: 500 | I13: 1 | J13: 2 | K13: 0.001 | L13: 0.0002 | M13: 0.003 | N13: 0.008 | O13: 0.25 | P13: 60 | Q13: 90 | R13: 0.16 | S13: 0.25 | T13: 0.4 | U13: 0.4 | V13: 9 | W13: 20 | X13: 15 | Y13: 10 | Z13: 2 | AA13: 3 | AB13: 3 | AC13: 0.02 | AD13: 0.06 | AE13: 0.07 | AF13: 0.005 | AG13: 0.1 | AH13: 1 | AI13: 1 | AJ13: 3 | AK13: 0.1 | AL13: 1.5 | AM13: 9 | AN13: 0.1317824317 | AO13: 0.1074906479 | AP13: 0.104639084 | AQ13: 0.07739478079 | AR13: 0.7629745274 | AS13: 0.2048237293 | AT13: 0.1449956144 | AU13: 0.04494919488 | AV13: 0.1072348575 | AW13: 1.967086764 | AX13: 4.840505588 | AY13: 1.625876468 | AZ13: 2.48445651 | BA13: 1.780821015 | BB13: 2.992426151 | BC13: 2025 | BD13: 80397.53042 | BE13: 17831.82763 | BF13: 10907.3241 | BG13: -48855.76563 | BH13: 186814.7332 | BI13: 122402.5947 | BJ13: -55477.03329 | BK13: 78055.31316 | BL13: -17284.82757
A14: INFLATION RATE | B14: 0.01 | C14: 1 | D14: 10 | E14: =IF(E$2=$C14,(1+$C$13),1)*E$7 -> 0.0101 | F14: =IF(F$2=$C14,(1+$C$13),1)*F$7 -> 110 | G14: 100 | H14: 500 | I14: 1 | J14: 2 | K14: 0.001 | L14: 0.0002 | M14: 0.003 | N14: 0.008 | O14: 0.25 | P14: 60 | Q14: 90 | R14: 0.16 | S14: 0.25 | T14: 0.4 | U14: 0.4 | V14: 9 | W14: 20 | X14: 15 | Y14: 10 | Z14: 2 | AA14: 3 | AB14: 3 | AC14: 0.02 | AD14: 0.06 | AE14: 0.07 | AF14: 0.005 | AG14: 0.1 | AH14: 1 | AI14: 0.9 | AJ14: 3 | AK14: 0.1 | AL14: 1.5 | AM14: 10 | AN14: 0.1319183337 | AO14: 0.10761252 | AP14: 0.1048099557 | AQ14: 0.07755824179 | AR14: 0.763557011 | AS14: 0.2050856679 | AT14: 0.1454456899 | AU14: 0.0449425844 | AV14: 0.1073564555 | AW14: 1.969583692 | AX14: 4.857888738 | AY14: 1.627957566 | AZ14: 2.492308483 | BA14: 1.781266939 | BB14: 2.999323076 | BC14: 2025 | BD14: 80803.40998 | BE14: 18134.60231 | BF14: 11319.74363 | BG14: -48546.45098 | BH14: 187249.5261 | BI14: 122837.3877 | BJ14: -55988.02783 | BK14: 78042.75106 | BL14: -17587.60225
A15: INITIAL PRICE | B15: 110 | C15: 2 | D15: 11 | E15: =IF(E$2=$C15,(1+$C$13),1)*E$7 -> 0.01 | F15: 111.1 | G15: 100 | H15: 500 | I15: 1 | J15: 2 | K15: 0.001 | L15: 0.0002 | M15: 0.003 | N15: 0.008 | O15: 0.25 | P15: 60 | Q15: 90 | R15: 0.16 | S15: 0.25 | T15: 0.4 | U15: 0.4 | V15: 9 | W15: 20 | X15: 15 | Y15: 10 | Z15: 2 | AA15: 3 | AB15: 3 | AC15: 0.02 | AD15: 0.06 | AE15: 0.07 | AF15: 0.005 | AG15: 0.1 | AH15: 1 | AI15: 0.9 | AJ15: 3 | AK15: 0.1 | AL15: 1.5 | AM15: 11 | AN15: 0.1330445862 | AO15: 0.1085477216 | AP15: 0.1061065551 | AQ15: 0.07868753891 | AR15: 0.7726426591 | AS15: 0.207619978 | AT15: 0.147356013 | AU15: 0.04488656401 | AV15: 0.1082887597 | AW15: 1.988310587 | AX15: 4.961333013 | AY15: 1.643409358 | AZ15: 2.545700361 | BA15: 1.786303215 | BB15: 3.056611015 | BC15: 2025 | BD15: 83847.49597 | BE15: 20405.98803 | BF15: 14410.54471 | BG15: -46228.35017 | BH15: 190461.5733 | BI15: 126049.4348 | BJ15: -58452.1081 | BK15: 77935.25779 | BL15: -19858.98797
A16: PRICE INDEX | B16: 100 | C16: 3 | D16: 12 | E16: 0.01 | F16: 110 | G16: 101 | H16: 500 | I16: 1 | J16: 2 | K16: 0.001 | L16: 0.0002 | M16: 0.003 | N16: 0.008 | O16: 0.25 | P16: 60 | Q16: 90 | R16: 0.16 | S16: 0.25 | T16: 0.4 | U16: 0.4 | V16: 9 | W16: 20 | X16: 15 | Y16: 10 | Z16: 2 | AA16: 3 | AB16: 3 | AC16: 0.02 | AD16: 0.06 | AE16: 0.07 | AF16: 0.005 | AG16: 0.1 | AH16: 1 | AI16: 0.9 | AJ16: 3 | AK16: 0.1 | AL16: 1.5 | AM16: 12 | AN16: 0.1330445862 | AO16: 0.1085477216 | AP16: 0.1061065551 | AQ16: 0.07868753891 | AR16: 0.7726426591 | AS16: 0.207619978 | AT16: 0.147356013 | AU16: 0.04488656401 | AV16: 0.1082887597 | AW16: 1.988310587 | AX16: 4.961333013 | AY16: 1.643409358 | AZ16: 2.545700361 | BA16: 1.786303215 | BB16: 3.056611015 | BC16: 2025 | BD16: 83847.49597 | BE16: 20405.98803 | BF16: 14410.54471 | BG16: -46228.35017 | BH16: 190461.5733 | BI16: 126049.4348 | BJ16: -58452.1081 | BK16: 77935.25779 | BL16: -19858.98797
A17: CAPACITY | B17: 500 | C17: 4 | D17: 13 | E17: 0.01 | F17: 110 | G17: 100 | H17: 505 | I17: 1 | J17: 2 | K17: 0.001 | L17: 0.0002 | M17: 0.003 | N17: 0.008 | O17: 0.25 | P17: 60 | Q17: 90 | R17: 0.16 | S17: 0.25 | T17: 0.4 | U17: 0.4 | V17: 9 | W17: 20 | X17: 15 | Y17: 10 | Z17: 2 | AA17: 3 | AB17: 3 | AC17: 0.02 | AD17: 0.06 | AE17: 0.07 | AF17: 0.005 | AG17: 0.1 | AH17: 1 | AI17: 0.9 | AJ17: 3 | AK17: 0.1 | AL17: 1.5 | AM17: 13 | AN17: 0.1330218462 | AO17: 0.1085286968 | AP17: 0.1060798713 | AQ17: 0.07866403691 | AR17: 0.7724676616 | AS17: 0.2075693196 | AT17: 0.1473168617 | AU17: 0.04488771021 | AV17: 0.1082697916 | AW17: 1.987926248 | AX17: 4.959052471 | AY17: 1.643089674 | AZ17: 2.544548598 | BA17: 1.786204018 | BB17: 3.055281174 | BC17: 2025 | BD17: 83785.02096 | BE17: 20359.495 | BF17: 14346.61679 | BG17: -46276.29611 | BH17: 190395.2853 | BI17: 125983.1468 | BJ17: -58400.91957 | BK17: 77937.44669 | BL17: -19812.49494
A18: AVAILABILITY | B18: 1 | C18: 5 | D18: 14 | E18: 0.01 | F18: 110 | G18: 100 | H18: 500 | I18: 1.01 | J18: 2 | K18: 0.001 | L18: 0.0002 | M18: 0.003 | N18: 0.008 | O18: 0.25 | P18: 60 | Q18: 90 | R18: 0.16 | S18: 0.25 | T18: 0.4 | U18: 0.4 | V18: 9 | W18: 20 | X18: 15 | Y18: 10 | Z18: 2 | AA18: 3 | AB18: 3 | AC18: 0.02 | AD18: 0.06 | AE18: 0.07 | AF18: 0.005 | AG18: 0.1 | AH18: 1 | AI18: 0.9 | AJ18: 3 | AK18: 0.1 | AL18: 1.5 | AM18: 14 | AN18: 0.1319776682 | AO18: 0.107662175 | AP18: 0.1048786379 | AQ18: 0.07761752225 | AR18: 0.7634697601 | AS18: 0.205220788 | AT18: 0.1456161073 | AU18: 0.04493196082 | AV18: 0.1074059571 | AW18: 1.970574786 | AX18: 4.866907019 | AY18: 1.629679157 | AZ18: 2.49780525 | BA18: 1.785325194 | BB18: 3.00274211 | BC18: 4076 | BD18: 80964.51389 | BE18: 18254.89747 | BF18: 11482.97863 | BG18: -48424.02473 | BH18: 187441.1084 | BI18: 123028.9699 | BJ18: -56186.24664 | BK18: 78021.17769 | BL18: -17707.89741
A19: COSTOM | B19: 2 | C19: 6 | D19: 15 | E19: 0.01 | F19: 110 | G19: 100 | H19: 500 | I19: 1 | J19: 2.02 | K19: 0.001 | L19: 0.0002 | M19: 0.003 | N19: 0.008 | O19: 0.25 | P19: 60 | Q19: 90 | R19: 0.16 | S19: 0.25 | T19: 0.4 | U19: 0.4 | V19: 9 | W19: 20 | X19: 15 | Y19: 10 | Z19: 2 | AA19: 3 | AB19: 3 | AC19: 0.02 | AD19: 0.06 | AE19: 0.07 | AF19: 0.005 | AG19: 0.1 | AH19: 1 | AI19: 0.9 | AJ19: 3 | AK19: 0.1 | AL19: 1.5 | AM19: 15 | AN19: 0.1317595612 | AO19: 0.1074715155 | AP19: 0.1046122061 | AQ19: 0.0773710958 | AR19: 0.76281644 | AS19: 0.2047821218 | AT19: 0.1451736673 | AU19: 0.04495033237 | AV19: 0.1072157819 | AW19: 1.966702424 | AX19: 4.838372025 | AY19: 1.625556783 | AZ19: 2.483374544 | BA19: 1.780720289 | BB19: 2.991399197 | BC19: 2025 | BD19: 80335.05541 | BE19: 17785.3346 | BF19: 10843.39618 | BG19: -48903.71157 | BH19: 186758.3022 | BI19: 122346.1637 | BJ19: -55603.03205 | BK19: 78057.50205 | BL19: -17238.33454
A20: COSTFEE | B20: 0.001 | C20: 7 | D20: 16 | E20: 0.01 | F20: 110 | G20: 100 | H20: 500 | I20: 1 | J20: 2 | K20: 0.00101 | L20: 0.0002 | M20: 0.003 | N20: 0.008 | O20: 0.25 | P20: 60 | Q20: 90 | R20: 0.16 | S20: 0.25 | T20: 0.4 | U20: 0.4 | V20: 9 | W20: 20 | X20: 15 | Y20: 10 | Z20: 2 | AA20: 3 | AB20: 3 | AC20: 0.02 | AD20: 0.06 | AE20: 0.07 | AF20: 0.005 | AG20: 0.1 | AH20: 1 | AI20: 0.9 | AJ20: 3 | AK20: 0.1 | AL20: 1.5 | AM20: 16 | AN20: 0.1317748618 | AO20: 0.1074843153 | AP20: 0.1046301878 | AQ20: 0.07738694143 | AR20: 0.7629348673 | AS20: 0.2048162221 | AT20: 0.145200024 | AU20: 0.0449495714 | AV20: 0.1072285437 | AW20: 1.966959547 | AX20: 4.839799106 | AY20: 1.625770652 | AZ20: 2.484098249 | BA20: 1.780787678 | BB20: 2.992085777 | BC20: 2025 | BD20: 80376.85119 | BE20: 17816.43844 | BF20: 10886.16396 | BG20: -48871.63573 | BH20: 186802.6488 | BI20: 122390.5103 | BJ20: -55637.27718 | BK20: 78056.03768 | BL20: -17269.43838
A21: COSTENV | B21: 0.0002 | C21: 8 | D21: 17 | E21: 0.01 | F21: 110 | G21: 100 | H21: 500 | I21: 1 | J21: 2 | K21: 0.001 | L21: 0.000202 | M21: 0.003 | N21: 0.008 | O21: 0.25 | P21: 60 | Q21: 90 | R21: 0.16 | S21: 0.25 | T21: 0.4 | U21: 0.4 | V21: 9 | W21: 20 | X21: 15 | Y21: 10 | Z21: 2 | AA21: 3 | AB21: 3 | AC21: 0.02 | AD21: =IF(AD$2=$C21,(1+$C$13),1)*AD$7 -> 0.06 | AE21: 0.07 | AF21: 0.005 | AG21: 0.1 | AH21: 1 | AI21: 0.9 | AJ21: 3 | AK21: 0.1 | AL21: 1.5 | AM21: 17 | AN21: 0.1317821484 | AO21: 0.1074904089 | AP21: 0.1046387479 | AQ21: 0.07739448131 | AR21: 0.762991381 | AS21: 0.2048324736 | AT21: 0.1452125756 | AU21: 0.04494920891 | AV21: 0.1072346192 | AW21: 1.967081949 | AX21: 4.840477969 | AY21: 1.625872466 | AZ21: 2.484442766 | BA21: 1.780819806 | BB21: 2.992413243 | BC21: 2025 | BD21: 80396.74769 | BE21: 17831.24513 | BF21: 10906.52316 | BG21: -48856.36633 | BH21: 186823.7605 | BI21: 122411.6221 | BJ21: -55653.57842 | BK21: 78055.34012 | BL21: -17284.24507
A22: TAXCA | B22: 0.003 | C22: 9 | D22: 18 | E22: 0.01 | F22: 110 | G22: 100 | H22: 500 | I22: 1 | J22: 2 | K22: 0.001 | L22: 0.0002 | M22: 0.00303 | N22: 0.008 | O22: 0.25 | P22: 60 | Q22: 90 | R22: 0.16 | S22: 0.25 | T22: 0.4 | U22: =IF(U$2=$C22,(1+$C$13),1)*U$7 -> 0.4 | V22: 9 | W22: 20 | X22: 15 | Y22: 10 | Z22: 2 | AA22: 3 | AB22: 3 | AC22: 0.02 | AD22: 0.06 | AE22: 0.07 | AF22: 0.005 | AG22: 0.1 | AH22: 1 | AI22: 0.9 | AJ22: 3 | AK22: 0.1 | AL22: 1.5 | AM22: 18 | AN22: 0.131778055 | AO22: 0.1074869428 | AP22: 0.104634042 | AQ22: 0.07739028844 | AR22: 0.7629623103 | AS22: 0.2048237801 | AT22: 0.1452058316 | AU22: 0.04494940643 | AV22: 0.1072311634 | AW22: 1.967012855 | AX22: 4.84009129 | AY22: 1.625816154 | AZ22: 2.484249256 | BA22: 1.780802795 | BB22: 2.992229522 | BC22: 2025 | BD22: 80385.51637 | BE22: 17822.8171 | BF22: 10895.31005 | BG22: -48864.77616 | BH22: 186812.0972 | BI22: 122399.9587 | BJ22: -55644.65744 | BK22: 78055.71966 | BL22: -17275.81704
A23: TAXCAP | B23: 0.008 | C23: 10 | D23: 19 | E23: 0.01 | F23: 110 | G23: 100 | H23: 500 | I23: 1 | J23: 2 | K23: 0.001 | L23: 0.0002 | M23: 0.003 | N23: 0.00808 | O23: 0.25 | P23: 60 | Q23: 90 | R23: 0.16 | S23: 0.25 | T23: 0.4 | U23: 0.4 | V23: 9 | W23: 20 | X23: 15 | Y23: 10 | Z23: 2 | AA23: 3 | AB23: 3 | AC23: 0.02 | AD23: 0.06 | AE23: 0.07 | AF23: 0.005 | AG23: 0.1 | AH23: 1 | AI23: 0.9 | AJ23: 3 | AK23: 0.1 | AL23: 1.5 | AM23: 19 | AN23: 0.1317200499 | AO23: 0.1074382875 | AP23: 0.1045679035 | AQ23: 0.07733205555 | AR23: 0.7625241845 | AS23: 0.2046977964 | AT23: 0.1451100683 | AU23: 0.04495221408 | AV23: 0.1071826564 | AW23: 1.966045364 | AX23: 4.834870918 | AY23: 1.625027842 | AZ23: 2.481585428 | BA23: 1.780553568 | BB23: 2.989676313 | BC23: 2025 | BD23: 80228.24929 | BE23: 17704.86678 | BF23: 10738.04297 | BG23: -48982.72648 | BH23: 186648.4144 | BI23: 122236.2759 | BJ23: -55519.7243 | BK23: 78061.12374 | BL23: -17157.86672
A24: TAXCORP | B24: 0.25 | C24: 11 | D24: 20 | E24: 0.01 | F24: 110 | G24: 100 | H24: 500 | I24: 1 | J24: 2 | K24: 0.001 | L24: 0.0002 | M24: 0.003 | N24: 0.008 | O24: 0.2525 | P24: 60 | Q24: 90 | R24: 0.16 | S24: 0.25 | T24: 0.4 | U24: 0.4 | V24: 9 | W24: 20 | X24: 15 | Y24: 10 | Z24: 2 | AA24: 3 | AB24: 3 | AC24: 0.02 | AD24: 0.06 | AE24: 0.07 | AF24: 0.005 | AG24: 0.1 | AH24: 1 | AI24: 0.9 | AJ24: 3 | AK24: 0.1 | AL24: 1.5 | AM24: 20 | AN24: 0.1317824317 | AO24: 0.107232688 | AP24: 0.104639084 | AQ24: 0.07709627187 | AR24: 0.7629903245 | AS24: 0.2048325565 | AT24: 0.1448824569 | AU24: 0.04494919488 | AV24: 0.1069751342 | AW24: 1.967086764 | AX24: 4.840505588 | AY24: 1.625876468 | AZ24: 2.48445651 | BA24: 1.780821015 | BB24: 2.992426151 | BC24: 2025 | BD24: 80397.53042 | BE24: 17206.17061 | BF24: 10907.3241 | BG24: -49453.39652 | BH24: 186824.1473 | BI24: 122412.0088 | BJ24: -55196.73035 | BK24: 78055.31316 | BL24: -16653.70054
A25: DELAYSCASHIN | B25: 60 | C25: 12 | D25: 21 | E25: 0.01 | F25: 110 | G25: 100 | H25: 500 | I25: 1 | J25: 2 | K25: 0.001 | L25: 0.0002 | M25: 0.003 | N25: 0.008 | O25: 0.25 | P25: 60.6 | Q25: 90 | R25: 0.16 | S25: 0.25 | T25: 0.4 | U25: 0.4 | V25: 9 | W25: 20 | X25: 15 | Y25: 10 | Z25: 2 | AA25: 3 | AB25: 3 | AC25: 0.02 | AD25: 0.06 | AE25: 0.07 | AF25: 0.005 | AG25: 0.1 | AH25: 1 | AI25: 0.9 | AJ25: 3 | AK25: 0.1 | AL25: 1.5 | AM25: 21 | AN25: 0.1317572932 | AO25: 0.1074671975 | AP25: 0.104639084 | AQ25: 0.07739478079 | AR25: 0.762987185 | AS25: 0.2048287669 | AT25: 0.1452315726 | AU25: 0.04494929838 | AV25: 0.1072115287 | AW25: 1.966759032 | AX25: 4.840638686 | AY25: 1.625847381 | AZ25: 2.484337265 | BA25: 1.780811851 | BB25: 2.991880802 | BC25: 2025 | BD25: 80344.25716 | BE25: 17778.55437 | BF25: 10907.3241 | BG25: -48855.76563 | BH25: 186815.6565 | BI25: 122403.518 | BJ25: -55668.77286 | BK25: 78055.51231 | BL25: -17231.55431
A26: DELAYSCASHOUT | B26: 90 | C26: 13 | D26: 22 | E26: 0.01 | F26: 110 | G26: 100 | H26: 500 | I26: 1 | J26: 2 | K26: 0.001 | L26: 0.0002 | M26: 0.003 | N26: 0.008 | O26: 0.25 | P26: 60 | Q26: 90.9 | R26: 0.16 | S26: 0.25 | T26: 0.4 | U26: 0.4 | V26: 9 | W26: 20 | X26: 15 | Y26: 10 | Z26: 2 | AA26: 3 | AB26: 3 | AC26: 0.02 | AD26: 0.06 | AE26: 0.07 | AF26: 0.005 | AG26: 0.1 | AH26: 1 | AI26: 0.9 | AJ26: 3 | AK26: 0.1 | AL26: 1.5 | AM26: 22 | AN26: 0.1317833528 | AO26: 0.1074915072 | AP26: 0.104639084 | AQ26: 0.07739478079 | AR26: 0.7629936849 | AS26: 0.2048332514 | AT26: 0.1452123859 | AU26: 0.04494919105 | AV26: 0.1072357124 | AW26: 1.967098773 | AX26: 4.84050076 | AY26: 1.625877543 | AZ26: 2.484460913 | BA26: 1.780821353 | BB26: 2.992446153 | BC26: 2025 | BD26: 80399.48244 | BE26: 17833.77966 | BF26: 10907.3241 | BG26: -48855.76563 | BH26: 186824.9177 | BI26: 122412.7792 | BJ26: -55653.68772 | BK26: 78055.3058 | BL26: -17286.7796
A27: FINANCINGRATE | B27: 0.16 | C27: 14 | D27: 23 | E27: 0.01 | F27: 110 | G27: 100 | H27: 500 | I27: 1 | J27: 2 | K27: 0.001 | L27: 0.0002 | M27: 0.003 | N27: 0.008 | O27: 0.25 | P27: 60 | Q27: 90 | R27: 0.1616 | S27: 0.25 | T27: 0.4 | U27: 0.4 | V27: 9 | W27: 20 | X27: 15 | Y27: 10 | Z27: 2 | AA27: 3 | AB27: 3 | AC27: 0.02 | AD27: 0.06 | AE27: 0.07 | AF27: 0.005 | AG27: 0.1 | AH27: 1 | AI27: 0.9 | AJ27: 3 | AK27: 0.1 | AL27: 1.5 | AM27: 23 | AN27: 0.1317824317 | AO27: 0.1074906479 | AP27: 0.104639084 | AQ27: 0.07739478079 | AR27: 0.7622166768 | AS27: 0.2045731791 | AT27: 0.1449523784 | AU27: 0.04495716051 | AV27: 0.1072345849 | AW27: 1.964377278 | AX27: 4.825631739 | AY27: 1.623636968 | AZ27: 2.476900726 | BA27: 1.780114686 | BB27: 2.985289859 | BC27: 2025 | BD27: 80397.53042 | BE27: 17831.82763 | BF27: 10907.3241 | BG27: -48855.76563 | BH27: 186739.8206 | BI27: 122238.8378 | BJ27: -55409.77616 | BK27: 78178.33171 | BL27: -17284.24228
A28: RPEQUITY | B28: 0.25 | C28: 15 | D28: 24 | E28: 0.01 | F28: 110 | G28: 100 | H28: 500 | I28: 1 | J28: 2 | K28: 0.001 | L28: 0.0002 | M28: 0.003 | N28: 0.008 | O28: 0.25 | P28: 60 | Q28: 90 | R28: 0.16 | S28: 0.2525 | T28: 0.4 | U28: 0.4 | V28: 9 | W28: 20 | X28: 15 | Y28: 10 | Z28: 2 | AA28: 3 | AB28: 3 | AC28: 0.02 | AD28: 0.06 | AE28: 0.07 | AF28: 0.005 | AG28: 0.1 | AH28: 1 | AI28: 0.9 | AJ28: 3 | AK28: 0.1 | AL28: 1.5 | AM28: 24 | AN28: 0.1317824317 | AO28: 0.1074906479 | AP28: 0.104639084 | AQ28: 0.07739478079 | AR28: 0.7633393276 | AS28: 0.2036745845 | AT28: 0.1442975646 | AU28: 0.04494919488 | AV28: 0.1072350234 | AW28: 1.967086764 | AX28: 4.840505588 | AY28: 1.625876468 | AZ28: 2.48445651 | BA28: 1.780821015 | BB28: 2.992426151 | BC28: 2025 | BD28: 80397.53042 | BE28: 17831.82763 | BF28: 10907.3241 | BG28: -48855.76563 | BH28: 186906.8752 | BI28: 121850.6154 | BJ28: -54908.08794 | BK28: 78055.31316 | BL28: -17285.18329
A29: RPBQDEV | B29: 0.4 | C29: 16 | D29: 25 | E29: 0.01 | F29: 110 | G29: 100 | H29: 500 | I29: 1 | J29: 2 | K29: 0.001 | L29: 0.0002 | M29: 0.003 | N29: 0.008 | O29: 0.25 | P29: 60 | Q29: 90 | R29: 0.16 | S29: 0.25 | T29: 0.404 | U29: 0.4 | V29: 9 | W29: 20 | X29: 15 | Y29: 10 | Z29: 2 | AA29: 3 | AB29: 3 | AC29: 0.02 | AD29: 0.06 | AE29: 0.07 | AF29: 0.005 | AG29: 0.1 | AH29: 1 | AI29: 0.9 | AJ29: 3 | AK29: 0.1 | AL29: 1.5 | AM29: 25 | AN29: 0.1317824317 | AO29: 0.1074906479 | AP29: 0.104639084 | AQ29: 0.07739478079 | AR29: 0.7660387625 | AS29: 0.2051547415 | AT29: 0.1453771684 | AU29: 0.0447431651 | AV29: 0.1072360054 | AW29: 1.967086764 | AX29: 4.816736881 | AY29: 1.625876468 | AZ29: 2.476136207 | BA29: 1.784161215 | BB29: 2.991114843 | BC29: 2025 | BD29: 80397.53042 | BE29: 17831.82763 | BF29: 10907.3241 | BG29: -48855.76563 | BH29: 187118.5059 | BI29: 122706.3674 | BJ29: -55842.42759 | BK29: 78360.75207 | BL29: -17287.29116
A30: RPBQEXP | B30: 0.4 | C30: 17 | D30: 26 | E30: 0.01 | F30: 110 | G30: 100 | H30: 500 | I30: 1 | J30: 2 | K30: 0.001 | L30: 0.0002 | M30: 0.003 | N30: 0.008 | O30: 0.25 | P30: 60 | Q30: 90 | R30: 0.16 | S30: 0.25 | T30: 0.4 | U30: 0.404 | V30: 9 | W30: 20 | X30: 15 | Y30: 10 | Z30: 2 | AA30: 3 | AB30: 3 | AC30: 0.02 | AD30: 0.06 | AE30: 0.07 | AF30: 0.005 | AG30: 0.1 | AH30: 1 | AI30: 0.9 | AJ30: 3 | AK30: 0.1 | AL30: 1.5 | AM30: 26 | AN30: 0.1317824317 | AO30: 0.1074906479 | AP30: 0.104639084 | AQ30: 0.07739478079 | AR30: 0.7636024204 | AS30: 0.204899657 | AT30: 0.14525683 | AU30: 0.04490774935 | AV30: 0.1072350871 | AW30: 1.967086764 | AX30: 4.842699371 | AY30: 1.625876468 | AZ30: 2.485575626 | BA30: 1.780821015 | BB30: 2.994297747 | BC30: 2025 | BD30: 80397.53042 | BE30: 17831.82763 | BF30: 10907.3241 | BG30: -48855.76563 | BH30: 186886.4655 | BI30: 122474.327 | BJ30: -55704.05255 | BK30: 78106.78479 | BL30: -17285.32029
A31: DURGRACE | B31: 9 | C31: 18 | D31: 27 | E31: 0.01 | F31: 110 | G31: 100 | H31: 500 | I31: 1 | J31: 2 | K31: 0.001 | L31: 0.0002 | M31: 0.003 | N31: 0.008 | O31: 0.25 | P31: 60 | Q31: 90 | R31: 0.16 | S31: 0.25 | T31: 0.4 | U31: 0.4 | V31: 9.09 | W31: 20 | X31: 15 | Y31: 10 | Z31: 2 | AA31: 3 | AB31: 3 | AC31: 0.02 | AD31: 0.06 | AE31: 0.07 | AF31: 0.005 | AG31: 0.1 | AH31: 1 | AI31: 0.9 | AJ31: 3 | AK31: 0.1 | AL31: 1.5 | AM31: 27 | AN31: 0.1317824317 | AO31: 0.1074906479 | AP31: 0.104639084 | AQ31: 0.07739478079 | AR31: 0.7629934553 | AS31: 0.2048330928 | AT31: 0.1452130637 | AU31: 0.04494919488 | AV31: 0.1072348575 | AW31: 1.967086764 | AX31: 4.840505588 | AY31: 1.625876468 | AZ31: 2.48445651 | BA31: 1.780821015 | BB31: 2.992426151 | BC31: 2025 | BD31: 80397.53042 | BE31: 17831.82763 | BF31: 10907.3241 | BG31: -48855.76563 | BH31: 186824.5901 | BI31: 122412.4516 | BJ31: -55654.22058 | BK31: 78055.31316 | BL31: -17284.82757
A32: DURDEV | B32: 20 | C32: 19 | D32: 28 | E32: 0.01 | F32: 110 | G32: 100 | H32: 500 | I32: 1 | J32: 2 | K32: 0.001 | L32: 0.0002 | M32: 0.003 | N32: 0.008 | O32: 0.25 | P32: 60 | Q32: 90 | R32: 0.16 | S32: 0.25 | T32: 0.4 | U32: 0.4 | V32: 9 | W32: 20.2 | X32: 15 | Y32: 10 | Z32: 2 | AA32: 3 | AB32: 3 | AC32: 0.02 | AD32: 0.06 | AE32: 0.07 | AF32: 0.005 | AG32: 0.1 | AH32: 1 | AI32: 0.9 | AJ32: 3 | AK32: 0.1 | AL32: 1.5 | AM32: 28 | AN32: 0.1317824317 | AO32: 0.1074906479 | AP32: 0.104639084 | AQ32: 0.07739478079 | AR32: 0.7629934553 | AS32: 0.2048330928 | AT32: 0.1452130637 | AU32: 0.04494919488 | AV32: 0.1072348575 | AW32: 1.967086764 | AX32: 4.840505588 | AY32: 1.625876468 | AZ32: 2.48445651 | BA32: 1.780821015 | BB32: 2.992426151 | BC32: 2025 | BD32: 80397.53042 | BE32: 17831.82763 | BF32: 10907.3241 | BG32: -48855.76563 | BH32: 186824.5901 | BI32: 122412.4516 | BJ32: -55654.22058 | BK32: 78055.31316 | BL32: -17284.82757
A33: DUREXP | B33: 15 | C33: 20 | D33: 29 | E33: 0.01 | F33: 110 | G33: 100 | H33: 500 | I33: 1 | J33: 2 | K33: 0.001 | L33: 0.0002 | M33: 0.003 | N33: 0.008 | O33: 0.25 | P33: 60 | Q33: 90 | R33: 0.16 | S33: 0.25 | T33: 0.4 | U33: 0.4 | V33: 9 | W33: 20 | X33: 15.15 | Y33: 10 | Z33: 2 | AA33: 3 | AB33: 3 | AC33: 0.02 | AD33: 0.06 | AE33: 0.07 | AF33: 0.005 | AG33: 0.1 | AH33: 1 | AI33: 0.9 | AJ33: 3 | AK33: 0.1 | AL33: 1.5 | AM33: 29 | AN33: 0.1317824317 | AO33: 0.1074906479 | AP33: 0.104639084 | AQ33: 0.07739478079 | AR33: 0.7629934553 | AS33: 0.2048330928 | AT33: 0.1452130637 | AU33: 0.04494919488 | AV33: 0.1072348575 | AW33: 1.967086764 | AX33: 4.840505588 | AY33: 1.625876468 | AZ33: 2.48445651 | BA33: 1.780821015 | BB33: 2.992426151 | BC33: 2025 | BD33: 80397.53042 | BE33: 17831.82763 | BF33: 10907.3241 | BG33: -48855.76563 | BH33: 186824.5901 | BI33: 122412.4516 | BJ33: -55654.22058 | BK33: 78055.31316 | BL33: -17284.82757
A34: DURCOM | B34: 10 | C34: 21 | D34: 30 | E34: 0.01 | F34: 110 | G34: 100 | H34: 500 | I34: 1 | J34: 2 | K34: 0.001 | L34: 0.0002 | M34: 0.003 | N34: 0.008 | O34: 0.25 | P34: 60 | Q34: 90 | R34: 0.16 | S34: 0.25 | T34: 0.4 | U34: 0.4 | V34: 9 | W34: 20 | X34: 15 | Y34: 10.1 | Z34: 2 | AA34: 3 | AB34: 3 | AC34: 0.02 | AD34: 0.06 | AE34: 0.07 | AF34: 0.005 | AG34: 0.1 | AH34: 1 | AI34: 0.9 | AJ34: 3 | AK34: 0.1 | AL34: 1.5 | AM34: 30 | AN34: 0.1317824317 | AO34: 0.1074906479 | AP34: 0.104639084 | AQ34: 0.07739478079 | AR34: 0.7629934553 | AS34: 0.2048330928 | AT34: 0.1452130637 | AU34: 0.04494919488 | AV34: 0.1072348575 | AW34: 1.967086764 | AX34: 4.840505588 | AY34: 1.625876468 | AZ34: 2.48445651 | BA34: 1.780821015 | BB34: 2.992426151 | BC34: 2025 | BD34: 80397.53042 | BE34: 17831.82763 | BF34: 10907.3241 | BG34: -48855.76563 | BH34: 186824.5901 | BI34: 122412.4516 | BJ34: -55654.22058 | BK34: 78055.31316 | BL34: -17284.82757
A35: AMODEV | B35: 2 | C35: 22 | D35: 31 | E35: 0.01 | F35: 110 | G35: 100 | H35: 500 | I35: 1 | J35: 2 | K35: 0.001 | L35: 0.0002 | M35: 0.003 | N35: 0.008 | O35: 0.25 | P35: 60 | Q35: 90 | R35: 0.16 | S35: 0.25 | T35: 0.4 | U35: 0.4 | V35: 9 | W35: 20 | X35: 15 | Y35: 10 | Z35: 2.02 | AA35: 3 | AB35: 3 | AC35: 0.02 | AD35: 0.06 | AE35: 0.07 | AF35: 0.005 | AG35: 0.1 | AH35: 1 | AI35: 0.9 | AJ35: 3 | AK35: 0.1 | AL35: 1.5 | AM35: 31 | AN35: 0.1317824317 | AO35: 0.1074906479 | AP35: 0.104639084 | AQ35: 0.07739478079 | AR35: 0.8999924677 | AS35: 0.2186168173 | AT35: 0.1562601961 | AU35: 0.06339775997 | AV35: 0.1570812768 | BC35: 4076 | BD35: 80397.53042 | BE35: 17831.82763 | BF35: 10907.3241 | BG35: -48855.76563 | BH35: 200310.4929 | BI35: 135898.3544 | BJ35: -67295.05421 | BK35: 30565.71818 | BL35: -100679.0807
A36: AMOEXP | B36: 3 | C36: 23 | D36: 32 | E36: 0.01 | F36: 110 | G36: 100 | H36: 500 | I36: 1 | J36: 2 | K36: 0.001 | L36: 0.0002 | M36: 0.003 | N36: 0.008 | O36: 0.25 | P36: 60 | Q36: 90 | R36: 0.16 | S36: 0.25 | T36: 0.4 | U36: 0.4 | V36: 9 | W36: 20 | X36: 15 | Y36: 10 | Z36: 2 | AA36: 3.03 | AB36: 3 | AC36: 0.02 | AD36: 0.06 | AE36: 0.07 | AF36: 0.005 | AG36: 0.1 | AH36: 1 | AI36: 0.9 | AJ36: 3 | AK36: 0.1 | AL36: 1.5 | AM36: 32 | AN36: 0.1317824317 | AO36: 0.1074906479 | AP36: 0.104639084 | AQ36: 0.07739478079 | AR36: 1.331506979 | AS36: 0.2456386388 | AT36: 0.1780185055 | AU36: 0.03568601931 | AV36: 0.1573118973 | AW36: 3.27847794 | AX36: 6.141645322 | AY36: 2.709794113 | AZ36: 3.408987891 | BA36: 3.391301073 | BB36: 5.031411829 | BC36: 4076 | BD36: 80397.53042 | BE36: 17831.82763 | BF36: 10907.3241 | BG36: -48855.76563 | BH36: 221915.2209 | BI36: 157503.0824 | BJ36: -86236.30365 | BK36: 55962.44663 | BL36: -100876.1679
A37: AMOCOM | B37: 3 | C37: 24 | D37: 33 | E37: 0.01 | F37: 110 | G37: 100 | H37: 500 | I37: 1 | J37: 2 | K37: 0.001 | L37: 0.0002 | M37: =IF(M$2=$C37,(1+$C$13),1)*M$7 -> 0.003 | N37: 0.008 | O37: 0.25 | P37: 60 | Q37: 90 | R37: 0.16 | S37: 0.25 | T37: 0.4 | U37: 0.4 | V37: 9 | W37: 20 | X37: 15 | Y37: 10 | Z37: 2 | AA37: 3 | AB37: 3.03 | AC37: 0.02 | AD37: 0.06 | AE37: 0.07 | AF37: 0.005 | AG37: 0.1 | AH37: 1 | AI37: 0.9 | AJ37: 3 | AK37: 0.1 | AL37: 1.5 | AM37: 33 | AN37: 0.1317824317 | AO37: 0.1074906479 | AP37: 0.104639084 | AQ37: 0.07739478079 | AR37: 1.028875049 | AS37: 0.2283273855 | AT37: 0.1590025936 | AU37: 0.03878881106 | AV37: 0.1283846271 | AW37: 2.458858455 | AX37: 5.494190297 | AY37: 2.032345584 | AZ37: 2.918145394 | BA37: 2.335327788 | BB37: 3.84596844 | BC37: 4076 | BD37: 80397.53042 | BE37: 17831.82763 | BF37: 10907.3241 | BG37: -48855.76563 | BH37: 207790.8812 | BI37: 143378.7427 | BJ37: -70095.9148 | BK37: 69582.4615 | BL37: -59105.13363
A38: RATEBQDEV | B38: 0.02 | C38: 25 | D38: 34 | E38: =IF(E$2=$C38,(1+$C$13),1)*E$7 -> 0.01 | F38: 110 | G38: 100 | H38: 500 | I38: 1 | J38: 2 | K38: 0.001 | L38: 0.0002 | M38: 0.003 | N38: 0.008 | O38: 0.25 | P38: 60 | Q38: 90 | R38: 0.16 | S38: 0.25 | T38: 0.4 | U38: 0.4 | V38: 9 | W38: 20 | X38: 15 | Y38: 10 | Z38: 2 | AA38: 3 | AB38: 3 | AC38: 0.0202 | AD38: 0.06 | AE38: 0.07 | AF38: 0.005 | AG38: 0.1 | AH38: 1 | AI38: 0.9 | AJ38: =IF(AJ$2=$C38,(1+$C$13),1)*AJ$7 -> 3 | AK38: 0.1 | AL38: 1.5 | AM38: 34 | AN38: 0.1317824317 | AO38: 0.1074906479 | AP38: 0.104639084 | AQ38: 0.07739478079 | AR38: 0.7617794716 | AS38: 0.2047036275 | AT38: 0.1451389074 | AU38: 0.04503291974 | AV38: 0.1072343984 | AW38: 1.967086764 | AX38: 4.837552127 | AY38: 1.625876468 | AZ38: 2.48333524 | BA38: 1.780054511 | BB38: 2.989020277 | BC38: 2025 | BD38: 80397.53042 | BE38: 17831.82763 | BF38: 10907.3241 | BG38: -48855.76563 | BH38: 186705.9272 | BI38: 122293.7887 | BJ38: -55569.55021 | BK38: 77943.13843 | BL38: -17283.84214
A39: RATEBQEXP | B39: 0.06 | C39: 26 | D39: 35 | E39: 0.01 | F39: 110 | G39: 100 | H39: 500 | I39: 1 | J39: 2 | K39: 0.001 | L39: 0.0002 | M39: 0.003 | N39: 0.008 | O39: 0.25 | P39: 60 | Q39: 90 | R39: 0.16 | S39: 0.25 | T39: 0.4 | U39: 0.4 | V39: 9 | W39: 20 | X39: 15 | Y39: 10 | Z39: 2 | AA39: 3 | AB39: 3 | AC39: =IF(AC$2=$C39,(1+$C$13),1)*AC$7 -> 0.02 | AD39: 0.0606 | AE39: 0.07 | AF39: 0.005 | AG39: 0.1 | AH39: 1 | AI39: 0.9 | AJ39: 3 | AK39: 0.1 | AL39: 1.5 | AM39: 35 | AN39: 0.1317824317 | AO39: 0.1074906479 | AP39: 0.104639084 | AQ39: 0.07739478079 | AR39: 0.7593549058 | AS39: 0.2044382136 | AT39: 0.1449560284 | AU39: 0.04519011497 | AV39: 0.1072334801 | AW39: 1.967086764 | AX39: 4.828057509 | AY39: 1.625876468 | AZ39: 2.478090138 | BA39: 1.780821015 | BB39: 2.981834413 | BC39: 2025 | BD39: 80397.53042 | BE39: 17831.82763 | BF39: 10907.3241 | BG39: -48855.76563 | BH39: 186461.0841 | BI39: 122048.9456 | BJ39: -55362.5631 | BK39: 77752.69488 | BL39: -17281.87127
A40: RATEBQCOM | B40: 0.07 | C40: 27 | D40: 36 | E40: 0.01 | F40: 110 | G40: 100 | H40: 500 | I40: 1 | J40: 2 | K40: 0.001 | L40: 0.0002 | M40: 0.003 | N40: 0.008 | O40: 0.25 | P40: 60 | Q40: 90 | R40: 0.16 | S40: 0.25 | T40: 0.4 | U40: 0.4 | V40: 9 | W40: 20 | X40: 15 | Y40: 10 | Z40: 2 | AA40: 3 | AB40: 3 | AC40: 0.02 | AD40: 0.06 | AE40: 0.0707 | AF40: 0.005 | AG40: 0.1 | AH40: 1 | AI40: 0.9 | AJ40: 3 | AK40: 0.1 | AL40: 1.5 | AM40: 36 | AN40: 0.1317824317 | AO40: 0.1074906479 | AP40: 0.104639084 | AQ40: 0.07739478079 | AR40: 0.7608662125 | AS40: 0.2045973316 | AT40: 0.1450561763 | AU40: 0.04509933684 | AV40: 0.107234054 | AW40: 1.967086764 | AX40: 4.832479518 | AY40: 1.625876468 | AZ40: 2.480368434 | BA40: 1.780821015 | BB40: 2.985728366 | BC40: 2025 | BD40: 80397.53042 | BE40: 17831.82763 | BF40: 10907.3241 | BG40: -48855.76563 | BH40: 186602.7276 | BI40: 122190.5891 | BJ40: -55474.80446 | BK40: 77870.90046 | BL40: -17283.10306
A41: RATEDEPOSIT | B41: 0.005 | C41: 28 | D41: 37 | E41: 0.01 | F41: 110 | G41: 100 | H41: 500 | I41: 1 | J41: 2 | K41: 0.001 | L41: 0.0002 | M41: 0.003 | N41: 0.008 | O41: 0.25 | P41: 60 | Q41: 90 | R41: 0.16 | S41: 0.25 | T41: 0.4 | U41: 0.4 | V41: 9 | W41: 20 | X41: 15 | Y41: 10 | Z41: 2 | AA41: 3 | AB41: 3 | AC41: 0.02 | AD41: 0.06 | AE41: 0.07 | AF41: 0.00505 | AG41: 0.1 | AH41: 1 | AI41: 0.9 | AJ41: 3 | AK41: 0.1 | AL41: 1.5 | AM41: 37 | AN41: 0.1317824317 | AO41: 0.1074906479 | AP41: 0.104639084 | AQ41: 0.07739478079 | AR41: 0.7631723719 | AS41: 0.2048519714 | AT41: 0.1452232461 | AU41: 0.04494919488 | AV41: 0.1072349283 | AW41: 1.967086764 | AX41: 4.840505588 | AY41: 1.625876468 | AZ41: 2.48445651 | BA41: 1.780821015 | BB41: 2.992426151 | BC41: 2025 | BD41: 80397.53042 | BE41: 17831.82763 | BF41: 10907.3241 | BG41: -48855.76563 | BH41: 186842.7949 | BI41: 122430.6564 | BJ41: -55666.3351 | BK41: 78055.31316 | BL41: -17284.97931
A42: RATEFUNDING | B42: 0.1 | C42: 29 | D42: 38 | E42: 0.01 | F42: 110 | G42: 100 | H42: 500 | I42: 1 | J42: 2 | K42: 0.001 | L42: 0.0002 | M42: 0.003 | N42: 0.008 | O42: 0.25 | P42: 60 | Q42: 90 | R42: 0.16 | S42: 0.25 | T42: 0.4 | U42: 0.4 | V42: 9 | W42: 20 | X42: 15 | Y42: 10 | Z42: 2 | AA42: 3 | AB42: 3 | AC42: 0.02 | AD42: 0.06 | AE42: 0.07 | AF42: 0.005 | AG42: 0.101 | AH42: 1 | AI42: 0.9 | AJ42: 3 | AK42: 0.1 | AL42: 1.5 | AM42: 38 | AN42: 0.1317824317 | AO42: 0.1074906479 | AP42: 0.104639084 | AQ42: 0.07739478079 | AR42: 0.7629933726 | AS42: 0.2048313083 | AT42: 0.1452109596 | AU42: 0.04494919488 | AV42: 0.1072348575 | AW42: 1.967086764 | AX42: 4.840505588 | AY42: 1.625876468 | AZ42: 2.48445651 | BA42: 1.780821015 | BB42: 2.992426151 | BC42: 2025 | BD42: 80397.53042 | BE42: 17831.82763 | BF42: 10907.3241 | BG42: -48855.76563 | BH42: 186819.8784 | BI42: 122407.7399 | BJ42: -55650.68678 | BK42: 78055.31316 | BL42: -17284.82757
A43: RATEDIVIDEND | B43: 1 | C43: 30 | D43: 39 | E43: 0.01 | F43: 110 | G43: 100 | H43: 500 | I43: 1 | J43: 2 | K43: 0.001 | L43: 0.0002 | M43: 0.003 | N43: 0.008 | O43: 0.25 | P43: 60 | Q43: 90 | R43: 0.16 | S43: 0.25 | T43: 0.4 | U43: 0.4 | V43: 9 | W43: 20 | X43: 15 | Y43: 10 | Z43: 2 | AA43: 3 | AB43: 3 | AC43: 0.02 | AD43: 0.06 | AE43: 0.07 | AF43: 0.005 | AG43: 0.1 | AH43: 1.01 | AI43: 0.9 | AJ43: 3 | AK43: 0.1 | AL43: 1.5 | AM43: 39 | AN43: 0.1317824317 | AO43: 0.1074906479 | AP43: 0.104639084 | AQ43: 0.07739478079 | AR43: 0.7629914683 | AS43: 0.2048205981 | AT43: 0.1453649683 | AU43: 0.04494919488 | AV43: 0.1072337658 | AW43: 1.967086764 | AX43: 4.840505588 | AY43: 1.625876468 | AZ43: 2.48445651 | BA43: 1.780821015 | BB43: 2.992426151 | BC43: 2025 | BD43: 80397.53042 | BE43: 17831.82763 | BF43: 10907.3241 | BG43: -48855.76563 | BH43: 186786.9886 | BI43: 122374.8501 | BJ43: -55818.8808 | BK43: 78055.31316 | BL43: -17281.81417
A44: RATERESERVE | B44: 0.9 | C44: 31 | D44: 40 | E44: 0.01 | F44: 110 | G44: 100 | H44: 500 | I44: 1 | J44: 2 | K44: 0.001 | L44: 0.0002 | M44: 0.003 | N44: 0.008 | O44: 0.25 | P44: 60 | Q44: 90 | R44: 0.16 | S44: 0.25 | T44: 0.4 | U44: 0.4 | V44: 9 | W44: 20 | X44: 15 | Y44: 10 | Z44: 2 | AA44: 3 | AB44: 3 | AC44: 0.02 | AD44: 0.06 | AE44: 0.07 | AF44: 0.005 | AG44: 0.1 | AH44: 1 | AI44: 0.909 | AJ44: 3 | AK44: 0.1 | AL44: 1.5 | AM44: 40 | AN44: 0.1317824317 | AO44: 0.1074906479 | AP44: 0.104639084 | AQ44: 0.07739478079 | AR44: 0.7629934553 | AS44: 0.2048330928 | AT44: 0.14514291 | AU44: 0.04494919488 | AV44: 0.1072348575 | AW44: 1.967086764 | AX44: 4.840505588 | AY44: 1.625876468 | AZ44: 2.48445651 | BA44: 1.780821015 | BB44: 2.992426151 | BC44: 2025 | BD44: 80397.53042 | BE44: 17831.82763 | BF44: 10907.3241 | BG44: -48855.76563 | BH44: 186824.5901 | BI44: 122412.4516 | BJ44: -55596.92296 | BK44: 78055.31316 | BL44: -17284.82757
A45: YEARRESERVE | B45: 3 | C45: 32 | D45: 41 | E45: 0.01 | F45: 110 | G45: 100 | H45: 500 | I45: 1 | J45: 2 | K45: 0.001 | L45: 0.0002 | M45: 0.003 | N45: 0.008 | O45: 0.25 | P45: 60 | Q45: 90 | R45: 0.16 | S45: 0.25 | T45: 0.4 | U45: 0.4 | V45: 9 | W45: 20 | X45: 15 | Y45: 10 | Z45: 2 | AA45: 3 | AB45: 3 | AC45: 0.02 | AD45: 0.06 | AE45: 0.07 | AF45: 0.005 | AG45: 0.1 | AH45: 1 | AI45: 0.9 | AJ45: 3.03 | AK45: 0.1 | AL45: 1.5 | AM45: 41 | AN45: 0.1317824317 | AO45: 0.1074906479 | AP45: 0.104639084 | AQ45: 0.07739478079 | AR45: 0.7629934553 | AS45: 0.2048330928 | AT45: 0.1452130637 | AU45: 0.04494919488 | AV45: 0.1072348575 | AW45: 1.967086764 | AX45: 4.840505588 | AY45: 1.625876468 | AZ45: 2.48445651 | BA45: 1.780821015 | BB45: 2.992426151 | BC45: 2025 | BD45: 80397.53042 | BE45: 17831.82763 | BF45: 10907.3241 | BG45: -48855.76563 | BH45: 186824.5901 | BI45: 122412.4516 | BJ45: -55654.22058 | BK45: 78055.31316 | BL45: -17284.82757
A46: DF | B46: 0.1 | C46: 33 | D46: 42 | E46: 0.01 | F46: 110 | G46: 100 | H46: 500 | I46: 1 | J46: 2 | K46: 0.001 | L46: 0.0002 | M46: 0.003 | N46: 0.008 | O46: 0.25 | P46: 60 | Q46: 90 | R46: 0.16 | S46: 0.25 | T46: 0.4 | U46: 0.4 | V46: 9 | W46: 20 | X46: 15 | Y46: 10 | Z46: 2 | AA46: 3 | AB46: 3 | AC46: 0.02 | AD46: 0.06 | AE46: 0.07 | AF46: 0.005 | AG46: 0.1 | AH46: 1 | AI46: 0.9 | AJ46: 3 | AK46: 0.101 | AL46: 1.5 | AM46: 42 | AN46: 0.1317824317 | AO46: 0.1074906479 | AP46: 0.104639084 | AQ46: 0.07739478079 | AR46: 0.7629934553 | AS46: 0.2048330928 | AT46: 0.1452130637 | AU46: 0.04494919488 | AV46: 0.1072348575 | AW46: 1.952829168 | AX46: 4.817998923 | AY46: 1.618303997 | AZ46: 2.478088588 | BA46: 1.780821015 | BB46: 2.992426151 | BC46: 2025 | BD46: 77073.0122 | BE46: 15296.28954 | BF46: 8470.449799 | BG46: -50518.89826 | BH46: 184178.9686 | BI46: 119836.4472 | BJ46: -53777.18063 | BK46: 78829.59073 | BL46: -14746.47264
A47: DSCRTARGET | B47: 1.5 | C47: 34 | D47: 43 | E47: 0.01 | F47: 110 | G47: 100 | H47: 500 | I47: 1 | J47: 2 | K47: 0.001 | L47: 0.0002 | M47: 0.003 | N47: 0.008 | O47: 0.25 | P47: 60 | Q47: 90 | R47: 0.16 | S47: 0.25 | T47: 0.4 | U47: 0.4 | V47: 9 | W47: 20 | X47: 15 | Y47: 10 | Z47: 2 | AA47: 3 | AB47: 3 | AC47: 0.02 | AD47: 0.06 | AE47: 0.07 | AF47: 0.005 | AG47: 0.1 | AH47: 1 | AI47: 0.9 | AJ47: 3 | AK47: 0.1 | AL47: 1.515 | AM47: 43 | AN47: 0.1317824317 | AO47: 0.1074906479 | AP47: 0.104639084 | AQ47: 0.07739478079 | AR47: 0.7629658955 | AS47: 0.2047619215 | AT47: 0.144985171 | AU47: 0.04500829296 | AV47: 0.1072348575 | AW47: 1.967086764 | AX47: 4.772114417 | AY47: 1.625876468 | AZ47: 2.451487735 | BA47: 1.793469921 | BB47: 2.956104841 | BC47: 2025 | BD47: 80397.53042 | BE47: 17831.82763 | BF47: 10907.3241 | BG47: -48855.76563 | BH47: 186700.3495 | BI47: 122288.211 | BJ47: -55383.85524 | BK47: 78167.43793 | BL47: -17284.82757

Sheet Sensitivity
D2: OPERATIONS CASH FLOW BEF TAXES | E2: OPEARATIONS CASH FLOW AFTER TAXES | F2: OPERATIONS ACCOUNTING BEF TAXES | G2: OPERATIONS ACCOUNTING AFTER TAXES | H2: PROJECT ACCOUNTING BEFORE TAXES | I2: PROJECT ACCOUNTING AFTER TAXES | J2: ROE | K2: DEBT RETURN | L2: FINANCE - WACC | M2: PLCR Mini | N2: PLCR Average | O2: LLCR Mini | P2: LLCR Average | Q2: DSCR Mini | R2: DSCR Average | S2: Pay Back | T2: OPERATIONS CASH FLOW BEF TAXES | U2: OPEARATIONS CASH FLOW AFTER TAXES | V2: OPERATIONS ACCOUNTING BEF TAXES | W2: OPERATIONS ACCOUNTING AFTER TAXES | X2: PROJECT ACCOUNTING BEFORE TAXES | Y2: PROJECT ACCOUNTING AFTER TAXES | Z2: ROE NPV | AA2: DEBT NPV | AB2: FINANCE NPV
A3: 1 | B3: INFLATION RATE | C3: 0.01 | D3: =SIGN(SIMULATIONS!AN14-SIMULATIONS!AN$13) -> 1 | E3: =SIGN(SIMULATIONS!AO14-SIMULATIONS!AO$13) -> 1 | F3: =SIGN(SIMULATIONS!AP14-SIMULATIONS!AP$13) -> 1 | G3: =SIGN(SIMULATIONS!AQ14-SIMULATIONS!AQ$13) -> 1 | H3: =SIGN(SIMULATIONS!AR14-SIMULATIONS!AR$13) -> 1 | I3: =SIGN(SIMULATIONS!AS14-SIMULATIONS!AS$13) -> 1 | J3: =SIGN(SIMULATIONS!AT14-SIMULATIONS!AT$13) -> 1 | K3: =SIGN(SIMULATIONS!AU14-SIMULATIONS!AU$13) -> -1 | L3: =SIGN(SIMULATIONS!AV14-SIMULATIONS!AV$13) -> 1 | M3: =SIGN(SIMULATIONS!AW14-SIMULATIONS!AW$13) -> 1 | N3: =SIGN(SIMULATIONS!AX14-SIMULATIONS!AX$13) -> 1 | O3: =SIGN(SIMULATIONS!AY14-SIMULATIONS!AY$13) -> 1 | P3: =SIGN(SIMULATIONS!AZ14-SIMULATIONS!AZ$13) -> 1 | Q3: =SIGN(SIMULATIONS!BA14-SIMULATIONS!BA$13) -> 1 | R3: =SIGN(SIMULATIONS!BB14-SIMULATIONS!BB$13) -> 1 | S3: =SIGN(SIMULATIONS!BC14-SIMULATIONS!BC$13) -> 0 | T3: =SIGN(SIMULATIONS!BD14-SIMULATIONS!BD$13) -> 1 | U3: =SIGN(SIMULATIONS!BE14-SIMULATIONS!BE$13) -> 1 | V3: =SIGN(SIMULATIONS!BF14-SIMULATIONS!BF$13) -> 1 | W3: =SIGN(SIMULATIONS!BG14-SIMULATIONS!BG$13) -> 1 | X3: =SIGN(SIMULATIONS!BH14-SIMULATIONS!BH$13) -> 1 | Y3: =SIGN(SIMULATIONS!BI14-SIMULATIONS!BI$13) -> 1 | Z3: =SIGN(SIMULATIONS!BJ14-SIMULATIONS!BJ$13) -> -1 | AA3: =SIGN(SIMULATIONS!BK14-SIMULATIONS!BK$13) -> -1 | AB3: =SIGN(SIMULATIONS!BL14-SIMULATIONS!BL$13) -> -1
A4: 2 | B4: INITIAL PRICE | C4: 110 | D4: =SIGN(SIMULATIONS!AN15-SIMULATIONS!AN$13) -> 1 | E4: =SIGN(SIMULATIONS!AO15-SIMULATIONS!AO$13) -> 1 | F4: =SIGN(SIMULATIONS!AP15-SIMULATIONS!AP$13) -> 1 | G4: =SIGN(SIMULATIONS!AQ15-SIMULATIONS!AQ$13) -> 1 | H4: =SIGN(SIMULATIONS!AR15-SIMULATIONS!AR$13) -> 1 | I4: =SIGN(SIMULATIONS!AS15-SIMULATIONS!AS$13) -> 1 | J4: =SIGN(SIMULATIONS!AT15-SIMULATIONS!AT$13) -> 1 | K4: =SIGN(SIMULATIONS!AU15-SIMULATIONS!AU$13) -> -1 | L4: =SIGN(SIMULATIONS!AV15-SIMULATIONS!AV$13) -> 1 | M4: =SIGN(SIMULATIONS!AW15-SIMULATIONS!AW$13) -> 1 | N4: =SIGN(SIMULATIONS!AX15-SIMULATIONS!AX$13) -> 1 | O4: =SIGN(SIMULATIONS!AY15-SIMULATIONS!AY$13) -> 1 | P4: =SIGN(SIMULATIONS!AZ15-SIMULATIONS!AZ$13) -> 1 | Q4: =SIGN(SIMULATIONS!BA15-SIMULATIONS!BA$13) -> 1 | R4: =SIGN(SIMULATIONS!BB15-SIMULATIONS!BB$13) -> 1 | S4: =SIGN(SIMULATIONS!BC15-SIMULATIONS!BC$13) -> 0 | T4: =SIGN(SIMULATIONS!BD15-SIMULATIONS!BD$13) -> 1 | U4: =SIGN(SIMULATIONS!BE15-SIMULATIONS!BE$13) -> 1 | V4: =SIGN(SIMULATIONS!BF15-SIMULATIONS!BF$13) -> 1 | W4: =SIGN(SIMULATIONS!BG15-SIMULATIONS!BG$13) -> 1 | X4: =SIGN(SIMULATIONS!BH15-SIMULATIONS!BH$13) -> 1 | Y4: =SIGN(SIMULATIONS!BI15-SIMULATIONS!BI$13) -> 1 | Z4: =SIGN(SIMULATIONS!BJ15-SIMULATIONS!BJ$13) -> -1 | AA4: =SIGN(SIMULATIONS!BK15-SIMULATIONS!BK$13) -> -1 | AB4: =SIGN(SIMULATIONS!BL15-SIMULATIONS!BL$13) -> -1
A5: 3 | B5: PRICE INDEX | C5: 100 | D5: =SIGN(SIMULATIONS!AN16-SIMULATIONS!AN$13) -> 1 | E5: =SIGN(SIMULATIONS!AO16-SIMULATIONS!AO$13) -> 1 | F5: =SIGN(SIMULATIONS!AP16-SIMULATIONS!AP$13) -> 1 | G5: =SIGN(SIMULATIONS!AQ16-SIMULATIONS!AQ$13) -> 1 | H5: =SIGN(SIMULATIONS!AR16-SIMULATIONS!AR$13) -> 1 | I5: =SIGN(SIMULATIONS!AS16-SIMULATIONS!AS$13) -> 1 | J5: =SIGN(SIMULATIONS!AT16-SIMULATIONS!AT$13) -> 1 | K5: =SIGN(SIMULATIONS!AU16-SIMULATIONS!AU$13) -> -1 | L5: =SIGN(SIMULATIONS!AV16-SIMULATIONS!AV$13) -> 1 | M5: =SIGN(SIMULATIONS!AW16-SIMULATIONS!AW$13) -> 1 | N5: =SIGN(SIMULATIONS!AX16-SIMULATIONS!AX$13) -> 1 | O5: =SIGN(SIMULATIONS!AY16-SIMULATIONS!AY$13) -> 1 | P5: =SIGN(SIMULATIONS!AZ16-SIMULATIONS!AZ$13) -> 1 | Q5: =SIGN(SIMULATIONS!BA16-SIMULATIONS!BA$13) -> 1 | R5: =SIGN(SIMULATIONS!BB16-SIMULATIONS!BB$13) -> 1 | S5: =SIGN(SIMULATIONS!BC16-SIMULATIONS!BC$13) -> 0 | T5: =SIGN(SIMULATIONS!BD16-SIMULATIONS!BD$13) -> 1 | U5: =SIGN(SIMULATIONS!BE16-SIMULATIONS!BE$13) -> 1 | V5: =SIGN(SIMULATIONS!BF16-SIMULATIONS!BF$13) -> 1 | W5: =SIGN(SIMULATIONS!BG16-SIMULATIONS!BG$13) -> 1 | X5: =SIGN(SIMULATIONS!BH16-SIMULATIONS!BH$13) -> 1 | Y5: =SIGN(SIMULATIONS!BI16-SIMULATIONS!BI$13) -> 1 | Z5: =SIGN(SIMULATIONS!BJ16-SIMULATIONS!BJ$13) -> -1 | AA5: =SIGN(SIMULATIONS!BK16-SIMULATIONS!BK$13) -> -1 | AB5: =SIGN(SIMULATIONS!BL16-SIMULATIONS!BL$13) -> -1
A6: 4 | B6: CAPACITY | C6: 500 | D6: =SIGN(SIMULATIONS!AN17-SIMULATIONS!AN$13) -> 1 | E6: =SIGN(SIMULATIONS!AO17-SIMULATIONS!AO$13) -> 1 | F6: =SIGN(SIMULATIONS!AP17-SIMULATIONS!AP$13) -> 1 | G6: =SIGN(SIMULATIONS!AQ17-SIMULATIONS!AQ$13) -> 1 | H6: =SIGN(SIMULATIONS!AR17-SIMULATIONS!AR$13) -> 1 | I6: =SIGN(SIMULATIONS!AS17-SIMULATIONS!AS$13) -> 1 | J6: =SIGN(SIMULATIONS!AT17-SIMULATIONS!AT$13) -> 1 | K6: =SIGN(SIMULATIONS!AU17-SIMULATIONS!AU$13) -> -1 | L6: =SIGN(SIMULATIONS!AV17-SIMULATIONS!AV$13) -> 1 | M6: =SIGN(SIMULATIONS!AW17-SIMULATIONS!AW$13) -> 1 | N6: =SIGN(SIMULATIONS!AX17-SIMULATIONS!AX$13) -> 1 | O6: =SIGN(SIMULATIONS!AY17-SIMULATIONS!AY$13) -> 1 | P6: =SIGN(SIMULATIONS!AZ17-SIMULATIONS!AZ$13) -> 1 | Q6: =SIGN(SIMULATIONS!BA17-SIMULATIONS!BA$13) -> 1 | R6: =SIGN(SIMULATIONS!BB17-SIMULATIONS!BB$13) -> 1 | S6: =SIGN(SIMULATIONS!BC17-SIMULATIONS!BC$13) -> 0 | T6: =SIGN(SIMULATIONS!BD17-SIMULATIONS!BD$13) -> 1 | U6: =SIGN(SIMULATIONS!BE17-SIMULATIONS!BE$13) -> 1 | V6: =SIGN(SIMULATIONS!BF17-SIMULATIONS!BF$13) -> 1 | W6: =SIGN(SIMULATIONS!BG17-SIMULATIONS!BG$13) -> 1 | X6: =SIGN(SIMULATIONS!BH17-SIMULATIONS!BH$13) -> 1 | Y6: =SIGN(SIMULATIONS!BI17-SIMULATIONS!BI$13) -> 1 | Z6: =SIGN(SIMULATIONS!BJ17-SIMULATIONS!BJ$13) -> -1 | AA6: =SIGN(SIMULATIONS!BK17-SIMULATIONS!BK$13) -> -1 | AB6: =SIGN(SIMULATIONS!BL17-SIMULATIONS!BL$13) -> -1
A7: 5 | B7: AVAILABILITY | C7: 1 | D7: =SIGN(SIMULATIONS!AN18-SIMULATIONS!AN$13) -> 1 | E7: =SIGN(SIMULATIONS!AO18-SIMULATIONS!AO$13) -> 1 | F7: =SIGN(SIMULATIONS!AP18-SIMULATIONS!AP$13) -> 1 | G7: =SIGN(SIMULATIONS!AQ18-SIMULATIONS!AQ$13) -> 1 | H7: =SIGN(SIMULATIONS!AR18-SIMULATIONS!AR$13) -> 1 | I7: =SIGN(SIMULATIONS!AS18-SIMULATIONS!AS$13) -> 1 | J7: =SIGN(SIMULATIONS!AT18-SIMULATIONS!AT$13) -> 1 | K7: =SIGN(SIMULATIONS!AU18-SIMULATIONS!AU$13) -> -1 | L7: =SIGN(SIMULATIONS!AV18-SIMULATIONS!AV$13) -> 1 | M7: =SIGN(SIMULATIONS!AW18-SIMULATIONS!AW$13) -> 1 | N7: =SIGN(SIMULATIONS!AX18-SIMULATIONS!AX$13) -> 1 | O7: =SIGN(SIMULATIONS!AY18-SIMULATIONS!AY$13) -> 1 | P7: =SIGN(SIMULATIONS!AZ18-SIMULATIONS!AZ$13) -> 1 | Q7: =SIGN(SIMULATIONS!BA18-SIMULATIONS!BA$13) -> 1 | R7: =SIGN(SIMULATIONS!BB18-SIMULATIONS!BB$13) -> 1 | S7: =SIGN(SIMULATIONS!BC18-SIMULATIONS!BC$13) -> 1 | T7: =SIGN(SIMULATIONS!BD18-SIMULATIONS!BD$13) -> 1 | U7: =SIGN(SIMULATIONS!BE18-SIMULATIONS!BE$13) -> 1 | V7: =SIGN(SIMULATIONS!BF18-SIMULATIONS!BF$13) -> 1 | W7: =SIGN(SIMULATIONS!BG18-SIMULATIONS!BG$13) -> 1 | X7: =SIGN(SIMULATIONS!BH18-SIMULATIONS!BH$13) -> 1 | Y7: =SIGN(SIMULATIONS!BI18-SIMULATIONS!BI$13) -> 1 | Z7: =SIGN(SIMULATIONS!BJ18-SIMULATIONS!BJ$13) -> -1 | AA7: =SIGN(SIMULATIONS!BK18-SIMULATIONS!BK$13) -> -1 | AB7: =SIGN(SIMULATIONS!BL18-SIMULATIONS!BL$13) -> -1
A8: 6 | B8: COSTOM | C8: 2 | D8: =SIGN(SIMULATIONS!AN19-SIMULATIONS!AN$13) -> -1 | E8: =SIGN(SIMULATIONS!AO19-SIMULATIONS!AO$13) -> -1 | F8: =SIGN(SIMULATIONS!AP19-SIMULATIONS!AP$13) -> -1 | G8: =SIGN(SIMULATIONS!AQ19-SIMULATIONS!AQ$13) -> -1 | H8: =SIGN(SIMULATIONS!AR19-SIMULATIONS!AR$13) -> -1 | I8: =SIGN(SIMULATIONS!AS19-SIMULATIONS!AS$13) -> -1 | J8: =SIGN(SIMULATIONS!AT19-SIMULATIONS!AT$13) -> 1 | K8: =SIGN(SIMULATIONS!AU19-SIMULATIONS!AU$13) -> 1 | L8: =SIGN(SIMULATIONS!AV19-SIMULATIONS!AV$13) -> -1 | M8: =SIGN(SIMULATIONS!AW19-SIMULATIONS!AW$13) -> -1 | N8: =SIGN(SIMULATIONS!AX19-SIMULATIONS!AX$13) -> -1 | O8: =SIGN(SIMULATIONS!AY19-SIMULATIONS!AY$13) -> -1 | P8: =SIGN(SIMULATIONS!AZ19-SIMULATIONS!AZ$13) -> -1 | Q8: =SIGN(SIMULATIONS!BA19-SIMULATIONS!BA$13) -> -1 | R8: =SIGN(SIMULATIONS!BB19-SIMULATIONS!BB$13) -> -1 | S8: =SIGN(SIMULATIONS!BC19-SIMULATIONS!BC$13) -> 0 | T8: =SIGN(SIMULATIONS!BD19-SIMULATIONS!BD$13) -> -1 | U8: =SIGN(SIMULATIONS!BE19-SIMULATIONS!BE$13) -> -1 | V8: =SIGN(SIMULATIONS!BF19-SIMULATIONS!BF$13) -> -1 | W8: =SIGN(SIMULATIONS!BG19-SIMULATIONS!BG$13) -> -1 | X8: =SIGN(SIMULATIONS!BH19-SIMULATIONS!BH$13) -> -1 | Y8: =SIGN(SIMULATIONS!BI19-SIMULATIONS!BI$13) -> -1 | Z8: =SIGN(SIMULATIONS!BJ19-SIMULATIONS!BJ$13) -> -1 | AA8: =SIGN(SIMULATIONS!BK19-SIMULATIONS!BK$13) -> 1 | AB8: =SIGN(SIMULATIONS!BL19-SIMULATIONS!BL$13) -> 1
A9: 7 | B9: COSTFEE | C9: 0.001 | D9: =SIGN(SIMULATIONS!AN20-SIMULATIONS!AN$13) -> -1 | E9: =SIGN(SIMULATIONS!AO20-SIMULATIONS!AO$13) -> -1 | F9: =SIGN(SIMULATIONS!AP20-SIMULATIONS!AP$13) -> -1 | G9: =SIGN(SIMULATIONS!AQ20-SIMULATIONS!AQ$13) -> -1 | H9: =SIGN(SIMULATIONS!AR20-SIMULATIONS!AR$13) -> -1 | I9: =SIGN(SIMULATIONS!AS20-SIMULATIONS!AS$13) -> -1 | J9: =SIGN(SIMULATIONS!AT20-SIMULATIONS!AT$13) -> 1 | K9: =SIGN(SIMULATIONS!AU20-SIMULATIONS!AU$13) -> 1 | L9: =SIGN(SIMULATIONS!AV20-SIMULATIONS!AV$13) -> -1 | M9: =SIGN(SIMULATIONS!AW20-SIMULATIONS!AW$13) -> -1 | N9: =SIGN(SIMULATIONS!AX20-SIMULATIONS!AX$13) -> -1 | O9: =SIGN(SIMULATIONS!AY20-SIMULATIONS!AY$13) -> -1 | P9: =SIGN(SIMULATIONS!AZ20-SIMULATIONS!AZ$13) -> -1 | Q9: =SIGN(SIMULATIONS!BA20-SIMULATIONS!BA$13) -> -1 | R9: =SIGN(SIMULATIONS!BB20-SIMULATIONS!BB$13) -> -1 | S9: =SIGN(SIMULATIONS!BC20-SIMULATIONS!BC$13) -> 0 | T9: =SIGN(SIMULATIONS!BD20-SIMULATIONS!BD$13) -> -1 | U9: =SIGN(SIMULATIONS!BE20-SIMULATIONS!BE$13) -> -1 | V9: =SIGN(SIMULATIONS!BF20-SIMULATIONS!BF$13) -> -1 | W9: =SIGN(SIMULATIONS!BG20-SIMULATIONS!BG$13) -> -1 | X9: =SIGN(SIMULATIONS!BH20-SIMULATIONS!BH$13) -> -1 | Y9: =SIGN(SIMULATIONS!BI20-SIMULATIONS!BI$13) -> -1 | Z9: =SIGN(SIMULATIONS!BJ20-SIMULATIONS!BJ$13) -> -1 | AA9: =SIGN(SIMULATIONS!BK20-SIMULATIONS!BK$13) -> 1 | AB9: =SIGN(SIMULATIONS!BL20-SIMULATIONS!BL$13) -> 1
A10: 8 | B10: COSTENV | C10: 0.0002 | D10: =SIGN(SIMULATIONS!AN21-SIMULATIONS!AN$13) -> -1 | E10: =SIGN(SIMULATIONS!AO21-SIMULATIONS!AO$13) -> -1 | F10: =SIGN(SIMULATIONS!AP21-SIMULATIONS!AP$13) -> -1 | G10: =SIGN(SIMULATIONS!AQ21-SIMULATIONS!AQ$13) -> -1 | H10: =SIGN(SIMULATIONS!AR21-SIMULATIONS!AR$13) -> 1 | I10: =SIGN(SIMULATIONS!AS21-SIMULATIONS!AS$13) -> 1 | J10: =SIGN(SIMULATIONS!AT21-SIMULATIONS!AT$13) -> 1 | K10: =SIGN(SIMULATIONS!AU21-SIMULATIONS!AU$13) -> 1 | L10: =SIGN(SIMULATIONS!AV21-SIMULATIONS!AV$13) -> -1 | M10: =SIGN(SIMULATIONS!AW21-SIMULATIONS!AW$13) -> -1 | N10: =SIGN(SIMULATIONS!AX21-SIMULATIONS!AX$13) -> -1 | O10: =SIGN(SIMULATIONS!AY21-SIMULATIONS!AY$13) -> -1 | P10: =SIGN(SIMULATIONS!AZ21-SIMULATIONS!AZ$13) -> -1 | Q10: =SIGN(SIMULATIONS!BA21-SIMULATIONS!BA$13) -> -1 | R10: =SIGN(SIMULATIONS!BB21-SIMULATIONS!BB$13) -> -1 | S10: =SIGN(SIMULATIONS!BC21-SIMULATIONS!BC$13) -> 0 | T10: =SIGN(SIMULATIONS!BD21-SIMULATIONS!BD$13) -> -1 | U10: =SIGN(SIMULATIONS!BE21-SIMULATIONS!BE$13) -> -1 | V10: =SIGN(SIMULATIONS!BF21-SIMULATIONS!BF$13) -> -1 | W10: =SIGN(SIMULATIONS!BG21-SIMULATIONS!BG$13) -> -1 | X10: =SIGN(SIMULATIONS!BH21-SIMULATIONS!BH$13) -> 1 | Y10: =SIGN(SIMULATIONS!BI21-SIMULATIONS!BI$13) -> 1 | Z10: =SIGN(SIMULATIONS!BJ21-SIMULATIONS!BJ$13) -> -1 | AA10: =SIGN(SIMULATIONS!BK21-SIMULATIONS!BK$13) -> 1 | AB10: =SIGN(SIMULATIONS!BL21-SIMULATIONS!BL$13) -> 1
A11: 9 | B11: TAXCA | C11: 0.003 | D11: =SIGN(SIMULATIONS!AN22-SIMULATIONS!AN$13) -> -1 | E11: =SIGN(SIMULATIONS!AO22-SIMULATIONS!AO$13) -> -1 | F11: =SIGN(SIMULATIONS!AP22-SIMULATIONS!AP$13) -> -1 | G11: =SIGN(SIMULATIONS!AQ22-SIMULATIONS!AQ$13) -> -1 | H11: =SIGN(SIMULATIONS!AR22-SIMULATIONS!AR$13) -> -1 | I11: =SIGN(SIMULATIONS!AS22-SIMULATIONS!AS$13) -> 1 | J11: =SIGN(SIMULATIONS!AT22-SIMULATIONS!AT$13) -> 1 | K11: =SIGN(SIMULATIONS!AU22-SIMULATIONS!AU$13) -> 1 | L11: =SIGN(SIMULATIONS!AV22-SIMULATIONS!AV$13) -> -1 | M11: =SIGN(SIMULATIONS!AW22-SIMULATIONS!AW$13) -> -1 | N11: =SIGN(SIMULATIONS!AX22-SIMULATIONS!AX$13) -> -1 | O11: =SIGN(SIMULATIONS!AY22-SIMULATIONS!AY$13) -> -1 | P11: =SIGN(SIMULATIONS!AZ22-SIMULATIONS!AZ$13) -> -1 | Q11: =SIGN(SIMULATIONS!BA22-SIMULATIONS!BA$13) -> -1 | R11: =SIGN(SIMULATIONS!BB22-SIMULATIONS!BB$13) -> -1 | S11: =SIGN(SIMULATIONS!BC22-SIMULATIONS!BC$13) -> 0 | T11: =SIGN(SIMULATIONS!BD22-SIMULATIONS!BD$13) -> -1 | U11: =SIGN(SIMULATIONS!BE22-SIMULATIONS!BE$13) -> -1 | V11: =SIGN(SIMULATIONS!BF22-SIMULATIONS!BF$13) -> -1 | W11: =SIGN(SIMULATIONS!BG22-SIMULATIONS!BG$13) -> -1 | X11: =SIGN(SIMULATIONS!BH22-SIMULATIONS!BH$13) -> -1 | Y11: =SIGN(SIMULATIONS!BI22-SIMULATIONS!BI$13) -> -1 | Z11: =SIGN(SIMULATIONS!BJ22-SIMULATIONS!BJ$13) -> -1 | AA11: =SIGN(SIMULATIONS!BK22-SIMULATIONS!BK$13) -> 1 | AB11: =SIGN(SIMULATIONS!BL22-SIMULATIONS!BL$13) -> 1
A12: 10 | B12: TAXCAP | C12: 0.008 | D12: =SIGN(SIMULATIONS!AN23-SIMULATIONS!AN$13) -> -1 | E12: =SIGN(SIMULATIONS!AO23-SIMULATIONS!AO$13) -> -1 | F12: =SIGN(SIMULATIONS!AP23-SIMULATIONS!AP$13) -> -1 | G12: =SIGN(SIMULATIONS!AQ23-SIMULATIONS!AQ$13) -> -1 | H12: =SIGN(SIMULATIONS!AR23-SIMULATIONS!AR$13) -> -1 | I12: =SIGN(SIMULATIONS!AS23-SIMULATIONS!AS$13) -> -1 | J12: =SIGN(SIMULATIONS!AT23-SIMULATIONS!AT$13) -> 1 | K12: =SIGN(SIMULATIONS!AU23-SIMULATIONS!AU$13) -> 1 | L12: =SIGN(SIMULATIONS!AV23-SIMULATIONS!AV$13) -> -1 | M12: =SIGN(SIMULATIONS!AW23-SIMULATIONS!AW$13) -> -1 | N12: =SIGN(SIMULATIONS!AX23-SIMULATIONS!AX$13) -> -1 | O12: =SIGN(SIMULATIONS!AY23-SIMULATIONS!AY$13) -> -1 | P12: =SIGN(SIMULATIONS!AZ23-SIMULATIONS!AZ$13) -> -1 | Q12: =SIGN(SIMULATIONS!BA23-SIMULATIONS!BA$13) -> -1 | R12: =SIGN(SIMULATIONS!BB23-SIMULATIONS!BB$13) -> -1 | S12: =SIGN(SIMULATIONS!BC23-SIMULATIONS!BC$13) -> 0 | T12: =SIGN(SIMULATIONS!BD23-SIMULATIONS!BD$13) -> -1 | U12: =SIGN(SIMULATIONS!BE23-SIMULATIONS!BE$13) -> -1 | V12: =SIGN(SIMULATIONS!BF23-SIMULATIONS!BF$13) -> -1 | W12: =SIGN(SIMULATIONS!BG23-SIMULATIONS!BG$13) -> -1 | X12: =SIGN(SIMULATIONS!BH23-SIMULATIONS!BH$13) -> -1 | Y12: =SIGN(SIMULATIONS!BI23-SIMULATIONS!BI$13) -> -1 | Z12: =SIGN(SIMULATIONS!BJ23-SIMULATIONS!BJ$13) -> -1 | AA12: =SIGN(SIMULATIONS!BK23-SIMULATIONS!BK$13) -> 1 | AB12: =SIGN(SIMULATIONS!BL23-SIMULATIONS!BL$13) -> 1
A13: 11 | B13: TAXCORP | C13: 0.25 | D13: =SIGN(SIMULATIONS!AN24-SIMULATIONS!AN$13) -> 0 | E13: =SIGN(SIMULATIONS!AO24-SIMULATIONS!AO$13) -> -1 | F13: =SIGN(SIMULATIONS!AP24-SIMULATIONS!AP$13) -> 0 | G13: =SIGN(SIMULATIONS!AQ24-SIMULATIONS!AQ$13) -> -1 | H13: =SIGN(SIMULATIONS!AR24-SIMULATIONS!AR$13) -> 1 | I13: =SIGN(SIMULATIONS!AS24-SIMULATIONS!AS$13) -> 1 | J13: =SIGN(SIMULATIONS!AT24-SIMULATIONS!AT$13) -> -1 | K13: =SIGN(SIMULATIONS!AU24-SIMULATIONS!AU$13) -> 0 | L13: =SIGN(SIMULATIONS!AV24-SIMULATIONS!AV$13) -> -1 | M13: =SIGN(SIMULATIONS!AW24-SIMULATIONS!AW$13) -> 0 | N13: =SIGN(SIMULATIONS!AX24-SIMULATIONS!AX$13) -> 0 | O13: =SIGN(SIMULATIONS!AY24-SIMULATIONS!AY$13) -> 0 | P13: =SIGN(SIMULATIONS!AZ24-SIMULATIONS!AZ$13) -> 0 | Q13: =SIGN(SIMULATIONS!BA24-SIMULATIONS!BA$13) -> 0 | R13: =SIGN(SIMULATIONS!BB24-SIMULATIONS!BB$13) -> 0 | S13: =SIGN(SIMULATIONS!BC24-SIMULATIONS!BC$13) -> 0 | T13: =SIGN(SIMULATIONS!BD24-SIMULATIONS!BD$13) -> 0 | U13: =SIGN(SIMULATIONS!BE24-SIMULATIONS!BE$13) -> -1 | V13: =SIGN(SIMULATIONS!BF24-SIMULATIONS!BF$13) -> 0 | W13: =SIGN(SIMULATIONS!BG24-SIMULATIONS!BG$13) -> -1 | X13: =SIGN(SIMULATIONS!BH24-SIMULATIONS!BH$13) -> 1 | Y13: =SIGN(SIMULATIONS!BI24-SIMULATIONS!BI$13) -> 1 | Z13: =SIGN(SIMULATIONS!BJ24-SIMULATIONS!BJ$13) -> 1 | AA13: =SIGN(SIMULATIONS!BK24-SIMULATIONS!BK$13) -> 0 | AB13: =SIGN(SIMULATIONS!BL24-SIMULATIONS!BL$13) -> 1
A14: 12 | B14: DELAYSCASHIN | C14: 60 | D14: =SIGN(SIMULATIONS!AN25-SIMULATIONS!AN$13) -> -1 | E14: =SIGN(SIMULATIONS!AO25-SIMULATIONS!AO$13) -> -1 | F14: =SIGN(SIMULATIONS!AP25-SIMULATIONS!AP$13) -> 0 | G14: =SIGN(SIMULATIONS!AQ25-SIMULATIONS!AQ$13) -> 0 | H14: =SIGN(SIMULATIONS!AR25-SIMULATIONS!AR$13) -> 1 | I14: =SIGN(SIMULATIONS!AS25-SIMULATIONS!AS$13) -> 1 | J14: =SIGN(SIMULATIONS!AT25-SIMULATIONS!AT$13) -> 1 | K14: =SIGN(SIMULATIONS!AU25-SIMULATIONS!AU$13) -> 1 | L14: =SIGN(SIMULATIONS!AV25-SIMULATIONS!AV$13) -> -1 | M14: =SIGN(SIMULATIONS!AW25-SIMULATIONS!AW$13) -> -1 | N14: =SIGN(SIMULATIONS!AX25-SIMULATIONS!AX$13) -> 1 | O14: =SIGN(SIMULATIONS!AY25-SIMULATIONS!AY$13) -> -1 | P14: =SIGN(SIMULATIONS!AZ25-SIMULATIONS!AZ$13) -> -1 | Q14: =SIGN(SIMULATIONS!BA25-SIMULATIONS!BA$13) -> -1 | R14: =SIGN(SIMULATIONS!BB25-SIMULATIONS!BB$13) -> -1 | S14: =SIGN(SIMULATIONS!BC25-SIMULATIONS!BC$13) -> 0 | T14: =SIGN(SIMULATIONS!BD25-SIMULATIONS!BD$13) -> -1 | U14: =SIGN(SIMULATIONS!BE25-SIMULATIONS!BE$13) -> -1 | V14: =SIGN(SIMULATIONS!BF25-SIMULATIONS!BF$13) -> 0 | W14: =SIGN(SIMULATIONS!BG25-SIMULATIONS!BG$13) -> 0 | X14: =SIGN(SIMULATIONS!BH25-SIMULATIONS!BH$13) -> 1 | Y14: =SIGN(SIMULATIONS!BI25-SIMULATIONS!BI$13) -> 1 | Z14: =SIGN(SIMULATIONS!BJ25-SIMULATIONS!BJ$13) -> -1 | AA14: =SIGN(SIMULATIONS!BK25-SIMULATIONS!BK$13) -> 1 | AB14: =SIGN(SIMULATIONS!BL25-SIMULATIONS!BL$13) -> 1
A15: 13 | B15: DELAYSCASHOUT | C15: 90 | D15: =SIGN(SIMULATIONS!AN26-SIMULATIONS!AN$13) -> 1 | E15: =SIGN(SIMULATIONS!AO26-SIMULATIONS!AO$13) -> 1 | F15: =SIGN(SIMULATIONS!AP26-SIMULATIONS!AP$13) -> 0 | G15: =SIGN(SIMULATIONS!AQ26-SIMULATIONS!AQ$13) -> 0 | H15: =SIGN(SIMULATIONS!AR26-SIMULATIONS!AR$13) -> 1 | I15: =SIGN(SIMULATIONS!AS26-SIMULATIONS!AS$13) -> 1 | J15: =SIGN(SIMULATIONS!AT26-SIMULATIONS!AT$13) -> 1 | K15: =SIGN(SIMULATIONS!AU26-SIMULATIONS!AU$13) -> -1 | L15: =SIGN(SIMULATIONS!AV26-SIMULATIONS!AV$13) -> 1 | M15: =SIGN(SIMULATIONS!AW26-SIMULATIONS!AW$13) -> 1 | N15: =SIGN(SIMULATIONS!AX26-SIMULATIONS!AX$13) -> -1 | O15: =SIGN(SIMULATIONS!AY26-SIMULATIONS!AY$13) -> 1 | P15: =SIGN(SIMULATIONS!AZ26-SIMULATIONS!AZ$13) -> 1 | Q15: =SIGN(SIMULATIONS!BA26-SIMULATIONS!BA$13) -> 1 | R15: =SIGN(SIMULATIONS!BB26-SIMULATIONS!BB$13) -> 1 | S15: =SIGN(SIMULATIONS!BC26-SIMULATIONS!BC$13) -> 0 | T15: =SIGN(SIMULATIONS!BD26-SIMULATIONS!BD$13) -> 1 | U15: =SIGN(SIMULATIONS!BE26-SIMULATIONS!BE$13) -> 1 | V15: =SIGN(SIMULATIONS!BF26-SIMULATIONS!BF$13) -> 0 | W15: =SIGN(SIMULATIONS!BG26-SIMULATIONS!BG$13) -> 0 | X15: =SIGN(SIMULATIONS!BH26-SIMULATIONS!BH$13) -> 1 | Y15: =SIGN(SIMULATIONS!BI26-SIMULATIONS!BI$13) -> 1 | Z15: =SIGN(SIMULATIONS!BJ26-SIMULATIONS!BJ$13) -> -1 | AA15: =SIGN(SIMULATIONS!BK26-SIMULATIONS!BK$13) -> -1 | AB15: =SIGN(SIMULATIONS!BL26-SIMULATIONS!BL$13) -> -1
A16: 14 | B16: FINANCINGRATE | C16: 0.16 | D16: =SIGN(SIMULATIONS!AN27-SIMULATIONS!AN$13) -> 0 | E16: =SIGN(SIMULATIONS!AO27-SIMULATIONS!AO$13) -> 0 | F16: =SIGN(SIMULATIONS!AP27-SIMULATIONS!AP$13) -> 0 | G16: =SIGN(SIMULATIONS!AQ27-SIMULATIONS!AQ$13) -> 0 | H16: =SIGN(SIMULATIONS!AR27-SIMULATIONS!AR$13) -> -1 | I16: =SIGN(SIMULATIONS!AS27-SIMULATIONS!AS$13) -> -1 | J16: =SIGN(SIMULATIONS!AT27-SIMULATIONS!AT$13) -> -1 | K16: =SIGN(SIMULATIONS!AU27-SIMULATIONS!AU$13) -> 1 | L16: =SIGN(SIMULATIONS!AV27-SIMULATIONS!AV$13) -> -1 | M16: =SIGN(SIMULATIONS!AW27-SIMULATIONS!AW$13) -> -1 | N16: =SIGN(SIMULATIONS!AX27-SIMULATIONS!AX$13) -> -1 | O16: =SIGN(SIMULATIONS!AY27-SIMULATIONS!AY$13) -> -1 | P16: =SIGN(SIMULATIONS!AZ27-SIMULATIONS!AZ$13) -> -1 | Q16: =SIGN(SIMULATIONS!BA27-SIMULATIONS!BA$13) -> -1 | R16: =SIGN(SIMULATIONS!BB27-SIMULATIONS!BB$13) -> -1 | S16: =SIGN(SIMULATIONS!BC27-SIMULATIONS!BC$13) -> 0 | T16: =SIGN(SIMULATIONS!BD27-SIMULATIONS!BD$13) -> 0 | U16: =SIGN(SIMULATIONS!BE27-SIMULATIONS!BE$13) -> 0 | V16: =SIGN(SIMULATIONS!BF27-SIMULATIONS!BF$13) -> 0 | W16: =SIGN(SIMULATIONS!BG27-SIMULATIONS!BG$13) -> 0 | X16: =SIGN(SIMULATIONS!BH27-SIMULATIONS!BH$13) -> -1 | Y16: =SIGN(SIMULATIONS!BI27-SIMULATIONS!BI$13) -> -1 | Z16: =SIGN(SIMULATIONS!BJ27-SIMULATIONS!BJ$13) -> 1 | AA16: =SIGN(SIMULATIONS!BK27-SIMULATIONS!BK$13) -> 1 | AB16: =SIGN(SIMULATIONS!BL27-SIMULATIONS!BL$13) -> 1
A17: 15 | B17: RPEQUITY | C17: 0.25 | D17: =SIGN(SIMULATIONS!AN28-SIMULATIONS!AN$13) -> 0 | E17: =SIGN(SIMULATIONS!AO28-SIMULATIONS!AO$13) -> 0 | F17: =SIGN(SIMULATIONS!AP28-SIMULATIONS!AP$13) -> 0 | G17: =SIGN(SIMULATIONS!AQ28-SIMULATIONS!AQ$13) -> 0 | H17: =SIGN(SIMULATIONS!AR28-SIMULATIONS!AR$13) -> 1 | I17: =SIGN(SIMULATIONS!AS28-SIMULATIONS!AS$13) -> -1 | J17: =SIGN(SIMULATIONS!AT28-SIMULATIONS!AT$13) -> -1 | K17: =SIGN(SIMULATIONS!AU28-SIMULATIONS!AU$13) -> 0 | L17: =SIGN(SIMULATIONS!AV28-SIMULATIONS!AV$13) -> 1 | M17: =SIGN(SIMULATIONS!AW28-SIMULATIONS!AW$13) -> 0 | N17: =SIGN(SIMULATIONS!AX28-SIMULATIONS!AX$13) -> 0 | O17: =SIGN(SIMULATIONS!AY28-SIMULATIONS!AY$13) -> 0 | P17: =SIGN(SIMULATIONS!AZ28-SIMULATIONS!AZ$13) -> 0 | Q17: =SIGN(SIMULATIONS!BA28-SIMULATIONS!BA$13) -> 0 | R17: =SIGN(SIMULATIONS!BB28-SIMULATIONS!BB$13) -> 0 | S17: =SIGN(SIMULATIONS!BC28-SIMULATIONS!BC$13) -> 0 | T17: =SIGN(SIMULATIONS!BD28-SIMULATIONS!BD$13) -> 0 | U17: =SIGN(SIMULATIONS!BE28-SIMULATIONS!BE$13) -> 0 | V17: =SIGN(SIMULATIONS!BF28-SIMULATIONS!BF$13) -> 0 | W17: =SIGN(SIMULATIONS!BG28-SIMULATIONS!BG$13) -> 0 | X17: =SIGN(SIMULATIONS!BH28-SIMULATIONS!BH$13) -> 1 | Y17: =SIGN(SIMULATIONS!BI28-SIMULATIONS!BI$13) -> -1 | Z17: =SIGN(SIMULATIONS!BJ28-SIMULATIONS!BJ$13) -> 1 | AA17: =SIGN(SIMULATIONS!BK28-SIMULATIONS!BK$13) -> 0 | AB17: =SIGN(SIMULATIONS!BL28-SIMULATIONS!BL$13) -> -1
A18: 16 | B18: RPBQDEV | C18: 0.4 | D18: =SIGN(SIMULATIONS!AN29-SIMULATIONS!AN$13) -> 0 | E18: =SIGN(SIMULATIONS!AO29-SIMULATIONS!AO$13) -> 0 | F18: =SIGN(SIMULATIONS!AP29-SIMULATIONS!AP$13) -> 0 | G18: =SIGN(SIMULATIONS!AQ29-SIMULATIONS!AQ$13) -> 0 | H18: =SIGN(SIMULATIONS!AR29-SIMULATIONS!AR$13) -> 1 | I18: =SIGN(SIMULATIONS!AS29-SIMULATIONS!AS$13) -> 1 | J18: =SIGN(SIMULATIONS!AT29-SIMULATIONS!AT$13) -> 1 | K18: =SIGN(SIMULATIONS!AU29-SIMULATIONS!AU$13) -> -1 | L18: =SIGN(SIMULATIONS!AV29-SIMULATIONS!AV$13) -> 1 | M18: =SIGN(SIMULATIONS!AW29-SIMULATIONS!AW$13) -> 0 | N18: =SIGN(SIMULATIONS!AX29-SIMULATIONS!AX$13) -> -1 | O18: =SIGN(SIMULATIONS!AY29-SIMULATIONS!AY$13) -> 0 | P18: =SIGN(SIMULATIONS!AZ29-SIMULATIONS!AZ$13) -> -1 | Q18: =SIGN(SIMULATIONS!BA29-SIMULATIONS!BA$13) -> 1 | R18: =SIGN(SIMULATIONS!BB29-SIMULATIONS!BB$13) -> -1 | S18: =SIGN(SIMULATIONS!BC29-SIMULATIONS!BC$13) -> 0 | T18: =SIGN(SIMULATIONS!BD29-SIMULATIONS!BD$13) -> 0 | U18: =SIGN(SIMULATIONS!BE29-SIMULATIONS!BE$13) -> 0 | V18: =SIGN(SIMULATIONS!BF29-SIMULATIONS!BF$13) -> 0 | W18: =SIGN(SIMULATIONS!BG29-SIMULATIONS!BG$13) -> 0 | X18: =SIGN(SIMULATIONS!BH29-SIMULATIONS!BH$13) -> 1 | Y18: =SIGN(SIMULATIONS!BI29-SIMULATIONS!BI$13) -> 1 | Z18: =SIGN(SIMULATIONS!BJ29-SIMULATIONS!BJ$13) -> -1 | AA18: =SIGN(SIMULATIONS!BK29-SIMULATIONS!BK$13) -> 1 | AB18: =SIGN(SIMULATIONS!BL29-SIMULATIONS!BL$13) -> -1
A19: 17 | B19: RPBQEXP | C19: 0.4 | D19: =SIGN(SIMULATIONS!AN30-SIMULATIONS!AN$13) -> 0 | E19: =SIGN(SIMULATIONS!AO30-SIMULATIONS!AO$13) -> 0 | F19: =SIGN(SIMULATIONS!AP30-SIMULATIONS!AP$13) -> 0 | G19: =SIGN(SIMULATIONS!AQ30-SIMULATIONS!AQ$13) -> 0 | H19: =SIGN(SIMULATIONS!AR30-SIMULATIONS!AR$13) -> 1 | I19: =SIGN(SIMULATIONS!AS30-SIMULATIONS!AS$13) -> 1 | J19: =SIGN(SIMULATIONS!AT30-SIMULATIONS!AT$13) -> 1 | K19: =SIGN(SIMULATIONS!AU30-SIMULATIONS!AU$13) -> -1 | L19: =SIGN(SIMULATIONS!AV30-SIMULATIONS!AV$13) -> 1 | M19: =SIGN(SIMULATIONS!AW30-SIMULATIONS!AW$13) -> 0 | N19: =SIGN(SIMULATIONS!AX30-SIMULATIONS!AX$13) -> 1 | O19: =SIGN(SIMULATIONS!AY30-SIMULATIONS!AY$13) -> 0 | P19: =SIGN(SIMULATIONS!AZ30-SIMULATIONS!AZ$13) -> 1 | Q19: =SIGN(SIMULATIONS!BA30-SIMULATIONS!BA$13) -> 1 | R19: =SIGN(SIMULATIONS!BB30-SIMULATIONS!BB$13) -> 1 | S19: =SIGN(SIMULATIONS!BC30-SIMULATIONS!BC$13) -> 0 | T19: =SIGN(SIMULATIONS!BD30-SIMULATIONS!BD$13) -> 0 | U19: =SIGN(SIMULATIONS!BE30-SIMULATIONS!BE$13) -> 0 | V19: =SIGN(SIMULATIONS!BF30-SIMULATIONS!BF$13) -> 0 | W19: =SIGN(SIMULATIONS!BG30-SIMULATIONS!BG$13) -> 0 | X19: =SIGN(SIMULATIONS!BH30-SIMULATIONS!BH$13) -> 1 | Y19: =SIGN(SIMULATIONS!BI30-SIMULATIONS!BI$13) -> 1 | Z19: =SIGN(SIMULATIONS!BJ30-SIMULATIONS!BJ$13) -> -1 | AA19: =SIGN(SIMULATIONS!BK30-SIMULATIONS!BK$13) -> 1 | AB19: =SIGN(SIMULATIONS!BL30-SIMULATIONS!BL$13) -> -1
A20: 18 | B20: DURGRACE | C20: 9 | D20: =SIGN(SIMULATIONS!AN31-SIMULATIONS!AN$13) -> 0 | E20: =SIGN(SIMULATIONS!AO31-SIMULATIONS!AO$13) -> 0 | F20: =SIGN(SIMULATIONS!AP31-SIMULATIONS!AP$13) -> 0 | G20: =SIGN(SIMULATIONS!AQ31-SIMULATIONS!AQ$13) -> 0 | H20: =SIGN(SIMULATIONS!AR31-SIMULATIONS!AR$13) -> 1 | I20: =SIGN(SIMULATIONS!AS31-SIMULATIONS!AS$13) -> 1 | J20: =SIGN(SIMULATIONS!AT31-SIMULATIONS!AT$13) -> 1 | K20: =SIGN(SIMULATIONS!AU31-SIMULATIONS!AU$13) -> 0 | L20: =SIGN(SIMULATIONS!AV31-SIMULATIONS!AV$13) -> 0 | M20: =SIGN(SIMULATIONS!AW31-SIMULATIONS!AW$13) -> 0 | N20: =SIGN(SIMULATIONS!AX31-SIMULATIONS!AX$13) -> 0 | O20: =SIGN(SIMULATIONS!AY31-SIMULATIONS!AY$13) -> 0 | P20: =SIGN(SIMULATIONS!AZ31-SIMULATIONS!AZ$13) -> 0 | Q20: =SIGN(SIMULATIONS!BA31-SIMULATIONS!BA$13) -> 0 | R20: =SIGN(SIMULATIONS!BB31-SIMULATIONS!BB$13) -> 0 | S20: =SIGN(SIMULATIONS!BC31-SIMULATIONS!BC$13) -> 0 | T20: =SIGN(SIMULATIONS!BD31-SIMULATIONS!BD$13) -> 0 | U20: =SIGN(SIMULATIONS!BE31-SIMULATIONS!BE$13) -> 0 | V20: =SIGN(SIMULATIONS!BF31-SIMULATIONS!BF$13) -> 0 | W20: =SIGN(SIMULATIONS!BG31-SIMULATIONS!BG$13) -> 0 | X20: =SIGN(SIMULATIONS!BH31-SIMULATIONS!BH$13) -> 1 | Y20: =SIGN(SIMULATIONS!BI31-SIMULATIONS!BI$13) -> 1 | Z20: =SIGN(SIMULATIONS!BJ31-SIMULATIONS!BJ$13) -> -1 | AA20: =SIGN(SIMULATIONS!BK31-SIMULATIONS!BK$13) -> 0 | AB20: =SIGN(SIMULATIONS!BL31-SIMULATIONS!BL$13) -> -1
A21: 19 | B21: DURDEV | C21: 20 | D21: =SIGN(SIMULATIONS!AN32-SIMULATIONS!AN$13) -> 0 | E21: =SIGN(SIMULATIONS!AO32-SIMULATIONS!AO$13) -> 0 | F21: =SIGN(SIMULATIONS!AP32-SIMULATIONS!AP$13) -> 0 | G21: =SIGN(SIMULATIONS!AQ32-SIMULATIONS!AQ$13) -> 0 | H21: =SIGN(SIMULATIONS!AR32-SIMULATIONS!AR$13) -> 1 | I21: =SIGN(SIMULATIONS!AS32-SIMULATIONS!AS$13) -> 1 | J21: =SIGN(SIMULATIONS!AT32-SIMULATIONS!AT$13) -> 1 | K21: =SIGN(SIMULATIONS!AU32-SIMULATIONS!AU$13) -> 0 | L21: =SIGN(SIMULATIONS!AV32-SIMULATIONS!AV$13) -> 0 | M21: =SIGN(SIMULATIONS!AW32-SIMULATIONS!AW$13) -> 0 | N21: =SIGN(SIMULATIONS!AX32-SIMULATIONS!AX$13) -> 0 | O21: =SIGN(SIMULATIONS!AY32-SIMULATIONS!AY$13) -> 0 | P21: =SIGN(SIMULATIONS!AZ32-SIMULATIONS!AZ$13) -> 0 | Q21: =SIGN(SIMULATIONS!BA32-SIMULATIONS!BA$13) -> 0 | R21: =SIGN(SIMULATIONS!BB32-SIMULATIONS!BB$13) -> 0 | S21: =SIGN(SIMULATIONS!BC32-SIMULATIONS!BC$13) -> 0 | T21: =SIGN(SIMULATIONS!BD32-SIMULATIONS!BD$13) -> 0 | U21: =SIGN(SIMULATIONS!BE32-SIMULATIONS!BE$13) -> 0 | V21: =SIGN(SIMULATIONS!BF32-SIMULATIONS!BF$13) -> 0 | W21: =SIGN(SIMULATIONS!BG32-SIMULATIONS!BG$13) -> 0 | X21: =SIGN(SIMULATIONS!BH32-SIMULATIONS!BH$13) -> 1 | Y21: =SIGN(SIMULATIONS!BI32-SIMULATIONS!BI$13) -> 1 | Z21: =SIGN(SIMULATIONS!BJ32-SIMULATIONS!BJ$13) -> -1 | AA21: =SIGN(SIMULATIONS!BK32-SIMULATIONS!BK$13) -> 0 | AB21: =SIGN(SIMULATIONS!BL32-SIMULATIONS!BL$13) -> -1
A22: 20 | B22: DUREXP | C22: 15 | D22: =SIGN(SIMULATIONS!AN33-SIMULATIONS!AN$13) -> 0 | E22: =SIGN(SIMULATIONS!AO33-SIMULATIONS!AO$13) -> 0 | F22: =SIGN(SIMULATIONS!AP33-SIMULATIONS!AP$13) -> 0 | G22: =SIGN(SIMULATIONS!AQ33-SIMULATIONS!AQ$13) -> 0 | H22: =SIGN(SIMULATIONS!AR33-SIMULATIONS!AR$13) -> 1 | I22: =SIGN(SIMULATIONS!AS33-SIMULATIONS!AS$13) -> 1 | J22: =SIGN(SIMULATIONS!AT33-SIMULATIONS!AT$13) -> 1 | K22: =SIGN(SIMULATIONS!AU33-SIMULATIONS!AU$13) -> 0 | L22: =SIGN(SIMULATIONS!AV33-SIMULATIONS!AV$13) -> 0 | M22: =SIGN(SIMULATIONS!AW33-SIMULATIONS!AW$13) -> 0 | N22: =SIGN(SIMULATIONS!AX33-SIMULATIONS!AX$13) -> 0 | O22: =SIGN(SIMULATIONS!AY33-SIMULATIONS!AY$13) -> 0 | P22: =SIGN(SIMULATIONS!AZ33-SIMULATIONS!AZ$13) -> 0 | Q22: =SIGN(SIMULATIONS!BA33-SIMULATIONS!BA$13) -> 0 | R22: =SIGN(SIMULATIONS!BB33-SIMULATIONS!BB$13) -> 0 | S22: =SIGN(SIMULATIONS!BC33-SIMULATIONS!BC$13) -> 0 | T22: =SIGN(SIMULATIONS!BD33-SIMULATIONS!BD$13) -> 0 | U22: =SIGN(SIMULATIONS!BE33-SIMULATIONS!BE$13) -> 0 | V22: =SIGN(SIMULATIONS!BF33-SIMULATIONS!BF$13) -> 0 | W22: =SIGN(SIMULATIONS!BG33-SIMULATIONS!BG$13) -> 0 | X22: =SIGN(SIMULATIONS!BH33-SIMULATIONS!BH$13) -> 1 | Y22: =SIGN(SIMULATIONS!BI33-SIMULATIONS!BI$13) -> 1 | Z22: =SIGN(SIMULATIONS!BJ33-SIMULATIONS!BJ$13) -> -1 | AA22: =SIGN(SIMULATIONS!BK33-SIMULATIONS!BK$13) -> 0 | AB22: =SIGN(SIMULATIONS!BL33-SIMULATIONS!BL$13) -> -1
A23: 21 | B23: DURCOM | C23: 10 | D23: =SIGN(SIMULATIONS!AN34-SIMULATIONS!AN$13) -> 0 | E23: =SIGN(SIMULATIONS!AO34-SIMULATIONS!AO$13) -> 0 | F23: =SIGN(SIMULATIONS!AP34-SIMULATIONS!AP$13) -> 0 | G23: =SIGN(SIMULATIONS!AQ34-SIMULATIONS!AQ$13) -> 0 | H23: =SIGN(SIMULATIONS!AR34-SIMULATIONS!AR$13) -> 1 | I23: =SIGN(SIMULATIONS!AS34-SIMULATIONS!AS$13) -> 1 | J23: =SIGN(SIMULATIONS!AT34-SIMULATIONS!AT$13) -> 1 | K23: =SIGN(SIMULATIONS!AU34-SIMULATIONS!AU$13) -> 0 | L23: =SIGN(SIMULATIONS!AV34-SIMULATIONS!AV$13) -> 0 | M23: =SIGN(SIMULATIONS!AW34-SIMULATIONS!AW$13) -> 0 | N23: =SIGN(SIMULATIONS!AX34-SIMULATIONS!AX$13) -> 0 | O23: =SIGN(SIMULATIONS!AY34-SIMULATIONS!AY$13) -> 0 | P23: =SIGN(SIMULATIONS!AZ34-SIMULATIONS!AZ$13) -> 0 | Q23: =SIGN(SIMULATIONS!BA34-SIMULATIONS!BA$13) -> 0 | R23: =SIGN(SIMULATIONS!BB34-SIMULATIONS!BB$13) -> 0 | S23: =SIGN(SIMULATIONS!BC34-SIMULATIONS!BC$13) -> 0 | T23: =SIGN(SIMULATIONS!BD34-SIMULATIONS!BD$13) -> 0 | U23: =SIGN(SIMULATIONS!BE34-SIMULATIONS!BE$13) -> 0 | V23: =SIGN(SIMULATIONS!BF34-SIMULATIONS!BF$13) -> 0 | W23: =SIGN(SIMULATIONS!BG34-SIMULATIONS!BG$13) -> 0 | X23: =SIGN(SIMULATIONS!BH34-SIMULATIONS!BH$13) -> 1 | Y23: =SIGN(SIMULATIONS!BI34-SIMULATIONS!BI$13) -> 1 | Z23: =SIGN(SIMULATIONS!BJ34-SIMULATIONS!BJ$13) -> -1 | AA23: =SIGN(SIMULATIONS!BK34-SIMULATIONS!BK$13) -> 0 | AB23: =SIGN(SIMULATIONS!BL34-SIMULATIONS!BL$13) -> -1
A24: 22 | B24: AMODEV | C24: 2 | D24: =SIGN(SIMULATIONS!AN35-SIMULATIONS!AN$13) -> 0 | E24: =SIGN(SIMULATIONS!AO35-SIMULATIONS!AO$13) -> 0 | F24: =SIGN(SIMULATIONS!AP35-SIMULATIONS!AP$13) -> 0 | G24: =SIGN(SIMULATIONS!AQ35-SIMULATIONS!AQ$13) -> 0 | H24: =SIGN(SIMULATIONS!AR35-SIMULATIONS!AR$13) -> 1 | I24: =SIGN(SIMULATIONS!AS35-SIMULATIONS!AS$13) -> 1 | J24: =SIGN(SIMULATIONS!AT35-SIMULATIONS!AT$13) -> 1 | K24: =SIGN(SIMULATIONS!AU35-SIMULATIONS!AU$13) -> 1 | L24: =SIGN(SIMULATIONS!AV35-SIMULATIONS!AV$13) -> 1 | M24: =SIGN(SIMULATIONS!AW35-SIMULATIONS!AW$13) ->  | N24: =SIGN(SIMULATIONS!AX35-SIMULATIONS!AX$13) ->  | O24: =SIGN(SIMULATIONS!AY35-SIMULATIONS!AY$13) ->  | P24: =SIGN(SIMULATIONS!AZ35-SIMULATIONS!AZ$13) ->  | Q24: =SIGN(SIMULATIONS!BA35-SIMULATIONS!BA$13) ->  | R24: =SIGN(SIMULATIONS!BB35-SIMULATIONS!BB$13) ->  | S24: =SIGN(SIMULATIONS!BC35-SIMULATIONS!BC$13) -> 1 | T24: =SIGN(SIMULATIONS!BD35-SIMULATIONS!BD$13) -> 0 | U24: =SIGN(SIMULATIONS!BE35-SIMULATIONS!BE$13) -> 0 | V24: =SIGN(SIMULATIONS!BF35-SIMULATIONS!BF$13) -> 0 | W24: =SIGN(SIMULATIONS!BG35-SIMULATIONS!BG$13) -> 0 | X24: =SIGN(SIMULATIONS!BH35-SIMULATIONS!BH$13) -> 1 | Y24: =SIGN(SIMULATIONS!BI35-SIMULATIONS!BI$13) -> 1 | Z24: =SIGN(SIMULATIONS!BJ35-SIMULATIONS!BJ$13) -> -1 | AA24: =SIGN(SIMULATIONS!BK35-SIMULATIONS!BK$13) -> -1 | AB24: =SIGN(SIMULATIONS!BL35-SIMULATIONS!BL$13) -> -1
A25: 23 | B25: AMOEXP | C25: 3 | D25: =SIGN(SIMULATIONS!AN36-SIMULATIONS!AN$13) -> 0 | E25: =SIGN(SIMULATIONS!AO36-SIMULATIONS!AO$13) -> 0 | F25: =SIGN(SIMULATIONS!AP36-SIMULATIONS!AP$13) -> 0 | G25: =SIGN(SIMULATIONS!AQ36-SIMULATIONS!AQ$13) -> 0 | H25: =SIGN(SIMULATIONS!AR36-SIMULATIONS!AR$13) -> 1 | I25: =SIGN(SIMULATIONS!AS36-SIMULATIONS!AS$13) -> 1 | J25: =SIGN(SIMULATIONS!AT36-SIMULATIONS!AT$13) -> 1 | K25: =SIGN(SIMULATIONS!AU36-SIMULATIONS!AU$13) -> -1 | L25: =SIGN(SIMULATIONS!AV36-SIMULATIONS!AV$13) -> 1 | M25: =SIGN(SIMULATIONS!AW36-SIMULATIONS!AW$13) -> 1 | N25: =SIGN(SIMULATIONS!AX36-SIMULATIONS!AX$13) -> 1 | O25: =SIGN(SIMULATIONS!AY36-SIMULATIONS!AY$13) -> 1 | P25: =SIGN(SIMULATIONS!AZ36-SIMULATIONS!AZ$13) -> 1 | Q25: =SIGN(SIMULATIONS!BA36-SIMULATIONS!BA$13) -> 1 | R25: =SIGN(SIMULATIONS!BB36-SIMULATIONS!BB$13) -> 1 | S25: =SIGN(SIMULATIONS!BC36-SIMULATIONS!BC$13) -> 1 | T25: =SIGN(SIMULATIONS!BD36-SIMULATIONS!BD$13) -> 0 | U25: =SIGN(SIMULATIONS!BE36-SIMULATIONS!BE$13) -> 0 | V25: =SIGN(SIMULATIONS!BF36-SIMULATIONS!BF$13) -> 0 | W25: =SIGN(SIMULATIONS!BG36-SIMULATIONS!BG$13) -> 0 | X25: =SIGN(SIMULATIONS!BH36-SIMULATIONS!BH$13) -> 1 | Y25: =SIGN(SIMULATIONS!BI36-SIMULATIONS!BI$13) -> 1 | Z25: =SIGN(SIMULATIONS!BJ36-SIMULATIONS!BJ$13) -> -1 | AA25: =SIGN(SIMULATIONS!BK36-SIMULATIONS!BK$13) -> -1 | AB25: =SIGN(SIMULATIONS!BL36-SIMULATIONS!BL$13) -> -1
A26: 24 | B26: AMOCOM | C26: 3 | D26: =SIGN(SIMULATIONS!AN37-SIMULATIONS!AN$13) -> 0 | E26: =SIGN(SIMULATIONS!AO37-SIMULATIONS!AO$13) -> 0 | F26: =SIGN(SIMULATIONS!AP37-SIMULATIONS!AP$13) -> 0 | G26: =SIGN(SIMULATIONS!AQ37-SIMULATIONS!AQ$13) -> 0 | H26: =SIGN(SIMULATIONS!AR37-SIMULATIONS!AR$13) -> 1 | I26: =SIGN(SIMULATIONS!AS37-SIMULATIONS!AS$13) -> 1 | J26: =SIGN(SIMULATIONS!AT37-SIMULATIONS!AT$13) -> 1 | K26: =SIGN(SIMULATIONS!AU37-SIMULATIONS!AU$13) -> -1 | L26: =SIGN(SIMULATIONS!AV37-SIMULATIONS!AV$13) -> 1 | M26: =SIGN(SIMULATIONS!AW37-SIMULATIONS!AW$13) -> 1 | N26: =SIGN(SIMULATIONS!AX37-SIMULATIONS!AX$13) -> 1 | O26: =SIGN(SIMULATIONS!AY37-SIMULATIONS!AY$13) -> 1 | P26: =SIGN(SIMULATIONS!AZ37-SIMULATIONS!AZ$13) -> 1 | Q26: =SIGN(SIMULATIONS!BA37-SIMULATIONS!BA$13) -> 1 | R26: =SIGN(SIMULATIONS!BB37-SIMULATIONS!BB$13) -> 1 | S26: =SIGN(SIMULATIONS!BC37-SIMULATIONS!BC$13) -> 1 | T26: =SIGN(SIMULATIONS!BD37-SIMULATIONS!BD$13) -> 0 | U26: =SIGN(SIMULATIONS!BE37-SIMULATIONS!BE$13) -> 0 | V26: =SIGN(SIMULATIONS!BF37-SIMULATIONS!BF$13) -> 0 | W26: =SIGN(SIMULATIONS!BG37-SIMULATIONS!BG$13) -> 0 | X26: =SIGN(SIMULATIONS!BH37-SIMULATIONS!BH$13) -> 1 | Y26: =SIGN(SIMULATIONS!BI37-SIMULATIONS!BI$13) -> 1 | Z26: =SIGN(SIMULATIONS!BJ37-SIMULATIONS!BJ$13) -> -1 | AA26: =SIGN(SIMULATIONS!BK37-SIMULATIONS!BK$13) -> -1 | AB26: =SIGN(SIMULATIONS!BL37-SIMULATIONS!BL$13) -> -1
A27: 25 | B27: RATEBQDEV | C27: 0.02 | D27: =SIGN(SIMULATIONS!AN38-SIMULATIONS!AN$13) -> 0 | E27: =SIGN(SIMULATIONS!AO38-SIMULATIONS!AO$13) -> 0 | F27: =SIGN(SIMULATIONS!AP38-SIMULATIONS!AP$13) -> 0 | G27: =SIGN(SIMULATIONS!AQ38-SIMULATIONS!AQ$13) -> 0 | H27: =SIGN(SIMULATIONS!AR38-SIMULATIONS!AR$13) -> -1 | I27: =SIGN(SIMULATIONS!AS38-SIMULATIONS!AS$13) -> -1 | J27: =SIGN(SIMULATIONS!AT38-SIMULATIONS!AT$13) -> 1 | K27: =SIGN(SIMULATIONS!AU38-SIMULATIONS!AU$13) -> 1 | L27: =SIGN(SIMULATIONS!AV38-SIMULATIONS!AV$13) -> -1 | M27: =SIGN(SIMULATIONS!AW38-SIMULATIONS!AW$13) -> 0 | N27: =SIGN(SIMULATIONS!AX38-SIMULATIONS!AX$13) -> -1 | O27: =SIGN(SIMULATIONS!AY38-SIMULATIONS!AY$13) -> 0 | P27: =SIGN(SIMULATIONS!AZ38-SIMULATIONS!AZ$13) -> -1 | Q27: =SIGN(SIMULATIONS!BA38-SIMULATIONS!BA$13) -> -1 | R27: =SIGN(SIMULATIONS!BB38-SIMULATIONS!BB$13) -> -1 | S27: =SIGN(SIMULATIONS!BC38-SIMULATIONS!BC$13) -> 0 | T27: =SIGN(SIMULATIONS!BD38-SIMULATIONS!BD$13) -> 0 | U27: =SIGN(SIMULATIONS!BE38-SIMULATIONS!BE$13) -> 0 | V27: =SIGN(SIMULATIONS!BF38-SIMULATIONS!BF$13) -> 0 | W27: =SIGN(SIMULATIONS!BG38-SIMULATIONS!BG$13) -> 0 | X27: =SIGN(SIMULATIONS!BH38-SIMULATIONS!BH$13) -> -1 | Y27: =SIGN(SIMULATIONS!BI38-SIMULATIONS!BI$13) -> -1 | Z27: =SIGN(SIMULATIONS!BJ38-SIMULATIONS!BJ$13) -> -1 | AA27: =SIGN(SIMULATIONS!BK38-SIMULATIONS!BK$13) -> -1 | AB27: =SIGN(SIMULATIONS!BL38-SIMULATIONS!BL$13) -> 1
A28: 26 | B28: RATEBQEXP | C28: 0.06 | D28: =SIGN(SIMULATIONS!AN39-SIMULATIONS!AN$13) -> 0 | E28: =SIGN(SIMULATIONS!AO39-SIMULATIONS!AO$13) -> 0 | F28: =SIGN(SIMULATIONS!AP39-SIMULATIONS!AP$13) -> 0 | G28: =SIGN(SIMULATIONS!AQ39-SIMULATIONS!AQ$13) -> 0 | H28: =SIGN(SIMULATIONS!AR39-SIMULATIONS!AR$13) -> -1 | I28: =SIGN(SIMULATIONS!AS39-SIMULATIONS!AS$13) -> -1 | J28: =SIGN(SIMULATIONS!AT39-SIMULATIONS!AT$13) -> -1 | K28: =SIGN(SIMULATIONS!AU39-SIMULATIONS!AU$13) -> 1 | L28: =SIGN(SIMULATIONS!AV39-SIMULATIONS!AV$13) -> -1 | M28: =SIGN(SIMULATIONS!AW39-SIMULATIONS!AW$13) -> 0 | N28: =SIGN(SIMULATIONS!AX39-SIMULATIONS!AX$13) -> -1 | O28: =SIGN(SIMULATIONS!AY39-SIMULATIONS!AY$13) -> 0 | P28: =SIGN(SIMULATIONS!AZ39-SIMULATIONS!AZ$13) -> -1 | Q28: =SIGN(SIMULATIONS!BA39-SIMULATIONS!BA$13) -> 1 | R28: =SIGN(SIMULATIONS!BB39-SIMULATIONS!BB$13) -> -1 | S28: =SIGN(SIMULATIONS!BC39-SIMULATIONS!BC$13) -> 0 | T28: =SIGN(SIMULATIONS!BD39-SIMULATIONS!BD$13) -> 0 | U28: =SIGN(SIMULATIONS!BE39-SIMULATIONS!BE$13) -> 0 | V28: =SIGN(SIMULATIONS!BF39-SIMULATIONS!BF$13) -> 0 | W28: =SIGN(SIMULATIONS!BG39-SIMULATIONS!BG$13) -> 0 | X28: =SIGN(SIMULATIONS!BH39-SIMULATIONS!BH$13) -> -1 | Y28: =SIGN(SIMULATIONS!BI39-SIMULATIONS!BI$13) -> -1 | Z28: =SIGN(SIMULATIONS!BJ39-SIMULATIONS!BJ$13) -> 1 | AA28: =SIGN(SIMULATIONS!BK39-SIMULATIONS!BK$13) -> -1 | AB28: =SIGN(SIMULATIONS!BL39-SIMULATIONS!BL$13) -> 1
A29: 27 | B29: RATEBQCOM | C29: 0.07 | D29: =SIGN(SIMULATIONS!AN40-SIMULATIONS!AN$13) -> 0 | E29: =SIGN(SIMULATIONS!AO40-SIMULATIONS!AO$13) -> 0 | F29: =SIGN(SIMULATIONS!AP40-SIMULATIONS!AP$13) -> 0 | G29: =SIGN(SIMULATIONS!AQ40-SIMULATIONS!AQ$13) -> 0 | H29: =SIGN(SIMULATIONS!AR40-SIMULATIONS!AR$13) -> -1 | I29: =SIGN(SIMULATIONS!AS40-SIMULATIONS!AS$13) -> -1 | J29: =SIGN(SIMULATIONS!AT40-SIMULATIONS!AT$13) -> 1 | K29: =SIGN(SIMULATIONS!AU40-SIMULATIONS!AU$13) -> 1 | L29: =SIGN(SIMULATIONS!AV40-SIMULATIONS!AV$13) -> -1 | M29: =SIGN(SIMULATIONS!AW40-SIMULATIONS!AW$13) -> 0 | N29: =SIGN(SIMULATIONS!AX40-SIMULATIONS!AX$13) -> -1 | O29: =SIGN(SIMULATIONS!AY40-SIMULATIONS!AY$13) -> 0 | P29: =SIGN(SIMULATIONS!AZ40-SIMULATIONS!AZ$13) -> -1 | Q29: =SIGN(SIMULATIONS!BA40-SIMULATIONS!BA$13) -> 1 | R29: =SIGN(SIMULATIONS!BB40-SIMULATIONS!BB$13) -> -1 | S29: =SIGN(SIMULATIONS!BC40-SIMULATIONS!BC$13) -> 0 | T29: =SIGN(SIMULATIONS!BD40-SIMULATIONS!BD$13) -> 0 | U29: =SIGN(SIMULATIONS!BE40-SIMULATIONS!BE$13) -> 0 | V29: =SIGN(SIMULATIONS!BF40-SIMULATIONS!BF$13) -> 0 | W29: =SIGN(SIMULATIONS!BG40-SIMULATIONS!BG$13) -> 0 | X29: =SIGN(SIMULATIONS!BH40-SIMULATIONS!BH$13) -> -1 | Y29: =SIGN(SIMULATIONS!BI40-SIMULATIONS!BI$13) -> -1 | Z29: =SIGN(SIMULATIONS!BJ40-SIMULATIONS!BJ$13) -> 1 | AA29: =SIGN(SIMULATIONS!BK40-SIMULATIONS!BK$13) -> -1 | AB29: =SIGN(SIMULATIONS!BL40-SIMULATIONS!BL$13) -> 1
A30: 28 | B30: RATEDEPOSIT | C30: 0.005 | D30: =SIGN(SIMULATIONS!AN41-SIMULATIONS!AN$13) -> 0 | E30: =SIGN(SIMULATIONS!AO41-SIMULATIONS!AO$13) -> 0 | F30: =SIGN(SIMULATIONS!AP41-SIMULATIONS!AP$13) -> 0 | G30: =SIGN(SIMULATIONS!AQ41-SIMULATIONS!AQ$13) -> 0 | H30: =SIGN(SIMULATIONS!AR41-SIMULATIONS!AR$13) -> 1 | I30: =SIGN(SIMULATIONS!AS41-SIMULATIONS!AS$13) -> 1 | J30: =SIGN(SIMULATIONS!AT41-SIMULATIONS!AT$13) -> 1 | K30: =SIGN(SIMULATIONS!AU41-SIMULATIONS!AU$13) -> 0 | L30: =SIGN(SIMULATIONS!AV41-SIMULATIONS!AV$13) -> 1 | M30: =SIGN(SIMULATIONS!AW41-SIMULATIONS!AW$13) -> 0 | N30: =SIGN(SIMULATIONS!AX41-SIMULATIONS!AX$13) -> 0 | O30: =SIGN(SIMULATIONS!AY41-SIMULATIONS!AY$13) -> 0 | P30: =SIGN(SIMULATIONS!AZ41-SIMULATIONS!AZ$13) -> 0 | Q30: =SIGN(SIMULATIONS!BA41-SIMULATIONS!BA$13) -> 0 | R30: =SIGN(SIMULATIONS!BB41-SIMULATIONS!BB$13) -> 0 | S30: =SIGN(SIMULATIONS!BC41-SIMULATIONS!BC$13) -> 0 | T30: =SIGN(SIMULATIONS!BD41-SIMULATIONS!BD$13) -> 0 | U30: =SIGN(SIMULATIONS!BE41-SIMULATIONS!BE$13) -> 0 | V30: =SIGN(SIMULATIONS!BF41-SIMULATIONS!BF$13) -> 0 | W30: =SIGN(SIMULATIONS!BG41-SIMULATIONS!BG$13) -> 0 | X30: =SIGN(SIMULATIONS!BH41-SIMULATIONS!BH$13) -> 1 | Y30: =SIGN(SIMULATIONS!BI41-SIMULATIONS!BI$13) -> 1 | Z30: =SIGN(SIMULATIONS!BJ41-SIMULATIONS!BJ$13) -> -1 | AA30: =SIGN(SIMULATIONS!BK41-SIMULATIONS!BK$13) -> 0 | AB30: =SIGN(SIMULATIONS!BL41-SIMULATIONS!BL$13) -> -1
A31: 29 | B31: RATEFUNDING | C31: 0.1 | D31: =SIGN(SIMULATIONS!AN42-SIMULATIONS!AN$13) -> 0 | E31: =SIGN(SIMULATIONS!AO42-SIMULATIONS!AO$13) -> 0 | F31: =SIGN(SIMULATIONS!AP42-SIMULATIONS!AP$13) -> 0 | G31: =SIGN(SIMULATIONS!AQ42-SIMULATIONS!AQ$13) -> 0 | H31: =SIGN(SIMULATIONS!AR42-SIMULATIONS!AR$13) -> 1 | I31: =SIGN(SIMULATIONS!AS42-SIMULATIONS!AS$13) -> 1 | J31: =SIGN(SIMULATIONS!AT42-SIMULATIONS!AT$13) -> 1 | K31: =SIGN(SIMULATIONS!AU42-SIMULATIONS!AU$13) -> 0 | L31: =SIGN(SIMULATIONS!AV42-SIMULATIONS!AV$13) -> -1 | M31: =SIGN(SIMULATIONS!AW42-SIMULATIONS!AW$13) -> 0 | N31: =SIGN(SIMULATIONS!AX42-SIMULATIONS!AX$13) -> 0 | O31: =SIGN(SIMULATIONS!AY42-SIMULATIONS!AY$13) -> 0 | P31: =SIGN(SIMULATIONS!AZ42-SIMULATIONS!AZ$13) -> 0 | Q31: =SIGN(SIMULATIONS!BA42-SIMULATIONS!BA$13) -> 0 | R31: =SIGN(SIMULATIONS!BB42-SIMULATIONS!BB$13) -> 0 | S31: =SIGN(SIMULATIONS!BC42-SIMULATIONS!BC$13) -> 0 | T31: =SIGN(SIMULATIONS!BD42-SIMULATIONS!BD$13) -> 0 | U31: =SIGN(SIMULATIONS!BE42-SIMULATIONS!BE$13) -> 0 | V31: =SIGN(SIMULATIONS!BF42-SIMULATIONS!BF$13) -> 0 | W31: =SIGN(SIMULATIONS!BG42-SIMULATIONS!BG$13) -> 0 | X31: =SIGN(SIMULATIONS!BH42-SIMULATIONS!BH$13) -> 1 | Y31: =SIGN(SIMULATIONS!BI42-SIMULATIONS!BI$13) -> 1 | Z31: =SIGN(SIMULATIONS!BJ42-SIMULATIONS!BJ$13) -> -1 | AA31: =SIGN(SIMULATIONS!BK42-SIMULATIONS!BK$13) -> 0 | AB31: =SIGN(SIMULATIONS!BL42-SIMULATIONS!BL$13) -> 1
A32: 30 | B32: RATEDIVIDEND | C32: 1 | D32: =SIGN(SIMULATIONS!AN43-SIMULATIONS!AN$13) -> 0 | E32: =SIGN(SIMULATIONS!AO43-SIMULATIONS!AO$13) -> 0 | F32: =SIGN(SIMULATIONS!AP43-SIMULATIONS!AP$13) -> 0 | G32: =SIGN(SIMULATIONS!AQ43-SIMULATIONS!AQ$13) -> 0 | H32: =SIGN(SIMULATIONS!AR43-SIMULATIONS!AR$13) -> 1 | I32: =SIGN(SIMULATIONS!AS43-SIMULATIONS!AS$13) -> -1 | J32: =SIGN(SIMULATIONS!AT43-SIMULATIONS!AT$13) -> 1 | K32: =SIGN(SIMULATIONS!AU43-SIMULATIONS!AU$13) -> 0 | L32: =SIGN(SIMULATIONS!AV43-SIMULATIONS!AV$13) -> -1 | M32: =SIGN(SIMULATIONS!AW43-SIMULATIONS!AW$13) -> 0 | N32: =SIGN(SIMULATIONS!AX43-SIMULATIONS!AX$13) -> 0 | O32: =SIGN(SIMULATIONS!AY43-SIMULATIONS!AY$13) -> 0 | P32: =SIGN(SIMULATIONS!AZ43-SIMULATIONS!AZ$13) -> 0 | Q32: =SIGN(SIMULATIONS!BA43-SIMULATIONS!BA$13) -> 0 | R32: =SIGN(SIMULATIONS!BB43-SIMULATIONS!BB$13) -> 0 | S32: =SIGN(SIMULATIONS!BC43-SIMULATIONS!BC$13) -> 0 | T32: =SIGN(SIMULATIONS!BD43-SIMULATIONS!BD$13) -> 0 | U32: =SIGN(SIMULATIONS!BE43-SIMULATIONS!BE$13) -> 0 | V32: =SIGN(SIMULATIONS!BF43-SIMULATIONS!BF$13) -> 0 | W32: =SIGN(SIMULATIONS!BG43-SIMULATIONS!BG$13) -> 0 | X32: =SIGN(SIMULATIONS!BH43-SIMULATIONS!BH$13) -> -1 | Y32: =SIGN(SIMULATIONS!BI43-SIMULATIONS!BI$13) -> -1 | Z32: =SIGN(SIMULATIONS!BJ43-SIMULATIONS!BJ$13) -> -1 | AA32: =SIGN(SIMULATIONS!BK43-SIMULATIONS!BK$13) -> 0 | AB32: =SIGN(SIMULATIONS!BL43-SIMULATIONS!BL$13) -> 1
A33: 31 | B33: RATERESERVE | C33: 0.9 | D33: =SIGN(SIMULATIONS!AN44-SIMULATIONS!AN$13) -> 0 | E33: =SIGN(SIMULATIONS!AO44-SIMULATIONS!AO$13) -> 0 | F33: =SIGN(SIMULATIONS!AP44-SIMULATIONS!AP$13) -> 0 | G33: =SIGN(SIMULATIONS!AQ44-SIMULATIONS!AQ$13) -> 0 | H33: =SIGN(SIMULATIONS!AR44-SIMULATIONS!AR$13) -> 1 | I33: =SIGN(SIMULATIONS!AS44-SIMULATIONS!AS$13) -> 1 | J33: =SIGN(SIMULATIONS!AT44-SIMULATIONS!AT$13) -> 1 | K33: =SIGN(SIMULATIONS!AU44-SIMULATIONS!AU$13) -> 0 | L33: =SIGN(SIMULATIONS!AV44-SIMULATIONS!AV$13) -> 0 | M33: =SIGN(SIMULATIONS!AW44-SIMULATIONS!AW$13) -> 0 | N33: =SIGN(SIMULATIONS!AX44-SIMULATIONS!AX$13) -> 0 | O33: =SIGN(SIMULATIONS!AY44-SIMULATIONS!AY$13) -> 0 | P33: =SIGN(SIMULATIONS!AZ44-SIMULATIONS!AZ$13) -> 0 | Q33: =SIGN(SIMULATIONS!BA44-SIMULATIONS!BA$13) -> 0 | R33: =SIGN(SIMULATIONS!BB44-SIMULATIONS!BB$13) -> 0 | S33: =SIGN(SIMULATIONS!BC44-SIMULATIONS!BC$13) -> 0 | T33: =SIGN(SIMULATIONS!BD44-SIMULATIONS!BD$13) -> 0 | U33: =SIGN(SIMULATIONS!BE44-SIMULATIONS!BE$13) -> 0 | V33: =SIGN(SIMULATIONS!BF44-SIMULATIONS!BF$13) -> 0 | W33: =SIGN(SIMULATIONS!BG44-SIMULATIONS!BG$13) -> 0 | X33: =SIGN(SIMULATIONS!BH44-SIMULATIONS!BH$13) -> 1 | Y33: =SIGN(SIMULATIONS!BI44-SIMULATIONS!BI$13) -> 1 | Z33: =SIGN(SIMULATIONS!BJ44-SIMULATIONS!BJ$13) -> -1 | AA33: =SIGN(SIMULATIONS!BK44-SIMULATIONS!BK$13) -> 0 | AB33: =SIGN(SIMULATIONS!BL44-SIMULATIONS!BL$13) -> 1
A34: 32 | B34: YEARRESERVE | C34: 3 | D34: =SIGN(SIMULATIONS!AN45-SIMULATIONS!AN$13) -> 0 | E34: =SIGN(SIMULATIONS!AO45-SIMULATIONS!AO$13) -> 0 | F34: =SIGN(SIMULATIONS!AP45-SIMULATIONS!AP$13) -> 0 | G34: =SIGN(SIMULATIONS!AQ45-SIMULATIONS!AQ$13) -> 0 | H34: =SIGN(SIMULATIONS!AR45-SIMULATIONS!AR$13) -> 1 | I34: =SIGN(SIMULATIONS!AS45-SIMULATIONS!AS$13) -> 1 | J34: =SIGN(SIMULATIONS!AT45-SIMULATIONS!AT$13) -> 1 | K34: =SIGN(SIMULATIONS!AU45-SIMULATIONS!AU$13) -> 0 | L34: =SIGN(SIMULATIONS!AV45-SIMULATIONS!AV$13) -> 0 | M34: =SIGN(SIMULATIONS!AW45-SIMULATIONS!AW$13) -> 0 | N34: =SIGN(SIMULATIONS!AX45-SIMULATIONS!AX$13) -> 0 | O34: =SIGN(SIMULATIONS!AY45-SIMULATIONS!AY$13) -> 0 | P34: =SIGN(SIMULATIONS!AZ45-SIMULATIONS!AZ$13) -> 0 | Q34: =SIGN(SIMULATIONS!BA45-SIMULATIONS!BA$13) -> 0 | R34: =SIGN(SIMULATIONS!BB45-SIMULATIONS!BB$13) -> 0 | S34: =SIGN(SIMULATIONS!BC45-SIMULATIONS!BC$13) -> 0 | T34: =SIGN(SIMULATIONS!BD45-SIMULATIONS!BD$13) -> 0 | U34: =SIGN(SIMULATIONS!BE45-SIMULATIONS!BE$13) -> 0 | V34: =SIGN(SIMULATIONS!BF45-SIMULATIONS!BF$13) -> 0 | W34: =SIGN(SIMULATIONS!BG45-SIMULATIONS!BG$13) -> 0 | X34: =SIGN(SIMULATIONS!BH45-SIMULATIONS!BH$13) -> 1 | Y34: =SIGN(SIMULATIONS!BI45-SIMULATIONS!BI$13) -> 1 | Z34: =SIGN(SIMULATIONS!BJ45-SIMULATIONS!BJ$13) -> -1 | AA34: =SIGN(SIMULATIONS!BK45-SIMULATIONS!BK$13) -> 0 | AB34: =SIGN(SIMULATIONS!BL45-SIMULATIONS!BL$13) -> -1
A35: 33 | B35: DF | C35: 0.1 | D35: =SIGN(SIMULATIONS!AN46-SIMULATIONS!AN$13) -> 0 | E35: =SIGN(SIMULATIONS!AO46-SIMULATIONS!AO$13) -> 0 | F35: =SIGN(SIMULATIONS!AP46-SIMULATIONS!AP$13) -> 0 | G35: =SIGN(SIMULATIONS!AQ46-SIMULATIONS!AQ$13) -> 0 | H35: =SIGN(SIMULATIONS!AR46-SIMULATIONS!AR$13) -> 1 | I35: =SIGN(SIMULATIONS!AS46-SIMULATIONS!AS$13) -> 1 | J35: =SIGN(SIMULATIONS!AT46-SIMULATIONS!AT$13) -> 1 | K35: =SIGN(SIMULATIONS!AU46-SIMULATIONS!AU$13) -> 0 | L35: =SIGN(SIMULATIONS!AV46-SIMULATIONS!AV$13) -> 0 | M35: =SIGN(SIMULATIONS!AW46-SIMULATIONS!AW$13) -> -1 | N35: =SIGN(SIMULATIONS!AX46-SIMULATIONS!AX$13) -> -1 | O35: =SIGN(SIMULATIONS!AY46-SIMULATIONS!AY$13) -> -1 | P35: =SIGN(SIMULATIONS!AZ46-SIMULATIONS!AZ$13) -> -1 | Q35: =SIGN(SIMULATIONS!BA46-SIMULATIONS!BA$13) -> 0 | R35: =SIGN(SIMULATIONS!BB46-SIMULATIONS!BB$13) -> 0 | S35: =SIGN(SIMULATIONS!BC46-SIMULATIONS!BC$13) -> 0 | T35: =SIGN(SIMULATIONS!BD46-SIMULATIONS!BD$13) -> -1 | U35: =SIGN(SIMULATIONS!BE46-SIMULATIONS!BE$13) -> -1 | V35: =SIGN(SIMULATIONS!BF46-SIMULATIONS!BF$13) -> -1 | W35: =SIGN(SIMULATIONS!BG46-SIMULATIONS!BG$13) -> -1 | X35: =SIGN(SIMULATIONS!BH46-SIMULATIONS!BH$13) -> -1 | Y35: =SIGN(SIMULATIONS!BI46-SIMULATIONS!BI$13) -> -1 | Z35: =SIGN(SIMULATIONS!BJ46-SIMULATIONS!BJ$13) -> 1 | AA35: =SIGN(SIMULATIONS!BK46-SIMULATIONS!BK$13) -> 1 | AB35: =SIGN(SIMULATIONS!BL46-SIMULATIONS!BL$13) -> 1
A36: 34 | B36: DSCRTARGET | C36: 1.5 | D36: =SIGN(SIMULATIONS!AN47-SIMULATIONS!AN$13) -> 0 | E36: =SIGN(SIMULATIONS!AO47-SIMULATIONS!AO$13) -> 0 | F36: =SIGN(SIMULATIONS!AP47-SIMULATIONS!AP$13) -> 0 | G36: =SIGN(SIMULATIONS!AQ47-SIMULATIONS!AQ$13) -> 0 | H36: =SIGN(SIMULATIONS!AR47-SIMULATIONS!AR$13) -> -1 | I36: =SIGN(SIMULATIONS!AS47-SIMULATIONS!AS$13) -> -1 | J36: =SIGN(SIMULATIONS!AT47-SIMULATIONS!AT$13) -> -1 | K36: =SIGN(SIMULATIONS!AU47-SIMULATIONS!AU$13) -> 1 | L36: =SIGN(SIMULATIONS!AV47-SIMULATIONS!AV$13) -> -1 | M36: =SIGN(SIMULATIONS!AW47-SIMULATIONS!AW$13) -> 0 | N36: =SIGN(SIMULATIONS!AX47-SIMULATIONS!AX$13) -> -1 | O36: =SIGN(SIMULATIONS!AY47-SIMULATIONS!AY$13) -> 0 | P36: =SIGN(SIMULATIONS!AZ47-SIMULATIONS!AZ$13) -> -1 | Q36: =SIGN(SIMULATIONS!BA47-SIMULATIONS!BA$13) -> 1 | R36: =SIGN(SIMULATIONS!BB47-SIMULATIONS!BB$13) -> -1 | S36: =SIGN(SIMULATIONS!BC47-SIMULATIONS!BC$13) -> 0 | T36: =SIGN(SIMULATIONS!BD47-SIMULATIONS!BD$13) -> 0 | U36: =SIGN(SIMULATIONS!BE47-SIMULATIONS!BE$13) -> 0 | V36: =SIGN(SIMULATIONS!BF47-SIMULATIONS!BF$13) -> 0 | W36: =SIGN(SIMULATIONS!BG47-SIMULATIONS!BG$13) -> 0 | X36: =SIGN(SIMULATIONS!BH47-SIMULATIONS!BH$13) -> -1 | Y36: =SIGN(SIMULATIONS!BI47-SIMULATIONS!BI$13) -> -1 | Z36: =SIGN(SIMULATIONS!BJ47-SIMULATIONS!BJ$13) -> 1 | AA36: =SIGN(SIMULATIONS!BK47-SIMULATIONS!BK$13) -> 1 | AB36: =SIGN(SIMULATIONS!BL47-SIMULATIONS!BL$13) -> 1

Sheet CONTROLS
B2: REVENUES | D2: =INDIRECT($B2) -> 0 | E2: 0 | F2: 0 | G2: 0 | H2: 0 | I2: 57805.55276 | J2: 58383.60828 | K2: 58967.44437 | L2: 59557.11881 | M2: 60152.69 | N2: =INDIRECT($B2) -> 60754.2169 | O2: 61361.75907 | P2: 61975.37666 | Q2: 62595.13042 | R2: 63221.08173 | S2: 63853.29255 | T2: 64491.82547 | U2: 65136.74373 | V2: 65788.11116 | W2: 66445.99227 | X2: =INDIRECT($B2) -> 67110.4522 | Y2: 67781.55672 | Z2: 68459.37229 | AA2: 69143.96601 | AB2: 69835.40567 | AC2: 70533.75973 | AD2: 71239.09732 | AE2: 71951.4883 | AF2: 72671.00318 | AG2: 73397.71321 | AH2: 0 | AI2: 0 | AJ2: 0 | AK2: 0 | AL2: 0
B3: COST | D3: 0 | E3: 0 | F3: 0 | G3: 0 | H3: 0 | I3: -1411.04522 | J3: -1425.278396 | K3: -1439.65637 | L3: -1454.18064 | M3: -1468.85272 | N3: -1483.674139 | O3: -1498.646444 | P3: -1513.771196 | Q3: -1529.049976 | R3: -1544.484378 | S3: -1560.076018 | T3: -1575.826524 | U3: -1591.737545 | V3: -1607.810747 | W3: -1624.047813 | X3: -1640.450444 | Y3: -1657.020361 | Z3: -1673.759303 | AA3: -1690.669025 | AB3: -1707.751304 | AC3: -1725.007935 | AD3: -1742.440733 | AE3: -1760.051532 | AF3: -1777.842185 | AG3: -1795.814566 | AH3: 0 | AI3: 0 | AJ3: 0 | AK3: 0 | AL3: 0
B4: TAX | D4: 0 | E4: 0 | F4: 0 | G4: 0 | H4: 0 | I4: -2965.337263 | J4: -2996.831489 | K4: -3028.677658 | L4: -3060.880033 | M4: -3093.442936 | N4: -3126.370745 | O4: -3159.667899 | P4: -3193.338897 | Q4: -3227.388299 | R4: -3261.820726 | S4: -3296.640865 | T4: -3331.853464 | U4: -3367.463337 | V4: -3403.475365 | W4: -3439.894495 | X4: -3476.725742 | Y4: -3513.974191 | Z4: -3551.644996 | AA4: -3589.743384 | AB4: -3628.274652 | AC4: -3667.244173 | AD4: -3706.657394 | AE4: -3746.519837 | AF4: -3786.837101 | AG4: -3827.614864 | AH4: 0 | AI4: 0 | AJ4: 0 | AK4: 0 | AL4: 0
B5: REVENUES | D5: 0 | E5: 0 | F5: 0 | G5: 0 | H5: 0 | I5: 57805.55276 | J5: 58383.60828 | K5: 58967.44437 | L5: 59557.11881 | M5: 60152.69 | N5: 60754.2169 | O5: 61361.75907 | P5: 61975.37666 | Q5: 62595.13042 | R5: 63221.08173 | S5: 63853.29255 | T5: 64491.82547 | U5: 65136.74373 | V5: 65788.11116 | W5: 66445.99227 | X5: 67110.4522 | Y5: 67781.55672 | Z5: 68459.37229 | AA5: 69143.96601 | AB5: 69835.40567 | AC5: 70533.75973 | AD5: 71239.09732 | AE5: 71951.4883 | AF5: 72671.00318 | AG5: 73397.71321 | AH5: 0 | AI5: 0 | AJ5: 0 | AK5: 0 | AL5: 0
B6: COST | D6: 0 | E6: 0 | F6: 0 | G6: 0 | H6: 0 | I6: -1411.04522 | J6: -1425.278396 | K6: -1439.65637 | L6: -1454.18064 | M6: -1468.85272 | N6: -1483.674139 | O6: -1498.646444 | P6: -1513.771196 | Q6: -1529.049976 | R6: -1544.484378 | S6: -1560.076018 | T6: -1575.826524 | U6: -1591.737545 | V6: -1607.810747 | W6: -1624.047813 | X6: -1640.450444 | Y6: -1657.020361 | Z6: -1673.759303 | AA6: -1690.669025 | AB6: -1707.751304 | AC6: -1725.007935 | AD6: -1742.440733 | AE6: -1760.051532 | AF6: -1777.842185 | AG6: -1795.814566 | AH6: 0 | AI6: 0 | AJ6: 0 | AK6: 0 | AL6: 0
B7: TAX | D7: 0 | E7: 0 | F7: 0 | G7: 0 | H7: 0 | I7: -2965.337263 | J7: -2996.831489 | K7: -3028.677658 | L7: -3060.880033 | M7: -3093.442936 | N7: -3126.370745 | O7: -3159.667899 | P7: -3193.338897 | Q7: -3227.388299 | R7: -3261.820726 | S7: -3296.640865 | T7: -3331.853464 | U7: -3367.463337 | V7: -3403.475365 | W7: -3439.894495 | X7: -3476.725742 | Y7: -3513.974191 | Z7: -3551.644996 | AA7: -3589.743384 | AB7: -3628.274652 | AC7: -3667.244173 | AD7: -3706.657394 | AE7: -3746.519837 | AF7: -3786.837101 | AG7: -3827.614864 | AH7: 0 | AI7: 0 | AJ7: 0 | AK7: 0 | AL7: 0
B8: INTLT | D8: 0 | E8: -1324.662 | F8: -3311.655 | G8: -5960.979 | H8: -10199.8974 | I8: -12451.8228 | J8: -13246.62 | K8: -13246.62 | L8: -13246.62 | M8: -13246.62 | N8: -12404.42311 | O8: -11500.66081 | P8: -10531.39015 | Q8: -9492.416729 | R8: -8379.278465 | S8: -7187.228431 | T8: -5911.216519 | U8: -4545.869928 | V8: -3085.472394 | W8: -1523.942067 | X8: -682.6922856 | Y8: -517.0549213 | Z8: -348.1048098 | AA8: -175.775696 | AB8: 0 | AC8: 0 | AD8: 0 | AE8: 0 | AF8: 0 | AG8: 0 | AH8: 0 | AI8: 0 | AJ8: 0 | AK8: 0 | AL8: 0
B9: INTST | D9: 0 | E9: 59.87607035 | F9: 96.76160337 | G9: 152.4549833 | H9: 147.207534 | I9: 165.7432192 | J9: 317.1637706 | K9: 337.7882061 | L9: 481.7867935 | M9: 457.9295208 | N9: 428.7508424 | O9: 393.9319126 | P9: 353.1340626 | Q9: 305.9975416 | R9: 252.1401784 | S9: 191.155955 | T9: 122.6134906 | U9: 46.05442619 | V9: -780.165865 | W9: -1294.370582 | X9: -809.221669 | Y9: -340.743054 | Z9: 5.536646231 | AA9: 27.24336461 | AB9: 92.88851774 | AC9: 158.5281268 | AD9: 224.1621365 | AE9: 289.7904908 | AF9: 355.4131334 | AG9: 421.0300072 | AH9: -9.022187442e-10 | AI9: -1.276374964e-09 | AJ9: -1.547051998e-09 | AK9: -1.703386234e-09 | AL9: -1.742393364e-09
B10: INTST | D10: 0 | E10: 59.87607035 | F10: 96.76160337 | G10: 152.4549833 | H10: 147.207534 | I10: 165.7432192 | J10: 317.1637706 | K10: 337.7882061 | L10: 481.7867935 | M10: 457.9295208 | N10: 428.7508424 | O10: 393.9319126 | P10: 353.1340626 | Q10: 305.9975416 | R10: 252.1401784 | S10: 191.155955 | T10: 122.6134906 | U10: 46.05442619 | V10: -780.165865 | W10: -1294.370582 | X10: -809.221669 | Y10: -340.743054 | Z10: 5.536646231 | AA10: 27.24336461 | AB10: 92.88851774 | AC10: 158.5281268 | AD10: 224.1621365 | AE10: 289.7904908 | AF10: 355.4131334 | AG10: 421.0300072 | AH10: -9.022187442e-10 | AI10: -1.276374964e-09 | AJ10: -1.547051998e-09 | AK10: -1.703386234e-09 | AL10: -1.742393364e-09
B11: INTLT | D11: 0 | E11: -1324.662 | F11: -3311.655 | G11: -5960.979 | H11: -10199.8974 | I11: -12451.8228 | J11: -13246.62 | K11: -13246.62 | L11: -13246.62 | M11: -13246.62 | N11: -12404.42311 | O11: -11500.66081 | P11: -10531.39015 | Q11: -9492.416729 | R11: -8379.278465 | S11: -7187.228431 | T11: -5911.216519 | U11: -4545.869928 | V11: -3085.472394 | W11: -1523.942067 | X11: -682.6922856 | Y11: -517.0549213 | Z11: -348.1048098 | AA11: -175.775696 | AB11: 0 | AC11: 0 | AD11: 0 | AE11: 0 | AF11: 0 | AG11: 0 | AH11: 0 | AI11: 0 | AJ11: 0 | AK11: 0 | AL11: 0
B12: DIVIDEND | D12: 0 | E12: 0 | F12: 0 | G12: 0 | H12: 0 | I12: 0 | J12: 0 | K12: 0 | L12: -1998.666123 | M12: -4388.206323 | N12: -22587.40001 | O12: -24467.05599 | P12: -32351.29381 | Q12: -34718.77474 | R12: -37213.03294 | S12: -39841.85004 | T12: -42613.50151 | U12: -45536.78839 | V12: -48065.20297 | W12: -43203.68823 | X12: -35446.02154 | Y12: -36384.57314 | Z12: -37238.54987 | AA12: -37856.26595 | AB12: -38514.20117 | AC12: -39045.02681 | AD12: -39580.621 | AE12: -40121.03056 | AF12: -40666.30277 | AG12: -41216.48534 | AH12: 0 | AI12: 0 | AJ12: 0 | AK12: 0 | AL12: 0
B13: DIVIDEND | D13: 0 | E13: 0 | F13: 0 | G13: 0 | H13: 0 | I13: 0 | J13: 0 | K13: 0 | L13: -1998.666123 | M13: -4388.206323 | N13: -22587.40001 | O13: -24467.05599 | P13: -32351.29381 | Q13: -34718.77474 | R13: -37213.03294 | S13: -39841.85004 | T13: -42613.50151 | U13: -45536.78839 | V13: -48065.20297 | W13: -43203.68823 | X13: -35446.02154 | Y13: -36384.57314 | Z13: -37238.54987 | AA13: -37856.26595 | AB13: -38514.20117 | AC13: -39045.02681 | AD13: -39580.621 | AE13: -40121.03056 | AF13: -40666.30277 | AG13: -41216.48534 | AH13: 0 | AI13: 0 | AJ13: 0 | AK13: 0 | AL13: 0
B14: TAXCO | D14: 0 | E14: 0 | F14: 0 | G14: 0 | H14: 0 | I14: -1890.549371 | J14: -6948.010542 | K14: -7087.569636 | L14: -7259.306232 | M14: -7390.425966 | N14: -7732.124936 | O14: -8089.178958 | P14: -8462.502619 | Q14: -8853.068241 | R14: -9261.909584 | S14: -9690.125797 | T14: -10138.88561 | U14: -10609.43184 | V14: -10917.7967 | W14: -11330.93433 | X14: -11815.34051 | Y14: -12128.19105 | Z14: -12412.84996 | AA14: -12618.75532 | AB14: -12838.06706 | AC14: -13015.00894 | AD14: -13193.54033 | AE14: -13373.67685 | AF14: -13555.43426 | AG14: -13738.82845 | AH14: -1.145963324e-10 | AI14: -9.198452445e-11 | AJ14: -9.535756775e-11 | AK14: -9.729414374e-11 | AL14: -9.77567611e-11
B15: TAXCO | D15: 0 | E15: 0 | F15: 0 | G15: 0 | H15: 0 | I15: -1890.549371 | J15: -6948.010542 | K15: -7087.569636 | L15: -7259.306232 | M15: -7390.425966 | N15: -7732.124936 | O15: -8089.178958 | P15: -8462.502619 | Q15: -8853.068241 | R15: -9261.909584 | S15: -9690.125797 | T15: -10138.88561 | U15: -10609.43184 | V15: -10917.7967 | W15: -11330.93433 | X15: -11815.34051 | Y15: -12128.19105 | Z15: -12412.84996 | AA15: -12618.75532 | AB15: -12838.06706 | AC15: -13015.00894 | AD15: -13193.54033 | AE15: -13373.67685 | AF15: -13555.43426 | AG15: -13738.82845 | AH15: -1.145963324e-10 | AI15: -9.198452445e-11 | AJ15: -9.535756775e-11 | AK15: -9.729414374e-11 | AL15: -9.77567611e-11
B17: EQ | D17: =INDIRECT($B17) -> 9599 | E17: 14398.5 | F17: 19198 | G17: 30716.8 | H17: 16318.3 | I17: 5759.4 | J17: 0 | K17: 0 | L17: 0 | M17: 0 | N17: 0 | O17: 0 | P17: 0 | Q17: 0 | R17: 0 | S17: 0 | T17: 0 | U17: 0 | V17: 0 | W17: 0 | X17: 0 | Y17: 0 | Z17: 0 | AA17: 0 | AB17: 0 | AC17: 0 | AD17: 0 | AE17: 0 | AF17: 0 | AG17: 0 | AH17: -95990 | AI17: 0 | AJ17: 0 | AK17: 0 | AL17: 0
B18: CUMEQ | D18: =D45-C45 -> 9599 | E18: 14398.5 | F18: 19198 | G18: 30716.8 | H18: 16318.3 | I18: 5759.4 | J18: 0 | K18: 0 | L18: 0 | M18: 0 | N18: 0 | O18: 0 | P18: 0 | Q18: 0 | R18: 0 | S18: 0 | T18: 0 | U18: 0 | V18: 0 | W18: 0 | X18: 0 | Y18: 0 | Z18: 0 | AA18: 0 | AB18: 0 | AC18: 0 | AD18: 0 | AE18: 0 | AF18: 0 | AG18: 0 | AH18: -95990 | AI18: 0 | AJ18: 0 | AK18: 0 | AL18: 0
B20: WCPAY | E20: =E39-D39 -> 0 | F20: 0 | G20: 0 | H20: 0 | I20: 9634.258793 | J20: 96.34258793 | K20: 97.30601381 | L20: 98.27907394 | M20: 99.26186468 | N20: 100.2544833 | O20: 101.2570282 | P20: 102.2695984 | Q20: 103.2922944 | R20: 104.3252174 | S20: 105.3684695 | T20: 106.4221542 | U20: 107.4863758 | V20: 108.5612395 | W20: 109.6468519 | X20: 110.7433205 | Y20: 111.8507537 | Z20: 112.9692612 | AA20: 114.0989538 | AB20: 115.2399433 | AC20: 116.3923428 | AD20: 117.5562662 | AE20: 118.7318289 | AF20: 119.9191472 | AG20: 121.1183386 | AH20: -12232.9522 | AI20: 0 | AJ20: 0 | AK20: 0 | AL20: 0
B21: WCREC | D21: =D44-C44 -> 0 | E21: 0 | F21: 0 | G21: 0 | H21: 0 | I21: 352.761305 | J21: 3.55829393 | K21: 3.594493555 | L21: 3.631067571 | M21: 3.668019973 | N21: 3.705354797 | O21: 3.743076127 | P21: 3.781188093 | Q21: 3.81969487 | R21: 3.858600683 | S21: 3.897909803 | T21: 3.937626548 | U21: 3.977755287 | V21: 4.018300438 | W21: 4.05926647 | X21: 4.100657901 | Y21: 4.142479301 | Z21: 4.184735293 | AA21: 4.227430552 | AB21: 4.270569807 | AC21: 4.314157839 | AD21: 4.358199487 | AE21: 4.402699643 | AF21: 4.447663256 | AG21: 4.49309533 | AH21: -448.9536416 | AI21: 0 | AJ21: 0 | AK21: 0 | AL21: 0
B22: WCVAR | D22: =INDIRECT($B22) -> 0 | E22: 0 | F22: 0 | G22: 0 | H22: 0 | I22: -9281.497488 | J22: -92.784294 | K22: -93.71152025 | L22: -94.64800637 | M22: -95.59384471 | N22: -96.54912853 | O22: -97.51395204 | P22: -98.48841035 | Q22: -99.47259956 | R22: -100.4666167 | S22: -101.4705597 | T22: -102.4845277 | U22: -103.5086205 | V22: -104.5429391 | W22: -105.5875855 | X22: -106.6426626 | Y22: -107.7082744 | Z22: -108.7845259 | AA22: -109.8715233 | AB22: -110.9693735 | AC22: -112.0781849 | AD22: -113.1980667 | AE22: -114.3291292 | AF22: -115.4714839 | AG22: -116.6252433 | AH22: 11783.99856 | AI22: 0 | AJ22: 0 | AK22: 0 | AL22: 0
B24: DSRA | E24: =E38-D38 -> 0 | F24: 0 | G24: 0 | H24: 0 | I24: 29441.50679 | J24: 3707.137042 | K24: 30284.11029 | L24: 4124.887097 | M24: 17783.07157 | N24: 608.9747994 | O24: -199.5191133 | P24: -6963.785952 | Q24: -8159.570017 | R24: -9427.304188 | S24: -10771.47265 | T24: -12196.84467 | U24: -13708.49289 | V24: -15311.81288 | W24: -9210.885237 | X24: 0 | Y24: 0 | Z24: 0 | AA24: 0 | AB24: 0 | AC24: 0 | AD24: 0 | AE24: 0 | AF24: 0 | AG24: 0 | AH24: 0 | AI24: 0 | AJ24: 0 | AK24: 0 | AL24: 0
B25: CFDSRA | D25: =INDIRECT($B25) -> 0 | E25: 0 | F25: 0 | G25: 0 | H25: 0 | I25: -29441.50679 | J25: -3707.137042 | K25: -30284.11029 | L25: -4124.887097 | M25: -17783.07157 | N25: -608.9747994 | O25: 199.5191133 | P25: 6963.785952 | Q25: 8159.570017 | R25: 9427.304188 | S25: 10771.47265 | T25: 12196.84467 | U25: 13708.49289 | V25: 15311.81288 | W25: 9210.885237 | X25: 0 | Y25: 0 | Z25: 0 | AA25: 0 | AB25: 0 | AC25: 0 | AD25: 0 | AE25: 0 | AF25: 0 | AG25: 0 | AH25: 0 | AI25: 0 | AJ25: 0 | AK25: 0 | AL25: 0
B27: DT | D27: =INDIRECT($B27) -> 28797 | E27: 43195.5 | F27: 57594 | G27: 92150.4 | H27: 48954.9 | I27: 17278.2 | J27: 0 | K27: 0 | L27: 0 | M27: 0 | N27: =INDIRECT($B27) -> 0 | O27: 0 | P27: 0 | Q27: 0 | R27: 0 | S27: 0 | T27: 0 | U27: 0 | V27: 0 | W27: 0 | X27: =INDIRECT($B27) -> 0 | Y27: 0 | Z27: 0 | AA27: 0 | AB27: 0 | AC27: 0 | AD27: 0 | AE27: 0 | AF27: 0 | AG27: 0 | AH27: 0 | AI27: 0 | AJ27: 0 | AK27: 0 | AL27: 0
B28: AMOLT | D28: 0 | E28: 0 | F28: 0 | G28: 0 | H28: 0 | I28: 0 | J28: 0 | K28: 0 | L28: 0 | M28: -17915.8607 | N28: -18979.18654 | O28: -20106.272 | P28: -21301.08161 | Q28: -22567.83159 | R28: -23911.00604 | S28: -25335.37411 | T28: -26846.00836 | U28: -28448.30426 | V28: -30148.00095 | W28: -18276.45958 | X28: -8281.868212 | Y28: -8447.505576 | Z28: -8616.455688 | AA28: -8788.784802 | AB28: 0 | AC28: 0 | AD28: 0 | AE28: 0 | AF28: 0 | AG28: 0 | AH28: 0 | AI28: 0 | AJ28: 0 | AK28: 0 | AL28: 0
B29: OUTLT | D29: =D43-C43 -> 28797 | E29: 43195.5 | F29: 57594 | G29: 92150.4 | H29: 48954.9 | I29: 17278.2 | J29: 0 | K29: 0 | L29: 0 | M29: -17915.8607 | N29: -18979.18654 | O29: -20106.272 | P29: -21301.08161 | Q29: -22567.83159 | R29: -23911.00604 | S29: -25335.37411 | T29: -26846.00836 | U29: -28448.30426 | V29: -30148.00095 | W29: -18276.45958 | X29: -8281.868212 | Y29: -8447.505576 | Z29: -8616.455688 | AA29: -8788.784802 | AB29: 0 | AC29: 0 | AD29: 0 | AE29: 0 | AF29: 0 | AG29: 0 | AH29: 0 | AI29: 0 | AJ29: 0 | AK29: 0 | AL29: 0
B31: CAPNET | D31: =D36 -> 33100 | E31: =E36-D36 -> 49650 | F31: 66200 | G31: 105920 | H31: 56270 | I31: 6620 | J31: -13240 | K31: -13240 | L31: -13240 | M31: -13240 | N31: -13240 | O31: -13240 | P31: -13240 | Q31: -13240 | R31: -13240 | S31: -13240 | T31: -13240 | U31: -13240 | V31: -13240 | W31: -13240 | X31: -13240 | Y31: -13240 | Z31: -13240 | AA31: -13240 | AB31: -13240 | AC31: -13240 | AD31: -13240 | AE31: -13240 | AF31: -13240 | AG31: -13240 | AH31: 0 | AI31: 0 | AJ31: 0 | AK31: 0 | AL31: 0
B32: CAPEX | D32: =INDIRECT($B32) -> -33100 | E32: -49650 | F32: -66200 | G32: -105920 | H32: -56270 | I32: -19860 | J32: 0 | K32: 0 | L32: 0 | M32: 0 | N32: =INDIRECT($B32) -> 0 | O32: 0 | P32: 0 | Q32: 0 | R32: 0 | S32: 0 | T32: 0 | U32: 0 | V32: 0 | W32: 0 | X32: =INDIRECT($B32) -> 0 | Y32: 0 | Z32: 0 | AA32: 0 | AB32: 0 | AC32: 0 | AD32: 0 | AE32: 0 | AF32: 0 | AG32: 0 | AH32: 0 | AI32: 0 | AJ32: 0 | AK32: 0 | AL32: 0
B33: AMORT | D33: 0 | E33: 0 | F33: 0 | G33: 0 | H33: 0 | I33: -13240 | J33: -13240 | K33: -13240 | L33: -13240 | M33: -13240 | N33: -13240 | O33: -13240 | P33: -13240 | Q33: -13240 | R33: -13240 | S33: -13240 | T33: -13240 | U33: -13240 | V33: -13240 | W33: -13240 | X33: -13240 | Y33: -13240 | Z33: -13240 | AA33: -13240 | AB33: -13240 | AC33: -13240 | AD33: -13240 | AE33: -13240 | AF33: -13240 | AG33: -13240 | AH33: 0 | AI33: 0 | AJ33: 0 | AK33: 0 | AL33: 0
A35: ASSETS
B36: CAPNET | D36: =INDIRECT($B36) -> 33100 | E36: 82750 | F36: 148950 | G36: 254870 | H36: 311140 | I36: 317760 | J36: 304520 | K36: 291280 | L36: 278040 | M36: 264800 | N36: =INDIRECT($B36) -> 251560 | O36: 238320 | P36: 225080 | Q36: 211840 | R36: 198600 | S36: 185360 | T36: 172120 | U36: 158880 | V36: 145640 | W36: 132400 | X36: =INDIRECT($B36) -> 119160 | Y36: 105920 | Z36: 92680 | AA36: 79440 | AB36: 66200 | AC36: 52960 | AD36: 39720 | AE36: 26480 | AF36: 13240 | AG36: 0 | AH36: 0 | AI36: 0 | AJ36: 0 | AK36: 0 | AL36: 0
B37: POSBAL | D37: 5296 | E37: 11975.21407 | F37: 19352.32067 | G37: 30490.99666 | H37: 29441.50679 | I37: 33148.64383 | J37: 63432.75412 | K37: 67557.64122 | L37: 96357.35869 | M37: 91585.90415 | N37: 85750.16848 | O37: 78786.38253 | P37: 70626.81251 | Q37: 61199.50832 | R37: 50428.03567 | S37: 38231.191 | T37: 24522.69812 | U37: 9210.885237 | V37: 0 | W37: 0 | X37: 0 | Y37: 0 | Z37: 1107.329246 | AA37: 5448.672921 | AB37: 18577.70355 | AC37: 31705.62536 | AD37: 44832.4273 | AE37: 57958.09817 | AF37: 71082.62668 | AG37: 84206.00144 | AH37: 2.910383046e-10 | AI37: 0 | AJ37: 0 | AK37: 0 | AL37: 0
B38: DSRA | D38: 0 | E38: 0 | F38: 0 | G38: 0 | H38: 0 | I38: 29441.50679 | J38: 33148.64383 | K38: 63432.75412 | L38: 67557.64122 | M38: 85340.7128 | N38: 85949.68759 | O38: 85750.16848 | P38: 78786.38253 | Q38: 70626.81251 | R38: 61199.50832 | S38: 50428.03567 | T38: 38231.191 | U38: 24522.69812 | V38: 9210.885237 | W38: 0 | X38: 0 | Y38: 0 | Z38: 0 | AA38: 0 | AB38: 0 | AC38: 0 | AD38: 0 | AE38: 0 | AF38: 0 | AG38: 0 | AH38: 0 | AI38: 0 | AJ38: 0 | AK38: 0 | AL38: 0
B39: WCPAY | D39: 0 | E39: 0 | F39: 0 | G39: 0 | H39: 0 | I39: 9634.258793 | J39: 9730.601381 | K39: 9827.907394 | L39: 9926.186468 | M39: 10025.44833 | N39: 10125.70282 | O39: 10226.95984 | P39: 10329.22944 | Q39: 10432.52174 | R39: 10536.84695 | S39: 10642.21542 | T39: 10748.63758 | U39: 10856.12395 | V39: 10964.68519 | W39: 11074.33205 | X39: 11185.07537 | Y39: 11296.92612 | Z39: 11409.89538 | AA39: 11523.99433 | AB39: 11639.23428 | AC39: 11755.62662 | AD39: 11873.18289 | AE39: 11991.91472 | AF39: 12111.83386 | AG39: 12232.9522 | AH39: 0 | AI39: 0 | AJ39: 0 | AK39: 0 | AL39: 0
A41: LIABILITIES
B42: NEGBAL | D42: =INDIRECT($B42) -> 0 | E42: 0 | F42: 0 | G42: 0 | H42: 0 | I42: 0 | J42: 0 | K42: 0 | L42: 0 | M42: 0 | N42: =INDIRECT($B42) -> 0 | O42: 0 | P42: 0 | Q42: 0 | R42: 0 | S42: 0 | T42: 0 | U42: 0 | V42: 7801.65865 | W42: 12943.70582 | X42: =INDIRECT($B42) -> 8092.21669 | Y42: 3407.43054 | Z42: 0 | AA42: 0 | AB42: 0 | AC42: 0 | AD42: 0 | AE42: 0 | AF42: 0 | AG42: 0 | AH42: 0 | AI42: 1.077321184e-09 | AJ42: 2.71973075e-09 | AK42: 4.520411128e-09 | AL42: 6.360561253e-09
B43: OUTLT | D43: 28797 | E43: 71992.5 | F43: 129586.5 | G43: 221736.9 | H43: 270691.8 | I43: 287970 | J43: 287970 | K43: 287970 | L43: 287970 | M43: 270054.1393 | N43: 251074.9528 | O43: 230968.6808 | P43: 209667.5992 | Q43: 187099.7676 | R43: 163188.7615 | S43: 137853.3874 | T43: 111007.3791 | U43: 82559.07481 | V43: 52411.07386 | W43: 34134.61428 | X43: 25852.74607 | Y43: 17405.24049 | Z43: 8788.784802 | AA43: 0 | AB43: 0 | AC43: 0 | AD43: 0 | AE43: 0 | AF43: 0 | AG43: 0 | AH43: 0 | AI43: 0 | AJ43: 0 | AK43: 0 | AL43: 0
B44: WCREC | D44: 0 | E44: 0 | F44: 0 | G44: 0 | H44: 0 | I44: 352.761305 | J44: 356.3195989 | K44: 359.9140925 | L44: 363.5451601 | M44: 367.21318 | N44: 370.9185348 | O44: 374.661611 | P44: 378.4427991 | Q44: 382.2624939 | R44: 386.1210946 | S44: 390.0190044 | T44: 393.956631 | U44: 397.9343863 | V44: 401.9526867 | W44: 406.0119532 | X44: 410.1126111 | Y44: 414.2550904 | Z44: 418.4398257 | AA44: 422.6672562 | AB44: 426.937826 | AC44: 431.2519839 | AD44: 435.6101833 | AE44: 440.012883 | AF44: 444.4605462 | AG44: 448.9536416 | AH44: 0 | AI44: 0 | AJ44: 0 | AK44: 0 | AL44: 0
B45: CUMEQ | D45: 9599 | E45: 23997.5 | F45: 43195.5 | G45: 73912.3 | H45: 90230.6 | I45: 95990 | J45: 95990 | K45: 95990 | L45: 95990 | M45: 95990 | N45: 95990 | O45: 95990 | P45: 95990 | Q45: 95990 | R45: 95990 | S45: 95990 | T45: 95990 | U45: 95990 | V45: 95990 | W45: 95990 | X45: 95990 | Y45: 95990 | Z45: 95990 | AA45: 95990 | AB45: 95990 | AC45: 95990 | AD45: 95990 | AE45: 95990 | AF45: 95990 | AG45: 95990 | AH45: 0 | AI45: 0 | AJ45: 0 | AK45: 0 | AL45: 0
B46: CUMPL | D46: 0 | E46: -1264.78593 | F46: -4479.679326 | G46: -10288.20334 | H46: -20340.89321 | I46: 5671.648112 | J46: 26515.67974 | K46: 47778.38865 | L46: 67557.64122 | M46: 85340.7128 | N46: 85949.68759 | O46: 85750.16848 | P46: 78786.38253 | Q46: 70626.81251 | R46: 61199.50832 | S46: 50428.03567 | T46: 38231.191 | U46: 24522.69812 | V46: 9210.885237 | W46: 0 | X46: 0 | Y46: 0 | Z46: 0 | AA46: 0 | AB46: 0 | AC46: -6.548361853e-11 | AD46: -1.964508556e-10 | AE46: -2.983142622e-10 | AF46: -3.637978807e-11 | AG46: 1.418811735e-09 | AH46: 4.019966582e-10 | AI46: -9.663628306e-10 | AJ46: -2.608772397e-09 | AK46: -4.409452775e-09 | AL46: -6.2496029e-09
D48: =D37-D42 -> 5296 | E48: =E37-E42 -> 11975.21407 | F48: =F37-F42 -> 19352.32067 | G48: =G37-G42 -> 30490.99666 | H48: =H37-H42 -> 29441.50679 | I48: 33148.64383 | J48: =J37-J42 -> 63432.75412 | K48: 67557.64122 | L48: 96357.35869 | M48: 91585.90415 | N48: 85750.16848 | O48: 78786.38253 | P48: 70626.81251 | Q48: 61199.50832 | R48: 50428.03567 | S48: 38231.191 | T48: 24522.69812 | U48: 9210.885237 | V48: -7801.65865 | W48: -12943.70582 | X48: -8092.21669 | Y48: -3407.43054 | Z48: 1107.329246 | AA48: 5448.672921 | AB48: 18577.70355 | AC48: 31705.62536 | AD48: 44832.4273 | AE48: 57958.09817 | AF48: 71082.62668 | AG48: 84206.00144 | AH48: 2.910383046e-10 | AI48: -1.077321184e-09 | AJ48: -2.71973075e-09 | AK48: -4.520411128e-09 | AL48: -6.360561253e-09
D49: =D48 -> 5296 | E49: =E48-D48 -> 6679.21407 | F49: =F48-E48 -> 7377.106603 | G49: 11138.67598 | H49: -1049.489866 | I49: 3707.137042 | J49: 30284.11029 | K49: 4124.887097 | L49: 28799.71747 | M49: -4771.454541 | N49: -5835.735669 | O49: -6963.785952 | P49: -8159.570017 | Q49: -9427.304188 | R49: -10771.47265 | S49: -12196.84467 | T49: -13708.49289 | U49: -15311.81288 | V49: -17012.54389 | W49: -5142.047165 | X49: 4851.489125 | Y49: 4684.786149 | Z49: 4514.759786 | AA49: 4341.343675 | AB49: 13129.03063 | AC49: 13127.92182 | AD49: 13126.80193 | AE49: 13125.67087 | AF49: 13124.52852 | AG49: 13123.37476 | AH49: -84206.00144 | AI49: -1.368359489e-09 | AJ49: -1.642409566e-09 | AK49: -1.800680378e-09 | AL49: -1.840150125e-09
B51: REVENUES | D51: =INDIRECT($B51) -> 0 | E51: =INDIRECT($B51) -> 0 | F51: =INDIRECT($B51) -> 0 | G51: 0 | H51: 0 | I51: 57805.55276 | J51: 58383.60828 | K51: 58967.44437 | L51: 59557.11881 | M51: 60152.69 | N51: 60754.2169 | O51: 61361.75907 | P51: 61975.37666 | Q51: 62595.13042 | R51: 63221.08173 | S51: 63853.29255 | T51: 64491.82547 | U51: 65136.74373 | V51: 65788.11116 | W51: 66445.99227 | X51: 67110.4522 | Y51: 67781.55672 | Z51: 68459.37229 | AA51: 69143.96601 | AB51: 69835.40567 | AC51: 70533.75973 | AD51: 71239.09732 | AE51: 71951.4883 | AF51: 72671.00318 | AG51: 73397.71321 | AH51: 0 | AI51: 0 | AJ51: 0 | AK51: 0 | AL51: 0
B52: COST | D52: =INDIRECT($B52) -> 0 | E52: 0 | F52: =INDIRECT($B52) -> 0 | G52: 0 | H52: 0 | I52: -1411.04522 | J52: -1425.278396 | K52: -1439.65637 | L52: -1454.18064 | M52: -1468.85272 | N52: -1483.674139 | O52: -1498.646444 | P52: -1513.771196 | Q52: -1529.049976 | R52: -1544.484378 | S52: -1560.076018 | T52: -1575.826524 | U52: -1591.737545 | V52: -1607.810747 | W52: -1624.047813 | X52: -1640.450444 | Y52: -1657.020361 | Z52: -1673.759303 | AA52: -1690.669025 | AB52: -1707.751304 | AC52: -1725.007935 | AD52: -1742.440733 | AE52: -1760.051532 | AF52: -1777.842185 | AG52: -1795.814566 | AH52: 0 | AI52: 0 | AJ52: 0 | AK52: 0 | AL52: 0
B53: TAX | D53: =INDIRECT($B53) -> 0 | E53: 0 | F53: =INDIRECT($B53) -> 0 | G53: 0 | H53: 0 | I53: -2965.337263 | J53: -2996.831489 | K53: -3028.677658 | L53: -3060.880033 | M53: -3093.442936 | N53: -3126.370745 | O53: -3159.667899 | P53: -3193.338897 | Q53: -3227.388299 | R53: -3261.820726 | S53: -3296.640865 | T53: -3331.853464 | U53: -3367.463337 | V53: -3403.475365 | W53: -3439.894495 | X53: -3476.725742 | Y53: -3513.974191 | Z53: -3551.644996 | AA53: -3589.743384 | AB53: -3628.274652 | AC53: -3667.244173 | AD53: -3706.657394 | AE53: -3746.519837 | AF53: -3786.837101 | AG53: -3827.614864 | AH53: 0 | AI53: 0 | AJ53: 0 | AK53: 0 | AL53: 0
B54: WCVAR | D54: =INDIRECT($B54) -> 0 | E54: 0 | F54: =INDIRECT($B54) -> 0 | G54: 0 | H54: 0 | I54: -9281.497488 | J54: -92.784294 | K54: -93.71152025 | L54: -94.64800637 | M54: -95.59384471 | N54: -96.54912853 | O54: -97.51395204 | P54: -98.48841035 | Q54: -99.47259956 | R54: -100.4666167 | S54: -101.4705597 | T54: -102.4845277 | U54: -103.5086205 | V54: -104.5429391 | W54: -105.5875855 | X54: -106.6426626 | Y54: -107.7082744 | Z54: -108.7845259 | AA54: -109.8715233 | AB54: -110.9693735 | AC54: -112.0781849 | AD54: -113.1980667 | AE54: -114.3291292 | AF54: -115.4714839 | AG54: -116.6252433 | AH54: 11783.99856 | AI54: 0 | AJ54: 0 | AK54: 0 | AL54: 0
B55: CAPEX | D55: =INDIRECT($B55) -> -33100 | E55: -49650 | F55: =INDIRECT($B55) -> -66200 | G55: -105920 | H55: -56270 | I55: -19860 | J55: 0 | K55: 0 | L55: 0 | M55: 0 | N55: 0 | O55: 0 | P55: 0 | Q55: 0 | R55: 0 | S55: 0 | T55: 0 | U55: 0 | V55: 0 | W55: 0 | X55: 0 | Y55: 0 | Z55: 0 | AA55: 0 | AB55: 0 | AC55: 0 | AD55: 0 | AE55: 0 | AF55: 0 | AG55: 0 | AH55: 0 | AI55: 0 | AJ55: 0 | AK55: 0 | AL55: 0
B57: DT | D57: =INDIRECT($B57) -> 28797 | E57: 43195.5 | F57: =INDIRECT($B57) -> 57594 | G57: 92150.4 | H57: 48954.9 | I57: 17278.2 | J57: 0 | K57: 0 | L57: 0 | M57: 0 | N57: 0 | O57: 0 | P57: 0 | Q57: 0 | R57: 0 | S57: 0 | T57: 0 | U57: 0 | V57: 0 | W57: 0 | X57: 0 | Y57: 0 | Z57: 0 | AA57: 0 | AB57: 0 | AC57: 0 | AD57: 0 | AE57: 0 | AF57: 0 | AG57: 0 | AH57: 0 | AI57: 0 | AJ57: 0 | AK57: 0 | AL57: 0
B58: AMOLT | D58: =INDIRECT($B58) -> 0 | E58: 0 | F58: =INDIRECT($B58) -> 0 | G58: 0 | H58: 0 | I58: 0 | J58: 0 | K58: 0 | L58: 0 | M58: -17915.8607 | N58: -18979.18654 | O58: -20106.272 | P58: -21301.08161 | Q58: -22567.83159 | R58: -23911.00604 | S58: -25335.37411 | T58: -26846.00836 | U58: -28448.30426 | V58: -30148.00095 | W58: -18276.45958 | X58: -8281.868212 | Y58: -8447.505576 | Z58: -8616.455688 | AA58: -8788.784802 | AB58: 0 | AC58: 0 | AD58: =INDIRECT($B58) -> 0 | AE58: 0 | AF58: 0 | AG58: 0 | AH58: 0 | AI58: 0 | AJ58: 0 | AK58: 0 | AL58: 0
B59: INTLT | D59: =INDIRECT($B59) -> 0 | E59: =INDIRECT($B59) -> -1324.662 | F59: =INDIRECT($B59) -> -3311.655 | G59: -5960.979 | H59: -10199.8974 | I59: -12451.8228 | J59: -13246.62 | K59: -13246.62 | L59: -13246.62 | M59: -13246.62 | N59: -12404.42311 | O59: -11500.66081 | P59: -10531.39015 | Q59: -9492.416729 | R59: -8379.278465 | S59: -7187.228431 | T59: -5911.216519 | U59: -4545.869928 | V59: -3085.472394 | W59: -1523.942067 | X59: -682.6922856 | Y59: -517.0549213 | Z59: -348.1048098 | AA59: -175.775696 | AB59: 0 | AC59: 0 | AD59: 0 | AE59: 0 | AF59: 0 | AG59: 0 | AH59: 0 | AI59: 0 | AJ59: 0 | AK59: 0 | AL59: 0
B61: EQ | D61: =INDIRECT($B61) -> 9599 | E61: 14398.5 | F61: 19198 | G61: 30716.8 | H61: 16318.3 | I61: 5759.4 | J61: 0 | K61: 0 | L61: 0 | M61: 0 | N61: 0 | O61: 0 | P61: 0 | Q61: 0 | R61: 0 | S61: 0 | T61: 0 | U61: 0 | V61: 0 | W61: 0 | X61: 0 | Y61: 0 | Z61: 0 | AA61: 0 | AB61: 0 | AC61: 0 | AD61: 0 | AE61: 0 | AF61: 0 | AG61: 0 | AH61: -95990 | AI61: 0 | AJ61: 0 | AK61: 0 | AL61: 0
B62: DIVIDEND | D62: =INDIRECT($B62) -> 0 | E62: 0 | F62: =INDIRECT($B62) -> 0 | G62: 0 | H62: 0 | I62: 0 | J62: 0 | K62: 0 | L62: -1998.666123 | M62: -4388.206323 | N62: -22587.40001 | O62: -24467.05599 | P62: -32351.29381 | Q62: -34718.77474 | R62: -37213.03294 | S62: -39841.85004 | T62: -42613.50151 | U62: -45536.78839 | V62: -48065.20297 | W62: -43203.68823 | X62: -35446.02154 | Y62: -36384.57314 | Z62: -37238.54987 | AA62: -37856.26595 | AB62: -38514.20117 | AC62: -39045.02681 | AD62: -39580.621 | AE62: -40121.03056 | AF62: -40666.30277 | AG62: -41216.48534 | AH62: 0 | AI62: 0 | AJ62: 0 | AK62: 0 | AL62: 0
B64: CFDSRA | D64: =INDIRECT($B64) -> 0 | E64: 0 | F64: 0 | G64: 0 | H64: 0 | I64: -29441.50679 | J64: -3707.137042 | K64: -30284.11029 | L64: -4124.887097 | M64: -17783.07157 | N64: =INDIRECT($B64) -> -608.9747994 | O64: 199.5191133 | P64: 6963.785952 | Q64: 8159.570017 | R64: 9427.304188 | S64: 10771.47265 | T64: 12196.84467 | U64: 13708.49289 | V64: 15311.81288 | W64: 9210.885237 | X64: =INDIRECT($B64) -> 0 | Y64: 0 | Z64: 0 | AA64: 0 | AB64: 0 | AC64: 0 | AD64: 0 | AE64: 0 | AF64: 0 | AG64: 0 | AH64: 0 | AI64: 0 | AJ64: 0 | AK64: 0 | AL64: 0
B65: INTST | D65: 0 | E65: 59.87607035 | F65: 96.76160337 | G65: 152.4549833 | H65: 147.207534 | I65: 165.7432192 | J65: 317.1637706 | K65: 337.7882061 | L65: 481.7867935 | M65: 457.9295208 | N65: 428.7508424 | O65: 393.9319126 | P65: 353.1340626 | Q65: 305.9975416 | R65: 252.1401784 | S65: 191.155955 | T65: 122.6134906 | U65: 46.05442619 | V65: -780.165865 | W65: -1294.370582 | X65: -809.221669 | Y65: -340.743054 | Z65: 5.536646231 | AA65: 27.24336461 | AB65: 92.88851774 | AC65: 158.5281268 | AD65: 224.1621365 | AE65: 289.7904908 | AF65: 355.4131334 | AG65: 421.0300072 | AH65: -9.022187442e-10 | AI65: -1.276374964e-09 | AJ65: -1.547051998e-09 | AK65: -1.703386234e-09 | AL65: -1.742393364e-09
B67: TAXCO | D67: =INDIRECT($B67) -> 0 | E67: 0 | F67: 0 | G67: 0 | H67: 0 | I67: -1890.549371 | J67: -6948.010542 | K67: -7087.569636 | L67: -7259.306232 | M67: -7390.425966 | N67: -7732.124936 | O67: -8089.178958 | P67: -8462.502619 | Q67: -8853.068241 | R67: -9261.909584 | S67: -9690.125797 | T67: -10138.88561 | U67: -10609.43184 | V67: -10917.7967 | W67: -11330.93433 | X67: -11815.34051 | Y67: -12128.19105 | Z67: -12412.84996 | AA67: -12618.75532 | AB67: -12838.06706 | AC67: -13015.00894 | AD67: -13193.54033 | AE67: -13373.67685 | AF67: -13555.43426 | AG67: -13738.82845 | AH67: -1.145963324e-10 | AI67: -9.198452445e-11 | AJ67: -9.535756775e-11 | AK67: -9.729414374e-11 | AL67: -9.77567611e-11
D68: =-D49 -> -5296 | E68: =-E49 -> -6679.21407 | F68: -7377.106603 | G68: -11138.67598 | H68: 1049.489866 | I68: -3707.137042 | J68: -30284.11029 | K68: -4124.887097 | L68: -28799.71747 | M68: 4771.454541 | N68: 5835.735669 | O68: 6963.785952 | P68: 8159.570017 | Q68: 9427.304188 | R68: 10771.47265 | S68: 12196.84467 | T68: 13708.49289 | U68: 15311.81288 | V68: 17012.54389 | W68: 5142.047165 | X68: -4851.489125 | Y68: -4684.786149 | Z68: -4514.759786 | AA68: -4341.343675 | AB68: -13129.03063 | AC68: -13127.92182 | AD68: -13126.80193 | AE68: -13125.67087 | AF68: -13124.52852 | AG68: -13123.37476 | AH68: 84206.00144 | AI68: 1.368359489e-09 | AJ68: 1.642409566e-09 | AK68: 1.800680378e-09 | AL68: 1.840150125e-09
D69: =SUM(D51:D68) -> 0 | E69: 0 | F69: 0 | G69: 0 | H69: -3.637978807e-12 | I69: 0 | J69: 0 | K69: 0 | L69: 0 | M69: -1.182343112e-11 | N69: 0 | O69: 0 | P69: 0 | Q69: 0 | R69: 0 | S69: 0 | T69: 0 | U69: 0 | V69: 0 | W69: 0 | X69: -7.275957614e-12 | Y69: -7.275957614e-12 | Z69: 0 | AA69: -7.275957614e-12 | AB69: 0 | AC69: 0 | AD69: 0 | AE69: 0 | AF69: 0 | AG69: 0 | AH69: 0 | AI69: 0 | AJ69: 0 | AK69: 0 | AL69: 0
